Workbook

Sheet 学習の達成_メニュー
E1: [英語] 観点別集計ソフト(1年光村) | O1: FALSE | P1: FALSE
A2: ▼設定メニュー
B3: 名簿入力 | N3: 名簿入力はこちら＞
C4: 入力済み名簿（8組まで対応）
D5: ="1組:"&名簿入力!C3&"名" -> 1組:0名 | E5: ="2組:"&名簿入力!G3&"名" -> 2組:0名 | F5: ="3組:"&名簿入力!K3&"名" -> 3組:0名 | G5: ="4組:"&名簿入力!O3&"名" -> 4組:0名 | H5: ="5組:"&名簿入力!S3&"名" -> 5組:0名 | I5: ="6組:"&名簿入力!W3&"名" -> 6組:0名 | J5: ="7組:"&名簿入力!AA3&"名" -> 7組:0名 | K5: ="8組:"&名簿入力!AE3&"名" -> 8組:0名
C7: ※得点入力シートなどで名簿を直接入力しないようにしてください。
C8: ※必ず名簿入力シートで名簿を入力してください（各シートに反映されます）。
B11: 各回使用学期/観点別評価基準の設定＞ | G11: ユーザー独自項目 各回の使用学期／観点別評価基準／評価材ごとの重み付けと比重 の設定＞
B22: 学期・年間の観点別評価基準 観点重みづけ の設定 | N22: 変更する場合はこちら＞
B35: 5段階評定の基準選択と基準の設定 | N35: 変更する場合はこちら＞
H37: =IF(達成率で5段階評定="○","「達成率（得点率)による評価」を選択しています。","「観点別評価のABC判帝をもとにした評価」を選択しています。") -> 「達成率（得点率)による評価」を選択しています。
B49: ファイル関連設定
C50: ▼バージョンアップ時のデータ取り込み処理（１．[フォルダ選択]で前バージョンのEXCEL得点集計を選択。２．[取り込み]をクリック）
A59: ▼得点入力・集計メニュー
C60: 得点分布[学年] | E60: (全クラス) | N60: ▼得点入力▼
C61: 学期・年間＞ | E61: 1学期 | N61: 下の図をクリックすると
N62: 単元表示の時に上の行
F63: =IF(C61="学期・年間＞","―",VALUE(LEFT($E61,FIND(":",$E61)-1))) -> ― | G63: =IF(C61="学期・年間＞",IF(E61="年間",1,MATCH(VALUE(SUBSTITUTE(E61,"学期","")),学データシート!G6:P6,0)), IF(C61="単元(単独)＞",13, IF(C61="単元(２単元比較)＞",16, IF(C61="回数範囲指定＞",23,)))) -> 4 | H63: =IF(E62="","―",VALUE(LEFT($E62,FIND(":",$E62)-1))) -> ― | I63: =IF(C61="学期・年間＞","―", IF(C61="単元(単独)＞","―", IF(C61="単元(２単元比較)＞",19, IF(C61="回数範囲指定＞","―",)))) -> ― | N63: の単元の得点入力へ
F64: % | N64: 移動します↓
D65: 0 | E65: 10 | F65: =D65&"～"&E65 -> 0～10 | G65: =OFFSET(学データシート!$G$7,ROW()-ROW(G$65),G$63) ->  | I65: =IF(I$63="―","―",OFFSET(学データシート!$G$7,ROW()-ROW(I$65),I$63)) -> ―
D66: =E65 -> 10 | E66: =E65+10 -> 20 | F66: 10～20 | G66: =OFFSET(学データシート!$G$7,ROW()-ROW(G$65),G$63) ->  | I66: =IF(I$63="―","―",OFFSET(学データシート!$G$7,ROW()-ROW(I$65),I$63)) -> ―
D67: =E66 -> 20 | E67: =E66+10 -> 30 | F67: 20～30 | G67: =OFFSET(学データシート!$G$7,ROW()-ROW(G$65),G$63) ->  | I67: =IF(I$63="―","―",OFFSET(学データシート!$G$7,ROW()-ROW(I$65),I$63)) -> ―
D68: 30 | E68: 40 | F68: 30～40 | G68: =OFFSET(学データシート!$G$7,ROW()-ROW(G$65),G$63) ->  | I68: =IF(I$63="―","―",OFFSET(学データシート!$G$7,ROW()-ROW(I$65),I$63)) -> ―
D69: 40 | E69: 50 | F69: 40～50 | G69: =OFFSET(学データシート!$G$7,ROW()-ROW(G$65),G$63) ->  | I69: =IF(I$63="―","―",OFFSET(学データシート!$G$7,ROW()-ROW(I$65),I$63)) -> ―
D70: 50 | E70: 60 | F70: 50～60 | G70: =OFFSET(学データシート!$G$7,ROW()-ROW(G$65),G$63) ->  | I70: =IF(I$63="―","―",OFFSET(学データシート!$G$7,ROW()-ROW(I$65),I$63)) -> ―
D71: 60 | E71: 70 | F71: 60～70 | G71: =OFFSET(学データシート!$G$7,ROW()-ROW(G$65),G$63) ->  | I71: =IF(I$63="―","―",OFFSET(学データシート!$G$7,ROW()-ROW(I$65),I$63)) -> ―
D72: 70 | E72: 80 | F72: 70～80 | G72: =OFFSET(学データシート!$G$7,ROW()-ROW(G$65),G$63) ->  | I72: =IF(I$63="―","―",OFFSET(学データシート!$G$7,ROW()-ROW(I$65),I$63)) -> ―
D73: 80 | E73: 90 | F73: 80～90 | G73: =OFFSET(学データシート!$G$7,ROW()-ROW(G$65),G$63) ->  | I73: =IF(I$63="―","―",OFFSET(学データシート!$G$7,ROW()-ROW(I$65),I$63)) -> ―
D74: 90 | E74: 100 | F74: 90～100 | G74: =OFFSET(学データシート!$G$7,ROW()-ROW(G$65),G$63) ->  | I74: =IF(I$63="―","―",OFFSET(学データシート!$G$7,ROW()-ROW(I$65),I$63)) -> ―
B78: 平均点グラフ（合計） | N78: 平均点シートはこちら＞
D80: 単元情報を入力、名簿入力後に再描画してください。
B100: 学年成績分布 | N100: クラス別はこちら＞
B111: 校務支援ソフト連携ファイル出力 | N111: 総合評価はこちら＞
C112: 総合評価シートの出力ボタンでファイル作成できます。
N114: 以上

Sheet 学データシート (hidden)
A1: メニューシートの得点分布のデータ | R1: 学期・年間＞,単元(単独)＞,単元(２単元比較)＞,回数範囲指定＞ | AB1: 回数で範囲を選ぶ
A2: 得点分布表 | S2: ="第"&OFFSET(基準設定1!A10,S6*3,0)&"回 "&OFFSET(基準設定1!B10,S6*3,0) ->  | V2: ="第"&OFFSET(基準設定1!$A10,V6*3,0)&"回 "&OFFSET(基準設定1!$B10,V6*3,0) ->  | Y2: ="第"&OFFSET(基準設定1!$A10,Y6*3,0)&"回 "&OFFSET(基準設定1!$B10,Y6*3,0) ->  | AB2: 開始回数 | AC2: =IF(学習の達成_メニュー!$F$63=FALSE,2,学習の達成_メニュー!$F$63) -> ―
B3: 学年全体 | V3: 単元① | Y3: 単元② | AB3: 終了範囲 | AC3: =IF(学習の達成_メニュー!$H$63=FALSE,2,学習の達成_メニュー!$H$63) -> ―
G4: 0 | H4: 1 | I4: 2 | J4: 3 | K4: 4 | L4: 5 | M4: 6 | N4: 7 | O4: 8 | P4: 9 | Q4: 10 | R4: 11 | S4: 12 | T4: 13 | U4: 14 | V4: 15 | W4: 16 | X4: 17 | Y4: 18 | Z4: 19 | AA4: 20 | AB4: 21 | AC4: 22 | AD4: 23
B5: 学年全体orクラス | C5: =IF(学習の達成_メニュー!$E$60="(全クラス)",">0",学習の達成_メニュー!$E$60) -> >0 | F5: 満点 | G5: =学習の達成_得点!$HI$7 -> 3200 | J5: =学習の達成_得点!HF$7 -> 1000 | M5: =学習の達成_得点!HG$7 -> 1000 | P5: =学習の達成_得点!HH$7 -> 1200 | S5: =OFFSET(学習の達成_得点!$DT$7,0,S6-1) ->  | V5: =OFFSET(学習の達成_得点!$DT$7,0,V6-1) ->  | Y5: =OFFSET(学習の達成_得点!$DT$7,0,Y6-1) ->  | AC5: =学習の達成_得点!$HJ$7 -> 
D6: 0 | E6: % | F6: 0 | G6: 年間 | H6: 率 | I6: 0 | J6: 1 | K6: 率 | L6: 0 | M6: 2 | N6: 率 | O6: 0 | P6: 3 | Q6: 率 | R6: 0 | S6: =IF(学習の達成_メニュー!$F$63=FALSE,2,学習の達成_メニュー!$F$63) -> ― | T6: 率 | U6: 0 | V6: =IF(学習の達成_メニュー!$F$63=FALSE,2,学習の達成_メニュー!$F$63) -> ― | W6: 率 | X6: 0 | Y6: =IF(学習の達成_メニュー!$H$63=FALSE,2,学習の達成_メニュー!$H$63) -> ― | Z6: 率 | AB6: 0 | AD6: 率
D7: 10 | E7: =D6&"～"&D7 -> 0～10 | F7: =G$5*$D7/100 -> 320 | G7: =COUNTIFS(OFFSET(学習の達成_得点!$HI$9,0,0,360,1),"<"&F7,OFFSET(学習の達成_得点!$HI$9,0,0,360,1),">="&F6,OFFSET(学習の達成_得点!$A$9,0,0,360,1),$C$5) -> 0 | H7: =G7/G$17 ->  | I7: =J$5*$D7/100 -> 100 | J7: =COUNTIFS(OFFSET(学習の達成_得点!HF$9,0,0,360,1),"<"&I7,OFFSET(学習の達成_得点!HF$9,0,0,360,1),">="&I6,OFFSET(学習の達成_得点!$A$9,0,0,360,1),$C$5) -> 0 | K7: =J7/J$17 ->  | L7: =M$5*$D7/100 -> 100 | M7: =COUNTIFS(OFFSET(学習の達成_得点!HG$9,0,0,360,1),"<"&L7,OFFSET(学習の達成_得点!HG$9,0,0,360,1),">="&L6,OFFSET(学習の達成_得点!$A$9,0,0,360,1),$C$5) -> 0 | N7: =M7/M$17 ->  | O7: =P$5*$D7/100 -> 120 | P7: =COUNTIFS(OFFSET(学習の達成_得点!HH$9,0,0,360,1),"<"&O7,OFFSET(学習の達成_得点!HH$9,0,0,360,1),">="&O6,OFFSET(学習の達成_得点!$A$9,0,0,360,1),$C$5) -> 0 | Q7: =P7/P$17 ->  | R7: =S$5*$D7/100 ->  | S7: =COUNTIFS(OFFSET(学習の達成_得点!$DT$9,0,(S$6-1)*3,360,1),"<"&R7,OFFSET(学習の達成_得点!$DT$9,0,(S$6-1)*3,360,1),">="&R6,OFFSET(学習の達成_得点!$A$9,0,0,360,1),$C$5) ->  | T7: =S7/S$17 ->  | U7: =V$5*$D7/100 ->  | V7: =COUNTIFS(OFFSET(学習の達成_得点!$DT$9,0,(V$6-1)*3,360,1),"<"&U7,OFFSET(学習の達成_得点!$DT$9,0,(V$6-1)*3,360,1),">="&U6,OFFSET(学習の達成_得点!$A$9,0,0,360,1),$C$5) ->  | W7: =V7/V$17 ->  | X7: =Y$5*$D7/100 ->  | Y7: =COUNTIFS(OFFSET(学習の達成_得点!$DT$9,0,(Y$6-1)*3,360,1),"<"&X7,OFFSET(学習の達成_得点!$DT$9,0,(Y$6-1)*3,360,1),">="&X6,OFFSET(学習の達成_得点!$A$9,0,0,360,1),$C$5) ->  | Z7: =Y7/Y$17 ->  | AB7: =AC$5*$D7/100 ->  | AC7: =COUNTIFS(OFFSET(学習の達成_得点!HJ$9,0,0,360,1),"<"&AB7,OFFSET(学習の達成_得点!HJ$9,0,0,360,1),">="&AB6,OFFSET(学習の達成_得点!$A$9,0,0,360,1),$C$5,OFFSET(学習の達成_得点!$A$9,0,0,360,1),$C$5) -> 0 | AD7: =AC7/AC$17 -> 
D8: =D7+10 -> 20 | E8: =D7&"～"&D8 -> 10～20 | F8: 640 | G8: =COUNTIFS(OFFSET(学習の達成_得点!$HI$9,0,0,360,1),"<"&F8,OFFSET(学習の達成_得点!$HI$9,0,0,360,1),">="&F7,OFFSET(学習の達成_得点!$A$9,0,0,360,1),$C$5) -> 0 | I8: 200 | J8: =COUNTIFS(OFFSET(学習の達成_得点!HF$9,0,0,360,1),"<"&I8,OFFSET(学習の達成_得点!HF$9,0,0,360,1),">="&I7,OFFSET(学習の達成_得点!$A$9,0,0,360,1),$C$5) -> 0 | L8: 200 | M8: =COUNTIFS(OFFSET(学習の達成_得点!HG$9,0,0,360,1),"<"&L8,OFFSET(学習の達成_得点!HG$9,0,0,360,1),">="&L7,OFFSET(学習の達成_得点!$A$9,0,0,360,1),$C$5) -> 0 | O8: 240 | P8: =COUNTIFS(OFFSET(学習の達成_得点!HH$9,0,0,360,1),"<"&O8,OFFSET(学習の達成_得点!HH$9,0,0,360,1),">="&O7,OFFSET(学習の達成_得点!$A$9,0,0,360,1),$C$5) -> 0 | S8: =COUNTIFS(OFFSET(学習の達成_得点!$DT$9,0,(S$6-1)*3,360,1),"<"&R8,OFFSET(学習の達成_得点!$DT$9,0,(S$6-1)*3,360,1),">="&R7,OFFSET(学習の達成_得点!$A$9,0,0,360,1),$C$5) ->  | V8: =COUNTIFS(OFFSET(学習の達成_得点!$DT$9,0,(V$6-1)*3,360,1),"<"&U8,OFFSET(学習の達成_得点!$DT$9,0,(V$6-1)*3,360,1),">="&U7,OFFSET(学習の達成_得点!$A$9,0,0,360,1),$C$5) ->  | Y8: =COUNTIFS(OFFSET(学習の達成_得点!$DT$9,0,(Y$6-1)*3,360,1),"<"&X8,OFFSET(学習の達成_得点!$DT$9,0,(Y$6-1)*3,360,1),">="&X7,OFFSET(学習の達成_得点!$A$9,0,0,360,1),$C$5) ->  | AB8: =AC$5*$D8/100 ->  | AC8: =COUNTIFS(OFFSET(学習の達成_得点!HJ$9,0,0,360,1),"<"&AB8,OFFSET(学習の達成_得点!HJ$9,0,0,360,1),">="&AB7,OFFSET(学習の達成_得点!$A$9,0,0,360,1),$C$5,OFFSET(学習の達成_得点!$A$9,0,0,360,1),$C$5) -> 0 | AD8: =AC8/AC$17 -> 
D9: =D8+10 -> 30 | E9: 20～30 | F9: 960 | G9: =COUNTIFS(OFFSET(学習の達成_得点!$HI$9,0,0,360,1),"<"&F9,OFFSET(学習の達成_得点!$HI$9,0,0,360,1),">="&F8,OFFSET(学習の達成_得点!$A$9,0,0,360,1),$C$5) -> 0 | I9: 300 | J9: =COUNTIFS(OFFSET(学習の達成_得点!HF$9,0,0,360,1),"<"&I9,OFFSET(学習の達成_得点!HF$9,0,0,360,1),">="&I8,OFFSET(学習の達成_得点!$A$9,0,0,360,1),$C$5) -> 0 | L9: 300 | M9: =COUNTIFS(OFFSET(学習の達成_得点!HG$9,0,0,360,1),"<"&L9,OFFSET(学習の達成_得点!HG$9,0,0,360,1),">="&L8,OFFSET(学習の達成_得点!$A$9,0,0,360,1),$C$5) -> 0 | O9: 360 | P9: =COUNTIFS(OFFSET(学習の達成_得点!HH$9,0,0,360,1),"<"&O9,OFFSET(学習の達成_得点!HH$9,0,0,360,1),">="&O8,OFFSET(学習の達成_得点!$A$9,0,0,360,1),$C$5) -> 0 | S9: =COUNTIFS(OFFSET(学習の達成_得点!$DT$9,0,(S$6-1)*3,360,1),"<"&R9,OFFSET(学習の達成_得点!$DT$9,0,(S$6-1)*3,360,1),">="&R8,OFFSET(学習の達成_得点!$A$9,0,0,360,1),$C$5) ->  | V9: =COUNTIFS(OFFSET(学習の達成_得点!$DT$9,0,(V$6-1)*3,360,1),"<"&U9,OFFSET(学習の達成_得点!$DT$9,0,(V$6-1)*3,360,1),">="&U8,OFFSET(学習の達成_得点!$A$9,0,0,360,1),$C$5) ->  | Y9: =COUNTIFS(OFFSET(学習の達成_得点!$DT$9,0,(Y$6-1)*3,360,1),"<"&X9,OFFSET(学習の達成_得点!$DT$9,0,(Y$6-1)*3,360,1),">="&X8,OFFSET(学習の達成_得点!$A$9,0,0,360,1),$C$5) ->  | AC9: =COUNTIFS(OFFSET(学習の達成_得点!HJ$9,0,0,360,1),"<"&AB9,OFFSET(学習の達成_得点!HJ$9,0,0,360,1),">="&AB8,OFFSET(学習の達成_得点!$A$9,0,0,360,1),$C$5,OFFSET(学習の達成_得点!$A$9,0,0,360,1),$C$5) -> 0
D10: 40 | E10: 30～40 | F10: 1280 | G10: =COUNTIFS(OFFSET(学習の達成_得点!$HI$9,0,0,360,1),"<"&F10,OFFSET(学習の達成_得点!$HI$9,0,0,360,1),">="&F9,OFFSET(学習の達成_得点!$A$9,0,0,360,1),$C$5) -> 0 | I10: 400 | J10: =COUNTIFS(OFFSET(学習の達成_得点!HF$9,0,0,360,1),"<"&I10,OFFSET(学習の達成_得点!HF$9,0,0,360,1),">="&I9,OFFSET(学習の達成_得点!$A$9,0,0,360,1),$C$5) -> 0 | L10: 400 | M10: =COUNTIFS(OFFSET(学習の達成_得点!HG$9,0,0,360,1),"<"&L10,OFFSET(学習の達成_得点!HG$9,0,0,360,1),">="&L9,OFFSET(学習の達成_得点!$A$9,0,0,360,1),$C$5) -> 0 | O10: 480 | P10: =COUNTIFS(OFFSET(学習の達成_得点!HH$9,0,0,360,1),"<"&O10,OFFSET(学習の達成_得点!HH$9,0,0,360,1),">="&O9,OFFSET(学習の達成_得点!$A$9,0,0,360,1),$C$5) -> 0 | S10: =COUNTIFS(OFFSET(学習の達成_得点!$DT$9,0,(S$6-1)*3,360,1),"<"&R10,OFFSET(学習の達成_得点!$DT$9,0,(S$6-1)*3,360,1),">="&R9,OFFSET(学習の達成_得点!$A$9,0,0,360,1),$C$5) ->  | V10: =COUNTIFS(OFFSET(学習の達成_得点!$DT$9,0,(V$6-1)*3,360,1),"<"&U10,OFFSET(学習の達成_得点!$DT$9,0,(V$6-1)*3,360,1),">="&U9,OFFSET(学習の達成_得点!$A$9,0,0,360,1),$C$5) ->  | Y10: =COUNTIFS(OFFSET(学習の達成_得点!$DT$9,0,(Y$6-1)*3,360,1),"<"&X10,OFFSET(学習の達成_得点!$DT$9,0,(Y$6-1)*3,360,1),">="&X9,OFFSET(学習の達成_得点!$A$9,0,0,360,1),$C$5) ->  | AC10: =COUNTIFS(OFFSET(学習の達成_得点!HJ$9,0,0,360,1),"<"&AB10,OFFSET(学習の達成_得点!HJ$9,0,0,360,1),">="&AB9,OFFSET(学習の達成_得点!$A$9,0,0,360,1),$C$5,OFFSET(学習の達成_得点!$A$9,0,0,360,1),$C$5) -> 0
D11: 50 | E11: 40～50 | F11: 1600 | G11: =COUNTIFS(OFFSET(学習の達成_得点!$HI$9,0,0,360,1),"<"&F11,OFFSET(学習の達成_得点!$HI$9,0,0,360,1),">="&F10,OFFSET(学習の達成_得点!$A$9,0,0,360,1),$C$5) -> 0 | I11: 500 | J11: =COUNTIFS(OFFSET(学習の達成_得点!HF$9,0,0,360,1),"<"&I11,OFFSET(学習の達成_得点!HF$9,0,0,360,1),">="&I10,OFFSET(学習の達成_得点!$A$9,0,0,360,1),$C$5) -> 0 | L11: 500 | M11: =COUNTIFS(OFFSET(学習の達成_得点!HG$9,0,0,360,1),"<"&L11,OFFSET(学習の達成_得点!HG$9,0,0,360,1),">="&L10,OFFSET(学習の達成_得点!$A$9,0,0,360,1),$C$5) -> 0 | O11: 600 | P11: =COUNTIFS(OFFSET(学習の達成_得点!HH$9,0,0,360,1),"<"&O11,OFFSET(学習の達成_得点!HH$9,0,0,360,1),">="&O10,OFFSET(学習の達成_得点!$A$9,0,0,360,1),$C$5) -> 0 | S11: =COUNTIFS(OFFSET(学習の達成_得点!$DT$9,0,(S$6-1)*3,360,1),"<"&R11,OFFSET(学習の達成_得点!$DT$9,0,(S$6-1)*3,360,1),">="&R10,OFFSET(学習の達成_得点!$A$9,0,0,360,1),$C$5) ->  | V11: =COUNTIFS(OFFSET(学習の達成_得点!$DT$9,0,(V$6-1)*3,360,1),"<"&U11,OFFSET(学習の達成_得点!$DT$9,0,(V$6-1)*3,360,1),">="&U10,OFFSET(学習の達成_得点!$A$9,0,0,360,1),$C$5) ->  | Y11: =COUNTIFS(OFFSET(学習の達成_得点!$DT$9,0,(Y$6-1)*3,360,1),"<"&X11,OFFSET(学習の達成_得点!$DT$9,0,(Y$6-1)*3,360,1),">="&X10,OFFSET(学習の達成_得点!$A$9,0,0,360,1),$C$5) ->  | AC11: =COUNTIFS(OFFSET(学習の達成_得点!HJ$9,0,0,360,1),"<"&AB11,OFFSET(学習の達成_得点!HJ$9,0,0,360,1),">="&AB10,OFFSET(学習の達成_得点!$A$9,0,0,360,1),$C$5,OFFSET(学習の達成_得点!$A$9,0,0,360,1),$C$5) -> 0
D12: 60 | E12: 50～60 | F12: 1920 | G12: =COUNTIFS(OFFSET(学習の達成_得点!$HI$9,0,0,360,1),"<"&F12,OFFSET(学習の達成_得点!$HI$9,0,0,360,1),">="&F11,OFFSET(学習の達成_得点!$A$9,0,0,360,1),$C$5) -> 0 | I12: 600 | J12: =COUNTIFS(OFFSET(学習の達成_得点!HF$9,0,0,360,1),"<"&I12,OFFSET(学習の達成_得点!HF$9,0,0,360,1),">="&I11,OFFSET(学習の達成_得点!$A$9,0,0,360,1),$C$5) -> 0 | L12: 600 | M12: =COUNTIFS(OFFSET(学習の達成_得点!HG$9,0,0,360,1),"<"&L12,OFFSET(学習の達成_得点!HG$9,0,0,360,1),">="&L11,OFFSET(学習の達成_得点!$A$9,0,0,360,1),$C$5) -> 0 | O12: 720 | P12: =COUNTIFS(OFFSET(学習の達成_得点!HH$9,0,0,360,1),"<"&O12,OFFSET(学習の達成_得点!HH$9,0,0,360,1),">="&O11,OFFSET(学習の達成_得点!$A$9,0,0,360,1),$C$5) -> 0 | S12: =COUNTIFS(OFFSET(学習の達成_得点!$DT$9,0,(S$6-1)*3,360,1),"<"&R12,OFFSET(学習の達成_得点!$DT$9,0,(S$6-1)*3,360,1),">="&R11,OFFSET(学習の達成_得点!$A$9,0,0,360,1),$C$5) ->  | V12: =COUNTIFS(OFFSET(学習の達成_得点!$DT$9,0,(V$6-1)*3,360,1),"<"&U12,OFFSET(学習の達成_得点!$DT$9,0,(V$6-1)*3,360,1),">="&U11,OFFSET(学習の達成_得点!$A$9,0,0,360,1),$C$5) ->  | Y12: =COUNTIFS(OFFSET(学習の達成_得点!$DT$9,0,(Y$6-1)*3,360,1),"<"&X12,OFFSET(学習の達成_得点!$DT$9,0,(Y$6-1)*3,360,1),">="&X11,OFFSET(学習の達成_得点!$A$9,0,0,360,1),$C$5) ->  | AC12: =COUNTIFS(OFFSET(学習の達成_得点!HJ$9,0,0,360,1),"<"&AB12,OFFSET(学習の達成_得点!HJ$9,0,0,360,1),">="&AB11,OFFSET(学習の達成_得点!$A$9,0,0,360,1),$C$5,OFFSET(学習の達成_得点!$A$9,0,0,360,1),$C$5) -> 0
D13: 70 | E13: 60～70 | F13: 2240 | G13: =COUNTIFS(OFFSET(学習の達成_得点!$HI$9,0,0,360,1),"<"&F13,OFFSET(学習の達成_得点!$HI$9,0,0,360,1),">="&F12,OFFSET(学習の達成_得点!$A$9,0,0,360,1),$C$5) -> 0 | I13: 700 | J13: =COUNTIFS(OFFSET(学習の達成_得点!HF$9,0,0,360,1),"<"&I13,OFFSET(学習の達成_得点!HF$9,0,0,360,1),">="&I12,OFFSET(学習の達成_得点!$A$9,0,0,360,1),$C$5) -> 0 | L13: 700 | M13: =COUNTIFS(OFFSET(学習の達成_得点!HG$9,0,0,360,1),"<"&L13,OFFSET(学習の達成_得点!HG$9,0,0,360,1),">="&L12,OFFSET(学習の達成_得点!$A$9,0,0,360,1),$C$5) -> 0 | O13: 840 | P13: =COUNTIFS(OFFSET(学習の達成_得点!HH$9,0,0,360,1),"<"&O13,OFFSET(学習の達成_得点!HH$9,0,0,360,1),">="&O12,OFFSET(学習の達成_得点!$A$9,0,0,360,1),$C$5) -> 0 | S13: =COUNTIFS(OFFSET(学習の達成_得点!$DT$9,0,(S$6-1)*3,360,1),"<"&R13,OFFSET(学習の達成_得点!$DT$9,0,(S$6-1)*3,360,1),">="&R12,OFFSET(学習の達成_得点!$A$9,0,0,360,1),$C$5) ->  | V13: =COUNTIFS(OFFSET(学習の達成_得点!$DT$9,0,(V$6-1)*3,360,1),"<"&U13,OFFSET(学習の達成_得点!$DT$9,0,(V$6-1)*3,360,1),">="&U12,OFFSET(学習の達成_得点!$A$9,0,0,360,1),$C$5) ->  | Y13: =COUNTIFS(OFFSET(学習の達成_得点!$DT$9,0,(Y$6-1)*3,360,1),"<"&X13,OFFSET(学習の達成_得点!$DT$9,0,(Y$6-1)*3,360,1),">="&X12,OFFSET(学習の達成_得点!$A$9,0,0,360,1),$C$5) ->  | AC13: =COUNTIFS(OFFSET(学習の達成_得点!HJ$9,0,0,360,1),"<"&AB13,OFFSET(学習の達成_得点!HJ$9,0,0,360,1),">="&AB12,OFFSET(学習の達成_得点!$A$9,0,0,360,1),$C$5,OFFSET(学習の達成_得点!$A$9,0,0,360,1),$C$5) -> 0
D14: 80 | E14: 70～80 | F14: 2560 | G14: =COUNTIFS(OFFSET(学習の達成_得点!$HI$9,0,0,360,1),"<"&F14,OFFSET(学習の達成_得点!$HI$9,0,0,360,1),">="&F13,OFFSET(学習の達成_得点!$A$9,0,0,360,1),$C$5) -> 0 | I14: 800 | J14: =COUNTIFS(OFFSET(学習の達成_得点!HF$9,0,0,360,1),"<"&I14,OFFSET(学習の達成_得点!HF$9,0,0,360,1),">="&I13,OFFSET(学習の達成_得点!$A$9,0,0,360,1),$C$5) -> 0 | L14: 800 | M14: =COUNTIFS(OFFSET(学習の達成_得点!HG$9,0,0,360,1),"<"&L14,OFFSET(学習の達成_得点!HG$9,0,0,360,1),">="&L13,OFFSET(学習の達成_得点!$A$9,0,0,360,1),$C$5) -> 0 | O14: 960 | P14: =COUNTIFS(OFFSET(学習の達成_得点!HH$9,0,0,360,1),"<"&O14,OFFSET(学習の達成_得点!HH$9,0,0,360,1),">="&O13,OFFSET(学習の達成_得点!$A$9,0,0,360,1),$C$5) -> 0 | S14: =COUNTIFS(OFFSET(学習の達成_得点!$DT$9,0,(S$6-1)*3,360,1),"<"&R14,OFFSET(学習の達成_得点!$DT$9,0,(S$6-1)*3,360,1),">="&R13,OFFSET(学習の達成_得点!$A$9,0,0,360,1),$C$5) ->  | V14: =COUNTIFS(OFFSET(学習の達成_得点!$DT$9,0,(V$6-1)*3,360,1),"<"&U14,OFFSET(学習の達成_得点!$DT$9,0,(V$6-1)*3,360,1),">="&U13,OFFSET(学習の達成_得点!$A$9,0,0,360,1),$C$5) ->  | Y14: =COUNTIFS(OFFSET(学習の達成_得点!$DT$9,0,(Y$6-1)*3,360,1),"<"&X14,OFFSET(学習の達成_得点!$DT$9,0,(Y$6-1)*3,360,1),">="&X13,OFFSET(学習の達成_得点!$A$9,0,0,360,1),$C$5) ->  | AC14: =COUNTIFS(OFFSET(学習の達成_得点!HJ$9,0,0,360,1),"<"&AB14,OFFSET(学習の達成_得点!HJ$9,0,0,360,1),">="&AB13,OFFSET(学習の達成_得点!$A$9,0,0,360,1),$C$5,OFFSET(学習の達成_得点!$A$9,0,0,360,1),$C$5) -> 0
D15: 90 | E15: 80～90 | F15: 2880 | G15: =COUNTIFS(OFFSET(学習の達成_得点!$HI$9,0,0,360,1),"<"&F15,OFFSET(学習の達成_得点!$HI$9,0,0,360,1),">="&F14,OFFSET(学習の達成_得点!$A$9,0,0,360,1),$C$5) -> 0 | I15: 900 | J15: =COUNTIFS(OFFSET(学習の達成_得点!HF$9,0,0,360,1),"<"&I15,OFFSET(学習の達成_得点!HF$9,0,0,360,1),">="&I14,OFFSET(学習の達成_得点!$A$9,0,0,360,1),$C$5) -> 0 | L15: 900 | M15: =COUNTIFS(OFFSET(学習の達成_得点!HG$9,0,0,360,1),"<"&L15,OFFSET(学習の達成_得点!HG$9,0,0,360,1),">="&L14,OFFSET(学習の達成_得点!$A$9,0,0,360,1),$C$5) -> 0 | O15: 1080 | P15: =COUNTIFS(OFFSET(学習の達成_得点!HH$9,0,0,360,1),"<"&O15,OFFSET(学習の達成_得点!HH$9,0,0,360,1),">="&O14,OFFSET(学習の達成_得点!$A$9,0,0,360,1),$C$5) -> 0 | S15: =COUNTIFS(OFFSET(学習の達成_得点!$DT$9,0,(S$6-1)*3,360,1),"<"&R15,OFFSET(学習の達成_得点!$DT$9,0,(S$6-1)*3,360,1),">="&R14,OFFSET(学習の達成_得点!$A$9,0,0,360,1),$C$5) ->  | V15: =COUNTIFS(OFFSET(学習の達成_得点!$DT$9,0,(V$6-1)*3,360,1),"<"&U15,OFFSET(学習の達成_得点!$DT$9,0,(V$6-1)*3,360,1),">="&U14,OFFSET(学習の達成_得点!$A$9,0,0,360,1),$C$5) ->  | Y15: =COUNTIFS(OFFSET(学習の達成_得点!$DT$9,0,(Y$6-1)*3,360,1),"<"&X15,OFFSET(学習の達成_得点!$DT$9,0,(Y$6-1)*3,360,1),">="&X14,OFFSET(学習の達成_得点!$A$9,0,0,360,1),$C$5) ->  | AC15: =COUNTIFS(OFFSET(学習の達成_得点!HJ$9,0,0,360,1),"<"&AB15,OFFSET(学習の達成_得点!HJ$9,0,0,360,1),">="&AB14,OFFSET(学習の達成_得点!$A$9,0,0,360,1),$C$5,OFFSET(学習の達成_得点!$A$9,0,0,360,1),$C$5) -> 0
D16: 100 | E16: 90～100 | F16: 3200 | G16: =COUNTIFS(OFFSET(学習の達成_得点!$HI$9,0,0,360,1),"<="&F16,OFFSET(学習の達成_得点!$HI$9,0,0,360,1),">="&F15,OFFSET(学習の達成_得点!$A$9,0,0,360,1),$C$5) -> 0 | I16: 1000 | J16: =COUNTIFS(OFFSET(学習の達成_得点!HF$9,0,0,360,1),"<="&I16,OFFSET(学習の達成_得点!HF$9,0,0,360,1),">="&I15,OFFSET(学習の達成_得点!$A$9,0,0,360,1),$C$5) -> 0 | L16: 1000 | M16: =COUNTIFS(OFFSET(学習の達成_得点!HG$9,0,0,360,1),"<="&L16,OFFSET(学習の達成_得点!HG$9,0,0,360,1),">="&L15,OFFSET(学習の達成_得点!$A$9,0,0,360,1),$C$5) -> 0 | O16: 1200 | P16: =COUNTIFS(OFFSET(学習の達成_得点!HH$9,0,0,360,1),"<="&O16,OFFSET(学習の達成_得点!HH$9,0,0,360,1),">="&O15,OFFSET(学習の達成_得点!$A$9,0,0,360,1),$C$5) -> 0 | S16: =COUNTIFS(OFFSET(学習の達成_得点!$DT$9,0,(S$6-1)*3,360,1),"<="&R16,OFFSET(学習の達成_得点!$DT$9,0,(S$6-1)*3,360,1),">="&R15,OFFSET(学習の達成_得点!$A$9,0,0,360,1),$C$5) ->  | V16: =COUNTIFS(OFFSET(学習の達成_得点!$DT$9,0,(V$6-1)*3,360,1),"<="&U16,OFFSET(学習の達成_得点!$DT$9,0,(V$6-1)*3,360,1),">="&U15,OFFSET(学習の達成_得点!$A$9,0,0,360,1),$C$5) ->  | Y16: =COUNTIFS(OFFSET(学習の達成_得点!$DT$9,0,(Y$6-1)*3,360,1),"<="&X16,OFFSET(学習の達成_得点!$DT$9,0,(Y$6-1)*3,360,1),">="&X15,OFFSET(学習の達成_得点!$A$9,0,0,360,1),$C$5) ->  | AC16: =COUNTIFS(OFFSET(学習の達成_得点!HJ$9,0,0,360,1),"<="&AB16,OFFSET(学習の達成_得点!HJ$9,0,0,360,1),">="&AB15,OFFSET(学習の達成_得点!$A$9,0,0,360,1),$C$5,OFFSET(学習の達成_得点!$A$9,0,0,360,1),$C$5) -> 0
G17: =COUNTIFS(OFFSET(学習の達成_得点!$HI$9,0,0,360,1),">="&F6,OFFSET(学習の達成_得点!$A$9,0,0,360,1),$C$5) -> 0 | J17: =COUNTIFS(OFFSET(学習の達成_得点!HF$9,0,0,360,1),">="&I6,OFFSET(学習の達成_得点!$A$9,0,0,360,1),$C$5) -> 0 | M17: =COUNTIFS(OFFSET(学習の達成_得点!HG$9,0,0,360,1),">="&L6,OFFSET(学習の達成_得点!$A$9,0,0,360,1),$C$5) -> 0 | P17: =COUNTIFS(OFFSET(学習の達成_得点!HH$9,0,0,360,1),">="&O6,OFFSET(学習の達成_得点!$A$9,0,0,360,1),$C$5) -> 0 | S17: =COUNTIFS(OFFSET(学習の達成_得点!$DT$9,0,(S$6-1)*3,360,1),">="&R6,OFFSET(学習の達成_得点!$A$9,0,0,360,1),$C$5) ->  | V17: =COUNTIFS(OFFSET(学習の達成_得点!$DT$9,0,(V$6-1)*3,360,1),">="&U6,OFFSET(学習の達成_得点!$A$9,0,0,360,1),$C$5) ->  | Y17: =COUNTIFS(OFFSET(学習の達成_得点!$DT$9,0,(Y$6-1)*3,360,1),">="&X6,OFFSET(学習の達成_得点!$A$9,0,0,360,1),$C$5) ->  | AC17: =COUNTIFS(OFFSET(学習の達成_得点!HJ$9,0,0,360,1),">="&AB6,OFFSET(学習の達成_得点!$A$9,0,0,360,1),$C$5) -> 0
B19: プルダウンリスト | D19: PDList100T | E19: PDList200T | F19: PDList001T | G19: PDList002T | H19: PDList101T | I19: PDList201T
H20: 単元のプルダウンリスト(共通） | I20: 範囲指定の２個めのプルダウンリスト
D21: 得点分布[学年] | E21: 学期・年間＞ | F21: 1 | G21: 1学期 | H21: 1:第1回 小説の読解①
D22: 得点分布[クラス別]＞ | E22: 単元(単独)＞ | F22: 2 | G22: 2学期 | H22: 2:第2回 説明文の読解①
D23: <>"" | E23: 単元(２単元比較)＞ | F23: 3 | G23: 3学期 | H23: 3:第3回 詩の鑑賞
E24: 回数範囲指定＞ | F24: 4 | G24: 年間 | H24: 4:第4回 小説の読解②
F25: 5 | H25: 5:第5回 説明文の読解②
F26: 6 | H26: 6:第6回 古文の読解
F27: 7 | H27: 7:第7回 漢文の読解
F28: 8 | H28: 8:第8回 説明文の読解③
H29: 9:第9回 小説の読解③
H30: 10:第10回 随筆の読解
H31: 11:第6回 古文の読解
H32: 12:第7回 漢文の読解
H33: 13:第8回 説明文の読解③
H34: 14:第9回 小説の読解③
H35: 15:第10回 随筆の読解
B60: メニューシート平均グラフのデータ
B61: エラー値（#N/A）にしておくと、
A62: 列：行 | B62: 点数が未入力な部分については | F62: 0 | G62: =F62+3 -> 3 | H62: =G62+3 -> 6 | I62: 9 | J62: 12 | K62: 15 | L62: 18 | M62: 21 | N62: 24 | O62: 27 | P62: 30 | Q62: 33 | R62: 36 | S62: 39 | T62: 42 | U62: 45 | V62: 48 | W62: 51 | X62: 54 | Y62: 57 | Z62: 60 | AA62: 63 | AB62: 66 | AC62: 69 | AD62: 72 | AE62: 75 | AF62: 78 | AG62: 81 | AH62: 84 | AI62: 87
A63: =30-COUNTIF(F63:AI63,"") -> 16 | B63: グラフを描画しない | F63: =IF(OFFSET(学習の達成_平均点!$DT$4,0,F62)="","",OFFSET(学習の達成_平均点!$DT$4,0,F62)) -> Let’s Be Friends!～小学校のふり返り | G63: =IF(OFFSET(学習の達成_平均点!$DT$4,0,G62)="","",OFFSET(学習の達成_平均点!$DT$4,0,G62)) -> Unit 1 | H63: =IF(OFFSET(学習の達成_平均点!$DT$4,0,H62)="","",OFFSET(学習の達成_平均点!$DT$4,0,H62)) -> Unit 2 | I63: =IF(OFFSET(学習の達成_平均点!$DT$4,0,I62)="","",OFFSET(学習の達成_平均点!$DT$4,0,I62)) -> be動詞と一般動詞 / Unit 1~2の語順の復習 | J63: =IF(OFFSET(学習の達成_平均点!$DT$4,0,J62)="","",OFFSET(学習の達成_平均点!$DT$4,0,J62)) -> Unit 3～You Can Do It! ① | K63: =IF(OFFSET(学習の達成_平均点!$DT$4,0,K62)="","",OFFSET(学習の達成_平均点!$DT$4,0,K62)) -> Unit 4～Active Grammar ② | L63: =IF(OFFSET(学習の達成_平均点!$DT$4,0,L62)="","",OFFSET(学習の達成_平均点!$DT$4,0,L62)) -> Unit 5～Daily Life Scene 2 | M63: =IF(OFFSET(学習の達成_平均点!$DT$4,0,M62)="","",OFFSET(学習の達成_平均点!$DT$4,0,M62)) -> 疑問詞のまとめ１ / 代名詞 | N63: =IF(OFFSET(学習の達成_平均点!$DT$4,0,N62)="","",OFFSET(学習の達成_平均点!$DT$4,0,N62)) -> Unit 6～You Can Do It! ② | O63: =IF(OFFSET(学習の達成_平均点!$DT$4,0,O62)="","",OFFSET(学習の達成_平均点!$DT$4,0,O62)) -> 一般動詞のまとめ / 「概要」を読み取ろう！ | P63: =IF(OFFSET(学習の達成_平均点!$DT$4,0,P62)="","",OFFSET(学習の達成_平均点!$DT$4,0,P62)) -> Unit 7～Daily Life Scene 5 | Q63: =IF(OFFSET(学習の達成_平均点!$DT$4,0,Q62)="","",OFFSET(学習の達成_平均点!$DT$4,0,Q62)) -> 一般動詞の現在と過去の文① / 一般動詞の現在と過去の文② | R63: =IF(OFFSET(学習の達成_平均点!$DT$4,0,R62)="","",OFFSET(学習の達成_平均点!$DT$4,0,R62)) -> Unit 8～Active Grammar ⑥ | S63: =IF(OFFSET(学習の達成_平均点!$DT$4,0,S62)="","",OFFSET(学習の達成_平均点!$DT$4,0,S62)) -> 疑問詞のまとめ２ / 進行形 | T63: =IF(OFFSET(学習の達成_平均点!$DT$4,0,T62)="","",OFFSET(学習の達成_平均点!$DT$4,0,T62)) -> Let’s Read 2～You Can Do It! ③ / 「必要な情報」を読み取ろう！ | U63: =IF(OFFSET(学習の達成_平均点!$DT$4,0,U62)="","",OFFSET(学習の達成_平均点!$DT$4,0,U62)) -> 「要点」を読み取ろう！ / １年のまとめ | V63: =IF(OFFSET(学習の達成_平均点!$DT$4,0,V62)="","",OFFSET(学習の達成_平均点!$DT$4,0,V62)) ->  | W63: =IF(OFFSET(学習の達成_平均点!$DT$4,0,W62)="","",OFFSET(学習の達成_平均点!$DT$4,0,W62)) ->  | X63: =IF(OFFSET(学習の達成_平均点!$DT$4,0,X62)="","",OFFSET(学習の達成_平均点!$DT$4,0,X62)) ->  | Y63: =IF(OFFSET(学習の達成_平均点!$DT$4,0,Y62)="","",OFFSET(学習の達成_平均点!$DT$4,0,Y62)) ->  | Z63: =IF(OFFSET(学習の達成_平均点!$DT$4,0,Z62)="","",OFFSET(学習の達成_平均点!$DT$4,0,Z62)) ->  | AA63: =IF(OFFSET(学習の達成_平均点!$DT$4,0,AA62)="","",OFFSET(学習の達成_平均点!$DT$4,0,AA62)) ->  | AB63: =IF(OFFSET(学習の達成_平均点!$DT$4,0,AB62)="","",OFFSET(学習の達成_平均点!$DT$4,0,AB62)) ->  | AC63: =IF(OFFSET(学習の達成_平均点!$DT$4,0,AC62)="","",OFFSET(学習の達成_平均点!$DT$4,0,AC62)) ->  | AD63: =IF(OFFSET(学習の達成_平均点!$DT$4,0,AD62)="","",OFFSET(学習の達成_平均点!$DT$4,0,AD62)) ->  | AE63: =IF(OFFSET(学習の達成_平均点!$DT$4,0,AE62)="","",OFFSET(学習の達成_平均点!$DT$4,0,AE62)) ->  | AF63: =IF(OFFSET(学習の達成_平均点!$DT$4,0,AF62)="","",OFFSET(学習の達成_平均点!$DT$4,0,AF62)) ->  | AG63: =IF(OFFSET(学習の達成_平均点!$DT$4,0,AG62)="","",OFFSET(学習の達成_平均点!$DT$4,0,AG62)) ->  | AH63: =IF(OFFSET(学習の達成_平均点!$DT$4,0,AH62)="","",OFFSET(学習の達成_平均点!$DT$4,0,AH62)) ->  | AI63: =IF(OFFSET(学習の達成_平均点!$DT$4,0,AI62)="","",OFFSET(学習の達成_平均点!$DT$4,0,AI62)) -> 
A64: =9-COUNTIF(E64:E72,"") -> 1 | D64: =IF(E64="","",COUNTA(E$64:E64)-COUNTIF(E$64:E64,"")) -> 1 | E64: =IF(学習の達成_平均点!C9="",NA(),学習の達成_平均点!C9) -> 学年平均 | F64: =IF(OFFSET(学習の達成_平均点!$DT9,0,F$62+2)="",NA(),OFFSET(学習の達成_平均点!$DT9,0,F$62+2)) ->  | G64: =IF(OFFSET(学習の達成_平均点!$DT9,0,G$62+2)="",NA(),OFFSET(学習の達成_平均点!$DT9,0,G$62+2)) ->  | H64: =IF(OFFSET(学習の達成_平均点!$DT9,0,H$62+2)="",NA(),OFFSET(学習の達成_平均点!$DT9,0,H$62+2)) ->  | I64: =IF(OFFSET(学習の達成_平均点!$DT9,0,I$62+2)="",NA(),OFFSET(学習の達成_平均点!$DT9,0,I$62+2)) ->  | J64: =IF(OFFSET(学習の達成_平均点!$DT9,0,J$62+2)="",NA(),OFFSET(学習の達成_平均点!$DT9,0,J$62+2)) ->  | K64: =IF(OFFSET(学習の達成_平均点!$DT9,0,K$62+2)="",NA(),OFFSET(学習の達成_平均点!$DT9,0,K$62+2)) ->  | L64: =IF(OFFSET(学習の達成_平均点!$DT9,0,L$62+2)="",NA(),OFFSET(学習の達成_平均点!$DT9,0,L$62+2)) ->  | M64: =IF(OFFSET(学習の達成_平均点!$DT9,0,M$62+2)="",NA(),OFFSET(学習の達成_平均点!$DT9,0,M$62+2)) ->  | N64: =IF(OFFSET(学習の達成_平均点!$DT9,0,N$62+2)="",NA(),OFFSET(学習の達成_平均点!$DT9,0,N$62+2)) ->  | O64: =IF(OFFSET(学習の達成_平均点!$DT9,0,O$62+2)="",NA(),OFFSET(学習の達成_平均点!$DT9,0,O$62+2)) ->  | P64: =IF(OFFSET(学習の達成_平均点!$DT9,0,P$62+2)="",NA(),OFFSET(学習の達成_平均点!$DT9,0,P$62+2)) ->  | Q64: =IF(OFFSET(学習の達成_平均点!$DT9,0,Q$62+2)="",NA(),OFFSET(学習の達成_平均点!$DT9,0,Q$62+2)) ->  | R64: =IF(OFFSET(学習の達成_平均点!$DT9,0,R$62+2)="",NA(),OFFSET(学習の達成_平均点!$DT9,0,R$62+2)) ->  | S64: =IF(OFFSET(学習の達成_平均点!$DT9,0,S$62+2)="",NA(),OFFSET(学習の達成_平均点!$DT9,0,S$62+2)) ->  | T64: =IF(OFFSET(学習の達成_平均点!$DT9,0,T$62+2)="",NA(),OFFSET(学習の達成_平均点!$DT9,0,T$62+2)) ->  | U64: =IF(OFFSET(学習の達成_平均点!$DT9,0,U$62+2)="",NA(),OFFSET(学習の達成_平均点!$DT9,0,U$62+2)) ->  | V64: =IF(OFFSET(学習の達成_平均点!$DT9,0,V$62+2)="",NA(),OFFSET(学習の達成_平均点!$DT9,0,V$62+2)) ->  | W64: =IF(OFFSET(学習の達成_平均点!$DT9,0,W$62+2)="",NA(),OFFSET(学習の達成_平均点!$DT9,0,W$62+2)) ->  | X64: =IF(OFFSET(学習の達成_平均点!$DT9,0,X$62+2)="",NA(),OFFSET(学習の達成_平均点!$DT9,0,X$62+2)) ->  | Y64: =IF(OFFSET(学習の達成_平均点!$DT9,0,Y$62+2)="",NA(),OFFSET(学習の達成_平均点!$DT9,0,Y$62+2)) ->  | Z64: =IF(OFFSET(学習の達成_平均点!$DT9,0,Z$62+2)="",NA(),OFFSET(学習の達成_平均点!$DT9,0,Z$62+2)) ->  | AA64: =IF(OFFSET(学習の達成_平均点!$DT9,0,AA$62+2)="",NA(),OFFSET(学習の達成_平均点!$DT9,0,AA$62+2)) ->  | AB64: =IF(OFFSET(学習の達成_平均点!$DT9,0,AB$62+2)="",NA(),OFFSET(学習の達成_平均点!$DT9,0,AB$62+2)) ->  | AC64: =IF(OFFSET(学習の達成_平均点!$DT9,0,AC$62+2)="",NA(),OFFSET(学習の達成_平均点!$DT9,0,AC$62+2)) ->  | AD64: =IF(OFFSET(学習の達成_平均点!$DT9,0,AD$62+2)="",NA(),OFFSET(学習の達成_平均点!$DT9,0,AD$62+2)) ->  | AE64: =IF(OFFSET(学習の達成_平均点!$DT9,0,AE$62+2)="",NA(),OFFSET(学習の達成_平均点!$DT9,0,AE$62+2)) ->  | AF64: =IF(OFFSET(学習の達成_平均点!$DT9,0,AF$62+2)="",NA(),OFFSET(学習の達成_平均点!$DT9,0,AF$62+2)) ->  | AG64: =IF(OFFSET(学習の達成_平均点!$DT9,0,AG$62+2)="",NA(),OFFSET(学習の達成_平均点!$DT9,0,AG$62+2)) ->  | AH64: =IF(OFFSET(学習の達成_平均点!$DT9,0,AH$62+2)="",NA(),OFFSET(学習の達成_平均点!$DT9,0,AH$62+2)) ->  | AI64: =IF(OFFSET(学習の達成_平均点!$DT9,0,AI$62+2)="",NA(),OFFSET(学習の達成_平均点!$DT9,0,AI$62+2)) -> 
D65: =IF(E65="","",COUNTA(E$64:E65)-COUNTIF(E$64:E65,"")) ->  | E65: =学習の達成_平均点!C10 ->  | F65: =IF(OFFSET(学習の達成_平均点!$DT10,0,F$62+2)="",NA(),OFFSET(学習の達成_平均点!$DT10,0,F$62+2)) ->  | G65: =IF(OFFSET(学習の達成_平均点!$DT10,0,G$62+2)="",NA(),OFFSET(学習の達成_平均点!$DT10,0,G$62+2)) ->  | H65: =IF(OFFSET(学習の達成_平均点!$DT10,0,H$62+2)="",NA(),OFFSET(学習の達成_平均点!$DT10,0,H$62+2)) ->  | I65: =IF(OFFSET(学習の達成_平均点!$DT10,0,I$62+2)="",NA(),OFFSET(学習の達成_平均点!$DT10,0,I$62+2)) ->  | J65: =IF(OFFSET(学習の達成_平均点!$DT10,0,J$62+2)="",NA(),OFFSET(学習の達成_平均点!$DT10,0,J$62+2)) ->  | K65: =IF(OFFSET(学習の達成_平均点!$DT10,0,K$62+2)="",NA(),OFFSET(学習の達成_平均点!$DT10,0,K$62+2)) ->  | L65: =IF(OFFSET(学習の達成_平均点!$DT10,0,L$62+2)="",NA(),OFFSET(学習の達成_平均点!$DT10,0,L$62+2)) ->  | M65: =IF(OFFSET(学習の達成_平均点!$DT10,0,M$62+2)="",NA(),OFFSET(学習の達成_平均点!$DT10,0,M$62+2)) ->  | N65: =IF(OFFSET(学習の達成_平均点!$DT10,0,N$62+2)="",NA(),OFFSET(学習の達成_平均点!$DT10,0,N$62+2)) ->  | O65: =IF(OFFSET(学習の達成_平均点!$DT10,0,O$62+2)="",NA(),OFFSET(学習の達成_平均点!$DT10,0,O$62+2)) ->  | P65: =IF(OFFSET(学習の達成_平均点!$DT10,0,P$62+2)="",NA(),OFFSET(学習の達成_平均点!$DT10,0,P$62+2)) ->  | Q65: =IF(OFFSET(学習の達成_平均点!$DT10,0,Q$62+2)="",NA(),OFFSET(学習の達成_平均点!$DT10,0,Q$62+2)) ->  | R65: =IF(OFFSET(学習の達成_平均点!$DT10,0,R$62+2)="",NA(),OFFSET(学習の達成_平均点!$DT10,0,R$62+2)) ->  | S65: =IF(OFFSET(学習の達成_平均点!$DT10,0,S$62+2)="",NA(),OFFSET(学習の達成_平均点!$DT10,0,S$62+2)) ->  | T65: =IF(OFFSET(学習の達成_平均点!$DT10,0,T$62+2)="",NA(),OFFSET(学習の達成_平均点!$DT10,0,T$62+2)) ->  | U65: =IF(OFFSET(学習の達成_平均点!$DT10,0,U$62+2)="",NA(),OFFSET(学習の達成_平均点!$DT10,0,U$62+2)) ->  | V65: =IF(OFFSET(学習の達成_平均点!$DT10,0,V$62+2)="",NA(),OFFSET(学習の達成_平均点!$DT10,0,V$62+2)) ->  | W65: =IF(OFFSET(学習の達成_平均点!$DT10,0,W$62+2)="",NA(),OFFSET(学習の達成_平均点!$DT10,0,W$62+2)) ->  | X65: =IF(OFFSET(学習の達成_平均点!$DT10,0,X$62+2)="",NA(),OFFSET(学習の達成_平均点!$DT10,0,X$62+2)) ->  | Y65: =IF(OFFSET(学習の達成_平均点!$DT10,0,Y$62+2)="",NA(),OFFSET(学習の達成_平均点!$DT10,0,Y$62+2)) ->  | Z65: =IF(OFFSET(学習の達成_平均点!$DT10,0,Z$62+2)="",NA(),OFFSET(学習の達成_平均点!$DT10,0,Z$62+2)) ->  | AA65: =IF(OFFSET(学習の達成_平均点!$DT10,0,AA$62+2)="",NA(),OFFSET(学習の達成_平均点!$DT10,0,AA$62+2)) ->  | AB65: =IF(OFFSET(学習の達成_平均点!$DT10,0,AB$62+2)="",NA(),OFFSET(学習の達成_平均点!$DT10,0,AB$62+2)) ->  | AC65: =IF(OFFSET(学習の達成_平均点!$DT10,0,AC$62+2)="",NA(),OFFSET(学習の達成_平均点!$DT10,0,AC$62+2)) ->  | AD65: =IF(OFFSET(学習の達成_平均点!$DT10,0,AD$62+2)="",NA(),OFFSET(学習の達成_平均点!$DT10,0,AD$62+2)) ->  | AE65: =IF(OFFSET(学習の達成_平均点!$DT10,0,AE$62+2)="",NA(),OFFSET(学習の達成_平均点!$DT10,0,AE$62+2)) ->  | AF65: =IF(OFFSET(学習の達成_平均点!$DT10,0,AF$62+2)="",NA(),OFFSET(学習の達成_平均点!$DT10,0,AF$62+2)) ->  | AG65: =IF(OFFSET(学習の達成_平均点!$DT10,0,AG$62+2)="",NA(),OFFSET(学習の達成_平均点!$DT10,0,AG$62+2)) ->  | AH65: =IF(OFFSET(学習の達成_平均点!$DT10,0,AH$62+2)="",NA(),OFFSET(学習の達成_平均点!$DT10,0,AH$62+2)) ->  | AI65: =IF(OFFSET(学習の達成_平均点!$DT10,0,AI$62+2)="",NA(),OFFSET(学習の達成_平均点!$DT10,0,AI$62+2)) -> 
D66: =IF(E66="","",COUNTA(E$64:E66)-COUNTIF(E$64:E66,"")) ->  | E66: =学習の達成_平均点!C11 ->  | F66: =IF(OFFSET(学習の達成_平均点!$DT11,0,F$62+2)="",NA(),OFFSET(学習の達成_平均点!$DT11,0,F$62+2)) ->  | G66: =IF(OFFSET(学習の達成_平均点!$DT11,0,G$62+2)="",NA(),OFFSET(学習の達成_平均点!$DT11,0,G$62+2)) ->  | H66: =IF(OFFSET(学習の達成_平均点!$DT11,0,H$62+2)="",NA(),OFFSET(学習の達成_平均点!$DT11,0,H$62+2)) ->  | I66: =IF(OFFSET(学習の達成_平均点!$DT11,0,I$62+2)="",NA(),OFFSET(学習の達成_平均点!$DT11,0,I$62+2)) ->  | J66: =IF(OFFSET(学習の達成_平均点!$DT11,0,J$62+2)="",NA(),OFFSET(学習の達成_平均点!$DT11,0,J$62+2)) ->  | K66: =IF(OFFSET(学習の達成_平均点!$DT11,0,K$62+2)="",NA(),OFFSET(学習の達成_平均点!$DT11,0,K$62+2)) ->  | L66: =IF(OFFSET(学習の達成_平均点!$DT11,0,L$62+2)="",NA(),OFFSET(学習の達成_平均点!$DT11,0,L$62+2)) ->  | M66: =IF(OFFSET(学習の達成_平均点!$DT11,0,M$62+2)="",NA(),OFFSET(学習の達成_平均点!$DT11,0,M$62+2)) ->  | N66: =IF(OFFSET(学習の達成_平均点!$DT11,0,N$62+2)="",NA(),OFFSET(学習の達成_平均点!$DT11,0,N$62+2)) ->  | O66: =IF(OFFSET(学習の達成_平均点!$DT11,0,O$62+2)="",NA(),OFFSET(学習の達成_平均点!$DT11,0,O$62+2)) ->  | P66: =IF(OFFSET(学習の達成_平均点!$DT11,0,P$62+2)="",NA(),OFFSET(学習の達成_平均点!$DT11,0,P$62+2)) ->  | Q66: =IF(OFFSET(学習の達成_平均点!$DT11,0,Q$62+2)="",NA(),OFFSET(学習の達成_平均点!$DT11,0,Q$62+2)) ->  | R66: =IF(OFFSET(学習の達成_平均点!$DT11,0,R$62+2)="",NA(),OFFSET(学習の達成_平均点!$DT11,0,R$62+2)) ->  | S66: =IF(OFFSET(学習の達成_平均点!$DT11,0,S$62+2)="",NA(),OFFSET(学習の達成_平均点!$DT11,0,S$62+2)) ->  | T66: =IF(OFFSET(学習の達成_平均点!$DT11,0,T$62+2)="",NA(),OFFSET(学習の達成_平均点!$DT11,0,T$62+2)) ->  | U66: =IF(OFFSET(学習の達成_平均点!$DT11,0,U$62+2)="",NA(),OFFSET(学習の達成_平均点!$DT11,0,U$62+2)) ->  | V66: =IF(OFFSET(学習の達成_平均点!$DT11,0,V$62+2)="",NA(),OFFSET(学習の達成_平均点!$DT11,0,V$62+2)) ->  | W66: =IF(OFFSET(学習の達成_平均点!$DT11,0,W$62+2)="",NA(),OFFSET(学習の達成_平均点!$DT11,0,W$62+2)) ->  | X66: =IF(OFFSET(学習の達成_平均点!$DT11,0,X$62+2)="",NA(),OFFSET(学習の達成_平均点!$DT11,0,X$62+2)) ->  | Y66: =IF(OFFSET(学習の達成_平均点!$DT11,0,Y$62+2)="",NA(),OFFSET(学習の達成_平均点!$DT11,0,Y$62+2)) ->  | Z66: =IF(OFFSET(学習の達成_平均点!$DT11,0,Z$62+2)="",NA(),OFFSET(学習の達成_平均点!$DT11,0,Z$62+2)) ->  | AA66: =IF(OFFSET(学習の達成_平均点!$DT11,0,AA$62+2)="",NA(),OFFSET(学習の達成_平均点!$DT11,0,AA$62+2)) ->  | AB66: =IF(OFFSET(学習の達成_平均点!$DT11,0,AB$62+2)="",NA(),OFFSET(学習の達成_平均点!$DT11,0,AB$62+2)) ->  | AC66: =IF(OFFSET(学習の達成_平均点!$DT11,0,AC$62+2)="",NA(),OFFSET(学習の達成_平均点!$DT11,0,AC$62+2)) ->  | AD66: =IF(OFFSET(学習の達成_平均点!$DT11,0,AD$62+2)="",NA(),OFFSET(学習の達成_平均点!$DT11,0,AD$62+2)) ->  | AE66: =IF(OFFSET(学習の達成_平均点!$DT11,0,AE$62+2)="",NA(),OFFSET(学習の達成_平均点!$DT11,0,AE$62+2)) ->  | AF66: =IF(OFFSET(学習の達成_平均点!$DT11,0,AF$62+2)="",NA(),OFFSET(学習の達成_平均点!$DT11,0,AF$62+2)) ->  | AG66: =IF(OFFSET(学習の達成_平均点!$DT11,0,AG$62+2)="",NA(),OFFSET(学習の達成_平均点!$DT11,0,AG$62+2)) ->  | AH66: =IF(OFFSET(学習の達成_平均点!$DT11,0,AH$62+2)="",NA(),OFFSET(学習の達成_平均点!$DT11,0,AH$62+2)) ->  | AI66: =IF(OFFSET(学習の達成_平均点!$DT11,0,AI$62+2)="",NA(),OFFSET(学習の達成_平均点!$DT11,0,AI$62+2)) -> 
D67: =IF(E67="","",COUNTA(E$64:E67)-COUNTIF(E$64:E67,"")) ->  | E67: =学習の達成_平均点!C12 ->  | F67: =IF(OFFSET(学習の達成_平均点!$DT12,0,F$62+2)="",NA(),OFFSET(学習の達成_平均点!$DT12,0,F$62+2)) ->  | G67: =IF(OFFSET(学習の達成_平均点!$DT12,0,G$62+2)="",NA(),OFFSET(学習の達成_平均点!$DT12,0,G$62+2)) ->  | H67: =IF(OFFSET(学習の達成_平均点!$DT12,0,H$62+2)="",NA(),OFFSET(学習の達成_平均点!$DT12,0,H$62+2)) ->  | I67: =IF(OFFSET(学習の達成_平均点!$DT12,0,I$62+2)="",NA(),OFFSET(学習の達成_平均点!$DT12,0,I$62+2)) ->  | J67: =IF(OFFSET(学習の達成_平均点!$DT12,0,J$62+2)="",NA(),OFFSET(学習の達成_平均点!$DT12,0,J$62+2)) ->  | K67: =IF(OFFSET(学習の達成_平均点!$DT12,0,K$62+2)="",NA(),OFFSET(学習の達成_平均点!$DT12,0,K$62+2)) ->  | L67: =IF(OFFSET(学習の達成_平均点!$DT12,0,L$62+2)="",NA(),OFFSET(学習の達成_平均点!$DT12,0,L$62+2)) ->  | M67: =IF(OFFSET(学習の達成_平均点!$DT12,0,M$62+2)="",NA(),OFFSET(学習の達成_平均点!$DT12,0,M$62+2)) ->  | N67: =IF(OFFSET(学習の達成_平均点!$DT12,0,N$62+2)="",NA(),OFFSET(学習の達成_平均点!$DT12,0,N$62+2)) ->  | O67: =IF(OFFSET(学習の達成_平均点!$DT12,0,O$62+2)="",NA(),OFFSET(学習の達成_平均点!$DT12,0,O$62+2)) ->  | P67: =IF(OFFSET(学習の達成_平均点!$DT12,0,P$62+2)="",NA(),OFFSET(学習の達成_平均点!$DT12,0,P$62+2)) ->  | Q67: =IF(OFFSET(学習の達成_平均点!$DT12,0,Q$62+2)="",NA(),OFFSET(学習の達成_平均点!$DT12,0,Q$62+2)) ->  | R67: =IF(OFFSET(学習の達成_平均点!$DT12,0,R$62+2)="",NA(),OFFSET(学習の達成_平均点!$DT12,0,R$62+2)) ->  | S67: =IF(OFFSET(学習の達成_平均点!$DT12,0,S$62+2)="",NA(),OFFSET(学習の達成_平均点!$DT12,0,S$62+2)) ->  | T67: =IF(OFFSET(学習の達成_平均点!$DT12,0,T$62+2)="",NA(),OFFSET(学習の達成_平均点!$DT12,0,T$62+2)) ->  | U67: =IF(OFFSET(学習の達成_平均点!$DT12,0,U$62+2)="",NA(),OFFSET(学習の達成_平均点!$DT12,0,U$62+2)) ->  | V67: =IF(OFFSET(学習の達成_平均点!$DT12,0,V$62+2)="",NA(),OFFSET(学習の達成_平均点!$DT12,0,V$62+2)) ->  | W67: =IF(OFFSET(学習の達成_平均点!$DT12,0,W$62+2)="",NA(),OFFSET(学習の達成_平均点!$DT12,0,W$62+2)) ->  | X67: =IF(OFFSET(学習の達成_平均点!$DT12,0,X$62+2)="",NA(),OFFSET(学習の達成_平均点!$DT12,0,X$62+2)) ->  | Y67: =IF(OFFSET(学習の達成_平均点!$DT12,0,Y$62+2)="",NA(),OFFSET(学習の達成_平均点!$DT12,0,Y$62+2)) ->  | Z67: =IF(OFFSET(学習の達成_平均点!$DT12,0,Z$62+2)="",NA(),OFFSET(学習の達成_平均点!$DT12,0,Z$62+2)) ->  | AA67: =IF(OFFSET(学習の達成_平均点!$DT12,0,AA$62+2)="",NA(),OFFSET(学習の達成_平均点!$DT12,0,AA$62+2)) ->  | AB67: =IF(OFFSET(学習の達成_平均点!$DT12,0,AB$62+2)="",NA(),OFFSET(学習の達成_平均点!$DT12,0,AB$62+2)) ->  | AC67: =IF(OFFSET(学習の達成_平均点!$DT12,0,AC$62+2)="",NA(),OFFSET(学習の達成_平均点!$DT12,0,AC$62+2)) ->  | AD67: =IF(OFFSET(学習の達成_平均点!$DT12,0,AD$62+2)="",NA(),OFFSET(学習の達成_平均点!$DT12,0,AD$62+2)) ->  | AE67: =IF(OFFSET(学習の達成_平均点!$DT12,0,AE$62+2)="",NA(),OFFSET(学習の達成_平均点!$DT12,0,AE$62+2)) ->  | AF67: =IF(OFFSET(学習の達成_平均点!$DT12,0,AF$62+2)="",NA(),OFFSET(学習の達成_平均点!$DT12,0,AF$62+2)) ->  | AG67: =IF(OFFSET(学習の達成_平均点!$DT12,0,AG$62+2)="",NA(),OFFSET(学習の達成_平均点!$DT12,0,AG$62+2)) ->  | AH67: =IF(OFFSET(学習の達成_平均点!$DT12,0,AH$62+2)="",NA(),OFFSET(学習の達成_平均点!$DT12,0,AH$62+2)) ->  | AI67: =IF(OFFSET(学習の達成_平均点!$DT12,0,AI$62+2)="",NA(),OFFSET(学習の達成_平均点!$DT12,0,AI$62+2)) -> 
D68: =IF(E68="","",COUNTA(E$64:E68)-COUNTIF(E$64:E68,"")) ->  | E68: =学習の達成_平均点!C13 ->  | F68: =IF(OFFSET(学習の達成_平均点!$DT13,0,F$62+2)="",NA(),OFFSET(学習の達成_平均点!$DT13,0,F$62+2)) ->  | G68: =IF(OFFSET(学習の達成_平均点!$DT13,0,G$62+2)="",NA(),OFFSET(学習の達成_平均点!$DT13,0,G$62+2)) ->  | H68: =IF(OFFSET(学習の達成_平均点!$DT13,0,H$62+2)="",NA(),OFFSET(学習の達成_平均点!$DT13,0,H$62+2)) ->  | I68: =IF(OFFSET(学習の達成_平均点!$DT13,0,I$62+2)="",NA(),OFFSET(学習の達成_平均点!$DT13,0,I$62+2)) ->  | J68: =IF(OFFSET(学習の達成_平均点!$DT13,0,J$62+2)="",NA(),OFFSET(学習の達成_平均点!$DT13,0,J$62+2)) ->  | K68: =IF(OFFSET(学習の達成_平均点!$DT13,0,K$62+2)="",NA(),OFFSET(学習の達成_平均点!$DT13,0,K$62+2)) ->  | L68: =IF(OFFSET(学習の達成_平均点!$DT13,0,L$62+2)="",NA(),OFFSET(学習の達成_平均点!$DT13,0,L$62+2)) ->  | M68: =IF(OFFSET(学習の達成_平均点!$DT13,0,M$62+2)="",NA(),OFFSET(学習の達成_平均点!$DT13,0,M$62+2)) ->  | N68: =IF(OFFSET(学習の達成_平均点!$DT13,0,N$62+2)="",NA(),OFFSET(学習の達成_平均点!$DT13,0,N$62+2)) ->  | O68: =IF(OFFSET(学習の達成_平均点!$DT13,0,O$62+2)="",NA(),OFFSET(学習の達成_平均点!$DT13,0,O$62+2)) ->  | P68: =IF(OFFSET(学習の達成_平均点!$DT13,0,P$62+2)="",NA(),OFFSET(学習の達成_平均点!$DT13,0,P$62+2)) ->  | Q68: =IF(OFFSET(学習の達成_平均点!$DT13,0,Q$62+2)="",NA(),OFFSET(学習の達成_平均点!$DT13,0,Q$62+2)) ->  | R68: =IF(OFFSET(学習の達成_平均点!$DT13,0,R$62+2)="",NA(),OFFSET(学習の達成_平均点!$DT13,0,R$62+2)) ->  | S68: =IF(OFFSET(学習の達成_平均点!$DT13,0,S$62+2)="",NA(),OFFSET(学習の達成_平均点!$DT13,0,S$62+2)) ->  | T68: =IF(OFFSET(学習の達成_平均点!$DT13,0,T$62+2)="",NA(),OFFSET(学習の達成_平均点!$DT13,0,T$62+2)) ->  | U68: =IF(OFFSET(学習の達成_平均点!$DT13,0,U$62+2)="",NA(),OFFSET(学習の達成_平均点!$DT13,0,U$62+2)) ->  | V68: =IF(OFFSET(学習の達成_平均点!$DT13,0,V$62+2)="",NA(),OFFSET(学習の達成_平均点!$DT13,0,V$62+2)) ->  | W68: =IF(OFFSET(学習の達成_平均点!$DT13,0,W$62+2)="",NA(),OFFSET(学習の達成_平均点!$DT13,0,W$62+2)) ->  | X68: =IF(OFFSET(学習の達成_平均点!$DT13,0,X$62+2)="",NA(),OFFSET(学習の達成_平均点!$DT13,0,X$62+2)) ->  | Y68: =IF(OFFSET(学習の達成_平均点!$DT13,0,Y$62+2)="",NA(),OFFSET(学習の達成_平均点!$DT13,0,Y$62+2)) ->  | Z68: =IF(OFFSET(学習の達成_平均点!$DT13,0,Z$62+2)="",NA(),OFFSET(学習の達成_平均点!$DT13,0,Z$62+2)) ->  | AA68: =IF(OFFSET(学習の達成_平均点!$DT13,0,AA$62+2)="",NA(),OFFSET(学習の達成_平均点!$DT13,0,AA$62+2)) ->  | AB68: =IF(OFFSET(学習の達成_平均点!$DT13,0,AB$62+2)="",NA(),OFFSET(学習の達成_平均点!$DT13,0,AB$62+2)) ->  | AC68: =IF(OFFSET(学習の達成_平均点!$DT13,0,AC$62+2)="",NA(),OFFSET(学習の達成_平均点!$DT13,0,AC$62+2)) ->  | AD68: =IF(OFFSET(学習の達成_平均点!$DT13,0,AD$62+2)="",NA(),OFFSET(学習の達成_平均点!$DT13,0,AD$62+2)) ->  | AE68: =IF(OFFSET(学習の達成_平均点!$DT13,0,AE$62+2)="",NA(),OFFSET(学習の達成_平均点!$DT13,0,AE$62+2)) ->  | AF68: =IF(OFFSET(学習の達成_平均点!$DT13,0,AF$62+2)="",NA(),OFFSET(学習の達成_平均点!$DT13,0,AF$62+2)) ->  | AG68: =IF(OFFSET(学習の達成_平均点!$DT13,0,AG$62+2)="",NA(),OFFSET(学習の達成_平均点!$DT13,0,AG$62+2)) ->  | AH68: =IF(OFFSET(学習の達成_平均点!$DT13,0,AH$62+2)="",NA(),OFFSET(学習の達成_平均点!$DT13,0,AH$62+2)) ->  | AI68: =IF(OFFSET(学習の達成_平均点!$DT13,0,AI$62+2)="",NA(),OFFSET(学習の達成_平均点!$DT13,0,AI$62+2)) -> 
D69: =IF(E69="","",COUNTA(E$64:E69)-COUNTIF(E$64:E69,"")) ->  | E69: =学習の達成_平均点!C14 ->  | F69: =IF(OFFSET(学習の達成_平均点!$DT14,0,F$62+2)="",NA(),OFFSET(学習の達成_平均点!$DT14,0,F$62+2)) ->  | G69: =IF(OFFSET(学習の達成_平均点!$DT14,0,G$62+2)="",NA(),OFFSET(学習の達成_平均点!$DT14,0,G$62+2)) ->  | H69: =IF(OFFSET(学習の達成_平均点!$DT14,0,H$62+2)="",NA(),OFFSET(学習の達成_平均点!$DT14,0,H$62+2)) ->  | I69: =IF(OFFSET(学習の達成_平均点!$DT14,0,I$62+2)="",NA(),OFFSET(学習の達成_平均点!$DT14,0,I$62+2)) ->  | J69: =IF(OFFSET(学習の達成_平均点!$DT14,0,J$62+2)="",NA(),OFFSET(学習の達成_平均点!$DT14,0,J$62+2)) ->  | K69: =IF(OFFSET(学習の達成_平均点!$DT14,0,K$62+2)="",NA(),OFFSET(学習の達成_平均点!$DT14,0,K$62+2)) ->  | L69: =IF(OFFSET(学習の達成_平均点!$DT14,0,L$62+2)="",NA(),OFFSET(学習の達成_平均点!$DT14,0,L$62+2)) ->  | M69: =IF(OFFSET(学習の達成_平均点!$DT14,0,M$62+2)="",NA(),OFFSET(学習の達成_平均点!$DT14,0,M$62+2)) ->  | N69: =IF(OFFSET(学習の達成_平均点!$DT14,0,N$62+2)="",NA(),OFFSET(学習の達成_平均点!$DT14,0,N$62+2)) ->  | O69: =IF(OFFSET(学習の達成_平均点!$DT14,0,O$62+2)="",NA(),OFFSET(学習の達成_平均点!$DT14,0,O$62+2)) ->  | P69: =IF(OFFSET(学習の達成_平均点!$DT14,0,P$62+2)="",NA(),OFFSET(学習の達成_平均点!$DT14,0,P$62+2)) ->  | Q69: =IF(OFFSET(学習の達成_平均点!$DT14,0,Q$62+2)="",NA(),OFFSET(学習の達成_平均点!$DT14,0,Q$62+2)) ->  | R69: =IF(OFFSET(学習の達成_平均点!$DT14,0,R$62+2)="",NA(),OFFSET(学習の達成_平均点!$DT14,0,R$62+2)) ->  | S69: =IF(OFFSET(学習の達成_平均点!$DT14,0,S$62+2)="",NA(),OFFSET(学習の達成_平均点!$DT14,0,S$62+2)) ->  | T69: =IF(OFFSET(学習の達成_平均点!$DT14,0,T$62+2)="",NA(),OFFSET(学習の達成_平均点!$DT14,0,T$62+2)) ->  | U69: =IF(OFFSET(学習の達成_平均点!$DT14,0,U$62+2)="",NA(),OFFSET(学習の達成_平均点!$DT14,0,U$62+2)) ->  | V69: =IF(OFFSET(学習の達成_平均点!$DT14,0,V$62+2)="",NA(),OFFSET(学習の達成_平均点!$DT14,0,V$62+2)) ->  | W69: =IF(OFFSET(学習の達成_平均点!$DT14,0,W$62+2)="",NA(),OFFSET(学習の達成_平均点!$DT14,0,W$62+2)) ->  | X69: =IF(OFFSET(学習の達成_平均点!$DT14,0,X$62+2)="",NA(),OFFSET(学習の達成_平均点!$DT14,0,X$62+2)) ->  | Y69: =IF(OFFSET(学習の達成_平均点!$DT14,0,Y$62+2)="",NA(),OFFSET(学習の達成_平均点!$DT14,0,Y$62+2)) ->  | Z69: =IF(OFFSET(学習の達成_平均点!$DT14,0,Z$62+2)="",NA(),OFFSET(学習の達成_平均点!$DT14,0,Z$62+2)) ->  | AA69: =IF(OFFSET(学習の達成_平均点!$DT14,0,AA$62+2)="",NA(),OFFSET(学習の達成_平均点!$DT14,0,AA$62+2)) ->  | AB69: =IF(OFFSET(学習の達成_平均点!$DT14,0,AB$62+2)="",NA(),OFFSET(学習の達成_平均点!$DT14,0,AB$62+2)) ->  | AC69: =IF(OFFSET(学習の達成_平均点!$DT14,0,AC$62+2)="",NA(),OFFSET(学習の達成_平均点!$DT14,0,AC$62+2)) ->  | AD69: =IF(OFFSET(学習の達成_平均点!$DT14,0,AD$62+2)="",NA(),OFFSET(学習の達成_平均点!$DT14,0,AD$62+2)) ->  | AE69: =IF(OFFSET(学習の達成_平均点!$DT14,0,AE$62+2)="",NA(),OFFSET(学習の達成_平均点!$DT14,0,AE$62+2)) ->  | AF69: =IF(OFFSET(学習の達成_平均点!$DT14,0,AF$62+2)="",NA(),OFFSET(学習の達成_平均点!$DT14,0,AF$62+2)) ->  | AG69: =IF(OFFSET(学習の達成_平均点!$DT14,0,AG$62+2)="",NA(),OFFSET(学習の達成_平均点!$DT14,0,AG$62+2)) ->  | AH69: =IF(OFFSET(学習の達成_平均点!$DT14,0,AH$62+2)="",NA(),OFFSET(学習の達成_平均点!$DT14,0,AH$62+2)) ->  | AI69: =IF(OFFSET(学習の達成_平均点!$DT14,0,AI$62+2)="",NA(),OFFSET(学習の達成_平均点!$DT14,0,AI$62+2)) -> 
D70: =IF(E70="","",COUNTA(E$64:E70)-COUNTIF(E$64:E70,"")) ->  | E70: =学習の達成_平均点!C15 ->  | F70: =IF(OFFSET(学習の達成_平均点!$DT15,0,F$62+2)="",NA(),OFFSET(学習の達成_平均点!$DT15,0,F$62+2)) ->  | G70: =IF(OFFSET(学習の達成_平均点!$DT15,0,G$62+2)="",NA(),OFFSET(学習の達成_平均点!$DT15,0,G$62+2)) ->  | H70: =IF(OFFSET(学習の達成_平均点!$DT15,0,H$62+2)="",NA(),OFFSET(学習の達成_平均点!$DT15,0,H$62+2)) ->  | I70: =IF(OFFSET(学習の達成_平均点!$DT15,0,I$62+2)="",NA(),OFFSET(学習の達成_平均点!$DT15,0,I$62+2)) ->  | J70: =IF(OFFSET(学習の達成_平均点!$DT15,0,J$62+2)="",NA(),OFFSET(学習の達成_平均点!$DT15,0,J$62+2)) ->  | K70: =IF(OFFSET(学習の達成_平均点!$DT15,0,K$62+2)="",NA(),OFFSET(学習の達成_平均点!$DT15,0,K$62+2)) ->  | L70: =IF(OFFSET(学習の達成_平均点!$DT15,0,L$62+2)="",NA(),OFFSET(学習の達成_平均点!$DT15,0,L$62+2)) ->  | M70: =IF(OFFSET(学習の達成_平均点!$DT15,0,M$62+2)="",NA(),OFFSET(学習の達成_平均点!$DT15,0,M$62+2)) ->  | N70: =IF(OFFSET(学習の達成_平均点!$DT15,0,N$62+2)="",NA(),OFFSET(学習の達成_平均点!$DT15,0,N$62+2)) ->  | O70: =IF(OFFSET(学習の達成_平均点!$DT15,0,O$62+2)="",NA(),OFFSET(学習の達成_平均点!$DT15,0,O$62+2)) ->  | P70: =IF(OFFSET(学習の達成_平均点!$DT15,0,P$62+2)="",NA(),OFFSET(学習の達成_平均点!$DT15,0,P$62+2)) ->  | Q70: =IF(OFFSET(学習の達成_平均点!$DT15,0,Q$62+2)="",NA(),OFFSET(学習の達成_平均点!$DT15,0,Q$62+2)) ->  | R70: =IF(OFFSET(学習の達成_平均点!$DT15,0,R$62+2)="",NA(),OFFSET(学習の達成_平均点!$DT15,0,R$62+2)) ->  | S70: =IF(OFFSET(学習の達成_平均点!$DT15,0,S$62+2)="",NA(),OFFSET(学習の達成_平均点!$DT15,0,S$62+2)) ->  | T70: =IF(OFFSET(学習の達成_平均点!$DT15,0,T$62+2)="",NA(),OFFSET(学習の達成_平均点!$DT15,0,T$62+2)) ->  | U70: =IF(OFFSET(学習の達成_平均点!$DT15,0,U$62+2)="",NA(),OFFSET(学習の達成_平均点!$DT15,0,U$62+2)) ->  | V70: =IF(OFFSET(学習の達成_平均点!$DT15,0,V$62+2)="",NA(),OFFSET(学習の達成_平均点!$DT15,0,V$62+2)) ->  | W70: =IF(OFFSET(学習の達成_平均点!$DT15,0,W$62+2)="",NA(),OFFSET(学習の達成_平均点!$DT15,0,W$62+2)) ->  | X70: =IF(OFFSET(学習の達成_平均点!$DT15,0,X$62+2)="",NA(),OFFSET(学習の達成_平均点!$DT15,0,X$62+2)) ->  | Y70: =IF(OFFSET(学習の達成_平均点!$DT15,0,Y$62+2)="",NA(),OFFSET(学習の達成_平均点!$DT15,0,Y$62+2)) ->  | Z70: =IF(OFFSET(学習の達成_平均点!$DT15,0,Z$62+2)="",NA(),OFFSET(学習の達成_平均点!$DT15,0,Z$62+2)) ->  | AA70: =IF(OFFSET(学習の達成_平均点!$DT15,0,AA$62+2)="",NA(),OFFSET(学習の達成_平均点!$DT15,0,AA$62+2)) ->  | AB70: =IF(OFFSET(学習の達成_平均点!$DT15,0,AB$62+2)="",NA(),OFFSET(学習の達成_平均点!$DT15,0,AB$62+2)) ->  | AC70: =IF(OFFSET(学習の達成_平均点!$DT15,0,AC$62+2)="",NA(),OFFSET(学習の達成_平均点!$DT15,0,AC$62+2)) ->  | AD70: =IF(OFFSET(学習の達成_平均点!$DT15,0,AD$62+2)="",NA(),OFFSET(学習の達成_平均点!$DT15,0,AD$62+2)) ->  | AE70: =IF(OFFSET(学習の達成_平均点!$DT15,0,AE$62+2)="",NA(),OFFSET(学習の達成_平均点!$DT15,0,AE$62+2)) ->  | AF70: =IF(OFFSET(学習の達成_平均点!$DT15,0,AF$62+2)="",NA(),OFFSET(学習の達成_平均点!$DT15,0,AF$62+2)) ->  | AG70: =IF(OFFSET(学習の達成_平均点!$DT15,0,AG$62+2)="",NA(),OFFSET(学習の達成_平均点!$DT15,0,AG$62+2)) ->  | AH70: =IF(OFFSET(学習の達成_平均点!$DT15,0,AH$62+2)="",NA(),OFFSET(学習の達成_平均点!$DT15,0,AH$62+2)) ->  | AI70: =IF(OFFSET(学習の達成_平均点!$DT15,0,AI$62+2)="",NA(),OFFSET(学習の達成_平均点!$DT15,0,AI$62+2)) -> 
D71: =IF(E71="","",COUNTA(E$64:E71)-COUNTIF(E$64:E71,"")) ->  | E71: =学習の達成_平均点!C16 ->  | F71: =IF(OFFSET(学習の達成_平均点!$DT16,0,F$62+2)="",NA(),OFFSET(学習の達成_平均点!$DT16,0,F$62+2)) ->  | G71: =IF(OFFSET(学習の達成_平均点!$DT16,0,G$62+2)="",NA(),OFFSET(学習の達成_平均点!$DT16,0,G$62+2)) ->  | H71: =IF(OFFSET(学習の達成_平均点!$DT16,0,H$62+2)="",NA(),OFFSET(学習の達成_平均点!$DT16,0,H$62+2)) ->  | I71: =IF(OFFSET(学習の達成_平均点!$DT16,0,I$62+2)="",NA(),OFFSET(学習の達成_平均点!$DT16,0,I$62+2)) ->  | J71: =IF(OFFSET(学習の達成_平均点!$DT16,0,J$62+2)="",NA(),OFFSET(学習の達成_平均点!$DT16,0,J$62+2)) ->  | K71: =IF(OFFSET(学習の達成_平均点!$DT16,0,K$62+2)="",NA(),OFFSET(学習の達成_平均点!$DT16,0,K$62+2)) ->  | L71: =IF(OFFSET(学習の達成_平均点!$DT16,0,L$62+2)="",NA(),OFFSET(学習の達成_平均点!$DT16,0,L$62+2)) ->  | M71: =IF(OFFSET(学習の達成_平均点!$DT16,0,M$62+2)="",NA(),OFFSET(学習の達成_平均点!$DT16,0,M$62+2)) ->  | N71: =IF(OFFSET(学習の達成_平均点!$DT16,0,N$62+2)="",NA(),OFFSET(学習の達成_平均点!$DT16,0,N$62+2)) ->  | O71: =IF(OFFSET(学習の達成_平均点!$DT16,0,O$62+2)="",NA(),OFFSET(学習の達成_平均点!$DT16,0,O$62+2)) ->  | P71: =IF(OFFSET(学習の達成_平均点!$DT16,0,P$62+2)="",NA(),OFFSET(学習の達成_平均点!$DT16,0,P$62+2)) ->  | Q71: =IF(OFFSET(学習の達成_平均点!$DT16,0,Q$62+2)="",NA(),OFFSET(学習の達成_平均点!$DT16,0,Q$62+2)) ->  | R71: =IF(OFFSET(学習の達成_平均点!$DT16,0,R$62+2)="",NA(),OFFSET(学習の達成_平均点!$DT16,0,R$62+2)) ->  | S71: =IF(OFFSET(学習の達成_平均点!$DT16,0,S$62+2)="",NA(),OFFSET(学習の達成_平均点!$DT16,0,S$62+2)) ->  | T71: =IF(OFFSET(学習の達成_平均点!$DT16,0,T$62+2)="",NA(),OFFSET(学習の達成_平均点!$DT16,0,T$62+2)) ->  | U71: =IF(OFFSET(学習の達成_平均点!$DT16,0,U$62+2)="",NA(),OFFSET(学習の達成_平均点!$DT16,0,U$62+2)) ->  | V71: =IF(OFFSET(学習の達成_平均点!$DT16,0,V$62+2)="",NA(),OFFSET(学習の達成_平均点!$DT16,0,V$62+2)) ->  | W71: =IF(OFFSET(学習の達成_平均点!$DT16,0,W$62+2)="",NA(),OFFSET(学習の達成_平均点!$DT16,0,W$62+2)) ->  | X71: =IF(OFFSET(学習の達成_平均点!$DT16,0,X$62+2)="",NA(),OFFSET(学習の達成_平均点!$DT16,0,X$62+2)) ->  | Y71: =IF(OFFSET(学習の達成_平均点!$DT16,0,Y$62+2)="",NA(),OFFSET(学習の達成_平均点!$DT16,0,Y$62+2)) ->  | Z71: =IF(OFFSET(学習の達成_平均点!$DT16,0,Z$62+2)="",NA(),OFFSET(学習の達成_平均点!$DT16,0,Z$62+2)) ->  | AA71: =IF(OFFSET(学習の達成_平均点!$DT16,0,AA$62+2)="",NA(),OFFSET(学習の達成_平均点!$DT16,0,AA$62+2)) ->  | AB71: =IF(OFFSET(学習の達成_平均点!$DT16,0,AB$62+2)="",NA(),OFFSET(学習の達成_平均点!$DT16,0,AB$62+2)) ->  | AC71: =IF(OFFSET(学習の達成_平均点!$DT16,0,AC$62+2)="",NA(),OFFSET(学習の達成_平均点!$DT16,0,AC$62+2)) ->  | AD71: =IF(OFFSET(学習の達成_平均点!$DT16,0,AD$62+2)="",NA(),OFFSET(学習の達成_平均点!$DT16,0,AD$62+2)) ->  | AE71: =IF(OFFSET(学習の達成_平均点!$DT16,0,AE$62+2)="",NA(),OFFSET(学習の達成_平均点!$DT16,0,AE$62+2)) ->  | AF71: =IF(OFFSET(学習の達成_平均点!$DT16,0,AF$62+2)="",NA(),OFFSET(学習の達成_平均点!$DT16,0,AF$62+2)) ->  | AG71: =IF(OFFSET(学習の達成_平均点!$DT16,0,AG$62+2)="",NA(),OFFSET(学習の達成_平均点!$DT16,0,AG$62+2)) ->  | AH71: =IF(OFFSET(学習の達成_平均点!$DT16,0,AH$62+2)="",NA(),OFFSET(学習の達成_平均点!$DT16,0,AH$62+2)) ->  | AI71: =IF(OFFSET(学習の達成_平均点!$DT16,0,AI$62+2)="",NA(),OFFSET(学習の達成_平均点!$DT16,0,AI$62+2)) -> 
D72: =IF(E72="","",COUNTA(E$64:E72)-COUNTIF(E$64:E72,"")) ->  | E72: =学習の達成_平均点!C17 ->  | F72: =IF(OFFSET(学習の達成_平均点!$DT17,0,F$62+2)="",NA(),OFFSET(学習の達成_平均点!$DT17,0,F$62+2)) ->  | G72: =IF(OFFSET(学習の達成_平均点!$DT17,0,G$62+2)="",NA(),OFFSET(学習の達成_平均点!$DT17,0,G$62+2)) ->  | H72: =IF(OFFSET(学習の達成_平均点!$DT17,0,H$62+2)="",NA(),OFFSET(学習の達成_平均点!$DT17,0,H$62+2)) ->  | I72: =IF(OFFSET(学習の達成_平均点!$DT17,0,I$62+2)="",NA(),OFFSET(学習の達成_平均点!$DT17,0,I$62+2)) ->  | J72: =IF(OFFSET(学習の達成_平均点!$DT17,0,J$62+2)="",NA(),OFFSET(学習の達成_平均点!$DT17,0,J$62+2)) ->  | K72: =IF(OFFSET(学習の達成_平均点!$DT17,0,K$62+2)="",NA(),OFFSET(学習の達成_平均点!$DT17,0,K$62+2)) ->  | L72: =IF(OFFSET(学習の達成_平均点!$DT17,0,L$62+2)="",NA(),OFFSET(学習の達成_平均点!$DT17,0,L$62+2)) ->  | M72: =IF(OFFSET(学習の達成_平均点!$DT17,0,M$62+2)="",NA(),OFFSET(学習の達成_平均点!$DT17,0,M$62+2)) ->  | N72: =IF(OFFSET(学習の達成_平均点!$DT17,0,N$62+2)="",NA(),OFFSET(学習の達成_平均点!$DT17,0,N$62+2)) ->  | O72: =IF(OFFSET(学習の達成_平均点!$DT17,0,O$62+2)="",NA(),OFFSET(学習の達成_平均点!$DT17,0,O$62+2)) ->  | P72: =IF(OFFSET(学習の達成_平均点!$DT17,0,P$62+2)="",NA(),OFFSET(学習の達成_平均点!$DT17,0,P$62+2)) ->  | Q72: =IF(OFFSET(学習の達成_平均点!$DT17,0,Q$62+2)="",NA(),OFFSET(学習の達成_平均点!$DT17,0,Q$62+2)) ->  | R72: =IF(OFFSET(学習の達成_平均点!$DT17,0,R$62+2)="",NA(),OFFSET(学習の達成_平均点!$DT17,0,R$62+2)) ->  | S72: =IF(OFFSET(学習の達成_平均点!$DT17,0,S$62+2)="",NA(),OFFSET(学習の達成_平均点!$DT17,0,S$62+2)) ->  | T72: =IF(OFFSET(学習の達成_平均点!$DT17,0,T$62+2)="",NA(),OFFSET(学習の達成_平均点!$DT17,0,T$62+2)) ->  | U72: =IF(OFFSET(学習の達成_平均点!$DT17,0,U$62+2)="",NA(),OFFSET(学習の達成_平均点!$DT17,0,U$62+2)) ->  | V72: =IF(OFFSET(学習の達成_平均点!$DT17,0,V$62+2)="",NA(),OFFSET(学習の達成_平均点!$DT17,0,V$62+2)) ->  | W72: =IF(OFFSET(学習の達成_平均点!$DT17,0,W$62+2)="",NA(),OFFSET(学習の達成_平均点!$DT17,0,W$62+2)) ->  | X72: =IF(OFFSET(学習の達成_平均点!$DT17,0,X$62+2)="",NA(),OFFSET(学習の達成_平均点!$DT17,0,X$62+2)) ->  | Y72: =IF(OFFSET(学習の達成_平均点!$DT17,0,Y$62+2)="",NA(),OFFSET(学習の達成_平均点!$DT17,0,Y$62+2)) ->  | Z72: =IF(OFFSET(学習の達成_平均点!$DT17,0,Z$62+2)="",NA(),OFFSET(学習の達成_平均点!$DT17,0,Z$62+2)) ->  | AA72: =IF(OFFSET(学習の達成_平均点!$DT17,0,AA$62+2)="",NA(),OFFSET(学習の達成_平均点!$DT17,0,AA$62+2)) ->  | AB72: =IF(OFFSET(学習の達成_平均点!$DT17,0,AB$62+2)="",NA(),OFFSET(学習の達成_平均点!$DT17,0,AB$62+2)) ->  | AC72: =IF(OFFSET(学習の達成_平均点!$DT17,0,AC$62+2)="",NA(),OFFSET(学習の達成_平均点!$DT17,0,AC$62+2)) ->  | AD72: =IF(OFFSET(学習の達成_平均点!$DT17,0,AD$62+2)="",NA(),OFFSET(学習の達成_平均点!$DT17,0,AD$62+2)) ->  | AE72: =IF(OFFSET(学習の達成_平均点!$DT17,0,AE$62+2)="",NA(),OFFSET(学習の達成_平均点!$DT17,0,AE$62+2)) ->  | AF72: =IF(OFFSET(学習の達成_平均点!$DT17,0,AF$62+2)="",NA(),OFFSET(学習の達成_平均点!$DT17,0,AF$62+2)) ->  | AG72: =IF(OFFSET(学習の達成_平均点!$DT17,0,AG$62+2)="",NA(),OFFSET(学習の達成_平均点!$DT17,0,AG$62+2)) ->  | AH72: =IF(OFFSET(学習の達成_平均点!$DT17,0,AH$62+2)="",NA(),OFFSET(学習の達成_平均点!$DT17,0,AH$62+2)) ->  | AI72: =IF(OFFSET(学習の達成_平均点!$DT17,0,AI$62+2)="",NA(),OFFSET(学習の達成_平均点!$DT17,0,AI$62+2)) -> 
D75: 1 | E75: 2 | F75: 3 | G75: 4 | H75: 5 | I75: 6 | J75: 7 | K75: 8 | L75: 9 | M75: 10 | N75: 11 | O75: 12 | P75: 13 | Q75: 14 | R75: 15 | S75: 16 | T75: 17 | U75: 18 | V75: 19 | W75: 20 | X75: 21 | Y75: 22 | Z75: 23 | AA75: 24 | AB75: 25 | AC75: 26 | AD75: 27 | AE75: 28 | AF75: 29 | AG75: 30 | AH75: 31 | AI75: 32
F76: =F63 -> Let’s Be Friends!～小学校のふり返り | G76: =G63 -> Unit 1 | H76: Unit 2 | I76: be動詞と一般動詞 / Unit 1~2の語順の復習 | J76: Unit 3～You Can Do It! ① | K76: Unit 4～Active Grammar ② | L76: Unit 5～Daily Life Scene 2 | M76: 疑問詞のまとめ１ / 代名詞 | N76: Unit 6～You Can Do It! ② | O76: 一般動詞のまとめ / 「概要」を読み取ろう！ | P76: Unit 7～Daily Life Scene 5 | Q76: 一般動詞の現在と過去の文① / 一般動詞の現在と過去の文② | R76: Unit 8～Active Grammar ⑥ | S76: 疑問詞のまとめ２ / 進行形 | T76: Let’s Read 2～You Can Do It! ③ / 「必要な情報」を読み取ろう！
D77: 1 | E77: =VLOOKUP($D77,$D$64:$AI$72,E$75,0) -> 学年平均 | F77: =VLOOKUP($D77,$D$64:$AI$72,F$75,0) -> 
D78: =IFERROR(IF((D77+1)>$A$64,"",D77+1),"") ->  | E78: =VLOOKUP($D78,$D$64:$AI$72,E$75,0) -> 
D80: =IFERROR(IF((D79+1)>$A$64,"",D79+1),"") -> 
D81: =IFERROR(IF((D80+1)>$A$64,"",D80+1),"") -> 
U85: =VLOOKUP($D85,$D$64:$AI$72,U$75,0) -> 

Sheet 名簿入力
B1: 先生がたへ：名簿の名前欄に入力してください。(性別は空欄のままでも動作に支障ございません）
B3: 番号 | C3: =COUNTA(C5:C49) -> 0 | F3: 番号 | G3: =COUNTA(G5:G49) -> 0 | J3: 番号 | K3: =COUNTA(K5:K49) -> 0 | N3: 番号 | O3: =COUNTA(O5:O49) -> 0 | R3: 番号 | S3: =COUNTA(S5:S49) -> 0 | V3: 番号 | W3: =COUNTA(W5:W49) -> 0 | Z3: 番号 | AA3: =COUNTA(AA5:AA49) -> 0 | AD3: 番号 | AE3: =COUNTA(AE5:AE49) -> 0
C4: 名前 | D4: 性別 | G4: 名前 | H4: 性別 | K4: 名前 | L4: 性別 | O4: 名前 | P4: 性別 | S4: 名前 | T4: 性別 | W4: 名前 | X4: 性別 | AA4: 名前 | AB4: 性別 | AE4: 名前 | AF4: 性別
B5: 1 | F5: 1 | J5: 1 | N5: 1 | R5: 1 | V5: 1 | Z5: 1 | AD5: 1
B6: 2 | F6: 2 | J6: 2 | N6: 2 | R6: 2 | V6: 2 | Z6: 2 | AD6: 2
B7: 3 | F7: 3 | J7: 3 | N7: 3 | R7: 3 | V7: 3 | Z7: 3 | AD7: 3
B8: 4 | F8: 4 | J8: 4 | N8: 4 | R8: 4 | V8: 4 | Z8: 4 | AD8: 4
B9: 5 | F9: 5 | J9: 5 | N9: 5 | R9: 5 | V9: 5 | Z9: 5 | AD9: 5
B10: 6 | F10: 6 | J10: 6 | N10: 6 | R10: 6 | V10: 6 | Z10: 6 | AD10: 6
B11: 7 | F11: 7 | J11: 7 | N11: 7 | R11: 7 | V11: 7 | Z11: 7 | AD11: 7
B12: 8 | F12: 8 | J12: 8 | N12: 8 | R12: 8 | V12: 8 | Z12: 8 | AD12: 8
B13: 9 | F13: 9 | J13: 9 | N13: 9 | R13: 9 | V13: 9 | Z13: 9 | AD13: 9
B14: 10 | F14: 10 | J14: 10 | N14: 10 | R14: 10 | V14: 10 | Z14: 10 | AD14: 10
B15: 11 | F15: 11 | J15: 11 | N15: 11 | R15: 11 | V15: 11 | Z15: 11 | AD15: 11
B16: 12 | F16: 12 | J16: 12 | N16: 12 | R16: 12 | V16: 12 | Z16: 12 | AD16: 12
B17: 13 | F17: 13 | J17: 13 | N17: 13 | R17: 13 | V17: 13 | Z17: 13 | AD17: 13
B18: 14 | F18: 14 | J18: 14 | N18: 14 | R18: 14 | V18: 14 | Z18: 14 | AD18: 14
B19: 15 | F19: 15 | J19: 15 | N19: 15 | R19: 15 | V19: 15 | Z19: 15 | AD19: 15
B20: 16 | F20: 16 | J20: 16 | N20: 16 | R20: 16 | V20: 16 | Z20: 16 | AD20: 16
B21: 17 | F21: 17 | J21: 17 | N21: 17 | R21: 17 | V21: 17 | Z21: 17 | AD21: 17
B22: 18 | F22: 18 | J22: 18 | N22: 18 | R22: 18 | V22: 18 | Z22: 18 | AD22: 18
B23: 19 | F23: 19 | J23: 19 | N23: 19 | R23: 19 | V23: 19 | Z23: 19 | AD23: 19
B24: 20 | F24: 20 | J24: 20 | N24: 20 | R24: 20 | V24: 20 | Z24: 20 | AD24: 20
B25: 21 | F25: 21 | J25: 21 | N25: 21 | R25: 21 | V25: 21 | Z25: 21 | AD25: 21
B26: 22 | F26: 22 | J26: 22 | N26: 22 | R26: 22 | V26: 22 | Z26: 22 | AD26: 22
B27: 23 | F27: 23 | J27: 23 | N27: 23 | R27: 23 | V27: 23 | Z27: 23 | AD27: 23
B28: 24 | F28: 24 | J28: 24 | N28: 24 | R28: 24 | V28: 24 | Z28: 24 | AD28: 24
B29: 25 | F29: 25 | J29: 25 | N29: 25 | R29: 25 | V29: 25 | Z29: 25 | AD29: 25
B30: 26 | F30: 26 | J30: 26 | N30: 26 | R30: 26 | V30: 26 | Z30: 26 | AD30: 26
B31: 27 | F31: 27 | J31: 27 | N31: 27 | R31: 27 | V31: 27 | Z31: 27 | AD31: 27
B32: 28 | F32: 28 | J32: 28 | N32: 28 | R32: 28 | V32: 28 | Z32: 28 | AD32: 28
B33: 29 | F33: 29 | J33: 29 | N33: 29 | R33: 29 | V33: 29 | Z33: 29 | AD33: 29
B34: 30 | F34: 30 | J34: 30 | N34: 30 | R34: 30 | V34: 30 | Z34: 30 | AD34: 30
B35: 31 | F35: 31 | J35: 31 | N35: 31 | R35: 31 | V35: 31 | Z35: 31 | AD35: 31
B36: 32 | F36: 32 | J36: 32 | N36: 32 | R36: 32 | V36: 32 | Z36: 32 | AD36: 32
B37: 33 | F37: 33 | J37: 33 | N37: 33 | R37: 33 | V37: 33 | Z37: 33 | AD37: 33
B38: 34 | F38: 34 | J38: 34 | N38: 34 | R38: 34 | V38: 34 | Z38: 34 | AD38: 34
B39: 35 | F39: 35 | J39: 35 | N39: 35 | R39: 35 | V39: 35 | Z39: 35 | AD39: 35
B40: 36 | F40: 36 | J40: 36 | N40: 36 | R40: 36 | V40: 36 | Z40: 36 | AD40: 36
B41: 37 | F41: 37 | J41: 37 | N41: 37 | R41: 37 | V41: 37 | Z41: 37 | AD41: 37
B42: 38 | F42: 38 | J42: 38 | N42: 38 | R42: 38 | V42: 38 | Z42: 38 | AD42: 38
B43: 39 | F43: 39 | J43: 39 | N43: 39 | R43: 39 | V43: 39 | Z43: 39 | AD43: 39
B44: 40 | F44: 40 | J44: 40 | N44: 40 | R44: 40 | V44: 40 | Z44: 40 | AD44: 40
B45: 41 | F45: 41 | J45: 41 | N45: 41 | R45: 41 | V45: 41 | Z45: 41 | AD45: 41
B46: 42 | F46: 42 | J46: 42 | N46: 42 | R46: 42 | V46: 42 | Z46: 42 | AD46: 42
B47: 43 | F47: 43 | J47: 43 | N47: 43 | R47: 43 | V47: 43 | Z47: 43 | AD47: 43
B48: 44 | F48: 44 | J48: 44 | N48: 44 | R48: 44 | V48: 44 | Z48: 44 | AD48: 44
B49: 45 | F49: 45 | J49: 45 | N49: 45 | R49: 45 | V49: 45 | Z49: 45 | AD49: 45

Sheet 基準設定1
A1: 英語 | D1: 先生がたへ：必要に応じて黄色のセルを変更または入力してください。
A2: 学年準拠：1年光村
S7: ="※評価材の重み付けの計算方法について 【("&G109&"観点別素点)×(100÷("&G109&"総計満点))×("&G109&"重み付け%) ＋(独自項目１ 観点別素点)×(独自項目１ 重み付け%) ＋(独自項目２ 観点別素点)×(独自項目２ 重み付け%) ……】 ÷ 【("&G109&"観点別満点)×(100÷("&G109&"総計満点))×("&G109&"重み付け%) ＋(独自項目１ 観点別満点)×(独自項目１ 重み付け%) ＋(独自項目２ 観点別満点)×(独自項目２ 重み付け%) ……】 の計算式で達成率を算出します。" -> ※評価材の重み付けの計算方法について 【(学習の達成観点別素点)×(100÷(学習の達成総計満点))×(学習の達成重み付け%) ＋(独自項目１ 観点別素点)×(独自項目１ 重み付け%) ＋(独自項目２ 観点別素点)×(独自項目２ 重み付け%) ……】 ÷ 【(学習の達成観点別満点)×(100÷(学習の達成総計満点))×(学習の達成重み付け%) ＋(独自項目１ 観点別満点)×(独自項目１ 重み付け%) ＋(独自項目２ 観点別満点)×(独自項目２ 重み付け%) ……】 の計算式で達成率を算出します。
A9: ="●「"&G109&"」 各回使用学期／観点別評価基準" -> ●「学習の達成」 各回使用学期／観点別評価基準 | K9: ●ユーザー独自項目 各回の使用学期／観点別評価基準／評価材ごとの重み付けと比重
K10: 1学期 | R10: 2学期 | Y10: 3学期
A11: 回数 | B11: 単元 | C11: 学期 | D11: 観点 | E11: 満点 | K11: 番号 | L11: 項目 | M11: 観点 | N11: 満点 | O11: ＡとＢ の境 | P11: ＢとＣ の境 | Q11: 割合 | R11: 番号 | S11: 項目 | T11: 観点 | U11: 満点 | V11: ＡとＢ の境 | W11: ＢとＣ の境 | X11: 割合 | Y11: 番号 | Z11: 項目 | AA11: 観点 | AB11: 満点 | AC11: ＡとＢ の境 | AD11: ＢとＣ の境 | AE11: 割合
E12: オモテ | F12: ウラ | G12: 合計 | H12: ＡとＢ の境 | I12: ＢとＣ の境 | Q12: ="現在"& CHAR(10) &"計"&SUM(Q13:Q73)&"%" -> 現在 計100% | X12: ="現在"& CHAR(10) &"計"&SUM(X13:X73)&"%" -> 現在 計100% | AE12: ="現在"& CHAR(10) &"計"&SUM(AE13:AE73)&"%" -> 現在 計100%
A13: 1 | B13: Let’s Be Friends!～小学校のふり返り | C13: 1 | D13: =観点1 -> 知識・技能 | E13: 100 | F13: 100 | G13: =IF(B13="","",SUM(E13:F13)) -> 200 | H13: 160 | I13: 100 | J13: =C13 -> 1 | K13: G | L13: 学習の達成 1学期分 | M13: =観点1 -> 知識・技能 | Q13: 10 | R13: G | S13: 学習の達成 2学期分 | T13: =観点1 -> 知識・技能 | X13: 10 | Y13: G | Z13: 学習の達成 3学期分 | AA13: =観点1 -> 知識・技能 | AE13: 10
D14: =観点2 -> 思考判断表現 | E14: 0 | F14: 0 | G14: =IF(B13="","",SUM(E14:F14)) -> 0 | H14: 0 | I14: 0 | J14: =C13 -> 1 | M14: =観点2 -> 思考判断表現 | T14: =観点2 -> 思考判断表現 | AA14: =観点2 -> 思考判断表現
D15: =観点3 -> 主学態 | G15: =IF(B13="","",SUM(E15:F15)) -> 0 | J15: =C13 -> 1 | M15: =観点3 -> 主学態 | T15: =観点3 -> 主学態 | AA15: =観点3 -> 主学態
A16: 2 | B16: Unit 1 | C16: 1 | D16: =観点1 -> 知識・技能 | E16: 100 | F16: 0 | G16: =IF(B16="","",SUM(E16:F16)) -> 100 | H16: 80 | I16: 50 | J16: =C16 -> 1 | K16: 1 | L16: １学期 中間テスト | M16: =観点1 -> 知識・技能 | N16: 100 | O16: 80 | P16: 50 | Q16: 30 | R16: 1 | S16: ２学期 中間テスト | T16: =観点1 -> 知識・技能 | U16: 100 | V16: 80 | W16: 50 | X16: 30 | Y16: 1 | Z16: ３学期 中間テスト | AA16: =観点1 -> 知識・技能 | AB16: 100 | AC16: 80 | AD16: 50 | AE16: 30 | AG16: 1 | AH16: =IF(L16="","",1000+K16*10) -> 1010 | AI16: =IF(L16="","",L16) -> １学期 中間テスト | AJ16: =N16 -> 100 | AK16: =O16 -> 80 | AL16: 50 | AM16: =IF(Q16="","",Q16) -> 30 | AN16: 1 | AO16: =IF(ISERROR(SMALL($AH$16:$AH$195,AG16)),"",SMALL($AH$16:$AH$195,AG16)) -> 1010 | AP16: =VLOOKUP(AO16,$AH$16:$AL$195,2,FALSE) -> １学期 中間テスト | AQ16: =IF(AO16="","",VLOOKUP(AO16,$AH$16:$AL$195,3,FALSE)) -> 100 | AR16: =IF(AO16="","",VLOOKUP(AO16,$AH$16:$AL$195,4,FALSE)) -> 80 | AS16: =IF(AO16="","",VLOOKUP(AO16,$AH$16:$AL$195,5,FALSE)) -> 50 | AT16: =IF(AO16="","",VALUE(LEFT(AO16,1))) -> 1 | AU16: =IF(AO16="","",VLOOKUP(AO16,$AH$16:$AM$195,6,FALSE)) -> 30
D17: =観点2 -> 思考判断表現 | E17: 0 | F17: 100 | G17: =IF(B16="","",SUM(E17:F17)) -> 100 | H17: 80 | I17: 50 | J17: =C16 -> 1 | M17: =観点2 -> 思考判断表現 | N17: 100 | O17: 80 | P17: 50 | T17: =観点2 -> 思考判断表現 | U17: 100 | V17: 80 | W17: 50 | AA17: =観点2 -> 思考判断表現 | AB17: 100 | AC17: 80 | AD17: 50 | AG17: 2 | AH17: =IF(AH16="","",AH16+1) -> 1011 | AI17: =AI16 -> １学期 中間テスト | AJ17: =N17 -> 100 | AK17: 80 | AL17: 50 | AM17: =IF(AM16="","",AM16) -> 30 | AN17: 2 | AO17: 1011 | AP17: １学期 中間テスト | AQ17: 100 | AR17: 80 | AS17: 50 | AT17: =IF(AO17="","",VALUE(LEFT(AO17,1))) -> 1 | AU17: 30
D18: =観点3 -> 主学態 | G18: =IF(B16="","",SUM(E18:F18)) -> 0 | J18: =C16 -> 1 | M18: =観点3 -> 主学態 | T18: =観点3 -> 主学態 | AA18: =観点3 -> 主学態 | AG18: 3 | AH18: =IF(AH17="","",AH17+1) -> 1012 | AI18: =AI17 -> １学期 中間テスト | AJ18: =N18 -> 0 | AK18: 0 | AL18: 0 | AM18: =IF(AM16="","",AM16) -> 30 | AN18: 3 | AO18: 1012 | AP18: １学期 中間テスト | AQ18: 0 | AR18: 0 | AS18: 0 | AT18: 1 | AU18: 30
A19: 3 | B19: Unit 2 | C19: 1 | D19: =観点1 -> 知識・技能 | E19: 100 | F19: 0 | G19: =IF(B19="","",SUM(E19:F19)) -> 100 | H19: 80 | I19: 50 | J19: =C19 -> 1 | K19: 2 | L19: １学期 期末テスト | M19: =観点1 -> 知識・技能 | N19: 100 | O19: 80 | P19: 50 | Q19: 30 | R19: 2 | S19: ２学期 期末テスト | T19: =観点1 -> 知識・技能 | U19: 100 | V19: 80 | W19: 50 | X19: 30 | Y19: 2 | Z19: ３学期 期末テスト | AA19: =観点1 -> 知識・技能 | AB19: 100 | AC19: 80 | AD19: 50 | AE19: 30 | AG19: 4 | AH19: =IF(L19="","",1000+K19*10) -> 1020 | AI19: =IF(L19="","",L19) -> １学期 期末テスト | AJ19: =N19 -> 100 | AK19: =O19 -> 80 | AL19: =P19 -> 50 | AM19: =IF(Q19="","",Q19) -> 30 | AN19: 4 | AO19: 1020 | AP19: １学期 期末テスト | AQ19: 100 | AR19: 80 | AS19: 50 | AT19: 1 | AU19: 30
D20: =観点2 -> 思考判断表現 | E20: 0 | F20: 100 | G20: =IF(B19="","",SUM(E20:F20)) -> 100 | H20: 80 | I20: 50 | J20: =C19 -> 1 | M20: =観点2 -> 思考判断表現 | N20: 100 | O20: 80 | P20: 50 | T20: =観点2 -> 思考判断表現 | U20: 100 | V20: 80 | W20: 50 | AA20: =観点2 -> 思考判断表現 | AB20: 100 | AC20: 80 | AD20: 50 | AG20: 5 | AH20: =IF(AH19="","",AH19+1) -> 1021 | AI20: =AI19 -> １学期 期末テスト | AJ20: 100 | AK20: 80 | AL20: 50 | AM20: =IF(AM19="","",AM19) -> 30 | AN20: 5 | AO20: 1021 | AP20: １学期 期末テスト | AQ20: 100 | AR20: 80 | AS20: 50 | AT20: 1 | AU20: 30
D21: =観点3 -> 主学態 | G21: =IF(B19="","",SUM(E21:F21)) -> 0 | J21: =C19 -> 1 | M21: =観点3 -> 主学態 | T21: =観点3 -> 主学態 | AA21: =観点3 -> 主学態 | AG21: 6 | AH21: =IF(AH20="","",AH20+1) -> 1022 | AI21: =AI20 -> １学期 期末テスト | AJ21: 0 | AK21: 0 | AL21: 0 | AM21: =IF(AM19="","",AM19) -> 30 | AN21: 6 | AO21: 1022 | AP21: １学期 期末テスト | AQ21: 0 | AR21: 0 | AS21: 0 | AT21: 1 | AU21: 30
A22: 4 | B22: be動詞と一般動詞 / Unit 1~2の語順の復習 | C22: 1 | D22: =観点1 -> 知識・技能 | E22: 100 | F22: 100 | G22: =IF(B22="","",SUM(E22:F22)) -> 200 | H22: 160 | I22: 100 | J22: =C22 -> 1 | K22: 3 | L22: 小テスト | M22: =観点1 -> 知識・技能 | N22: 50 | O22: 40 | P22: 25 | Q22: 30 | R22: 3 | S22: 小テスト | T22: =観点1 -> 知識・技能 | U22: 50 | V22: 40 | W22: 25 | X22: 30 | Y22: 3 | Z22: 小テスト | AA22: =観点1 -> 知識・技能 | AB22: 50 | AC22: 40 | AD22: 25 | AE22: 30 | AG22: 7 | AH22: =IF(L22="","",1000+K22*10) -> 1030 | AI22: =IF(L22="","",L22) -> 小テスト | AJ22: 50 | AK22: 40 | AL22: 25 | AM22: =IF(Q22="","",Q22) -> 30 | AN22: 7 | AO22: 1030 | AP22: 小テスト | AQ22: 50 | AR22: 40 | AS22: 25 | AT22: 1 | AU22: 30
D23: =観点2 -> 思考判断表現 | E23: 0 | F23: 0 | G23: =IF(B22="","",SUM(E23:F23)) -> 0 | H23: 0 | I23: 0 | J23: =C22 -> 1 | M23: =観点2 -> 思考判断表現 | N23: 50 | O23: 40 | P23: 25 | T23: =観点2 -> 思考判断表現 | U23: 50 | V23: 40 | W23: 25 | AA23: =観点2 -> 思考判断表現 | AB23: 50 | AC23: 40 | AD23: 25 | AG23: 8 | AH23: =IF(AH22="","",AH22+1) -> 1031 | AI23: =AI22 -> 小テスト | AJ23: 50 | AK23: 40 | AL23: 25 | AM23: =IF(AM22="","",AM22) -> 30 | AN23: 8 | AO23: 1031 | AP23: 小テスト | AQ23: 50 | AR23: 40 | AS23: 25 | AT23: 1 | AU23: 30
D24: =観点3 -> 主学態 | G24: =IF(B22="","",SUM(E24:F24)) -> 0 | J24: =C22 -> 1 | M24: =観点3 -> 主学態 | T24: =観点3 -> 主学態 | AA24: =観点3 -> 主学態 | AG24: 9 | AH24: =IF(AH23="","",AH23+1) -> 1032 | AI24: =AI23 -> 小テスト | AJ24: 0 | AK24: 0 | AL24: 0 | AM24: =IF(AM22="","",AM22) -> 30 | AN24: 9 | AO24: 1032 | AP24: 小テスト | AQ24: 0 | AR24: 0 | AS24: 0 | AT24: 1 | AU24: 30
A25: 5 | B25: Unit 3～You Can Do It! ① | C25: 1 | D25: =観点1 -> 知識・技能 | E25: 100 | F25: 0 | G25: =IF(B25="","",SUM(E25:F25)) -> 100 | H25: 80 | I25: 50 | J25: =C25 -> 1 | K25: 4 | M25: =観点1 -> 知識・技能 | R25: 4 | T25: =観点1 -> 知識・技能 | Y25: 4 | AA25: =観点1 -> 知識・技能 | AG25: 10 | AH25: =IF(L25="","",1000+K25*10) ->  | AI25: =IF(L25="","",L25) ->  | AJ25: 0 | AK25: 0 | AL25: 0 | AM25: =IF(Q25="","",Q25) ->  | AN25: 10 | AO25: 2010 | AP25: ２学期 中間テスト | AQ25: 100 | AR25: 80 | AS25: 50 | AT25: 2 | AU25: 30
D26: =観点2 -> 思考判断表現 | E26: 0 | F26: 100 | G26: =IF(B25="","",SUM(E26:F26)) -> 100 | H26: 80 | I26: 50 | J26: =C25 -> 1 | M26: =観点2 -> 思考判断表現 | T26: =観点2 -> 思考判断表現 | AA26: =観点2 -> 思考判断表現 | AG26: 11 | AH26: =IF(AH25="","",AH25+1) ->  | AI26: =AI25 ->  | AJ26: 0 | AK26: 0 | AL26: 0 | AM26: =IF(AM25="","",AM25) ->  | AN26: 11 | AO26: 2011 | AP26: ２学期 中間テスト | AQ26: 100 | AR26: 80 | AS26: 50 | AT26: 2 | AU26: 30
D27: =観点3 -> 主学態 | G27: =IF(B25="","",SUM(E27:F27)) -> 0 | J27: =C25 -> 1 | M27: =観点3 -> 主学態 | T27: =観点3 -> 主学態 | AA27: =観点3 -> 主学態 | AG27: 12 | AH27: =IF(AH26="","",AH26+1) ->  | AI27: =AI26 ->  | AJ27: 0 | AK27: 0 | AL27: 0 | AM27: =IF(AM25="","",AM25) ->  | AN27: 12 | AO27: 2012 | AP27: ２学期 中間テスト | AQ27: 0 | AR27: 0 | AS27: 0 | AT27: 2 | AU27: 30
A28: 6 | B28: Unit 4～Active Grammar ② | C28: 2 | D28: =観点1 -> 知識・技能 | E28: 100 | F28: 0 | G28: =IF(B28="","",SUM(E28:F28)) -> 100 | H28: 80 | I28: 50 | J28: =C28 -> 2 | K28: 5 | M28: =観点1 -> 知識・技能 | R28: 5 | T28: =観点1 -> 知識・技能 | Y28: 5 | AA28: =観点1 -> 知識・技能 | AG28: 13 | AH28: =IF(L28="","",1000+K28*10) ->  | AI28: =IF(L28="","",L28) ->  | AJ28: 0 | AK28: 0 | AL28: 0 | AM28: =IF(Q28="","",Q28) ->  | AN28: 13 | AO28: 2020 | AP28: ２学期 期末テスト | AQ28: 100 | AR28: 80 | AS28: 50 | AT28: 2 | AU28: 30
D29: =観点2 -> 思考判断表現 | E29: 0 | F29: 100 | G29: =IF(B28="","",SUM(E29:F29)) -> 100 | H29: 80 | I29: 50 | J29: =C28 -> 2 | M29: =観点2 -> 思考判断表現 | T29: =観点2 -> 思考判断表現 | AA29: =観点2 -> 思考判断表現 | AG29: 14 | AH29: =IF(AH28="","",AH28+1) ->  | AI29: =AI28 ->  | AJ29: 0 | AK29: 0 | AL29: 0 | AM29: =IF(AM28="","",AM28) ->  | AN29: 14 | AO29: 2021 | AP29: ２学期 期末テスト | AQ29: 100 | AR29: 80 | AS29: 50 | AT29: 2 | AU29: 30
D30: =観点3 -> 主学態 | G30: =IF(B28="","",SUM(E30:F30)) -> 0 | J30: =C28 -> 2 | M30: =観点3 -> 主学態 | T30: =観点3 -> 主学態 | AA30: =観点3 -> 主学態 | AG30: 15 | AH30: =IF(AH29="","",AH29+1) ->  | AI30: =AI29 ->  | AJ30: 0 | AK30: 0 | AL30: 0 | AM30: =IF(AM28="","",AM28) ->  | AN30: 15 | AO30: 2022 | AP30: ２学期 期末テスト | AQ30: 0 | AR30: 0 | AS30: 0 | AT30: 2 | AU30: 30
A31: 7 | B31: Unit 5～Daily Life Scene 2 | C31: 2 | D31: =観点1 -> 知識・技能 | E31: 100 | F31: 0 | G31: =IF(B31="","",SUM(E31:F31)) -> 100 | H31: 80 | I31: 50 | J31: =C31 -> 2 | K31: 6 | M31: =観点1 -> 知識・技能 | R31: 6 | T31: =観点1 -> 知識・技能 | Y31: 6 | AA31: =観点1 -> 知識・技能 | AG31: 16 | AH31: =IF(L31="","",1000+K31*10) ->  | AI31: =IF(L31="","",L31) ->  | AJ31: 0 | AK31: 0 | AL31: 0 | AM31: =IF(Q31="","",Q31) ->  | AN31: 16 | AO31: 2030 | AP31: 小テスト | AQ31: 50 | AR31: 40 | AS31: 25 | AT31: 2 | AU31: 30
D32: =観点2 -> 思考判断表現 | E32: 0 | F32: 100 | G32: =IF(B31="","",SUM(E32:F32)) -> 100 | H32: 80 | I32: 50 | J32: =C31 -> 2 | M32: =観点2 -> 思考判断表現 | T32: =観点2 -> 思考判断表現 | AA32: =観点2 -> 思考判断表現 | AG32: 17 | AH32: =IF(AH31="","",AH31+1) ->  | AI32: =AI31 ->  | AJ32: 0 | AK32: 0 | AL32: 0 | AM32: =IF(AM31="","",AM31) ->  | AN32: 17 | AO32: 2031 | AP32: 小テスト | AQ32: 50 | AR32: 40 | AS32: 25 | AT32: 2 | AU32: 30
D33: =観点3 -> 主学態 | G33: =IF(B31="","",SUM(E33:F33)) -> 0 | J33: =C31 -> 2 | M33: =観点3 -> 主学態 | T33: =観点3 -> 主学態 | AA33: =観点3 -> 主学態 | AG33: 18 | AH33: =IF(AH32="","",AH32+1) ->  | AI33: =AI32 ->  | AJ33: 0 | AK33: 0 | AL33: 0 | AM33: =IF(AM31="","",AM31) ->  | AN33: 18 | AO33: 2032 | AP33: 小テスト | AQ33: 0 | AR33: 0 | AS33: 0 | AT33: 2 | AU33: 30
A34: 8 | B34: 疑問詞のまとめ１ / 代名詞 | C34: 2 | D34: =観点1 -> 知識・技能 | E34: 100 | F34: 100 | G34: =IF(B34="","",SUM(E34:F34)) -> 200 | H34: 160 | I34: 100 | J34: =C34 -> 2 | K34: 7 | M34: =観点1 -> 知識・技能 | R34: 7 | T34: =観点1 -> 知識・技能 | Y34: 7 | AA34: =観点1 -> 知識・技能 | AG34: 19 | AH34: =IF(L34="","",1000+K34*10) ->  | AI34: =IF(L34="","",L34) ->  | AJ34: 0 | AK34: 0 | AL34: 0 | AM34: =IF(Q34="","",Q34) ->  | AN34: 19 | AO34: 3010 | AP34: ３学期 中間テスト | AQ34: 100 | AR34: 80 | AS34: 50 | AT34: 3 | AU34: 30
D35: =観点2 -> 思考判断表現 | E35: 0 | F35: 0 | G35: =IF(B34="","",SUM(E35:F35)) -> 0 | H35: 0 | I35: 0 | J35: =C34 -> 2 | M35: =観点2 -> 思考判断表現 | T35: =観点2 -> 思考判断表現 | AA35: =観点2 -> 思考判断表現 | AG35: 20 | AH35: =IF(AH34="","",AH34+1) ->  | AI35: =AI34 ->  | AJ35: 0 | AK35: 0 | AL35: 0 | AM35: =IF(AM34="","",AM34) ->  | AN35: 20 | AO35: 3011 | AP35: ３学期 中間テスト | AQ35: 100 | AR35: 80 | AS35: 50 | AT35: 3 | AU35: 30
D36: =観点3 -> 主学態 | G36: =IF(B34="","",SUM(E36:F36)) -> 0 | J36: =C34 -> 2 | M36: =観点3 -> 主学態 | T36: =観点3 -> 主学態 | AA36: =観点3 -> 主学態 | AG36: 21 | AH36: =IF(AH35="","",AH35+1) ->  | AI36: =AI35 ->  | AJ36: 0 | AK36: 0 | AL36: 0 | AM36: =IF(AM34="","",AM34) ->  | AN36: 21 | AO36: 3012 | AP36: ３学期 中間テスト | AQ36: 0 | AR36: 0 | AS36: 0 | AT36: 3 | AU36: 30
A37: 9 | B37: Unit 6～You Can Do It! ② | C37: 2 | D37: =観点1 -> 知識・技能 | E37: 100 | F37: 0 | G37: =IF(B37="","",SUM(E37:F37)) -> 100 | H37: 80 | I37: 50 | J37: =C37 -> 2 | K37: 8 | M37: =観点1 -> 知識・技能 | R37: 8 | T37: =観点1 -> 知識・技能 | Y37: 8 | AA37: =観点1 -> 知識・技能 | AG37: 22 | AH37: =IF(L37="","",1000+K37*10) ->  | AI37: =IF(L37="","",L37) ->  | AJ37: 0 | AK37: 0 | AL37: 0 | AM37: =IF(Q37="","",Q37) ->  | AN37: 22 | AO37: 3020 | AP37: ３学期 期末テスト | AQ37: 100 | AR37: 80 | AS37: 50 | AT37: 3 | AU37: 30
D38: =観点2 -> 思考判断表現 | E38: 0 | F38: 100 | G38: =IF(B37="","",SUM(E38:F38)) -> 100 | H38: 80 | I38: 50 | J38: =C37 -> 2 | M38: =観点2 -> 思考判断表現 | T38: =観点2 -> 思考判断表現 | AA38: =観点2 -> 思考判断表現 | AG38: 23 | AH38: =IF(AH37="","",AH37+1) ->  | AI38: =AI37 ->  | AJ38: 0 | AK38: 0 | AL38: 0 | AM38: =IF(AM37="","",AM37) ->  | AN38: 23 | AO38: 3021 | AP38: ３学期 期末テスト | AQ38: 100 | AR38: 80 | AS38: 50 | AT38: 3 | AU38: 30
D39: =観点3 -> 主学態 | G39: =IF(B37="","",SUM(E39:F39)) -> 0 | J39: =C37 -> 2 | M39: =観点3 -> 主学態 | T39: =観点3 -> 主学態 | AA39: =観点3 -> 主学態 | AG39: 24 | AH39: =IF(AH38="","",AH38+1) ->  | AI39: =AI38 ->  | AJ39: 0 | AK39: 0 | AL39: 0 | AM39: =IF(AM37="","",AM37) ->  | AN39: 24 | AO39: 3022 | AP39: ３学期 期末テスト | AQ39: 0 | AR39: 0 | AS39: 0 | AT39: 3 | AU39: 30
A40: 10 | B40: 一般動詞のまとめ / 「概要」を読み取ろう！ | C40: 2 | D40: =観点1 -> 知識・技能 | E40: 100 | F40: 60 | G40: =IF(B40="","",SUM(E40:F40)) -> 160 | H40: 128 | I40: 80 | J40: =C40 -> 2 | K40: 9 | M40: =観点1 -> 知識・技能 | R40: 9 | T40: =観点1 -> 知識・技能 | Y40: 9 | AA40: =観点1 -> 知識・技能 | AG40: 25 | AH40: =IF(L40="","",1000+K40*10) ->  | AI40: =IF(L40="","",L40) ->  | AJ40: 0 | AK40: 0 | AL40: 0 | AM40: =IF(Q40="","",Q40) ->  | AN40: 25 | AO40: 3030 | AP40: 小テスト | AQ40: 50 | AR40: 40 | AS40: 25 | AT40: 3 | AU40: 30
D41: =観点2 -> 思考判断表現 | E41: 0 | F41: 40 | G41: =IF(B40="","",SUM(E41:F41)) -> 40 | H41: 32 | I41: 20 | J41: =C40 -> 2 | M41: =観点2 -> 思考判断表現 | T41: =観点2 -> 思考判断表現 | AA41: =観点2 -> 思考判断表現 | AG41: 26 | AH41: =IF(AH40="","",AH40+1) ->  | AI41: =AI40 ->  | AJ41: 0 | AK41: 0 | AL41: 0 | AM41: =IF(AM40="","",AM40) ->  | AN41: 26 | AO41: 3031 | AP41: 小テスト | AQ41: 50 | AR41: 40 | AS41: 25 | AT41: 3 | AU41: 30
D42: =観点3 -> 主学態 | G42: =IF(B40="","",SUM(E42:F42)) -> 0 | J42: =C40 -> 2 | M42: =観点3 -> 主学態 | T42: =観点3 -> 主学態 | AA42: =観点3 -> 主学態 | AG42: 27 | AH42: =IF(AH41="","",AH41+1) ->  | AI42: =AI41 ->  | AJ42: 0 | AK42: 0 | AL42: 0 | AM42: =IF(AM40="","",AM40) ->  | AN42: 27 | AO42: 3032 | AP42: 小テスト | AQ42: 0 | AR42: 0 | AS42: 0 | AT42: 3 | AU42: 30
A43: 11 | B43: Unit 7～Daily Life Scene 5 | C43: 3 | D43: =観点1 -> 知識・技能 | E43: 100 | F43: 0 | G43: =IF(B43="","",SUM(E43:F43)) -> 100 | H43: 80 | I43: 50 | J43: =C43 -> 3 | K43: 10 | M43: =観点1 -> 知識・技能 | R43: 10 | T43: =観点1 -> 知識・技能 | Y43: 10 | AA43: =観点1 -> 知識・技能 | AG43: 28 | AH43: =IF(L43="","",1000+K43*10) ->  | AI43: =IF(L43="","",L43) ->  | AJ43: 0 | AK43: 0 | AL43: 0 | AM43: =IF(Q43="","",Q43) ->  | AN43: 28
D44: =観点2 -> 思考判断表現 | E44: 0 | F44: 100 | G44: =IF(B43="","",SUM(E44:F44)) -> 100 | H44: 80 | I44: 50 | J44: =C43 -> 3 | M44: =観点2 -> 思考判断表現 | T44: =観点2 -> 思考判断表現 | AA44: =観点2 -> 思考判断表現 | AG44: 29 | AH44: =IF(AH43="","",AH43+1) ->  | AI44: =AI43 ->  | AJ44: 0 | AK44: 0 | AL44: 0 | AM44: =IF(AM43="","",AM43) ->  | AN44: 29
D45: =観点3 -> 主学態 | G45: =IF(B43="","",SUM(E45:F45)) -> 0 | J45: =C43 -> 3 | M45: =観点3 -> 主学態 | T45: =観点3 -> 主学態 | AA45: =観点3 -> 主学態 | AG45: 30 | AH45: =IF(AH44="","",AH44+1) ->  | AI45: =AI44 ->  | AJ45: 0 | AK45: 0 | AL45: 0 | AM45: =IF(AM43="","",AM43) ->  | AN45: 30
A46: 12 | B46: 一般動詞の現在と過去の文① / 一般動詞の現在と過去の文② | C46: 3 | D46: =観点1 -> 知識・技能 | E46: 100 | F46: 100 | G46: =IF(B46="","",SUM(E46:F46)) -> 200 | H46: 160 | I46: 100 | J46: =C46 -> 3 | K46: 11 | M46: =観点1 -> 知識・技能 | R46: 11 | T46: =観点1 -> 知識・技能 | Y46: 11 | AA46: =観点1 -> 知識・技能 | AG46: 31 | AH46: =IF(L46="","",1000+K46*10) ->  | AI46: =IF(L46="","",L46) ->  | AJ46: =N46 -> 0 | AK46: =O46 -> 0 | AL46: =P46 -> 0 | AM46: =IF(Q46="","",Q46) ->  | AN46: 31
D47: =観点2 -> 思考判断表現 | E47: 0 | F47: 0 | G47: =IF(B46="","",SUM(E47:F47)) -> 0 | H47: 0 | I47: 0 | J47: =C46 -> 3 | M47: =観点2 -> 思考判断表現 | T47: =観点2 -> 思考判断表現 | AA47: =観点2 -> 思考判断表現 | AG47: 32 | AH47: =IF(AH46="","",AH46+1) ->  | AI47: =AI46 ->  | AJ47: 0 | AK47: 0 | AL47: 0 | AM47: =IF(AM46="","",AM46) ->  | AN47: 32
D48: =観点3 -> 主学態 | G48: =IF(B46="","",SUM(E48:F48)) -> 0 | J48: =C46 -> 3 | M48: =観点3 -> 主学態 | T48: =観点3 -> 主学態 | AA48: =観点3 -> 主学態 | AG48: 33 | AH48: =IF(AH47="","",AH47+1) ->  | AI48: =AI47 ->  | AJ48: 0 | AK48: 0 | AL48: 0 | AM48: =IF(AM46="","",AM46) ->  | AN48: 33 | AO48: =IF(ISERROR(SMALL($AH$16:$AH$195,AG48)),"",SMALL($AH$16:$AH$195,AG48)) ->  | AP48: =VLOOKUP(AO48,$AH$16:$AL$195,2,FALSE) ->  | AQ48: =IF(AO48="","",VLOOKUP(AO48,$AH$16:$AL$195,3,FALSE)) ->  | AR48: =IF(AO48="","",VLOOKUP(AO48,$AH$16:$AL$195,4,FALSE)) ->  | AS48: =IF(AO48="","",VLOOKUP(AO48,$AH$16:$AL$195,5,FALSE)) ->  | AU48: =IF(AO48="","",VLOOKUP(AO48,$AH$16:$AM$195,6,FALSE)) -> 
A49: 13 | B49: Unit 8～Active Grammar ⑥ | C49: 3 | D49: =観点1 -> 知識・技能 | E49: 100 | F49: 0 | G49: =IF(B49="","",SUM(E49:F49)) -> 100 | H49: 80 | I49: 50 | J49: =C49 -> 3 | K49: 12 | M49: =観点1 -> 知識・技能 | R49: 12 | T49: =観点1 -> 知識・技能 | Y49: 12 | AA49: =観点1 -> 知識・技能 | AG49: 34 | AH49: =IF(L49="","",1000+K49*10) ->  | AI49: =IF(L49="","",L49) ->  | AJ49: 0 | AK49: 0 | AL49: 0 | AM49: =IF(Q49="","",Q49) ->  | AN49: 34
D50: =観点2 -> 思考判断表現 | E50: 0 | F50: 100 | G50: =IF(B49="","",SUM(E50:F50)) -> 100 | H50: 80 | I50: 50 | J50: =C49 -> 3 | M50: =観点2 -> 思考判断表現 | T50: =観点2 -> 思考判断表現 | AA50: =観点2 -> 思考判断表現 | AG50: 35 | AH50: =IF(AH49="","",AH49+1) ->  | AI50: =AI49 ->  | AJ50: 0 | AK50: 0 | AL50: 0 | AM50: =IF(AM49="","",AM49) ->  | AN50: 35
D51: =観点3 -> 主学態 | G51: =IF(B49="","",SUM(E51:F51)) -> 0 | J51: =C49 -> 3 | M51: =観点3 -> 主学態 | T51: =観点3 -> 主学態 | AA51: =観点3 -> 主学態 | AG51: 36 | AH51: =IF(AH50="","",AH50+1) ->  | AI51: =AI50 ->  | AJ51: 0 | AK51: 0 | AL51: 0 | AM51: =IF(AM49="","",AM49) ->  | AN51: 36
A52: 14 | B52: 疑問詞のまとめ２ / 進行形 | C52: 3 | D52: =観点1 -> 知識・技能 | E52: 100 | F52: 100 | G52: =IF(B52="","",SUM(E52:F52)) -> 200 | H52: 160 | I52: 100 | J52: =C52 -> 3 | K52: 13 | M52: =観点1 -> 知識・技能 | R52: 13 | T52: =観点1 -> 知識・技能 | Y52: 13 | AA52: =観点1 -> 知識・技能 | AG52: 37 | AH52: =IF(L52="","",1000+K52*10) ->  | AI52: =IF(L52="","",L52) ->  | AJ52: 0 | AK52: 0 | AL52: 0 | AM52: =IF(Q52="","",Q52) ->  | AN52: 37
D53: =観点2 -> 思考判断表現 | E53: 0 | F53: 0 | G53: =IF(B52="","",SUM(E53:F53)) -> 0 | H53: 0 | I53: 0 | J53: =C52 -> 3 | M53: =観点2 -> 思考判断表現 | T53: =観点2 -> 思考判断表現 | AA53: =観点2 -> 思考判断表現 | AG53: 38 | AH53: =IF(AH52="","",AH52+1) ->  | AI53: =AI52 ->  | AJ53: 0 | AK53: 0 | AL53: 0 | AM53: =IF(AM52="","",AM52) ->  | AN53: 38
D54: =観点3 -> 主学態 | G54: =IF(B52="","",SUM(E54:F54)) -> 0 | J54: =C52 -> 3 | M54: =観点3 -> 主学態 | T54: =観点3 -> 主学態 | AA54: =観点3 -> 主学態 | AG54: 39 | AH54: =IF(AH53="","",AH53+1) ->  | AI54: =AI53 ->  | AJ54: 0 | AK54: 0 | AL54: 0 | AM54: =IF(AM52="","",AM52) ->  | AN54: 39
A55: 15 | B55: Let’s Read 2～You Can Do It! ③ / 「必要な情報」を読み取ろう！ | C55: 3 | D55: =観点1 -> 知識・技能 | E55: 70 | F55: 60 | G55: =IF(B55="","",SUM(E55:F55)) -> 130 | H55: 104 | I55: 65 | J55: =C55 -> 3 | K55: 14 | M55: =観点1 -> 知識・技能 | R55: 14 | T55: =観点1 -> 知識・技能 | Y55: 14 | AA55: =観点1 -> 知識・技能 | AG55: 40 | AH55: =IF(L55="","",1000+K55*10) ->  | AI55: =IF(L55="","",L55) ->  | AJ55: 0 | AK55: 0 | AL55: 0 | AM55: =IF(Q55="","",Q55) ->  | AN55: 40
D56: =観点2 -> 思考判断表現 | E56: 30 | F56: 40 | G56: =IF(B55="","",SUM(E56:F56)) -> 70 | H56: 56 | I56: 35 | J56: =C55 -> 3 | M56: =観点2 -> 思考判断表現 | T56: =観点2 -> 思考判断表現 | AA56: =観点2 -> 思考判断表現 | AG56: 41 | AH56: =IF(AH55="","",AH55+1) ->  | AI56: =AI55 ->  | AJ56: 0 | AK56: 0 | AL56: 0 | AM56: =IF(AM55="","",AM55) ->  | AN56: 41
D57: =観点3 -> 主学態 | G57: =IF(B55="","",SUM(E57:F57)) -> 0 | J57: =C55 -> 3 | M57: =観点3 -> 主学態 | T57: =観点3 -> 主学態 | AA57: =観点3 -> 主学態 | AG57: 42 | AH57: =IF(AH56="","",AH56+1) ->  | AI57: =AI56 ->  | AJ57: 0 | AK57: 0 | AL57: 0 | AM57: =IF(AM55="","",AM55) ->  | AN57: 42
A58: 16 | B58: 「要点」を読み取ろう！ / １年のまとめ | C58: 3 | D58: =観点1 -> 知識・技能 | E58: 60 | F58: 100 | G58: =IF(B58="","",SUM(E58:F58)) -> 160 | H58: 128 | I58: 80 | J58: =C58 -> 3 | K58: 15 | M58: =観点1 -> 知識・技能 | R58: 15 | T58: =観点1 -> 知識・技能 | Y58: 15 | AA58: =観点1 -> 知識・技能 | AG58: 43 | AH58: =IF(L58="","",1000+K58*10) ->  | AI58: =IF(L58="","",L58) ->  | AJ58: 0 | AK58: 0 | AL58: 0 | AM58: =IF(Q58="","",Q58) ->  | AN58: 43
D59: =観点2 -> 思考判断表現 | E59: 40 | F59: 0 | G59: =IF(B58="","",SUM(E59:F59)) -> 40 | H59: 32 | I59: 20 | J59: =C58 -> 3 | M59: =観点2 -> 思考判断表現 | T59: =観点2 -> 思考判断表現 | AA59: =観点2 -> 思考判断表現 | AG59: 44 | AH59: =IF(AH58="","",AH58+1) ->  | AI59: =AI58 ->  | AJ59: 0 | AK59: 0 | AL59: 0 | AM59: =IF(AM58="","",AM58) ->  | AN59: 44
D60: =観点3 -> 主学態 | G60: =IF(B58="","",SUM(E60:F60)) -> 0 | J60: =C58 -> 3 | M60: =観点3 -> 主学態 | T60: =観点3 -> 主学態 | AA60: =観点3 -> 主学態 | AG60: 45 | AH60: =IF(AH59="","",AH59+1) ->  | AI60: =AI59 ->  | AJ60: 0 | AK60: 0 | AL60: 0 | AM60: =IF(AM58="","",AM58) ->  | AN60: 45
D61: =観点1 -> 知識・技能 | G61: =IF(B61="","",SUM(E61:F61)) ->  | J61: =C61 -> 0 | K61: 16 | M61: =観点1 -> 知識・技能 | R61: 16 | T61: =観点1 -> 知識・技能 | Y61: 16 | AA61: =観点1 -> 知識・技能 | AG61: 46 | AH61: =IF(L61="","",1000+K61*10) ->  | AI61: =IF(L61="","",L61) ->  | AJ61: 0 | AK61: 0 | AL61: 0 | AM61: =IF(Q61="","",Q61) ->  | AN61: 46
D62: =観点2 -> 思考判断表現 | G62: =IF(B61="","",SUM(E62:F62)) ->  | J62: =C61 -> 0 | M62: =観点2 -> 思考判断表現 | T62: =観点2 -> 思考判断表現 | AA62: =観点2 -> 思考判断表現 | AG62: 47 | AH62: =IF(AH61="","",AH61+1) ->  | AI62: =AI61 ->  | AJ62: 0 | AK62: 0 | AL62: 0 | AM62: =IF(AM61="","",AM61) ->  | AN62: 47
D63: =観点3 -> 主学態 | G63: =IF(B61="","",SUM(E63:F63)) ->  | J63: =C61 -> 0 | M63: =観点3 -> 主学態 | T63: =観点3 -> 主学態 | AA63: =観点3 -> 主学態 | AG63: 48 | AH63: =IF(AH62="","",AH62+1) ->  | AI63: =AI62 ->  | AJ63: 0 | AK63: 0 | AL63: 0 | AM63: =IF(AM61="","",AM61) ->  | AN63: 48
D64: =観点1 -> 知識・技能 | G64: =IF(B64="","",SUM(E64:F64)) ->  | J64: =C64 -> 0 | K64: 17 | M64: =観点1 -> 知識・技能 | R64: 17 | T64: =観点1 -> 知識・技能 | Y64: 17 | AA64: =観点1 -> 知識・技能 | AG64: 49 | AH64: =IF(L64="","",1000+K64*10) ->  | AI64: =IF(L64="","",L64) ->  | AJ64: 0 | AK64: 0 | AL64: 0 | AM64: =IF(Q64="","",Q64) ->  | AN64: 49
D65: =観点2 -> 思考判断表現 | G65: =IF(B64="","",SUM(E65:F65)) ->  | J65: =C64 -> 0 | M65: =観点2 -> 思考判断表現 | T65: =観点2 -> 思考判断表現 | AA65: =観点2 -> 思考判断表現 | AG65: 50 | AH65: =IF(AH64="","",AH64+1) ->  | AI65: =AI64 ->  | AJ65: 0 | AK65: 0 | AL65: 0 | AM65: =IF(AM64="","",AM64) ->  | AN65: 50
D66: =観点3 -> 主学態 | G66: =IF(B64="","",SUM(E66:F66)) ->  | J66: =C64 -> 0 | M66: =観点3 -> 主学態 | T66: =観点3 -> 主学態 | AA66: =観点3 -> 主学態 | AG66: 51 | AH66: =IF(AH65="","",AH65+1) ->  | AI66: =AI65 ->  | AJ66: 0 | AK66: 0 | AL66: 0 | AM66: =IF(AM64="","",AM64) ->  | AN66: 51
D67: =観点1 -> 知識・技能 | G67: =IF(B67="","",SUM(E67:F67)) ->  | J67: =C67 -> 0 | K67: 18 | M67: =観点1 -> 知識・技能 | R67: 18 | T67: =観点1 -> 知識・技能 | Y67: 18 | AA67: =観点1 -> 知識・技能 | AG67: 52 | AH67: =IF(L67="","",1000+K67*10) ->  | AI67: =IF(L67="","",L67) ->  | AJ67: 0 | AK67: 0 | AL67: 0 | AM67: =IF(Q67="","",Q67) ->  | AN67: 52
D68: =観点2 -> 思考判断表現 | G68: =IF(B67="","",SUM(E68:F68)) ->  | J68: =C67 -> 0 | M68: =観点2 -> 思考判断表現 | T68: =観点2 -> 思考判断表現 | AA68: =観点2 -> 思考判断表現 | AG68: 53 | AH68: =IF(AH67="","",AH67+1) ->  | AI68: =AI67 ->  | AJ68: 0 | AK68: 0 | AL68: 0 | AM68: =IF(AM67="","",AM67) ->  | AN68: 53
D69: =観点3 -> 主学態 | G69: =IF(B67="","",SUM(E69:F69)) ->  | J69: =C67 -> 0 | M69: =観点3 -> 主学態 | T69: =観点3 -> 主学態 | AA69: =観点3 -> 主学態 | AG69: 54 | AH69: =IF(AH68="","",AH68+1) ->  | AI69: =AI68 ->  | AJ69: 0 | AK69: 0 | AL69: 0 | AM69: =IF(AM67="","",AM67) ->  | AN69: 54
D70: =観点1 -> 知識・技能 | G70: =IF(B70="","",SUM(E70:F70)) ->  | J70: =C70 -> 0 | K70: 19 | M70: =観点1 -> 知識・技能 | R70: 19 | T70: =観点1 -> 知識・技能 | Y70: 19 | AA70: =観点1 -> 知識・技能 | AG70: 55 | AH70: =IF(L70="","",1000+K70*10) ->  | AI70: =IF(L70="","",L70) ->  | AJ70: 0 | AK70: 0 | AL70: 0 | AM70: =IF(Q70="","",Q70) ->  | AN70: 55
D71: =観点2 -> 思考判断表現 | G71: =IF(B70="","",SUM(E71:F71)) ->  | J71: =C70 -> 0 | M71: =観点2 -> 思考判断表現 | T71: =観点2 -> 思考判断表現 | AA71: =観点2 -> 思考判断表現 | AG71: 56 | AH71: =IF(AH70="","",AH70+1) ->  | AI71: =AI70 ->  | AJ71: 0 | AK71: 0 | AL71: 0 | AM71: =IF(AM70="","",AM70) ->  | AN71: 56
D72: =観点3 -> 主学態 | G72: =IF(B70="","",SUM(E72:F72)) ->  | J72: =C70 -> 0 | M72: =観点3 -> 主学態 | T72: =観点3 -> 主学態 | AA72: =観点3 -> 主学態 | AG72: 57 | AH72: =IF(AH71="","",AH71+1) ->  | AI72: =AI71 ->  | AJ72: 0 | AK72: 0 | AL72: 0 | AM72: =IF(AM70="","",AM70) ->  | AN72: 57
D73: =観点1 -> 知識・技能 | G73: =IF(B73="","",SUM(E73:F73)) ->  | J73: =C73 -> 0 | K73: 20 | M73: =観点1 -> 知識・技能 | R73: 20 | T73: =観点1 -> 知識・技能 | Y73: 20 | AA73: =観点1 -> 知識・技能 | AG73: 58 | AH73: =IF(L73="","",1000+K73*10) ->  | AI73: =IF(L73="","",L73) ->  | AJ73: 0 | AK73: 0 | AL73: 0 | AM73: =IF(Q73="","",Q73) ->  | AN73: 58
D74: =観点2 -> 思考判断表現 | G74: =IF(B73="","",SUM(E74:F74)) ->  | J74: =C73 -> 0 | M74: =観点2 -> 思考判断表現 | T74: =観点2 -> 思考判断表現 | AA74: =観点2 -> 思考判断表現 | AG74: 59 | AH74: =IF(AH73="","",AH73+1) ->  | AI74: =AI73 ->  | AJ74: 0 | AK74: 0 | AL74: 0 | AM74: =IF(AM73="","",AM73) ->  | AN74: 59
D75: =観点3 -> 主学態 | G75: =IF(B73="","",SUM(E75:F75)) ->  | J75: =C73 -> 0 | M75: =観点3 -> 主学態 | T75: =観点3 -> 主学態 | AA75: =観点3 -> 主学態 | AG75: 60 | AH75: =IF(AH74="","",AH74+1) ->  | AI75: =AI74 ->  | AJ75: 0 | AK75: 0 | AL75: 0 | AM75: =IF(AM73="","",AM73) ->  | AN75: 60
D76: =観点1 -> 知識・技能 | G76: =IF(B76="","",SUM(E76:F76)) ->  | J76: =C76 -> 0 | AG76: 61 | AH76: =IF(S16="","",2000+R16*10) -> 2010 | AI76: =IF(S16="","",S16) -> ２学期 中間テスト | AJ76: =U16 -> 100 | AK76: =V16 -> 80 | AL76: =W16 -> 50 | AM76: =IF(X16="","",X16) -> 30 | AN76: 61
D77: =観点2 -> 思考判断表現 | G77: =IF(B76="","",SUM(E77:F77)) ->  | J77: =C76 -> 0 | AG77: 62 | AH77: =IF(AH76="","",AH76+1) -> 2011 | AI77: =AI76 -> ２学期 中間テスト | AJ77: =U17 -> 100 | AK77: =V17 -> 80 | AL77: =W17 -> 50 | AM77: =IF(AM76="","",AM76) -> 30 | AN77: 62
D78: =観点3 -> 主学態 | G78: =IF(B76="","",SUM(E78:F78)) ->  | J78: =C76 -> 0 | AG78: 63 | AH78: =IF(AH77="","",AH77+1) -> 2012 | AI78: =AI77 -> ２学期 中間テスト | AJ78: 0 | AK78: 0 | AL78: 0 | AM78: =IF(AM76="","",AM76) -> 30 | AN78: 63
D79: =観点1 -> 知識・技能 | G79: =IF(B79="","",SUM(E79:F79)) ->  | J79: =C79 -> 0 | AG79: 64 | AH79: =IF(S19="","",2000+R19*10) -> 2020 | AI79: =IF(S19="","",S19) -> ２学期 期末テスト | AJ79: 100 | AK79: 80 | AL79: 50 | AM79: =IF(X19="","",X19) -> 30 | AN79: 64
D80: =観点2 -> 思考判断表現 | G80: =IF(B79="","",SUM(E80:F80)) ->  | J80: =C79 -> 0 | AG80: 65 | AH80: =IF(AH79="","",AH79+1) -> 2021 | AI80: =AI79 -> ２学期 期末テスト | AJ80: 100 | AK80: 80 | AL80: 50 | AM80: =IF(AM79="","",AM79) -> 30 | AN80: 65 | AO80: =IF(ISERROR(SMALL($AH$16:$AH$195,AG80)),"",SMALL($AH$16:$AH$195,AG80)) ->  | AP80: =VLOOKUP(AO80,$AH$16:$AL$195,2,FALSE) ->  | AQ80: =IF(AO80="","",VLOOKUP(AO80,$AH$16:$AL$195,3,FALSE)) ->  | AR80: =IF(AO80="","",VLOOKUP(AO80,$AH$16:$AL$195,4,FALSE)) ->  | AS80: =IF(AO80="","",VLOOKUP(AO80,$AH$16:$AL$195,5,FALSE)) ->  | AU80: =IF(AO80="","",VLOOKUP(AO80,$AH$16:$AM$195,6,FALSE)) -> 
D81: =観点3 -> 主学態 | G81: =IF(B79="","",SUM(E81:F81)) ->  | J81: =C79 -> 0 | AG81: 66 | AH81: =IF(AH80="","",AH80+1) -> 2022 | AI81: =AI80 -> ２学期 期末テスト | AJ81: 0 | AK81: 0 | AL81: 0 | AM81: =IF(AM79="","",AM79) -> 30 | AN81: 66 | AT81: =IF(AO81="","",VALUE(LEFT(AO81,1))) -> 
D82: =観点1 -> 知識・技能 | G82: =IF(B82="","",SUM(E82:F82)) ->  | J82: =C82 -> 0 | AG82: 67 | AH82: =IF(S22="","",2000+R22*10) -> 2030 | AI82: =IF(S22="","",S22) -> 小テスト | AJ82: 50 | AK82: 40 | AL82: 25 | AM82: =IF(X22="","",X22) -> 30 | AN82: 67
D83: =観点2 -> 思考判断表現 | G83: =IF(B82="","",SUM(E83:F83)) ->  | J83: =C82 -> 0 | AG83: 68 | AH83: =IF(AH82="","",AH82+1) -> 2031 | AI83: =AI82 -> 小テスト | AJ83: 50 | AK83: 40 | AL83: 25 | AM83: =IF(AM82="","",AM82) -> 30 | AN83: 68
D84: =観点3 -> 主学態 | G84: =IF(B82="","",SUM(E84:F84)) ->  | J84: =C82 -> 0 | AG84: 69 | AH84: =IF(AH83="","",AH83+1) -> 2032 | AI84: =AI83 -> 小テスト | AJ84: 0 | AK84: 0 | AL84: 0 | AM84: =IF(AM82="","",AM82) -> 30 | AN84: 69
D85: =観点1 -> 知識・技能 | G85: =IF(B85="","",SUM(E85:F85)) ->  | J85: =C85 -> 0 | AG85: 70 | AH85: =IF(S25="","",2000+R25*10) ->  | AI85: =IF(S25="","",S25) ->  | AJ85: 0 | AK85: 0 | AL85: 0 | AM85: =IF(X25="","",X25) ->  | AN85: 70
D86: =観点2 -> 思考判断表現 | G86: =IF(B85="","",SUM(E86:F86)) ->  | J86: =C85 -> 0 | AG86: 71 | AH86: =IF(AH85="","",AH85+1) ->  | AI86: =AI85 ->  | AJ86: 0 | AK86: 0 | AL86: 0 | AM86: =IF(AM85="","",AM85) ->  | AN86: 71
D87: =観点3 -> 主学態 | G87: =IF(B85="","",SUM(E87:F87)) ->  | J87: =C85 -> 0 | AG87: 72 | AH87: =IF(AH86="","",AH86+1) ->  | AI87: =AI86 ->  | AJ87: 0 | AK87: 0 | AL87: 0 | AM87: =IF(AM85="","",AM85) ->  | AN87: 72
D88: =観点1 -> 知識・技能 | G88: =IF(B88="","",SUM(E88:F88)) ->  | J88: =C88 -> 0 | AG88: 73 | AH88: =IF(S28="","",2000+R28*10) ->  | AI88: =IF(S28="","",S28) ->  | AJ88: 0 | AK88: 0 | AL88: 0 | AM88: =IF(X28="","",X28) ->  | AN88: 73
D89: =観点2 -> 思考判断表現 | G89: =IF(B88="","",SUM(E89:F89)) ->  | J89: =C88 -> 0 | AG89: 74 | AH89: =IF(AH88="","",AH88+1) ->  | AI89: =AI88 ->  | AJ89: 0 | AK89: 0 | AL89: 0 | AM89: =IF(AM88="","",AM88) ->  | AN89: 74
D90: =観点3 -> 主学態 | G90: =IF(B88="","",SUM(E90:F90)) ->  | J90: =C88 -> 0 | AG90: 75 | AH90: =IF(AH89="","",AH89+1) ->  | AI90: =AI89 ->  | AJ90: 0 | AK90: 0 | AL90: 0 | AM90: =IF(AM88="","",AM88) ->  | AN90: 75
D91: =観点1 -> 知識・技能 | G91: =IF(B91="","",SUM(E91:F91)) ->  | J91: =C91 -> 0 | AG91: 76 | AH91: =IF(S31="","",2000+R31*10) ->  | AI91: =IF(S31="","",S31) ->  | AJ91: 0 | AK91: 0 | AL91: 0 | AM91: =IF(X31="","",X31) ->  | AN91: 76
D92: =観点2 -> 思考判断表現 | G92: =IF(B91="","",SUM(E92:F92)) ->  | J92: =C91 -> 0 | AG92: 77 | AH92: =IF(AH91="","",AH91+1) ->  | AI92: =AI91 ->  | AJ92: 0 | AK92: 0 | AL92: 0 | AM92: =IF(AM91="","",AM91) ->  | AN92: 77
D93: =観点3 -> 主学態 | G93: =IF(B91="","",SUM(E93:F93)) ->  | J93: =C91 -> 0 | AG93: 78 | AH93: =IF(AH92="","",AH92+1) ->  | AI93: =AI92 ->  | AJ93: 0 | AK93: 0 | AL93: 0 | AM93: =IF(AM91="","",AM91) ->  | AN93: 78
D94: =観点1 -> 知識・技能 | G94: =IF(B94="","",SUM(E94:F94)) ->  | J94: =C94 -> 0 | AG94: 79 | AH94: =IF(S34="","",2000+R34*10) ->  | AI94: =IF(S34="","",S34) ->  | AJ94: 0 | AK94: 0 | AL94: 0 | AM94: =IF(X34="","",X34) ->  | AN94: 79
D95: =観点2 -> 思考判断表現 | G95: =IF(B94="","",SUM(E95:F95)) ->  | J95: =C94 -> 0 | AG95: 80 | AH95: =IF(AH94="","",AH94+1) ->  | AI95: =AI94 ->  | AJ95: 0 | AK95: 0 | AL95: 0 | AM95: =IF(AM94="","",AM94) ->  | AN95: 80
D96: =観点3 -> 主学態 | G96: =IF(B94="","",SUM(E96:F96)) ->  | J96: =C94 -> 0 | AG96: 81 | AH96: =IF(AH95="","",AH95+1) ->  | AI96: =AI95 ->  | AJ96: 0 | AK96: 0 | AL96: 0 | AM96: =IF(AM94="","",AM94) ->  | AN96: 81
D97: =観点1 -> 知識・技能 | G97: =IF(B97="","",SUM(E97:F97)) ->  | J97: =C97 -> 0 | AG97: 82 | AH97: =IF(S37="","",2000+R37*10) ->  | AI97: =IF(S37="","",S37) ->  | AJ97: 0 | AK97: 0 | AL97: 0 | AM97: =IF(X37="","",X37) ->  | AN97: 82
D98: =観点2 -> 思考判断表現 | G98: =IF(B97="","",SUM(E98:F98)) ->  | J98: =C97 -> 0 | AG98: 83 | AH98: =IF(AH97="","",AH97+1) ->  | AI98: =AI97 ->  | AJ98: 0 | AK98: 0 | AL98: 0 | AM98: =IF(AM97="","",AM97) ->  | AN98: 83
D99: =観点3 -> 主学態 | G99: =IF(B97="","",SUM(E99:F99)) ->  | J99: =C97 -> 0 | AG99: 84 | AH99: =IF(AH98="","",AH98+1) ->  | AI99: =AI98 ->  | AJ99: 0 | AK99: 0 | AL99: 0 | AM99: =IF(AM97="","",AM97) ->  | AN99: 84
D100: =観点1 -> 知識・技能 | G100: =IF(B100="","",SUM(E100:F100)) ->  | J100: =C100 -> 0 | AG100: 85 | AH100: =IF(S40="","",2000+R40*10) ->  | AI100: =IF(S40="","",S40) ->  | AJ100: 0 | AK100: 0 | AL100: 0 | AM100: =IF(X40="","",X40) ->  | AN100: 85
D101: =観点2 -> 思考判断表現 | G101: =IF(B100="","",SUM(E101:F101)) ->  | J101: =C100 -> 0 | AG101: 86 | AH101: =IF(AH100="","",AH100+1) ->  | AI101: =AI100 ->  | AJ101: 0 | AK101: 0 | AL101: 0 | AM101: =IF(AM100="","",AM100) ->  | AN101: 86
D102: =観点3 -> 主学態 | G102: =IF(B100="","",SUM(E102:F102)) ->  | J102: =C100 -> 0 | AG102: 87 | AH102: =IF(AH101="","",AH101+1) ->  | AI102: =AI101 ->  | AJ102: 0 | AK102: 0 | AL102: 0 | AM102: =IF(AM100="","",AM100) ->  | AN102: 87
AG103: 88 | AH103: =IF(S43="","",2000+R43*10) ->  | AI103: =IF(S43="","",S43) ->  | AJ103: 0 | AK103: 0 | AL103: 0 | AM103: =IF(X43="","",X43) ->  | AN103: 88
AG104: 89 | AH104: =IF(AH103="","",AH103+1) ->  | AI104: =AI103 ->  | AJ104: 0 | AK104: 0 | AL104: 0 | AM104: =IF(AM103="","",AM103) ->  | AN104: 89
AG105: 90 | AH105: =IF(AH104="","",AH104+1) ->  | AI105: =AI104 ->  | AJ105: 0 | AK105: 0 | AL105: 0 | AM105: =IF(AM103="","",AM103) ->  | AN105: 90
AG106: 91 | AH106: =IF(S46="","",2000+R46*10) ->  | AI106: =IF(S46="","",S46) ->  | AJ106: 0 | AK106: 0 | AL106: 0 | AM106: =IF(X46="","",X46) ->  | AN106: 91
AG107: 92 | AH107: =IF(AH106="","",AH106+1) ->  | AI107: =AI106 ->  | AJ107: 0 | AK107: 0 | AL107: 0 | AM107: =IF(AM106="","",AM106) ->  | AN107: 92
A108: 非表示行 | AG108: 93 | AH108: =IF(AH107="","",AH107+1) ->  | AI108: =AI107 ->  | AJ108: 0 | AK108: 0 | AL108: 0 | AM108: =IF(AM106="","",AM106) ->  | AN108: 93
A109: 非表示行 | D109: 知識・技能 | F109: 教材名 | G109: 学習の達成 | I109: 学年 | J109: 1 | AG109: 94 | AH109: =IF(S49="","",2000+R49*10) ->  | AI109: =IF(S49="","",S49) ->  | AJ109: 0 | AK109: 0 | AL109: 0 | AM109: =IF(X49="","",X49) ->  | AN109: 94
A110: 非表示行 | D110: 思考判断表現 | AG110: 95 | AH110: =IF(AH109="","",AH109+1) ->  | AI110: =AI109 ->  | AJ110: 0 | AK110: 0 | AL110: 0 | AM110: =IF(AM109="","",AM109) ->  | AN110: 95
A111: 非表示行 | D111: 主学態 | AG111: 96 | AH111: =IF(AH110="","",AH110+1) ->  | AI111: =AI110 ->  | AJ111: 0 | AK111: 0 | AL111: 0 | AM111: =IF(AM109="","",AM109) ->  | AN111: 96
A112: 非表示行 | AG112: 97 | AH112: =IF(S52="","",2000+R52*10) ->  | AI112: =IF(S52="","",S52) ->  | AJ112: 0 | AK112: 0 | AL112: 0 | AM112: =IF(X52="","",X52) ->  | AN112: 97 | AO112: =IF(ISERROR(SMALL($AH$16:$AH$195,AG112)),"",SMALL($AH$16:$AH$195,AG112)) ->  | AP112: =VLOOKUP(AO112,$AH$16:$AL$195,2,FALSE) ->  | AQ112: =IF(AO112="","",VLOOKUP(AO112,$AH$16:$AL$195,3,FALSE)) ->  | AR112: =IF(AO112="","",VLOOKUP(AO112,$AH$16:$AL$195,4,FALSE)) ->  | AS112: =IF(AO112="","",VLOOKUP(AO112,$AH$16:$AL$195,5,FALSE)) ->  | AU112: =IF(AO112="","",VLOOKUP(AO112,$AH$16:$AM$195,6,FALSE)) -> 
A113: 非表示行 | D113: ="「"&G109&"」は、当該学期の使用回の総計満点を100点満点に圧縮して計算します。それに応じて重み付けを設定してください。" -> 「学習の達成」は、当該学期の使用回の総計満点を100点満点に圧縮して計算します。それに応じて重み付けを設定してください。 | AG113: 98 | AH113: =IF(AH112="","",AH112+1) ->  | AI113: =AI112 ->  | AJ113: 0 | AK113: 0 | AL113: 0 | AM113: =IF(AM112="","",AM112) ->  | AN113: 98
A114: 非表示行 | D114: ="「"&G109&"」は、当該学期の使用回の総計満点を100点満点に圧縮して計算します。それに応じて重み付けを設定してください。" -> 「学習の達成」は、当該学期の使用回の総計満点を100点満点に圧縮して計算します。それに応じて重み付けを設定してください。 | AG114: 99 | AH114: =IF(AH113="","",AH113+1) ->  | AI114: =AI113 ->  | AJ114: 0 | AK114: 0 | AL114: 0 | AM114: =IF(AM112="","",AM112) ->  | AN114: 99
A115: 非表示行 | AG115: 100 | AH115: =IF(S55="","",2000+R55*10) ->  | AI115: =IF(S55="","",S55) ->  | AJ115: 0 | AK115: 0 | AL115: 0 | AM115: =IF(X55="","",X55) ->  | AN115: 100
A116: 非表示行 | AG116: 101 | AH116: =IF(AH115="","",AH115+1) ->  | AI116: =AI115 ->  | AJ116: 0 | AK116: 0 | AL116: 0 | AM116: =IF(AM115="","",AM115) ->  | AN116: 101
A117: 非表示行 | AG117: 102 | AH117: =IF(AH116="","",AH116+1) ->  | AI117: =AI116 ->  | AJ117: 0 | AK117: 0 | AL117: 0 | AM117: =IF(AM115="","",AM115) ->  | AN117: 102
AG118: 103 | AH118: =IF(S58="","",2000+R58*10) ->  | AI118: =IF(S58="","",S58) ->  | AJ118: 0 | AK118: 0 | AL118: 0 | AM118: =IF(X58="","",X58) ->  | AN118: 103
AG119: 104 | AH119: =IF(AH118="","",AH118+1) ->  | AI119: =AI118 ->  | AJ119: 0 | AK119: 0 | AL119: 0 | AM119: =IF(AM118="","",AM118) ->  | AN119: 104
AG120: 105 | AH120: =IF(AH119="","",AH119+1) ->  | AI120: =AI119 ->  | AJ120: 0 | AK120: 0 | AL120: 0 | AM120: =IF(AM118="","",AM118) ->  | AN120: 105
AG121: 106 | AH121: =IF(S61="","",2000+R61*10) ->  | AI121: =IF(S61="","",S61) ->  | AJ121: 0 | AK121: 0 | AL121: 0 | AM121: =IF(X61="","",X61) ->  | AN121: 106
AG122: 107 | AH122: =IF(AH121="","",AH121+1) ->  | AI122: =AI121 ->  | AJ122: 0 | AK122: 0 | AL122: 0 | AM122: =IF(AM121="","",AM121) ->  | AN122: 107
AG123: 108 | AH123: =IF(AH122="","",AH122+1) ->  | AI123: =AI122 ->  | AJ123: 0 | AK123: 0 | AL123: 0 | AM123: =IF(AM121="","",AM121) ->  | AN123: 108
AG124: 109 | AH124: =IF(S64="","",2000+R64*10) ->  | AI124: =IF(S64="","",S64) ->  | AJ124: 0 | AK124: 0 | AL124: 0 | AM124: =IF(X64="","",X64) ->  | AN124: 109
AG125: 110 | AH125: =IF(AH124="","",AH124+1) ->  | AI125: =AI124 ->  | AJ125: 0 | AK125: 0 | AL125: 0 | AM125: =IF(AM124="","",AM124) ->  | AN125: 110
AG126: 111 | AH126: =IF(AH125="","",AH125+1) ->  | AI126: =AI125 ->  | AJ126: 0 | AK126: 0 | AL126: 0 | AM126: =IF(AM124="","",AM124) ->  | AN126: 111
AG127: 112 | AH127: =IF(S67="","",2000+R67*10) ->  | AI127: =IF(S67="","",S67) ->  | AJ127: 0 | AK127: 0 | AL127: 0 | AM127: =IF(X67="","",X67) ->  | AN127: 112
AG128: 113 | AH128: =IF(AH127="","",AH127+1) ->  | AI128: =AI127 ->  | AJ128: 0 | AK128: 0 | AL128: 0 | AM128: =IF(AM127="","",AM127) ->  | AN128: 113
AG129: 114 | AH129: =IF(AH128="","",AH128+1) ->  | AI129: =AI128 ->  | AJ129: 0 | AK129: 0 | AL129: 0 | AM129: =IF(AM127="","",AM127) ->  | AN129: 114
AG130: 115 | AH130: =IF(S70="","",2000+R70*10) ->  | AI130: =IF(S70="","",S70) ->  | AJ130: 0 | AK130: 0 | AL130: 0 | AM130: =IF(X70="","",X70) ->  | AN130: 115
AG131: 116 | AH131: =IF(AH130="","",AH130+1) ->  | AI131: =AI130 ->  | AJ131: 0 | AK131: 0 | AL131: 0 | AM131: =IF(AM130="","",AM130) ->  | AN131: 116
AG132: 117 | AH132: =IF(AH131="","",AH131+1) ->  | AI132: =AI131 ->  | AJ132: 0 | AK132: 0 | AL132: 0 | AM132: =IF(AM130="","",AM130) ->  | AN132: 117
AG133: 118 | AH133: =IF(S73="","",2000+R73*10) ->  | AI133: =IF(S73="","",S73) ->  | AJ133: 0 | AK133: 0 | AL133: 0 | AM133: =IF(X73="","",X73) ->  | AN133: 118
AG134: 119 | AH134: =IF(AH133="","",AH133+1) ->  | AI134: =AI133 ->  | AJ134: 0 | AK134: 0 | AL134: 0 | AM134: =IF(AM133="","",AM133) ->  | AN134: 119
AG135: 120 | AH135: =IF(AH134="","",AH134+1) ->  | AI135: =AI134 ->  | AJ135: 0 | AK135: 0 | AL135: 0 | AM135: =IF(AM133="","",AM133) ->  | AN135: 120
AG136: 121 | AH136: =IF(Z16="","",3000+Y16*10) -> 3010 | AI136: =IF(Z16="","",Z16) -> ３学期 中間テスト | AJ136: =AB16 -> 100 | AK136: =AC16 -> 80 | AL136: =AD16 -> 50 | AM136: =IF(AE16="","",AE16) -> 30 | AN136: 121
AG137: 122 | AH137: =IF(AH136="","",AH136+1) -> 3011 | AI137: =AI136 -> ３学期 中間テスト | AJ137: =AB17 -> 100 | AK137: =AC17 -> 80 | AL137: =AD17 -> 50 | AM137: =IF(AM136="","",AM136) -> 30 | AN137: 122
AG138: 123 | AH138: =IF(AH137="","",AH137+1) -> 3012 | AI138: ３学期 中間テスト | AJ138: 0 | AK138: 0 | AL138: 0 | AM138: =IF(AM136="","",AM136) -> 30 | AN138: 123
AG139: 124 | AH139: =IF(Z19="","",3000+Y19*10) -> 3020 | AI139: =IF(Z19="","",Z19) -> ３学期 期末テスト | AJ139: 100 | AK139: 80 | AL139: 50 | AM139: =IF(AE19="","",AE19) -> 30 | AN139: 124
AG140: 125 | AH140: =IF(AH139="","",AH139+1) -> 3021 | AI140: ３学期 期末テスト | AJ140: 100 | AK140: 80 | AL140: 50 | AM140: =IF(AM139="","",AM139) -> 30 | AN140: 125
AG141: 126 | AH141: =IF(AH140="","",AH140+1) -> 3022 | AI141: ３学期 期末テスト | AJ141: 0 | AK141: 0 | AL141: 0 | AM141: =IF(AM139="","",AM139) -> 30 | AN141: 126
AG142: 127 | AH142: =IF(Z22="","",3000+Y22*10) -> 3030 | AI142: =IF(Z22="","",Z22) -> 小テスト | AJ142: 50 | AK142: 40 | AL142: 25 | AM142: =IF(AE22="","",AE22) -> 30 | AN142: 127
AG143: 128 | AH143: =IF(AH142="","",AH142+1) -> 3031 | AI143: 小テスト | AJ143: 50 | AK143: 40 | AL143: 25 | AM143: =IF(AM142="","",AM142) -> 30 | AN143: 128
AG144: 129 | AH144: =IF(AH143="","",AH143+1) -> 3032 | AI144: 小テスト | AJ144: 0 | AK144: 0 | AL144: 0 | AM144: =IF(AM142="","",AM142) -> 30 | AN144: 129
AG145: 130 | AH145: =IF(Z25="","",3000+Y25*10) ->  | AI145: =IF(Z25="","",Z25) ->  | AJ145: 0 | AK145: 0 | AL145: 0 | AM145: =IF(AE25="","",AE25) ->  | AN145: 130 | AO145: =IF(ISERROR(SMALL($AH$16:$AH$195,AG145)),"",SMALL($AH$16:$AH$195,AG145)) ->  | AP145: =VLOOKUP(AO145,$AH$16:$AL$195,2,FALSE) ->  | AQ145: =IF(AO145="","",VLOOKUP(AO145,$AH$16:$AL$195,3,FALSE)) ->  | AR145: =IF(AO145="","",VLOOKUP(AO145,$AH$16:$AL$195,4,FALSE)) ->  | AS145: =IF(AO145="","",VLOOKUP(AO145,$AH$16:$AL$195,5,FALSE)) ->  | AT145: =IF(AO145="","",VALUE(LEFT(AO145,1))) -> 
AG146: 131 | AH146: =IF(AH145="","",AH145+1) ->  | AJ146: 0 | AK146: 0 | AL146: 0 | AM146: =IF(AM145="","",AM145) ->  | AN146: 131
AG147: 132 | AH147: =IF(AH146="","",AH146+1) ->  | AJ147: 0 | AK147: 0 | AL147: 0 | AM147: =IF(AM145="","",AM145) ->  | AN147: 132
AG148: 133 | AH148: =IF(Z28="","",3000+Y28*10) ->  | AI148: =IF(Z28="","",Z28) ->  | AJ148: 0 | AK148: 0 | AL148: 0 | AM148: =IF(AE28="","",AE28) ->  | AN148: 133
AG149: 134 | AH149: =IF(AH148="","",AH148+1) ->  | AJ149: 0 | AK149: 0 | AL149: 0 | AM149: =IF(AM148="","",AM148) ->  | AN149: 134
AG150: 135 | AH150: =IF(AH149="","",AH149+1) ->  | AJ150: 0 | AK150: 0 | AL150: 0 | AM150: =IF(AM148="","",AM148) ->  | AN150: 135
AG151: 136 | AH151: =IF(Z31="","",3000+Y31*10) ->  | AI151: =IF(Z31="","",Z31) ->  | AJ151: 0 | AK151: 0 | AL151: 0 | AM151: =IF(AE31="","",AE31) ->  | AN151: 136
AG152: 137 | AH152: =IF(AH151="","",AH151+1) ->  | AJ152: 0 | AK152: 0 | AL152: 0 | AM152: =IF(AM151="","",AM151) ->  | AN152: 137
AG153: 138 | AH153: =IF(AH152="","",AH152+1) ->  | AJ153: 0 | AK153: 0 | AL153: 0 | AM153: =IF(AM151="","",AM151) ->  | AN153: 138
AG154: 139 | AH154: =IF(Z34="","",3000+Y34*10) ->  | AI154: =IF(Z34="","",Z34) ->  | AJ154: 0 | AK154: 0 | AL154: 0 | AM154: =IF(AE34="","",AE34) ->  | AN154: 139
AG155: 140 | AH155: =IF(AH154="","",AH154+1) ->  | AJ155: 0 | AK155: 0 | AL155: 0 | AM155: =IF(AM154="","",AM154) ->  | AN155: 140
AG156: 141 | AH156: =IF(AH155="","",AH155+1) ->  | AI156: =AI155 ->  | AJ156: 0 | AK156: 0 | AL156: 0 | AM156: =IF(AM154="","",AM154) ->  | AN156: 141 | AO156: =IF(ISERROR(SMALL($AH$16:$AH$195,AG156)),"",SMALL($AH$16:$AH$195,AG156)) ->  | AP156: =VLOOKUP(AO156,$AH$16:$AL$195,2,FALSE) ->  | AQ156: =IF(AO156="","",VLOOKUP(AO156,$AH$16:$AL$195,3,FALSE)) ->  | AR156: =IF(AO156="","",VLOOKUP(AO156,$AH$16:$AL$195,4,FALSE)) ->  | AS156: =IF(AO156="","",VLOOKUP(AO156,$AH$16:$AL$195,5,FALSE)) ->  | AU156: =IF(AO156="","",VLOOKUP(AO156,$AH$16:$AM$195,6,FALSE)) -> 
AG157: 142 | AH157: =IF(Z37="","",3000+Y37*10) ->  | AI157: =IF(Z37="","",Z37) ->  | AJ157: 0 | AK157: 0 | AL157: 0 | AM157: =IF(AE37="","",AE37) ->  | AN157: 142
AG158: 143 | AH158: =IF(AH157="","",AH157+1) ->  | AJ158: 0 | AK158: 0 | AL158: 0 | AM158: =IF(AM157="","",AM157) ->  | AN158: 143
AG159: 144 | AH159: =IF(AH158="","",AH158+1) ->  | AJ159: 0 | AK159: 0 | AL159: 0 | AM159: =IF(AM157="","",AM157) ->  | AN159: 144
AG160: 145 | AH160: =IF(Z40="","",3000+Y40*10) ->  | AI160: =IF(Z40="","",Z40) ->  | AJ160: 0 | AK160: 0 | AL160: 0 | AM160: =IF(AE40="","",AE40) ->  | AN160: 145
AG161: 146 | AH161: =IF(AH160="","",AH160+1) ->  | AJ161: 0 | AK161: 0 | AL161: 0 | AM161: =IF(AM160="","",AM160) ->  | AN161: 146
AG162: 147 | AH162: =IF(AH161="","",AH161+1) ->  | AJ162: 0 | AK162: 0 | AL162: 0 | AM162: =IF(AM160="","",AM160) ->  | AN162: 147
AG163: 148 | AH163: =IF(Z43="","",3000+Y43*10) ->  | AI163: =IF(Z43="","",Z43) ->  | AJ163: 0 | AK163: 0 | AL163: 0 | AM163: =IF(AE43="","",AE43) ->  | AN163: 148
AG164: 149 | AH164: =IF(AH163="","",AH163+1) ->  | AJ164: 0 | AK164: 0 | AL164: 0 | AM164: =IF(AM163="","",AM163) ->  | AN164: 149
AG165: 150 | AH165: =IF(AH164="","",AH164+1) ->  | AJ165: 0 | AK165: 0 | AL165: 0 | AM165: =IF(AM163="","",AM163) ->  | AN165: 150
AG166: 151 | AH166: =IF(Z46="","",3000+Y46*10) ->  | AI166: =IF(Z46="","",Z46) ->  | AJ166: 0 | AK166: 0 | AL166: 0 | AM166: =IF(AE46="","",AE46) ->  | AN166: 151
AG167: 152 | AH167: =IF(AH166="","",AH166+1) ->  | AJ167: 0 | AK167: 0 | AL167: 0 | AM167: =IF(AM166="","",AM166) ->  | AN167: 152
AG168: 153 | AH168: =IF(AH167="","",AH167+1) ->  | AJ168: 0 | AK168: 0 | AL168: 0 | AM168: =IF(AM166="","",AM166) ->  | AN168: 153
AG169: 154 | AH169: =IF(Z49="","",3000+Y49*10) ->  | AI169: =IF(Z49="","",Z49) ->  | AJ169: 0 | AK169: 0 | AL169: 0 | AM169: =IF(AE49="","",AE49) ->  | AN169: 154
AG170: 155 | AH170: =IF(AH169="","",AH169+1) ->  | AJ170: 0 | AK170: 0 | AL170: 0 | AM170: =IF(AM169="","",AM169) ->  | AN170: 155
AG171: 156 | AH171: =IF(AH170="","",AH170+1) ->  | AJ171: 0 | AK171: 0 | AL171: 0 | AM171: =IF(AM169="","",AM169) ->  | AN171: 156
AG172: 157 | AH172: =IF(Z52="","",3000+Y52*10) ->  | AI172: =IF(Z52="","",Z52) ->  | AJ172: 0 | AK172: 0 | AL172: 0 | AM172: =IF(AE52="","",AE52) ->  | AN172: 157
AG173: 158 | AH173: =IF(AH172="","",AH172+1) ->  | AJ173: 0 | AK173: 0 | AL173: 0 | AM173: =IF(AM172="","",AM172) ->  | AN173: 158
AG174: 159 | AH174: =IF(AH173="","",AH173+1) ->  | AJ174: 0 | AK174: 0 | AL174: 0 | AM174: =IF(AM172="","",AM172) ->  | AN174: 159
AG175: 160 | AH175: =IF(Z55="","",3000+Y55*10) ->  | AI175: =IF(Z55="","",Z55) ->  | AJ175: 0 | AK175: 0 | AL175: 0 | AM175: =IF(AE55="","",AE55) ->  | AN175: 160
AG176: 161 | AH176: =IF(AH175="","",AH175+1) ->  | AJ176: 0 | AK176: 0 | AL176: 0 | AM176: =IF(AM175="","",AM175) ->  | AN176: 161
AG177: 162 | AH177: =IF(AH176="","",AH176+1) ->  | AJ177: 0 | AK177: 0 | AL177: 0 | AM177: =IF(AM175="","",AM175) ->  | AN177: 162
AG178: 163 | AH178: =IF(Z58="","",3000+Y58*10) ->  | AI178: =IF(Z58="","",Z58) ->  | AJ178: 0 | AK178: 0 | AL178: 0 | AM178: =IF(AE58="","",AE58) ->  | AN178: 163
AG179: 164 | AH179: =IF(AH178="","",AH178+1) ->  | AJ179: 0 | AK179: 0 | AL179: 0 | AM179: =IF(AM178="","",AM178) ->  | AN179: 164
AG180: 165 | AH180: =IF(AH179="","",AH179+1) ->  | AJ180: 0 | AK180: 0 | AL180: 0 | AM180: =IF(AM178="","",AM178) ->  | AN180: 165
AG181: 166 | AH181: =IF(Z61="","",3000+Y61*10) ->  | AI181: =IF(Z61="","",Z61) ->  | AJ181: 0 | AK181: 0 | AL181: 0 | AM181: =IF(AE61="","",AE61) ->  | AN181: 166
AG182: 167 | AH182: =IF(AH181="","",AH181+1) ->  | AJ182: 0 | AK182: 0 | AL182: 0 | AM182: =IF(AM181="","",AM181) ->  | AN182: 167
AG183: 168 | AH183: =IF(AH182="","",AH182+1) ->  | AJ183: 0 | AK183: 0 | AL183: 0 | AM183: =IF(AM181="","",AM181) ->  | AN183: 168
AG184: 169 | AH184: =IF(Z64="","",3000+Y64*10) ->  | AI184: =IF(Z64="","",Z64) ->  | AJ184: 0 | AK184: 0 | AL184: 0 | AM184: =IF(AE64="","",AE64) ->  | AN184: 169
AG185: 170 | AH185: =IF(AH184="","",AH184+1) ->  | AI185: =AI184 ->  | AJ185: 0 | AK185: 0 | AL185: 0 | AM185: =IF(AM184="","",AM184) ->  | AN185: 170
AG186: 171 | AH186: =IF(AH185="","",AH185+1) ->  | AJ186: 0 | AK186: 0 | AL186: 0 | AM186: =IF(AM184="","",AM184) ->  | AN186: 171
AG187: 172 | AH187: =IF(Z67="","",3000+Y67*10) ->  | AI187: =IF(Z67="","",Z67) ->  | AJ187: 0 | AK187: 0 | AL187: 0 | AM187: =IF(AE67="","",AE67) ->  | AN187: 172
AG188: 173 | AH188: =IF(AH187="","",AH187+1) ->  | AJ188: 0 | AK188: 0 | AL188: 0 | AM188: =IF(AM187="","",AM187) ->  | AN188: 173
AG189: 174 | AH189: =IF(AH188="","",AH188+1) ->  | AJ189: 0 | AK189: 0 | AL189: 0 | AM189: =IF(AM187="","",AM187) ->  | AN189: 174
AG190: 175 | AH190: =IF(Z70="","",3000+Y70*10) ->  | AI190: =IF(Z70="","",Z70) ->  | AJ190: 0 | AK190: 0 | AL190: 0 | AM190: =IF(AE70="","",AE70) ->  | AN190: 175
AG191: 176 | AH191: =IF(AH190="","",AH190+1) ->  | AJ191: 0 | AK191: 0 | AL191: 0 | AM191: =IF(AM190="","",AM190) ->  | AN191: 176
AG192: 177 | AH192: =IF(AH191="","",AH191+1) ->  | AJ192: 0 | AK192: 0 | AL192: 0 | AM192: =IF(AM190="","",AM190) ->  | AN192: 177
AG193: 178 | AH193: =IF(Z73="","",3000+Y73*10) ->  | AI193: =IF(Z73="","",Z73) ->  | AJ193: 0 | AK193: 0 | AL193: 0 | AM193: =IF(AE73="","",AE73) ->  | AN193: 178
AG194: 179 | AH194: =IF(AH193="","",AH193+1) ->  | AJ194: 0 | AK194: 0 | AL194: 0 | AM194: =IF(AM193="","",AM193) ->  | AN194: 179
AG195: 180 | AH195: =IF(AH194="","",AH194+1) ->  | AJ195: 0 | AK195: 0 | AL195: 0 | AM195: =IF(AM193="","",AM193) ->  | AN195: 180

Sheet 基準設定2
A2: 先生がたへ：必要に応じて黄色のセルを変更または入力してください。
A4: ●「学習の達成」 学期・年間の観点別評価基準（達成率%で設定) | G4: ●「ユーザー独自項目」 学期・年間の観点別評価基準（達成率%で設定) | M4: ●全体 観点の重みづけ
A5: 学期 | B5: 観点 | C5: 達成率 (%) | D5: ＡとＢ の境 | E5: ＢとＣ の境 | G5: 学期 | H5: 観点 | I5: 達成率 (%) | J5: ＡとＢ の境 | K5: ＢとＣ の境 | M5: 学期 | N5: 観点 | O5: 観点の 重みづけ
A6: 1 | B6: =観点1 -> 知識・技能 | C6: 100 | D6: 80 | E6: 50 | G6: 1 | H6: =観点1 -> 知識・技能 | I6: 100 | J6: 80 | K6: 50 | M6: 1 | N6: =観点1 -> 知識・技能 | O6: 1 | P6: =IF( SUMIFS(基準設定1!$G$13:$G$57,基準設定1!$D$13:$D$57,基準設定2!N6,基準設定1!$J$13:$J$57,基準設定2!M6) +SUMIF(基準設定1!$M$13:$M$57,基準設定2!N6,基準設定1!$N$13:$N$57)=0,0, O6) -> 1
B7: =観点2 -> 思考判断表現 | C7: 100 | D7: 80 | E7: 50 | H7: =観点2 -> 思考判断表現 | I7: 100 | J7: 80 | K7: 50 | N7: =観点2 -> 思考判断表現 | O7: 1 | P7: =IF( SUMIFS(基準設定1!$G$13:$G$57,基準設定1!$D$13:$D$57,基準設定2!N7,基準設定1!$J$13:$J$57,基準設定2!M6) +SUMIF(基準設定1!$M$13:$M$57,基準設定2!N7,基準設定1!$N$13:$N$57)=0,0, O7) -> 1
B8: =観点3 -> 主学態 | C8: 100 | D8: 80 | E8: 50 | H8: =観点3 -> 主学態 | I8: 100 | J8: 80 | K8: 50 | N8: =観点3 -> 主学態 | O8: 1 | P8: =IF( SUMIFS(基準設定1!$G$13:$G$57,基準設定1!$D$13:$D$57,基準設定2!N8,基準設定1!$J$13:$J$57,基準設定2!M6) +SUMIF(基準設定1!$M$13:$M$57,基準設定2!N8,基準設定1!$N$13:$N$57)=0,0, O8) -> 0
A9: 2 | B9: =観点1 -> 知識・技能 | C9: 100 | D9: 80 | E9: 50 | G9: 2 | H9: =観点1 -> 知識・技能 | I9: 100 | J9: 80 | K9: 50 | M9: 2 | N9: =観点1 -> 知識・技能 | O9: 1 | P9: =IF( SUMIFS(基準設定1!$G$13:$G$57,基準設定1!$D$13:$D$57,基準設定2!N9,基準設定1!$J$13:$J$57,基準設定2!M9) +SUMIF(基準設定1!$T$13:$T$57,基準設定2!N9,基準設定1!$U$13:$U$57)=0,0, O9) -> 1
B10: =観点2 -> 思考判断表現 | C10: 100 | D10: 80 | E10: 50 | H10: =観点2 -> 思考判断表現 | I10: 100 | J10: 80 | K10: 50 | N10: =観点2 -> 思考判断表現 | O10: 1 | P10: =IF( SUMIFS(基準設定1!$G$13:$G$57,基準設定1!$D$13:$D$57,基準設定2!N10,基準設定1!$J$13:$J$57,基準設定2!M9) +SUMIF(基準設定1!$T$13:$T$57,基準設定2!N10,基準設定1!$U$13:$U$57)=0,0, O10) -> 1
B11: =観点3 -> 主学態 | C11: 100 | D11: 80 | E11: 50 | H11: =観点3 -> 主学態 | I11: 100 | J11: 80 | K11: 50 | N11: =観点3 -> 主学態 | O11: 1 | P11: =IF( SUMIFS(基準設定1!$G$13:$G$57,基準設定1!$D$13:$D$57,基準設定2!N11,基準設定1!$J$13:$J$57,基準設定2!M9) +SUMIF(基準設定1!$T$13:$T$57,基準設定2!N11,基準設定1!$U$13:$U$57)=0,0, O11) -> 0
A12: 3 | B12: =観点1 -> 知識・技能 | C12: 100 | D12: 80 | E12: 50 | G12: 3 | H12: =観点1 -> 知識・技能 | I12: 100 | J12: 80 | K12: 50 | M12: 3 | N12: =観点1 -> 知識・技能 | O12: 1 | P12: =IF( SUMIFS(基準設定1!$G$13:$G$57,基準設定1!$D$13:$D$57,基準設定2!N12,基準設定1!$J$13:$J$57,基準設定2!M12) +SUMIF(基準設定1!$AA$13:$AA$57,基準設定2!N12,基準設定1!$AB$13:$AB$57)=0,0, O12) -> 1
B13: =観点2 -> 思考判断表現 | C13: 100 | D13: 80 | E13: 50 | H13: =観点2 -> 思考判断表現 | I13: 100 | J13: 80 | K13: 50 | N13: =観点2 -> 思考判断表現 | O13: 1 | P13: =IF( SUMIFS(基準設定1!$G$13:$G$57,基準設定1!$D$13:$D$57,基準設定2!N13,基準設定1!$J$13:$J$57,基準設定2!M12) +SUMIF(基準設定1!$AA$13:$AA$57,基準設定2!N13,基準設定1!$AB$13:$AB$57)=0,0, O13) -> 1
B14: =観点3 -> 主学態 | C14: 100 | D14: 80 | E14: 50 | H14: =観点3 -> 主学態 | I14: 100 | J14: 80 | K14: 50 | N14: =観点3 -> 主学態 | O14: 1 | P14: =IF( SUMIFS(基準設定1!$G$13:$G$57,基準設定1!$D$13:$D$57,基準設定2!N14,基準設定1!$J$13:$J$57,基準設定2!M12) +SUMIF(基準設定1!$AA$13:$AA$57,基準設定2!N14,基準設定1!$AB$13:$AB$57)=0,0, O14) -> 0
A15: 年間 | B15: =観点1 -> 知識・技能 | C15: 100 | D15: 80 | E15: 50 | G15: 年間 | H15: =観点1 -> 知識・技能 | I15: 100 | J15: 80 | K15: 50 | M15: 年間 | N15: =観点1 -> 知識・技能 | O15: 1 | P15: =IF(SUMIF(基準設定1!$D$13:$D$57,基準設定2!N15,基準設定1!$G$13:$G$57)+SUMIF(基準設定1!$M$13:$M$57,基準設定2!N15,基準設定1!$N$13:$N$57)+SUMIF(基準設定1!$T$13:$T$57,基準設定2!N15,基準設定1!$U$13:$U$57)+SUMIF(基準設定1!$AA$13:$AA$57,基準設定2!N15,基準設定1!$AB$13:$AB$57)=0,0,O15) -> 1
B16: =観点2 -> 思考判断表現 | C16: 100 | D16: 80 | E16: 50 | H16: =観点2 -> 思考判断表現 | I16: 100 | J16: 80 | K16: 50 | N16: =観点2 -> 思考判断表現 | O16: 1 | P16: =IF(SUMIF(基準設定1!$D$13:$D$57,基準設定2!N16,基準設定1!$G$13:$G$57)+SUMIF(基準設定1!$M$13:$M$57,基準設定2!N16,基準設定1!$N$13:$N$57)+SUMIF(基準設定1!$T$13:$T$57,基準設定2!N16,基準設定1!$U$13:$U$57)+SUMIF(基準設定1!$AA$13:$AA$57,基準設定2!N16,基準設定1!$AB$13:$AB$57)=0,0,O16) -> 1
B17: =観点3 -> 主学態 | C17: 100 | D17: 80 | E17: 50 | H17: =観点3 -> 主学態 | I17: 100 | J17: 80 | K17: 50 | N17: =観点3 -> 主学態 | O17: 1 | P17: =IF(SUMIF(基準設定1!$D$13:$D$57,基準設定2!N17,基準設定1!$G$13:$G$57)+SUMIF(基準設定1!$M$13:$M$57,基準設定2!N17,基準設定1!$N$13:$N$57)+SUMIF(基準設定1!$T$13:$T$57,基準設定2!N17,基準設定1!$U$13:$U$57)+SUMIF(基準設定1!$AA$13:$AA$57,基準設定2!N17,基準設定1!$AB$13:$AB$57)=0,0,O17) -> 0
A20: ●5段階評定の基準
A21: 先生がたへ：下記①を採用するかどうか，○×を選択してください。 (②には，①と反対の○×が自動で表示されます) その後，採用した方の評価方法の基準を適宜設定してください。 | J21: ※観点の重みづけについて ①達成率による評価の場合 (【観点１ 達成率×重みづけ】＋【観点２ 達成率×重みづけ】…) ÷(【観点１ 重みづけ】＋【観点２ 重みづけ】…) の計算式で達成率を算出します。 ②観点別評価のABC判定を元にした評価の場合 A=3点，B=2点，C=1点として， (【観点１ A～C×重みづけ】＋【観点２ A～C×重みづけ】…) ÷(【観点１ 重みづけ】＋【観点２ 重みづけ】…) ×３ の計算式で観点別評価を点数化します。
A23: ○ | B23: ①達成率(得点率)による評価
B24: …「学習の達成」「ユーザー独自項目」全項目の得点から達成率を割り出して評価します。
B25: 学期 | C25: 達成率 (%) | D25: 5と4 の境 | E25: 4と3 の境 | F25: 3と2 の境 | G25: 2と1 の境
B26: 1学期 | C26: 100 | D26: 80 | E26: 60 | F26: 40 | G26: 20
B27: 2学期 | C27: 100 | D27: 80 | E27: 60 | F27: 40 | G27: 20
B28: 3学期 | C28: 100 | D28: 80 | E28: 60 | F28: 40 | G28: 20
B29: 年間 | C29: 100 | D29: 80 | E29: 60 | F29: 40 | G29: 20
A31: =IF(A23="○","×","○") -> × | B31: ②観点別評価のABC判定を元にした評価
B32: …A=3点，B=2点，C=1点として観点別評価を点数化し，評価します。
B33: 観点別評価 | C33: A | D33: B | E33: C | F33: なし
B34: 点数 | C34: 3 | D34: 2 | E34: 1 | F34: 0
B36: ABCの組み合わせ | D36: 点数 | E36: 1学期 評定 | F36: 2学期 評定 | G36: 3学期 評定 | H36: 年間 評定
B37: AAA | D37: 9 | E37: 5 | F37: 5 | G37: 5 | H37: 5
B38: AAB | D38: 8 | E38: 4 | F38: 4 | G38: 4 | H38: 4
B39: ABB／AAC | D39: 7 | E39: 4 | F39: 4 | G39: 4 | H39: 4
B40: ABC／BBB | D40: 6 | E40: 3 | F40: 3 | G40: 3 | H40: 3
B41: ACC／BBC | D41: 5 | E41: 3 | F41: 3 | G41: 3 | H41: 3
B42: BCC | D42: 4 | E42: 2 | F42: 2 | G42: 2 | H42: 2
B43: CCC | D43: 3 | E43: 1 | F43: 1 | G43: 1 | H43: 1
D44: 2 | E44: 1 | F44: 1 | G44: 1 | H44: 1
D45: 1 | E45: 1 | F45: 1 | G45: 1 | H45: 1
D46: 0 | E46: 1 | F46: 1 | G46: 1 | H46: 1

Sheet 学習の達成_得点
A1: 学習の達成_得点 | D1: =D2 -> 1 | E1: =D2 -> 1 | F1: =D2 -> 1 | G1: =D2 -> 1 | H1: =H2 -> 1 | I1: =H2 -> 1 | J1: =H2 -> 1 | K1: =H2 -> 1 | L1: =L2 -> 1 | M1: =L2 -> 1 | N1: =L2 -> 1 | O1: =L2 -> 1 | P1: =P2 -> 1 | Q1: =P2 -> 1 | R1: =P2 -> 1 | S1: =P2 -> 1 | T1: =T2 -> 1 | U1: =T2 -> 1 | V1: =T2 -> 1 | W1: =T2 -> 1 | X1: =X2 -> 2 | Y1: =X2 -> 2 | Z1: =X2 -> 2 | AA1: =X2 -> 2 | AB1: =AB2 -> 2 | AC1: =AB2 -> 2 | AD1: =AB2 -> 2 | AE1: =AB2 -> 2 | AF1: =AF2 -> 2 | AG1: =AF2 -> 2 | AH1: =AF2 -> 2 | AI1: =AF2 -> 2 | AJ1: =AJ2 -> 2 | AK1: =AJ2 -> 2 | AL1: =AJ2 -> 2 | AM1: =AJ2 -> 2 | AN1: =AN2 -> 2 | AO1: =AN2 -> 2 | AP1: =AN2 -> 2 | AQ1: =AN2 -> 2 | AR1: =AR2 -> 3 | AS1: =AR2 -> 3 | AT1: =AR2 -> 3 | AU1: =AR2 -> 3 | AV1: =AV2 -> 3 | AW1: =AV2 -> 3 | AX1: =AV2 -> 3 | AY1: =AV2 -> 3 | AZ1: =AZ2 -> 3 | BA1: =AZ2 -> 3 | BB1: =AZ2 -> 3 | BC1: =AZ2 -> 3 | BD1: =BD2 -> 3 | BE1: =BD2 -> 3 | BF1: =BD2 -> 3 | BG1: =BD2 -> 3 | BH1: =BH2 -> 3 | BI1: =BH2 -> 3 | BJ1: =BH2 -> 3 | BK1: =BH2 -> 3 | BL1: =BL2 -> 3 | BM1: =BL2 -> 3 | BN1: =BL2 -> 3 | BO1: =BL2 -> 3 | BP1: =BP2 ->  | BQ1: =BP2 ->  | BR1: =BP2 ->  | BS1: =BP2 ->  | BT1: =BT2 ->  | BU1: =BT2 ->  | BV1: =BT2 ->  | BW1: =BT2 ->  | BX1: =BX2 ->  | BY1: =BX2 ->  | BZ1: =BX2 ->  | CA1: =BX2 ->  | CB1: =CB2 ->  | CC1: =CB2 ->  | CD1: =CB2 ->  | CE1: =CB2 ->  | CF1: =CF2 ->  | CG1: =CF2 ->  | CH1: =CF2 ->  | CI1: =CF2 ->  | CJ1: =CJ2 ->  | CK1: =CJ2 ->  | CL1: =CJ2 ->  | CM1: =CJ2 ->  | CN1: =CN2 ->  | CO1: =CN2 ->  | CP1: =CN2 ->  | CQ1: =CN2 ->  | CR1: =CR2 ->  | CS1: =CR2 ->  | CT1: =CR2 ->  | CU1: =CR2 ->  | CV1: =CV2 ->  | CW1: =CV2 ->  | CX1: =CV2 ->  | CY1: =CV2 ->  | CZ1: =CZ2 ->  | DA1: =CZ2 ->  | DB1: =CZ2 ->  | DC1: =CZ2 ->  | DD1: =DD2 ->  | DE1: =DD2 ->  | DF1: =DD2 ->  | DG1: =DD2 ->  | DH1: =DH2 ->  | DI1: =DH2 ->  | DJ1: =DH2 ->  | DK1: =DH2 ->  | DL1: =DL2 ->  | DM1: =DL2 ->  | DN1: =DL2 ->  | DO1: =DL2 ->  | DP1: =DP2 ->  | DQ1: =DP2 ->  | DR1: =DP2 ->  | DS1: =DP2 ->  | DT1: =DT2 -> 1 | DU1: =DT2 -> 1 | DV1: =DT2 -> 1 | DW1: =DW2 -> 1 | DX1: =DW2 -> 1 | DY1: =DW2 -> 1 | DZ1: =DZ2 -> 1 | EA1: =DZ2 -> 1 | EB1: =DZ2 -> 1 | EC1: =EC2 -> 1 | ED1: =EC2 -> 1 | EE1: =EC2 -> 1 | EF1: =EF2 -> 1 | EG1: =EF2 -> 1 | EH1: =EF2 -> 1 | EI1: =EI2 -> 2 | EJ1: =EI2 -> 2 | EK1: =EI2 -> 2 | EL1: =EL2 -> 2 | EM1: =EL2 -> 2 | EN1: =EL2 -> 2 | EO1: =EO2 -> 2 | EP1: =EO2 -> 2 | EQ1: =EO2 -> 2 | ER1: =ER2 -> 2 | ES1: =ER2 -> 2 | ET1: =ER2 -> 2 | EU1: =EU2 -> 2 | EV1: =EU2 -> 2 | EW1: =EU2 -> 2 | EX1: =EX2 -> 3 | EY1: =EX2 -> 3 | EZ1: =EX2 -> 3 | FA1: =FA2 -> 3 | FB1: =FA2 -> 3 | FC1: =FA2 -> 3 | FD1: =FD2 -> 3 | FE1: =FD2 -> 3 | FF1: =FD2 -> 3 | FG1: =FG2 -> 3 | FH1: =FG2 -> 3 | FI1: =FG2 -> 3 | FJ1: =FJ2 -> 3 | FK1: =FJ2 -> 3 | FL1: =FJ2 -> 3 | FM1: =FM2 -> 3 | FN1: =FM2 -> 3 | FO1: =FM2 -> 3 | FP1: =FP2 ->  | FQ1: =FP2 ->  | FR1: =FP2 ->  | FS1: =FS2 ->  | FT1: =FS2 ->  | FU1: =FS2 ->  | FV1: =FV2 ->  | FW1: =FV2 ->  | FX1: =FV2 ->  | FY1: =FY2 ->  | FZ1: =FY2 ->  | GA1: =FY2 ->  | GB1: =GB2 ->  | GC1: =GB2 ->  | GD1: =GB2 ->  | GE1: =GE2 ->  | GF1: =GE2 ->  | GG1: =GE2 ->  | GH1: =GH2 ->  | GI1: =GH2 ->  | GJ1: =GH2 ->  | GK1: =GK2 ->  | GL1: =GK2 ->  | GM1: =GK2 ->  | GN1: =GN2 ->  | GO1: =GN2 ->  | GP1: =GN2 ->  | GQ1: =GQ2 ->  | GR1: =GQ2 ->  | GS1: =GQ2 ->  | GT1: =GT2 ->  | GU1: =GT2 ->  | GV1: =GT2 ->  | GW1: =GW2 ->  | GX1: =GW2 ->  | GY1: =GW2 ->  | GZ1: =GZ2 ->  | HA1: =GZ2 ->  | HB1: =GZ2 ->  | HC1: =HC2 ->  | HD1: =HC2 ->  | HE1: =HC2 ->  | HF1: 1 | HG1: 2 | HH1: 3 | HI1: >0 | HJ1: =学データシート!$AC$2 -> ― | HL1: 判定 | JU1: =JU2 -> 1 | JV1: =JU2 -> 1 | JW1: =JW2 -> 2 | JX1: =JW2 -> 2 | JY1: =JY2 -> 3 | JZ1: =JY2 -> 3 | KA1: =KA2 -> 年間 | KB1: =KA2 -> 年間 | KC1: =KC2 -> 1 | KD1: =KC2 -> 1 | KE1: =KE2 -> 2 | KF1: =KE2 -> 2 | KG1: =KG2 -> 3 | KH1: =KG2 -> 3 | KI1: =KI2 -> 年間 | KJ1: =KI2 -> 年間 | KK1: =KK2 -> 1 | KL1: =KK2 -> 1 | KM1: =KM2 -> 2 | KN1: =KM2 -> 2 | KO1: =KO2 -> 3 | KP1: =KO2 -> 3 | KQ1: =KQ2 -> 年間 | KR1: =KQ2 -> 年間
A2: FALSE | C2: 学期 | D2: =IF(D3="","",OFFSET(基準設定1!$C$13,((COLUMN()-COLUMN($D3))/4)*3,0)) -> 1 | H2: =IF(H3="","",OFFSET(基準設定1!$C$13,((COLUMN()-COLUMN($D3))/4)*3,0)) -> 1 | L2: =IF(L3="","",OFFSET(基準設定1!$C$13,((COLUMN()-COLUMN($D3))/4)*3,0)) -> 1 | P2: =IF(P3="","",OFFSET(基準設定1!$C$13,((COLUMN()-COLUMN($D3))/4)*3,0)) -> 1 | T2: =IF(T3="","",OFFSET(基準設定1!$C$13,((COLUMN()-COLUMN($D3))/4)*3,0)) -> 1 | X2: =IF(X3="","",OFFSET(基準設定1!$C$13,((COLUMN()-COLUMN($D3))/4)*3,0)) -> 2 | AB2: =IF(AB3="","",OFFSET(基準設定1!$C$13,((COLUMN()-COLUMN($D3))/4)*3,0)) -> 2 | AF2: =IF(AF3="","",OFFSET(基準設定1!$C$13,((COLUMN()-COLUMN($D3))/4)*3,0)) -> 2 | AJ2: =IF(AJ3="","",OFFSET(基準設定1!$C$13,((COLUMN()-COLUMN($D3))/4)*3,0)) -> 2 | AN2: =IF(AN3="","",OFFSET(基準設定1!$C$13,((COLUMN()-COLUMN($D3))/4)*3,0)) -> 2 | AR2: =IF(AR3="","",OFFSET(基準設定1!$C$13,((COLUMN()-COLUMN($D3))/4)*3,0)) -> 3 | AV2: =IF(AV3="","",OFFSET(基準設定1!$C$13,((COLUMN()-COLUMN($D3))/4)*3,0)) -> 3 | AZ2: =IF(AZ3="","",OFFSET(基準設定1!$C$13,((COLUMN()-COLUMN($D3))/4)*3,0)) -> 3 | BD2: =IF(BD3="","",OFFSET(基準設定1!$C$13,((COLUMN()-COLUMN($D3))/4)*3,0)) -> 3 | BH2: =IF(BH3="","",OFFSET(基準設定1!$C$13,((COLUMN()-COLUMN($D3))/4)*3,0)) -> 3 | BL2: =IF(BL3="","",OFFSET(基準設定1!$C$13,((COLUMN()-COLUMN($D3))/4)*3,0)) -> 3 | BP2: =IF(BP3="","",OFFSET(基準設定1!$C$13,((COLUMN()-COLUMN($D3))/4)*3,0)) ->  | BT2: =IF(BT3="","",OFFSET(基準設定1!$C$13,((COLUMN()-COLUMN($D3))/4)*3,0)) ->  | BX2: =IF(BX3="","",OFFSET(基準設定1!$C$13,((COLUMN()-COLUMN($D3))/4)*3,0)) ->  | CB2: =IF(CB3="","",OFFSET(基準設定1!$C$13,((COLUMN()-COLUMN($D3))/4)*3,0)) ->  | CF2: =IF(CF3="","",OFFSET(基準設定1!$C$13,((COLUMN()-COLUMN($D3))/4)*3,0)) ->  | CJ2: =IF(CJ3="","",OFFSET(基準設定1!$C$13,((COLUMN()-COLUMN($D3))/4)*3,0)) ->  | CN2: =IF(CN3="","",OFFSET(基準設定1!$C$13,((COLUMN()-COLUMN($D3))/4)*3,0)) ->  | CR2: =IF(CR3="","",OFFSET(基準設定1!$C$13,((COLUMN()-COLUMN($D3))/4)*3,0)) ->  | CV2: =IF(CV3="","",OFFSET(基準設定1!$C$13,((COLUMN()-COLUMN($D3))/4)*3,0)) ->  | CZ2: =IF(CZ3="","",OFFSET(基準設定1!$C$13,((COLUMN()-COLUMN($D3))/4)*3,0)) ->  | DD2: =IF(DD3="","",OFFSET(基準設定1!$C$13,((COLUMN()-COLUMN($D3))/4)*3,0)) ->  | DH2: =IF(DH3="","",OFFSET(基準設定1!$C$13,((COLUMN()-COLUMN($D3))/4)*3,0)) ->  | DL2: =IF(DL3="","",OFFSET(基準設定1!$C$13,((COLUMN()-COLUMN($D3))/4)*3,0)) ->  | DP2: =IF(DP3="","",OFFSET(基準設定1!$C$13,((COLUMN()-COLUMN($D3))/4)*3,0)) ->  | DT2: =IF(D2="","",D2) -> 1 | DW2: =IF(H2="","",H2) -> 1 | DZ2: =IF(L2="","",L2) -> 1 | EC2: =IF(P2="","",P2) -> 1 | EF2: =IF(T2="","",T2) -> 1 | EI2: =IF(X2="","",X2) -> 2 | EL2: =IF(AB2="","",AB2) -> 2 | EO2: =IF(AF2="","",AF2) -> 2 | ER2: =IF(AJ2="","",AJ2) -> 2 | EU2: =IF(AN2="","",AN2) -> 2 | EX2: =IF(AR2="","",AR2) -> 3 | FA2: =IF(AV2="","",AV2) -> 3 | FD2: =IF(AZ2="","",AZ2) -> 3 | FG2: =IF(BD2="","",BD2) -> 3 | FJ2: =IF(BH2="","",BH2) -> 3 | FM2: =IF(BL2="","",BL2) -> 3 | FP2: =IF(BP2="","",BP2) ->  | FS2: =IF(BT2="","",BT2) ->  | FV2: =IF(BX2="","",BX2) ->  | FY2: =IF(CB2="","",CB2) ->  | GB2: =IF(CF2="","",CF2) ->  | GE2: =IF(CJ2="","",CJ2) ->  | GH2: =IF(CN2="","",CN2) ->  | GK2: =IF(CR2="","",CR2) ->  | GN2: =IF(CV2="","",CV2) ->  | GQ2: =IF(CZ2="","",CZ2) ->  | GT2: =IF(DD2="","",DD2) ->  | GW2: =IF(DH2="","",DH2) ->  | GZ2: =IF(DL2="","",DL2) ->  | HC2: =IF(DP2="","",DP2) ->  | HF2: 1 | HG2: 2 | HH2: 3 | HI2: 年間 | HJ2: =学データシート!$AC$3 -> ― | HL2: =IF(D2="","",D2) -> 1 | HM2: =IF(OFFSET($DT2,0,QUOTIENT(COLUMN(B2),2)*3)="","",IF(OFFSET($DT2,0,QUOTIENT(COLUMN(B2),2)*3)>=HM$7,"A",IF(OFFSET($DT2,0,QUOTIENT(COLUMN(B2),2)*3)<HM$8,"C","B"))) -> A | HN2: =IF(H2="","",H2) -> 1 | HO2: =IF(OFFSET($DT2,0,QUOTIENT(COLUMN(F2),2)*3)="","",IF(OFFSET($DT2,0,QUOTIENT(COLUMN(F2),2)*3)>=HO$7,"A",IF(OFFSET($DT2,0,QUOTIENT(COLUMN(F2),2)*3)<HO$8,"C","B"))) -> C | HP2: =IF(L2="","",L2) -> 1 | HQ2: =IF(OFFSET($DT2,0,QUOTIENT(COLUMN(J2),2)*3)="","",IF(OFFSET($DT2,0,QUOTIENT(COLUMN(J2),2)*3)>=HQ$7,"A",IF(OFFSET($DT2,0,QUOTIENT(COLUMN(J2),2)*3)<HQ$8,"C","B"))) -> C | HR2: =IF(P2="","",P2) -> 1 | HS2: =IF(OFFSET($DT2,0,QUOTIENT(COLUMN(N2),2)*3)="","",IF(OFFSET($DT2,0,QUOTIENT(COLUMN(N2),2)*3)>=HS$7,"A",IF(OFFSET($DT2,0,QUOTIENT(COLUMN(N2),2)*3)<HS$8,"C","B"))) -> A | HT2: =IF(T2="","",T2) -> 1 | HU2: =IF(OFFSET($DT2,0,QUOTIENT(COLUMN(R2),2)*3)="","",IF(OFFSET($DT2,0,QUOTIENT(COLUMN(R2),2)*3)>=HU$7,"A",IF(OFFSET($DT2,0,QUOTIENT(COLUMN(R2),2)*3)<HU$8,"C","B"))) -> C | HV2: =IF(X2="","",X2) -> 2 | HW2: =IF(OFFSET($DT2,0,QUOTIENT(COLUMN(V2),2)*3)="","",IF(OFFSET($DT2,0,QUOTIENT(COLUMN(V2),2)*3)>=HW$7,"A",IF(OFFSET($DT2,0,QUOTIENT(COLUMN(V2),2)*3)<HW$8,"C","B"))) -> C | HX2: =IF(AB2="","",AB2) -> 2 | HY2: =IF(OFFSET($DT2,0,QUOTIENT(COLUMN(Z2),2)*3)="","",IF(OFFSET($DT2,0,QUOTIENT(COLUMN(Z2),2)*3)>=HY$7,"A",IF(OFFSET($DT2,0,QUOTIENT(COLUMN(Z2),2)*3)<HY$8,"C","B"))) -> C | HZ2: =IF(AF2="","",AF2) -> 2 | IA2: =IF(OFFSET($DT2,0,QUOTIENT(COLUMN(AD2),2)*3)="","",IF(OFFSET($DT2,0,QUOTIENT(COLUMN(AD2),2)*3)>=IA$7,"A",IF(OFFSET($DT2,0,QUOTIENT(COLUMN(AD2),2)*3)<IA$8,"C","B"))) -> A | IB2: =IF(AJ2="","",AJ2) -> 2 | IC2: =IF(OFFSET($DT2,0,QUOTIENT(COLUMN(AH2),2)*3)="","",IF(OFFSET($DT2,0,QUOTIENT(COLUMN(AH2),2)*3)>=IC$7,"A",IF(OFFSET($DT2,0,QUOTIENT(COLUMN(AH2),2)*3)<IC$8,"C","B"))) ->  | ID2: =IF(AN2="","",AN2) -> 2 | IE2: =IF(OFFSET($DT2,0,QUOTIENT(COLUMN(AL2),2)*3)="","",IF(OFFSET($DT2,0,QUOTIENT(COLUMN(AL2),2)*3)>=IE$7,"A",IF(OFFSET($DT2,0,QUOTIENT(COLUMN(AL2),2)*3)<IE$8,"C","B"))) ->  | IF2: =IF(AR2="","",AR2) -> 3 | IG2: =IF(OFFSET($DT2,0,QUOTIENT(COLUMN(AP2),2)*3)="","",IF(OFFSET($DT2,0,QUOTIENT(COLUMN(AP2),2)*3)>=IG$7,"A",IF(OFFSET($DT2,0,QUOTIENT(COLUMN(AP2),2)*3)<IG$8,"C","B"))) ->  | IH2: =IF(AV2="","",AV2) -> 3 | II2: =IF(OFFSET($DT2,0,QUOTIENT(COLUMN(AT2),2)*3)="","",IF(OFFSET($DT2,0,QUOTIENT(COLUMN(AT2),2)*3)>=II$7,"A",IF(OFFSET($DT2,0,QUOTIENT(COLUMN(AT2),2)*3)<II$8,"C","B"))) ->  | IJ2: =IF(AZ2="","",AZ2) -> 3 | IK2: =IF(OFFSET($DT2,0,QUOTIENT(COLUMN(AX2),2)*3)="","",IF(OFFSET($DT2,0,QUOTIENT(COLUMN(AX2),2)*3)>=IK$7,"A",IF(OFFSET($DT2,0,QUOTIENT(COLUMN(AX2),2)*3)<IK$8,"C","B"))) ->  | IL2: =IF(BD2="","",BD2) -> 3 | IM2: =IF(OFFSET($DT2,0,QUOTIENT(COLUMN(BB2),2)*3)="","",IF(OFFSET($DT2,0,QUOTIENT(COLUMN(BB2),2)*3)>=IM$7,"A",IF(OFFSET($DT2,0,QUOTIENT(COLUMN(BB2),2)*3)<IM$8,"C","B"))) ->  | IN2: =IF(BH2="","",BH2) -> 3 | IO2: =IF(OFFSET($DT2,0,QUOTIENT(COLUMN(BF2),2)*3)="","",IF(OFFSET($DT2,0,QUOTIENT(COLUMN(BF2),2)*3)>=IO$7,"A",IF(OFFSET($DT2,0,QUOTIENT(COLUMN(BF2),2)*3)<IO$8,"C","B"))) ->  | IP2: =IF(BL2="","",BL2) -> 3 | IQ2: =IF(OFFSET($DT2,0,QUOTIENT(COLUMN(BJ2),2)*3)="","",IF(OFFSET($DT2,0,QUOTIENT(COLUMN(BJ2),2)*3)>=IQ$7,"A",IF(OFFSET($DT2,0,QUOTIENT(COLUMN(BJ2),2)*3)<IQ$8,"C","B"))) -> A | IR2: =IF(BP2="","",BP2) ->  | IS2: =IF(OFFSET($DT2,0,QUOTIENT(COLUMN(BN2),2)*3)="","",IF(OFFSET($DT2,0,QUOTIENT(COLUMN(BN2),2)*3)>=IS$7,"A",IF(OFFSET($DT2,0,QUOTIENT(COLUMN(BN2),2)*3)<IS$8,"C","B"))) -> A | IT2: =IF(BT2="","",BT2) ->  | IU2: =IF(OFFSET($DT2,0,QUOTIENT(COLUMN(BR2),2)*3)="","",IF(OFFSET($DT2,0,QUOTIENT(COLUMN(BR2),2)*3)>=IU$7,"A",IF(OFFSET($DT2,0,QUOTIENT(COLUMN(BR2),2)*3)<IU$8,"C","B"))) -> A | IV2: =IF(BX2="","",BX2) ->  | IW2: =IF(OFFSET($DT2,0,QUOTIENT(COLUMN(BV2),2)*3)="","",IF(OFFSET($DT2,0,QUOTIENT(COLUMN(BV2),2)*3)>=IW$7,"A",IF(OFFSET($DT2,0,QUOTIENT(COLUMN(BV2),2)*3)<IW$8,"C","B"))) -> A | IX2: =IF(CB2="","",CB2) ->  | IY2: =IF(OFFSET($DT2,0,QUOTIENT(COLUMN(BZ2),2)*3)="","",IF(OFFSET($DT2,0,QUOTIENT(COLUMN(BZ2),2)*3)>=IY$7,"A",IF(OFFSET($DT2,0,QUOTIENT(COLUMN(BZ2),2)*3)<IY$8,"C","B"))) ->  | IZ2: =IF(CF2="","",CF2) ->  | JA2: =IF(OFFSET($DT2,0,QUOTIENT(COLUMN(CD2),2)*3)="","",IF(OFFSET($DT2,0,QUOTIENT(COLUMN(CD2),2)*3)>=JA$7,"A",IF(OFFSET($DT2,0,QUOTIENT(COLUMN(CD2),2)*3)<JA$8,"C","B"))) ->  | JB2: =IF(CJ2="","",CJ2) ->  | JC2: =IF(OFFSET($DT2,0,QUOTIENT(COLUMN(CH2),2)*3)="","",IF(OFFSET($DT2,0,QUOTIENT(COLUMN(CH2),2)*3)>=JC$7,"A",IF(OFFSET($DT2,0,QUOTIENT(COLUMN(CH2),2)*3)<JC$8,"C","B"))) -> A | JD2: =IF(CN2="","",CN2) ->  | JE2: =IF(OFFSET($DT2,0,QUOTIENT(COLUMN(CL2),2)*3)="","",IF(OFFSET($DT2,0,QUOTIENT(COLUMN(CL2),2)*3)>=JE$7,"A",IF(OFFSET($DT2,0,QUOTIENT(COLUMN(CL2),2)*3)<JE$8,"C","B"))) ->  | JF2: =IF(CR2="","",CR2) ->  | JG2: =IF(OFFSET($DT2,0,QUOTIENT(COLUMN(CP2),2)*3)="","",IF(OFFSET($DT2,0,QUOTIENT(COLUMN(CP2),2)*3)>=JG$7,"A",IF(OFFSET($DT2,0,QUOTIENT(COLUMN(CP2),2)*3)<JG$8,"C","B"))) ->  | JH2: =IF(CV2="","",CV2) ->  | JI2: =IF(OFFSET($DT2,0,QUOTIENT(COLUMN(CT2),2)*3)="","",IF(OFFSET($DT2,0,QUOTIENT(COLUMN(CT2),2)*3)>=JI$7,"A",IF(OFFSET($DT2,0,QUOTIENT(COLUMN(CT2),2)*3)<JI$8,"C","B"))) -> A | JJ2: =IF(CZ2="","",CZ2) ->  | JK2: =IF(OFFSET($DT2,0,QUOTIENT(COLUMN(CX2),2)*3)="","",IF(OFFSET($DT2,0,QUOTIENT(COLUMN(CX2),2)*3)>=JK$7,"A",IF(OFFSET($DT2,0,QUOTIENT(COLUMN(CX2),2)*3)<JK$8,"C","B"))) -> A | JL2: =IF(DD2="","",DD2) ->  | JM2: =IF(OFFSET($DT2,0,QUOTIENT(COLUMN(DB2),2)*3)="","",IF(OFFSET($DT2,0,QUOTIENT(COLUMN(DB2),2)*3)>=JM$7,"A",IF(OFFSET($DT2,0,QUOTIENT(COLUMN(DB2),2)*3)<JM$8,"C","B"))) -> C | JN2: =IF(DH2="","",DH2) ->  | JO2: =IF(OFFSET($DT2,0,QUOTIENT(COLUMN(DF2),2)*3)="","",IF(OFFSET($DT2,0,QUOTIENT(COLUMN(DF2),2)*3)>=JO$7,"A",IF(OFFSET($DT2,0,QUOTIENT(COLUMN(DF2),2)*3)<JO$8,"C","B"))) -> C | JP2: =IF(DL2="","",DL2) ->  | JQ2: =IF(OFFSET($DT2,0,QUOTIENT(COLUMN(DJ2),2)*3)="","",IF(OFFSET($DT2,0,QUOTIENT(COLUMN(DJ2),2)*3)>=JQ$7,"A",IF(OFFSET($DT2,0,QUOTIENT(COLUMN(DJ2),2)*3)<JQ$8,"C","B"))) -> A | JR2: =IF(DP2="","",DP2) ->  | JS2: =IF(OFFSET($DT2,0,QUOTIENT(COLUMN(DN2),2)*3)="","",IF(OFFSET($DT2,0,QUOTIENT(COLUMN(DN2),2)*3)>=JS$7,"A",IF(OFFSET($DT2,0,QUOTIENT(COLUMN(DN2),2)*3)<JS$8,"C","B"))) -> C | JU2: 1 | JW2: 2 | JY2: 3 | KA2: 年間 | KC2: 1 | KE2: 2 | KG2: 3 | KI2: 年間 | KK2: 1 | KM2: 2 | KO2: 3 | KQ2: 年間
A3: FALSE | C3: 回数 | D3: =IF(QUOTIENT(COLUMN()-(COLUMN($D3)-1),4)+1>COUNT(基準設定1!$A$13:$A$102),"",OFFSET(基準設定1!$A$13,((COLUMN()-COLUMN($D3))/4)*3,0)) -> 1 | H3: =IF(QUOTIENT(COLUMN()-(COLUMN($D3)-1),4)+1>COUNT(基準設定1!$A$13:$A$102),"",OFFSET(基準設定1!$A$13,((COLUMN()-COLUMN($D3))/4)*3,0)) -> 2 | L3: =IF(QUOTIENT(COLUMN()-(COLUMN($D3)-1),4)+1>COUNT(基準設定1!$A$13:$A$102),"",OFFSET(基準設定1!$A$13,((COLUMN()-COLUMN($D3))/4)*3,0)) -> 3 | P3: =IF(QUOTIENT(COLUMN()-(COLUMN($D3)-1),4)+1>COUNT(基準設定1!$A$13:$A$102),"",OFFSET(基準設定1!$A$13,((COLUMN()-COLUMN($D3))/4)*3,0)) -> 4 | T3: =IF(QUOTIENT(COLUMN()-(COLUMN($D3)-1),4)+1>COUNT(基準設定1!$A$13:$A$102),"",OFFSET(基準設定1!$A$13,((COLUMN()-COLUMN($D3))/4)*3,0)) -> 5 | X3: =IF(QUOTIENT(COLUMN()-(COLUMN($D3)-1),4)+1>COUNT(基準設定1!$A$13:$A$102),"",OFFSET(基準設定1!$A$13,((COLUMN()-COLUMN($D3))/4)*3,0)) -> 6 | AB3: =IF(QUOTIENT(COLUMN()-(COLUMN($D3)-1),4)+1>COUNT(基準設定1!$A$13:$A$102),"",OFFSET(基準設定1!$A$13,((COLUMN()-COLUMN($D3))/4)*3,0)) -> 7 | AF3: =IF(QUOTIENT(COLUMN()-(COLUMN($D3)-1),4)+1>COUNT(基準設定1!$A$13:$A$102),"",OFFSET(基準設定1!$A$13,((COLUMN()-COLUMN($D3))/4)*3,0)) -> 8 | AJ3: =IF(QUOTIENT(COLUMN()-(COLUMN($D3)-1),4)+1>COUNT(基準設定1!$A$13:$A$102),"",OFFSET(基準設定1!$A$13,((COLUMN()-COLUMN($D3))/4)*3,0)) -> 9 | AN3: =IF(QUOTIENT(COLUMN()-(COLUMN($D3)-1),4)+1>COUNT(基準設定1!$A$13:$A$102),"",OFFSET(基準設定1!$A$13,((COLUMN()-COLUMN($D3))/4)*3,0)) -> 10 | AR3: =IF(QUOTIENT(COLUMN()-(COLUMN($D3)-1),4)+1>COUNT(基準設定1!$A$13:$A$102),"",OFFSET(基準設定1!$A$13,((COLUMN()-COLUMN($D3))/4)*3,0)) -> 11 | AV3: =IF(QUOTIENT(COLUMN()-(COLUMN($D3)-1),4)+1>COUNT(基準設定1!$A$13:$A$102),"",OFFSET(基準設定1!$A$13,((COLUMN()-COLUMN($D3))/4)*3,0)) -> 12 | AZ3: =IF(QUOTIENT(COLUMN()-(COLUMN($D3)-1),4)+1>COUNT(基準設定1!$A$13:$A$102),"",OFFSET(基準設定1!$A$13,((COLUMN()-COLUMN($D3))/4)*3,0)) -> 13 | BD3: =IF(QUOTIENT(COLUMN()-(COLUMN($D3)-1),4)+1>COUNT(基準設定1!$A$13:$A$102),"",OFFSET(基準設定1!$A$13,((COLUMN()-COLUMN($D3))/4)*3,0)) -> 14 | BH3: =IF(QUOTIENT(COLUMN()-(COLUMN($D3)-1),4)+1>COUNT(基準設定1!$A$13:$A$102),"",OFFSET(基準設定1!$A$13,((COLUMN()-COLUMN($D3))/4)*3,0)) -> 15 | BL3: =IF(QUOTIENT(COLUMN()-(COLUMN($D3)-1),4)+1>COUNT(基準設定1!$A$13:$A$102),"",OFFSET(基準設定1!$A$13,((COLUMN()-COLUMN($D3))/4)*3,0)) -> 16 | BP3: =IF(QUOTIENT(COLUMN()-(COLUMN($D3)-1),4)+1>COUNT(基準設定1!$A$13:$A$102),"",OFFSET(基準設定1!$A$13,((COLUMN()-COLUMN($D3))/4)*3,0)) ->  | BT3: =IF(QUOTIENT(COLUMN()-(COLUMN($D3)-1),4)+1>COUNT(基準設定1!$A$13:$A$102),"",OFFSET(基準設定1!$A$13,((COLUMN()-COLUMN($D3))/4)*3,0)) ->  | BX3: =IF(QUOTIENT(COLUMN()-(COLUMN($D3)-1),4)+1>COUNT(基準設定1!$A$13:$A$102),"",OFFSET(基準設定1!$A$13,((COLUMN()-COLUMN($D3))/4)*3,0)) ->  | CB3: =IF(QUOTIENT(COLUMN()-(COLUMN($D3)-1),4)+1>COUNT(基準設定1!$A$13:$A$102),"",OFFSET(基準設定1!$A$13,((COLUMN()-COLUMN($D3))/4)*3,0)) ->  | CF3: =IF(QUOTIENT(COLUMN()-(COLUMN($D3)-1),4)+1>COUNT(基準設定1!$A$13:$A$102),"",OFFSET(基準設定1!$A$13,((COLUMN()-COLUMN($D3))/4)*3,0)) ->  | CJ3: =IF(QUOTIENT(COLUMN()-(COLUMN($D3)-1),4)+1>COUNT(基準設定1!$A$13:$A$102),"",OFFSET(基準設定1!$A$13,((COLUMN()-COLUMN($D3))/4)*3,0)) ->  | CN3: =IF(QUOTIENT(COLUMN()-(COLUMN($D3)-1),4)+1>COUNT(基準設定1!$A$13:$A$102),"",OFFSET(基準設定1!$A$13,((COLUMN()-COLUMN($D3))/4)*3,0)) ->  | CR3: =IF(QUOTIENT(COLUMN()-(COLUMN($D3)-1),4)+1>COUNT(基準設定1!$A$13:$A$102),"",OFFSET(基準設定1!$A$13,((COLUMN()-COLUMN($D3))/4)*3,0)) ->  | CV3: =IF(QUOTIENT(COLUMN()-(COLUMN($D3)-1),4)+1>COUNT(基準設定1!$A$13:$A$102),"",OFFSET(基準設定1!$A$13,((COLUMN()-COLUMN($D3))/4)*3,0)) ->  | CZ3: =IF(QUOTIENT(COLUMN()-(COLUMN($D3)-1),4)+1>COUNT(基準設定1!$A$13:$A$102),"",OFFSET(基準設定1!$A$13,((COLUMN()-COLUMN($D3))/4)*3,0)) ->  | DD3: =IF(QUOTIENT(COLUMN()-(COLUMN($D3)-1),4)+1>COUNT(基準設定1!$A$13:$A$102),"",OFFSET(基準設定1!$A$13,((COLUMN()-COLUMN($D3))/4)*3,0)) ->  | DH3: =IF(QUOTIENT(COLUMN()-(COLUMN($D3)-1),4)+1>COUNT(基準設定1!$A$13:$A$102),"",OFFSET(基準設定1!$A$13,((COLUMN()-COLUMN($D3))/4)*3,0)) ->  | DL3: =IF(QUOTIENT(COLUMN()-(COLUMN($D3)-1),4)+1>COUNT(基準設定1!$A$13:$A$102),"",OFFSET(基準設定1!$A$13,((COLUMN()-COLUMN($D3))/4)*3,0)) ->  | DP3: =IF(QUOTIENT(COLUMN()-(COLUMN($D3)-1),4)+1>COUNT(基準設定1!$A$13:$A$102),"",OFFSET(基準設定1!$A$13,((COLUMN()-COLUMN($D3))/4)*3,0)) ->  | DT3: =IF(D3="","",D3) -> 1 | DW3: =IF(H3="","",H3) -> 2 | DZ3: =IF(L3="","",L3) -> 3 | EC3: =IF(P3="","",P3) -> 4 | EF3: =IF(T3="","",T3) -> 5 | EI3: =IF(X3="","",X3) -> 6 | EL3: =IF(AB3="","",AB3) -> 7 | EO3: =IF(AF3="","",AF3) -> 8 | ER3: =IF(AJ3="","",AJ3) -> 9 | EU3: =IF(AN3="","",AN3) -> 10 | EX3: =IF(AR3="","",AR3) -> 11 | FA3: =IF(AV3="","",AV3) -> 12 | FD3: =IF(AZ3="","",AZ3) -> 13 | FG3: =IF(BD3="","",BD3) -> 14 | FJ3: =IF(BH3="","",BH3) -> 15 | FM3: =IF(BL3="","",BL3) -> 16 | FP3: =IF(BP3="","",BP3) ->  | FS3: =IF(BT3="","",BT3) ->  | FV3: =IF(BX3="","",BX3) ->  | FY3: =IF(CB3="","",CB3) ->  | GB3: =IF(CF3="","",CF3) ->  | GE3: =IF(CJ3="","",CJ3) ->  | GH3: =IF(CN3="","",CN3) ->  | GK3: =IF(CR3="","",CR3) ->  | GN3: =IF(CV3="","",CV3) ->  | GQ3: =IF(CZ3="","",CZ3) ->  | GT3: =IF(DD3="","",DD3) ->  | GW3: =IF(DH3="","",DH3) ->  | GZ3: =IF(DL3="","",DL3) ->  | HC3: =IF(DP3="","",DP3) ->  | HJ3: >0 | HL3: =IF(D3="","",D3) -> 1 | HN3: =IF(H3="","",H3) -> 2 | HP3: =IF(L3="","",L3) -> 3 | HR3: =IF(P3="","",P3) -> 4 | HT3: =IF(T3="","",T3) -> 5 | HV3: =IF(X3="","",X3) -> 6 | HX3: =IF(AB3="","",AB3) -> 7 | HZ3: =IF(AF3="","",AF3) -> 8 | IB3: =IF(AJ3="","",AJ3) -> 9 | ID3: =IF(AN3="","",AN3) -> 10 | IF3: =IF(AR3="","",AR3) -> 11 | IH3: =IF(AV3="","",AV3) -> 12 | IJ3: =IF(AZ3="","",AZ3) -> 13 | IL3: =IF(BD3="","",BD3) -> 14 | IN3: =IF(BH3="","",BH3) -> 15 | IP3: =IF(BL3="","",BL3) -> 16 | IR3: =IF(BP3="","",BP3) ->  | IT3: =IF(BT3="","",BT3) ->  | IV3: =IF(BX3="","",BX3) ->  | IX3: =IF(CB3="","",CB3) ->  | IZ3: =IF(CF3="","",CF3) ->  | JB3: =IF(CJ3="","",CJ3) ->  | JD3: =IF(CN3="","",CN3) ->  | JF3: =IF(CR3="","",CR3) ->  | JH3: =IF(CV3="","",CV3) ->  | JJ3: =IF(CZ3="","",CZ3) ->  | JL3: =IF(DD3="","",DD3) ->  | JN3: =IF(DH3="","",DH3) ->  | JP3: =IF(DL3="","",DL3) ->  | JR3: =IF(DP3="","",DP3) -> 
C4: 単元名 | D4: Let’s Be Friends!～小学校のふり返り | H4: Unit 1 | L4: Unit 2 | P4: be動詞と一般動詞 / Unit 1~2の語順の復習 | T4: Unit 3～You Can Do It! ① | X4: Unit 4～Active Grammar ② | AB4: Unit 5～Daily Life Scene 2 | AF4: 疑問詞のまとめ１ / 代名詞 | AJ4: Unit 6～You Can Do It! ② | AN4: 一般動詞のまとめ / 「概要」を読み取ろう！ | AR4: Unit 7～Daily Life Scene 5 | AV4: 一般動詞の現在と過去の文① / 一般動詞の現在と過去の文② | AZ4: Unit 8～Active Grammar ⑥ | BD4: 疑問詞のまとめ２ / 進行形 | BH4: Let’s Read 2～You Can Do It! ③ / 「必要な情報」を読み取ろう！ | BL4: 「要点」を読み取ろう！ / １年のまとめ | DT4: Let’s Be Friends!～小学校のふり返り | DW4: Unit 1 | DZ4: Unit 2 | EC4: be動詞と一般動詞 / Unit 1~2の語順の復習 | EF4: Unit 3～You Can Do It! ① | EI4: Unit 4～Active Grammar ② | EL4: Unit 5～Daily Life Scene 2 | EO4: 疑問詞のまとめ１ / 代名詞 | ER4: Unit 6～You Can Do It! ② | EU4: 一般動詞のまとめ / 「概要」を読み取ろう！ | EX4: Unit 7～Daily Life Scene 5 | FA4: 一般動詞の現在と過去の文① / 一般動詞の現在と過去の文② | FD4: Unit 8～Active Grammar ⑥ | FG4: 疑問詞のまとめ２ / 進行形 | FJ4: Let’s Read 2～You Can Do It! ③ / 「必要な情報」を読み取ろう！ | FM4: 「要点」を読み取ろう！ / １年のまとめ | HF4: 学期 | HG4: 学期 | HH4: 学期 | HI4: 合計 | HJ4: 回数で範囲を選択 | HL4: Let’s Be Friends!～小学校のふり返り | HN4: Unit 1 | HP4: Unit 2 | HR4: be動詞と一般動詞 / Unit 1~2の語順の復習 | HT4: Unit 3～You Can Do It! ① | HV4: Unit 4～Active Grammar ② | HX4: Unit 5～Daily Life Scene 2 | HZ4: 疑問詞のまとめ１ / 代名詞 | IB4: Unit 6～You Can Do It! ② | ID4: 一般動詞のまとめ / 「概要」を読み取ろう！ | IF4: Unit 7～Daily Life Scene 5 | IH4: 一般動詞の現在と過去の文① / 一般動詞の現在と過去の文② | IJ4: Unit 8～Active Grammar ⑥ | IL4: 疑問詞のまとめ２ / 進行形 | IN4: Let’s Read 2～You Can Do It! ③ / 「必要な情報」を読み取ろう！ | IP4: 「要点」を読み取ろう！ / １年のまとめ | JU4: 合計 | JW4: 合計 | JY4: 合計 | KA4: 合計 | KC4: 率 | KE4: 率 | KG4: 率 | KI4: 率 | KK4: 判定 | KM4: 判定 | KO4: 判定 | KQ4: 判定
D5: オモテ面 | F5: ウラ面 | H5: オモテ面 | J5: ウラ面 | L5: オモテ面 | N5: ウラ面 | P5: オモテ面 | R5: ウラ面 | T5: オモテ面 | V5: ウラ面 | X5: オモテ面 | Z5: ウラ面 | AB5: オモテ面 | AD5: ウラ面 | AF5: オモテ面 | AH5: ウラ面 | AJ5: オモテ面 | AL5: ウラ面 | AN5: オモテ面 | AP5: ウラ面 | AR5: オモテ面 | AT5: ウラ面 | AV5: オモテ面 | AX5: ウラ面 | AZ5: オモテ面 | BB5: ウラ面 | BD5: オモテ面 | BF5: ウラ面 | BH5: オモテ面 | BJ5: ウラ面 | BL5: オモテ面 | BN5: ウラ面 | DT5: オモテ面 | DW5: オモテ面 | DZ5: オモテ面 | EC5: オモテ面 | EF5: オモテ面 | EI5: オモテ面 | EL5: オモテ面 | EO5: オモテ面 | ER5: オモテ面 | EU5: オモテ面 | EX5: オモテ面 | FA5: オモテ面 | FD5: オモテ面 | FG5: オモテ面 | FJ5: オモテ面 | FM5: オモテ面
C6: 観点 | D6: 知識・技能 | E6: 思考判断表現 | F6: 知識・技能 | G6: 思考判断表現 | H6: 知識・技能 | I6: 思考判断表現 | J6: 知識・技能 | K6: 思考判断表現 | L6: 知識・技能 | M6: 思考判断表現 | N6: 知識・技能 | O6: 思考判断表現 | P6: 知識・技能 | Q6: 思考判断表現 | R6: 知識・技能 | S6: 思考判断表現 | T6: 知識・技能 | U6: 思考判断表現 | V6: 知識・技能 | W6: 思考判断表現 | X6: 知識・技能 | Y6: 思考判断表現 | Z6: 知識・技能 | AA6: 思考判断表現 | AB6: 知識・技能 | AC6: 思考判断表現 | AD6: 知識・技能 | AE6: 思考判断表現 | AF6: 知識・技能 | AG6: 思考判断表現 | AH6: 知識・技能 | AI6: 思考判断表現 | AJ6: 知識・技能 | AK6: 思考判断表現 | AL6: 知識・技能 | AM6: 思考判断表現 | AN6: 知識・技能 | AO6: 思考判断表現 | AP6: 知識・技能 | AQ6: 思考判断表現 | AR6: 知識・技能 | AS6: 思考判断表現 | AT6: 知識・技能 | AU6: 思考判断表現 | AV6: 知識・技能 | AW6: 思考判断表現 | AX6: 知識・技能 | AY6: 思考判断表現 | AZ6: 知識・技能 | BA6: 思考判断表現 | BB6: 知識・技能 | BC6: 思考判断表現 | BD6: 知識・技能 | BE6: 思考判断表現 | BF6: 知識・技能 | BG6: 思考判断表現 | BH6: 知識・技能 | BI6: 思考判断表現 | BJ6: 知識・技能 | BK6: 思考判断表現 | BL6: 知識・技能 | BM6: 思考判断表現 | BN6: 知識・技能 | BO6: 思考判断表現 | DT6: 知識・技能 | DU6: 思考判断表現 | DV6: 合計 | DW6: 知識・技能 | DX6: 思考判断表現 | DY6: 合計 | DZ6: 知識・技能 | EA6: 思考判断表現 | EB6: 合計 | EC6: 知識・技能 | ED6: 思考判断表現 | EE6: 合計 | EF6: 知識・技能 | EG6: 思考判断表現 | EH6: 合計 | EI6: 知識・技能 | EJ6: 思考判断表現 | EK6: 合計 | EL6: 知識・技能 | EM6: 思考判断表現 | EN6: 合計 | EO6: 知識・技能 | EP6: 思考判断表現 | EQ6: 合計 | ER6: 知識・技能 | ES6: 思考判断表現 | ET6: 合計 | EU6: 知識・技能 | EV6: 思考判断表現 | EW6: 合計 | EX6: 知識・技能 | EY6: 思考判断表現 | EZ6: 合計 | FA6: 知識・技能 | FB6: 思考判断表現 | FC6: 合計 | FD6: 知識・技能 | FE6: 思考判断表現 | FF6: 合計 | FG6: 知識・技能 | FH6: 思考判断表現 | FI6: 合計 | FJ6: 知識・技能 | FK6: 思考判断表現 | FL6: 合計 | FM6: 知識・技能 | FN6: 思考判断表現 | FO6: 合計 | HF6: 得点分布に使用 | HG6: 得点分布に使用 | HH6: 得点分布に使用 | HI6: 得点分布に使用 | HJ6: 得点分布に使用 | HL6: 知識・技能 | HM6: 思考判断表現 | HN6: 知識・技能 | HO6: 思考判断表現 | HP6: 知識・技能 | HQ6: 思考判断表現 | HR6: 知識・技能 | HS6: 思考判断表現 | HT6: 知識・技能 | HU6: 思考判断表現 | HV6: 知識・技能 | HW6: 思考判断表現 | HX6: 知識・技能 | HY6: 思考判断表現 | HZ6: 知識・技能 | IA6: 思考判断表現 | IB6: 知識・技能 | IC6: 思考判断表現 | ID6: 知識・技能 | IE6: 思考判断表現 | IF6: 知識・技能 | IG6: 思考判断表現 | IH6: 知識・技能 | II6: 思考判断表現 | IJ6: 知識・技能 | IK6: 思考判断表現 | IL6: 知識・技能 | IM6: 思考判断表現 | IN6: 知識・技能 | IO6: 思考判断表現 | IP6: 知識・技能 | IQ6: 思考判断表現 | JU6: 知識・技能 | JV6: 思考判断表現 | JW6: 知識・技能 | JX6: 思考判断表現 | JY6: 知識・技能 | JZ6: 思考判断表現 | KA6: 知識・技能 | KB6: 思考判断表現 | KC6: 知識・技能 | KD6: 思考判断表現 | KE6: 知識・技能 | KF6: 思考判断表現 | KG6: 知識・技能 | KH6: 思考判断表現 | KI6: 知識・技能 | KJ6: 思考判断表現 | KK6: 知識・技能 | KL6: 思考判断表現 | KM6: 知識・技能 | KN6: 思考判断表現 | KO6: 知識・技能 | KP6: 思考判断表現 | KQ6: 知識・技能 | KR6: 思考判断表現
C7: 配点 | D7: =IF(D3="","",OFFSET(基準設定1!$E$13,QUOTIENT(COLUMN()-COLUMN($D3),4)*3,0)) -> 100 | E7: =IF(D3="","",OFFSET(基準設定1!$E$13,QUOTIENT(COLUMN()-COLUMN($D3),4)*3+1,0)) -> 0 | F7: =IF(D3="","",OFFSET(基準設定1!$F$13,QUOTIENT(COLUMN()-COLUMN($D3),4)*3,0)) -> 100 | G7: =IF(D3="","",OFFSET(基準設定1!$F$13,QUOTIENT(COLUMN()-COLUMN($D3),4)*3+1,0)) -> 0 | H7: =IF(H3="","",OFFSET(基準設定1!$E$13,QUOTIENT(COLUMN()-COLUMN($D3),4)*3,0)) -> 100 | I7: =IF(H3="","",OFFSET(基準設定1!$E$13,QUOTIENT(COLUMN()-COLUMN($D3),4)*3+1,0)) -> 0 | J7: =IF(H3="","",OFFSET(基準設定1!$F$13,QUOTIENT(COLUMN()-COLUMN($D3),4)*3,0)) -> 0 | K7: =IF(H3="","",OFFSET(基準設定1!$F$13,QUOTIENT(COLUMN()-COLUMN($D3),4)*3+1,0)) -> 100 | L7: =IF(L3="","",OFFSET(基準設定1!$E$13,QUOTIENT(COLUMN()-COLUMN($D3),4)*3,0)) -> 100 | M7: =IF(L3="","",OFFSET(基準設定1!$E$13,QUOTIENT(COLUMN()-COLUMN($D3),4)*3+1,0)) -> 0 | N7: =IF(L3="","",OFFSET(基準設定1!$F$13,QUOTIENT(COLUMN()-COLUMN($D3),4)*3,0)) -> 0 | O7: =IF(L3="","",OFFSET(基準設定1!$F$13,QUOTIENT(COLUMN()-COLUMN($D3),4)*3+1,0)) -> 100 | P7: =IF(P3="","",OFFSET(基準設定1!$E$13,QUOTIENT(COLUMN()-COLUMN($D3),4)*3,0)) -> 100 | Q7: =IF(P3="","",OFFSET(基準設定1!$E$13,QUOTIENT(COLUMN()-COLUMN($D3),4)*3+1,0)) -> 0 | R7: =IF(P3="","",OFFSET(基準設定1!$F$13,QUOTIENT(COLUMN()-COLUMN($D3),4)*3,0)) -> 100 | S7: =IF(P3="","",OFFSET(基準設定1!$F$13,QUOTIENT(COLUMN()-COLUMN($D3),4)*3+1,0)) -> 0 | T7: =IF(T3="","",OFFSET(基準設定1!$E$13,QUOTIENT(COLUMN()-COLUMN($D3),4)*3,0)) -> 100 | U7: =IF(T3="","",OFFSET(基準設定1!$E$13,QUOTIENT(COLUMN()-COLUMN($D3),4)*3+1,0)) -> 0 | V7: =IF(T3="","",OFFSET(基準設定1!$F$13,QUOTIENT(COLUMN()-COLUMN($D3),4)*3,0)) -> 0 | W7: =IF(T3="","",OFFSET(基準設定1!$F$13,QUOTIENT(COLUMN()-COLUMN($D3),4)*3+1,0)) -> 100 | X7: =IF(X3="","",OFFSET(基準設定1!$E$13,QUOTIENT(COLUMN()-COLUMN($D3),4)*3,0)) -> 100 | Y7: =IF(X3="","",OFFSET(基準設定1!$E$13,QUOTIENT(COLUMN()-COLUMN($D3),4)*3+1,0)) -> 0 | Z7: =IF(X3="","",OFFSET(基準設定1!$F$13,QUOTIENT(COLUMN()-COLUMN($D3),4)*3,0)) -> 0 | AA7: =IF(X3="","",OFFSET(基準設定1!$F$13,QUOTIENT(COLUMN()-COLUMN($D3),4)*3+1,0)) -> 100 | AB7: =IF(AB3="","",OFFSET(基準設定1!$E$13,QUOTIENT(COLUMN()-COLUMN($D3),4)*3,0)) -> 100 | AC7: =IF(AB3="","",OFFSET(基準設定1!$E$13,QUOTIENT(COLUMN()-COLUMN($D3),4)*3+1,0)) -> 0 | AD7: =IF(AB3="","",OFFSET(基準設定1!$F$13,QUOTIENT(COLUMN()-COLUMN($D3),4)*3,0)) -> 0 | AE7: =IF(AB3="","",OFFSET(基準設定1!$F$13,QUOTIENT(COLUMN()-COLUMN($D3),4)*3+1,0)) -> 100 | AF7: =IF(AF3="","",OFFSET(基準設定1!$E$13,QUOTIENT(COLUMN()-COLUMN($D3),4)*3,0)) -> 100 | AG7: =IF(AF3="","",OFFSET(基準設定1!$E$13,QUOTIENT(COLUMN()-COLUMN($D3),4)*3+1,0)) -> 0 | AH7: =IF(AF3="","",OFFSET(基準設定1!$F$13,QUOTIENT(COLUMN()-COLUMN($D3),4)*3,0)) -> 100 | AI7: =IF(AF3="","",OFFSET(基準設定1!$F$13,QUOTIENT(COLUMN()-COLUMN($D3),4)*3+1,0)) -> 0 | AJ7: =IF(AJ3="","",OFFSET(基準設定1!$E$13,QUOTIENT(COLUMN()-COLUMN($D3),4)*3,0)) -> 100 | AK7: =IF(AJ3="","",OFFSET(基準設定1!$E$13,QUOTIENT(COLUMN()-COLUMN($D3),4)*3+1,0)) -> 0 | AL7: =IF(AJ3="","",OFFSET(基準設定1!$F$13,QUOTIENT(COLUMN()-COLUMN($D3),4)*3,0)) -> 0 | AM7: =IF(AJ3="","",OFFSET(基準設定1!$F$13,QUOTIENT(COLUMN()-COLUMN($D3),4)*3+1,0)) -> 100 | AN7: =IF(AN3="","",OFFSET(基準設定1!$E$13,QUOTIENT(COLUMN()-COLUMN($D3),4)*3,0)) -> 100 | AO7: =IF(AN3="","",OFFSET(基準設定1!$E$13,QUOTIENT(COLUMN()-COLUMN($D3),4)*3+1,0)) -> 0 | AP7: =IF(AN3="","",OFFSET(基準設定1!$F$13,QUOTIENT(COLUMN()-COLUMN($D3),4)*3,0)) -> 60 | AQ7: =IF(AN3="","",OFFSET(基準設定1!$F$13,QUOTIENT(COLUMN()-COLUMN($D3),4)*3+1,0)) -> 40 | AR7: =IF(AR3="","",OFFSET(基準設定1!$E$13,QUOTIENT(COLUMN()-COLUMN($D3),4)*3,0)) -> 100 | AS7: =IF(AR3="","",OFFSET(基準設定1!$E$13,QUOTIENT(COLUMN()-COLUMN($D3),4)*3+1,0)) -> 0 | AT7: =IF(AR3="","",OFFSET(基準設定1!$F$13,QUOTIENT(COLUMN()-COLUMN($D3),4)*3,0)) -> 0 | AU7: =IF(AR3="","",OFFSET(基準設定1!$F$13,QUOTIENT(COLUMN()-COLUMN($D3),4)*3+1,0)) -> 100 | AV7: =IF(AV3="","",OFFSET(基準設定1!$E$13,QUOTIENT(COLUMN()-COLUMN($D3),4)*3,0)) -> 100 | AW7: =IF(AV3="","",OFFSET(基準設定1!$E$13,QUOTIENT(COLUMN()-COLUMN($D3),4)*3+1,0)) -> 0 | AX7: =IF(AV3="","",OFFSET(基準設定1!$F$13,QUOTIENT(COLUMN()-COLUMN($D3),4)*3,0)) -> 100 | AY7: =IF(AV3="","",OFFSET(基準設定1!$F$13,QUOTIENT(COLUMN()-COLUMN($D3),4)*3+1,0)) -> 0 | AZ7: =IF(AZ3="","",OFFSET(基準設定1!$E$13,QUOTIENT(COLUMN()-COLUMN($D3),4)*3,0)) -> 100 | BA7: =IF(AZ3="","",OFFSET(基準設定1!$E$13,QUOTIENT(COLUMN()-COLUMN($D3),4)*3+1,0)) -> 0 | BB7: =IF(AZ3="","",OFFSET(基準設定1!$F$13,QUOTIENT(COLUMN()-COLUMN($D3),4)*3,0)) -> 0 | BC7: =IF(AZ3="","",OFFSET(基準設定1!$F$13,QUOTIENT(COLUMN()-COLUMN($D3),4)*3+1,0)) -> 100 | BD7: =IF(BD3="","",OFFSET(基準設定1!$E$13,QUOTIENT(COLUMN()-COLUMN($D3),4)*3,0)) -> 100 | BE7: =IF(BD3="","",OFFSET(基準設定1!$E$13,QUOTIENT(COLUMN()-COLUMN($D3),4)*3+1,0)) -> 0 | BF7: =IF(BD3="","",OFFSET(基準設定1!$F$13,QUOTIENT(COLUMN()-COLUMN($D3),4)*3,0)) -> 100 | BG7: =IF(BD3="","",OFFSET(基準設定1!$F$13,QUOTIENT(COLUMN()-COLUMN($D3),4)*3+1,0)) -> 0 | BH7: =IF(BH3="","",OFFSET(基準設定1!$E$13,QUOTIENT(COLUMN()-COLUMN($D3),4)*3,0)) -> 70 | BI7: =IF(BH3="","",OFFSET(基準設定1!$E$13,QUOTIENT(COLUMN()-COLUMN($D3),4)*3+1,0)) -> 30 | BJ7: =IF(BH3="","",OFFSET(基準設定1!$F$13,QUOTIENT(COLUMN()-COLUMN($D3),4)*3,0)) -> 60 | BK7: =IF(BH3="","",OFFSET(基準設定1!$F$13,QUOTIENT(COLUMN()-COLUMN($D3),4)*3+1,0)) -> 40 | BL7: =IF(BL3="","",OFFSET(基準設定1!$E$13,QUOTIENT(COLUMN()-COLUMN($D3),4)*3,0)) -> 60 | BM7: =IF(BL3="","",OFFSET(基準設定1!$E$13,QUOTIENT(COLUMN()-COLUMN($D3),4)*3+1,0)) -> 40 | BN7: =IF(BL3="","",OFFSET(基準設定1!$F$13,QUOTIENT(COLUMN()-COLUMN($D3),4)*3,0)) -> 100 | BO7: =IF(BL3="","",OFFSET(基準設定1!$F$13,QUOTIENT(COLUMN()-COLUMN($D3),4)*3+1,0)) -> 0 | BP7: =IF(BP3="","",OFFSET(基準設定1!$E$13,QUOTIENT(COLUMN()-COLUMN($D3),4)*3,0)) ->  | BQ7: =IF(BP3="","",OFFSET(基準設定1!$E$13,QUOTIENT(COLUMN()-COLUMN($D3),4)*3+1,0)) ->  | BR7: =IF(BP3="","",OFFSET(基準設定1!$F$13,QUOTIENT(COLUMN()-COLUMN($D3),4)*3,0)) ->  | BS7: =IF(BP3="","",OFFSET(基準設定1!$F$13,QUOTIENT(COLUMN()-COLUMN($D3),4)*3+1,0)) ->  | BT7: =IF(BT3="","",OFFSET(基準設定1!$E$13,QUOTIENT(COLUMN()-COLUMN($D3),4)*3,0)) ->  | BU7: =IF(BT3="","",OFFSET(基準設定1!$E$13,QUOTIENT(COLUMN()-COLUMN($D3),4)*3+1,0)) ->  | BV7: =IF(BT3="","",OFFSET(基準設定1!$F$13,QUOTIENT(COLUMN()-COLUMN($D3),4)*3,0)) ->  | BW7: =IF(BT3="","",OFFSET(基準設定1!$F$13,QUOTIENT(COLUMN()-COLUMN($D3),4)*3+1,0)) ->  | BX7: =IF(BX3="","",OFFSET(基準設定1!$E$13,QUOTIENT(COLUMN()-COLUMN($D3),4)*3,0)) ->  | BY7: =IF(BX3="","",OFFSET(基準設定1!$E$13,QUOTIENT(COLUMN()-COLUMN($D3),4)*3+1,0)) ->  | BZ7: =IF(BX3="","",OFFSET(基準設定1!$F$13,QUOTIENT(COLUMN()-COLUMN($D3),4)*3,0)) ->  | CA7: =IF(BX3="","",OFFSET(基準設定1!$F$13,QUOTIENT(COLUMN()-COLUMN($D3),4)*3+1,0)) ->  | CB7: =IF(CB3="","",OFFSET(基準設定1!$E$13,QUOTIENT(COLUMN()-COLUMN($D3),4)*3,0)) ->  | CC7: =IF(CB3="","",OFFSET(基準設定1!$E$13,QUOTIENT(COLUMN()-COLUMN($D3),4)*3+1,0)) ->  | CD7: =IF(CB3="","",OFFSET(基準設定1!$F$13,QUOTIENT(COLUMN()-COLUMN($D3),4)*3,0)) ->  | CE7: =IF(CB3="","",OFFSET(基準設定1!$F$13,QUOTIENT(COLUMN()-COLUMN($D3),4)*3+1,0)) ->  | CF7: =IF(CF3="","",OFFSET(基準設定1!$E$13,QUOTIENT(COLUMN()-COLUMN($D3),4)*3,0)) ->  | CG7: =IF(CF3="","",OFFSET(基準設定1!$E$13,QUOTIENT(COLUMN()-COLUMN($D3),4)*3+1,0)) ->  | CH7: =IF(CF3="","",OFFSET(基準設定1!$F$13,QUOTIENT(COLUMN()-COLUMN($D3),4)*3,0)) ->  | CI7: =IF(CF3="","",OFFSET(基準設定1!$F$13,QUOTIENT(COLUMN()-COLUMN($D3),4)*3+1,0)) ->  | CJ7: =IF(CJ3="","",OFFSET(基準設定1!$E$13,QUOTIENT(COLUMN()-COLUMN($D3),4)*3,0)) ->  | CK7: =IF(CJ3="","",OFFSET(基準設定1!$E$13,QUOTIENT(COLUMN()-COLUMN($D3),4)*3+1,0)) ->  | CL7: =IF(CJ3="","",OFFSET(基準設定1!$F$13,QUOTIENT(COLUMN()-COLUMN($D3),4)*3,0)) ->  | CM7: =IF(CJ3="","",OFFSET(基準設定1!$F$13,QUOTIENT(COLUMN()-COLUMN($D3),4)*3+1,0)) ->  | CN7: =IF(CN3="","",OFFSET(基準設定1!$E$13,QUOTIENT(COLUMN()-COLUMN($D3),4)*3,0)) ->  | CO7: =IF(CN3="","",OFFSET(基準設定1!$E$13,QUOTIENT(COLUMN()-COLUMN($D3),4)*3+1,0)) ->  | CP7: =IF(CN3="","",OFFSET(基準設定1!$F$13,QUOTIENT(COLUMN()-COLUMN($D3),4)*3,0)) ->  | CQ7: =IF(CN3="","",OFFSET(基準設定1!$F$13,QUOTIENT(COLUMN()-COLUMN($D3),4)*3+1,0)) ->  | CR7: =IF(CR3="","",OFFSET(基準設定1!$E$13,QUOTIENT(COLUMN()-COLUMN($D3),4)*3,0)) ->  | CS7: =IF(CR3="","",OFFSET(基準設定1!$E$13,QUOTIENT(COLUMN()-COLUMN($D3),4)*3+1,0)) ->  | CT7: =IF(CR3="","",OFFSET(基準設定1!$F$13,QUOTIENT(COLUMN()-COLUMN($D3),4)*3,0)) ->  | CU7: =IF(CR3="","",OFFSET(基準設定1!$F$13,QUOTIENT(COLUMN()-COLUMN($D3),4)*3+1,0)) ->  | CV7: =IF(CV3="","",OFFSET(基準設定1!$E$13,QUOTIENT(COLUMN()-COLUMN($D3),4)*3,0)) ->  | CW7: =IF(CV3="","",OFFSET(基準設定1!$E$13,QUOTIENT(COLUMN()-COLUMN($D3),4)*3+1,0)) ->  | CX7: =IF(CV3="","",OFFSET(基準設定1!$F$13,QUOTIENT(COLUMN()-COLUMN($D3),4)*3,0)) ->  | CY7: =IF(CV3="","",OFFSET(基準設定1!$F$13,QUOTIENT(COLUMN()-COLUMN($D3),4)*3+1,0)) ->  | CZ7: =IF(CZ3="","",OFFSET(基準設定1!$E$13,QUOTIENT(COLUMN()-COLUMN($D3),4)*3,0)) ->  | DA7: =IF(CZ3="","",OFFSET(基準設定1!$E$13,QUOTIENT(COLUMN()-COLUMN($D3),4)*3+1,0)) ->  | DB7: =IF(CZ3="","",OFFSET(基準設定1!$F$13,QUOTIENT(COLUMN()-COLUMN($D3),4)*3,0)) ->  | DC7: =IF(CZ3="","",OFFSET(基準設定1!$F$13,QUOTIENT(COLUMN()-COLUMN($D3),4)*3+1,0)) ->  | DD7: =IF(DD3="","",OFFSET(基準設定1!$E$13,QUOTIENT(COLUMN()-COLUMN($D3),4)*3,0)) ->  | DE7: =IF(DD3="","",OFFSET(基準設定1!$E$13,QUOTIENT(COLUMN()-COLUMN($D3),4)*3+1,0)) ->  | DF7: =IF(DD3="","",OFFSET(基準設定1!$F$13,QUOTIENT(COLUMN()-COLUMN($D3),4)*3,0)) ->  | DG7: =IF(DD3="","",OFFSET(基準設定1!$F$13,QUOTIENT(COLUMN()-COLUMN($D3),4)*3+1,0)) ->  | DH7: =IF(DH3="","",OFFSET(基準設定1!$E$13,QUOTIENT(COLUMN()-COLUMN($D3),4)*3,0)) ->  | DI7: =IF(DH3="","",OFFSET(基準設定1!$E$13,QUOTIENT(COLUMN()-COLUMN($D3),4)*3+1,0)) ->  | DJ7: =IF(DH3="","",OFFSET(基準設定1!$F$13,QUOTIENT(COLUMN()-COLUMN($D3),4)*3,0)) ->  | DK7: =IF(DH3="","",OFFSET(基準設定1!$F$13,QUOTIENT(COLUMN()-COLUMN($D3),4)*3+1,0)) ->  | DL7: =IF(DL3="","",OFFSET(基準設定1!$E$13,QUOTIENT(COLUMN()-COLUMN($D3),4)*3,0)) ->  | DM7: =IF(DL3="","",OFFSET(基準設定1!$E$13,QUOTIENT(COLUMN()-COLUMN($D3),4)*3+1,0)) ->  | DN7: =IF(DL3="","",OFFSET(基準設定1!$F$13,QUOTIENT(COLUMN()-COLUMN($D3),4)*3,0)) ->  | DO7: =IF(DL3="","",OFFSET(基準設定1!$F$13,QUOTIENT(COLUMN()-COLUMN($D3),4)*3+1,0)) ->  | DP7: =IF(DP3="","",OFFSET(基準設定1!$E$13,QUOTIENT(COLUMN()-COLUMN($D3),4)*3,0)) ->  | DQ7: =IF(DP3="","",OFFSET(基準設定1!$E$13,QUOTIENT(COLUMN()-COLUMN($D3),4)*3+1,0)) ->  | DR7: =IF(DP3="","",OFFSET(基準設定1!$F$13,QUOTIENT(COLUMN()-COLUMN($D3),4)*3,0)) ->  | DS7: =IF(DP3="","",OFFSET(基準設定1!$F$13,QUOTIENT(COLUMN()-COLUMN($D3),4)*3+1,0)) ->  | DT7: =IF(DT$3="","",SUM(D7,F7)) -> 200 | DU7: =IF(DT$3="","",SUM(E7,G7)) -> 0 | DV7: =IF(DT$3="","",SUM(DT7:DU7)) -> 200 | DW7: =IF(DW$3="","",SUM(H7,J7)) -> 100 | DX7: =IF(DW$3="","",SUM(I7,K7)) -> 100 | DY7: =IF(DW$3="","",SUM(DW7:DX7)) -> 200 | DZ7: =IF(DZ$3="","",SUM(L7,N7)) -> 100 | EA7: =IF(DZ$3="","",SUM(M7,O7)) -> 100 | EB7: =IF(DZ$3="","",SUM(DZ7:EA7)) -> 200 | EC7: =IF(EC$3="","",SUM(P7,R7)) -> 200 | ED7: =IF(EC$3="","",SUM(Q7,S7)) -> 0 | EE7: =IF(EC$3="","",SUM(EC7:ED7)) -> 200 | EF7: =IF(EF$3="","",SUM(T7,V7)) -> 100 | EG7: =IF(EF$3="","",SUM(U7,W7)) -> 100 | EH7: =IF(EF$3="","",SUM(EF7:EG7)) -> 200 | EI7: =IF(EI$3="","",SUM(X7,Z7)) -> 100 | EJ7: =IF(EI$3="","",SUM(Y7,AA7)) -> 100 | EK7: =IF(EI$3="","",SUM(EI7:EJ7)) -> 200 | EL7: =IF(EL$3="","",SUM(AB7,AD7)) -> 100 | EM7: =IF(EL$3="","",SUM(AC7,AE7)) -> 100 | EN7: =IF(EL$3="","",SUM(EL7:EM7)) -> 200 | EO7: =IF(EO$3="","",SUM(AF7,AH7)) -> 200 | EP7: =IF(EO$3="","",SUM(AG7,AI7)) -> 0 | EQ7: =IF(EO$3="","",SUM(EO7:EP7)) -> 200 | ER7: =IF(ER$3="","",SUM(AJ7,AL7)) -> 100 | ES7: =IF(ER$3="","",SUM(AK7,AM7)) -> 100 | ET7: =IF(ER$3="","",SUM(ER7:ES7)) -> 200 | EU7: =IF(EU$3="","",SUM(AN7,AP7)) -> 160 | EV7: =IF(EU$3="","",SUM(AO7,AQ7)) -> 40 | EW7: =IF(EU$3="","",SUM(EU7:EV7)) -> 200 | EX7: =IF(EX$3="","",SUM(AR7,AT7)) -> 100 | EY7: =IF(EX$3="","",SUM(AS7,AU7)) -> 100 | EZ7: =IF(EX$3="","",SUM(EX7:EY7)) -> 200 | FA7: =IF(FA$3="","",SUM(AV7,AX7)) -> 200 | FB7: =IF(FA$3="","",SUM(AW7,AY7)) -> 0 | FC7: =IF(FA$3="","",SUM(FA7:FB7)) -> 200 | FD7: =IF(FD$3="","",SUM(AZ7,BB7)) -> 100 | FE7: =IF(FD$3="","",SUM(BA7,BC7)) -> 100 | FF7: =IF(FD$3="","",SUM(FD7:FE7)) -> 200 | FG7: =IF(FG$3="","",SUM(BD7,BF7)) -> 200 | FH7: =IF(FG$3="","",SUM(BE7,BG7)) -> 0 | FI7: =IF(FG$3="","",SUM(FG7:FH7)) -> 200 | FJ7: =IF(FJ$3="","",SUM(BH7,BJ7)) -> 130 | FK7: =IF(FJ$3="","",SUM(BI7,BK7)) -> 70 | FL7: =IF(FJ$3="","",SUM(FJ7:FK7)) -> 200 | FM7: =IF(FM$3="","",SUM(BL7,BN7)) -> 160 | FN7: =IF(FM$3="","",SUM(BM7,BO7)) -> 40 | FO7: =IF(FM$3="","",SUM(FM7:FN7)) -> 200 | FP7: =IF(FP$3="","",SUM(BP7,BR7)) ->  | FQ7: =IF(FP$3="","",SUM(BQ7,BS7)) ->  | FR7: =IF(FP$3="","",SUM(FP7:FQ7)) ->  | FS7: =IF(FS$3="","",SUM(BT7,BV7)) ->  | FT7: =IF(FS$3="","",SUM(BU7,BW7)) ->  | FU7: =IF(FS$3="","",SUM(FS7:FT7)) ->  | FV7: =IF(FV$3="","",SUM(BX7,BZ7)) ->  | FW7: =IF(FV$3="","",SUM(BY7,CA7)) ->  | FX7: =IF(FV$3="","",SUM(FV7:FW7)) ->  | FY7: =IF(FY$3="","",SUM(CB7,CD7)) ->  | FZ7: =IF(FY$3="","",SUM(CC7,CE7)) ->  | GA7: =IF(FY$3="","",SUM(FY7:FZ7)) ->  | GB7: =IF(GB$3="","",SUM(CF7,CH7)) ->  | GC7: =IF(GB$3="","",SUM(CG7,CI7)) ->  | GD7: =IF(GB$3="","",SUM(GB7:GC7)) ->  | GE7: =IF(GE$3="","",SUM(CJ7,CL7)) ->  | GF7: =IF(GE$3="","",SUM(CK7,CM7)) ->  | GG7: =IF(GE$3="","",SUM(GE7:GF7)) ->  | GH7: =IF(GH$3="","",SUM(CN7,CP7)) ->  | GI7: =IF(GH$3="","",SUM(CO7,CQ7)) ->  | GJ7: =IF(GH$3="","",SUM(GH7:GI7)) ->  | GK7: =IF(GK$3="","",SUM(CR7,CT7)) ->  | GL7: =IF(GK$3="","",SUM(CS7,CU7)) ->  | GM7: =IF(GK$3="","",SUM(GK7:GL7)) ->  | GN7: =IF(GN$3="","",SUM(CV7,CX7)) ->  | GO7: =IF(GN$3="","",SUM(CW7,CY7)) ->  | GP7: =IF(GN$3="","",SUM(GN7:GO7)) ->  | GQ7: =IF(GQ$3="","",SUM(CZ7,DB7)) ->  | GR7: =IF(GQ$3="","",SUM(DA7,DC7)) ->  | GS7: =IF(GQ$3="","",SUM(GQ7:GR7)) ->  | GT7: =IF(GT$3="","",SUM(DD7,DF7)) ->  | GU7: =IF(GT$3="","",SUM(DE7,DG7)) ->  | GV7: =IF(GT$3="","",SUM(GT7:GU7)) ->  | GW7: =IF(GW$3="","",SUM(DH7,DJ7)) ->  | GX7: =IF(GW$3="","",SUM(DI7,DK7)) ->  | GY7: =IF(GW$3="","",SUM(GW7:GX7)) ->  | GZ7: =IF(GZ$3="","",SUM(DL7,DN7)) ->  | HA7: =IF(GZ$3="","",SUM(DM7,DO7)) ->  | HB7: =IF(GZ$3="","",SUM(GZ7:HA7)) ->  | HC7: =IF(HC$3="","",SUM(DP7,DR7)) ->  | HD7: =IF(HC$3="","",SUM(DQ7,DS7)) ->  | HE7: =IF(HC$3="","",SUM(HC7:HD7)) ->  | HF7: =SUMIFS($DT$7:$HE$7,$DT$1:$HE$1,HF$2,$DT$6:$HE$6,"合計") -> 1000 | HG7: =SUMIFS($DT$7:$HE$7,$DT$1:$HE$1,HG$1,$DT$6:$HE$6,"合計") -> 1000 | HH7: =SUMIFS($DT$7:$HE$7,$DT$1:$HE$1,HH$1,$DT$6:$HE$6,"合計") -> 1200 | HI7: =SUMIFS($DT$7:$HE$7,$DT$1:$HE$1,HI$1,$DT$6:$HE$6,"合計") -> 3200 | HJ7: =SUMIFS(OFFSET(DT7,0,(HJ1-1)*3,1,(HJ2-HJ1+1)*3),OFFSET(DT1,0,(HJ1-1)*3,1,(HJ2-HJ1+1)*3),HJ3,OFFSET(DT6,0,(HJ1-1)*3,1,(HJ2-HJ1+1)*3),"合計") ->  | HK7: ＡとＢ の境 | HL7: =IF(OFFSET(基準設定1!$H$13,(COUNTA($HL4:HL4)-1)*3,0)="","",OFFSET(基準設定1!$H$13,(COUNTA($HL4:HL4)-1)*3,0)) -> 160 | HM7: =IF(OFFSET(基準設定1!$H$13,(COUNTA($HL4:HL4)-1)*3+1,0)="","",OFFSET(基準設定1!$H$13,(COUNTA($HL4:HL4)-1)*3+1,0)) -> 0 | HN7: =IF(OFFSET(基準設定1!$H$13,(COUNTA($HL4:HN4)-1)*3,0)="","",OFFSET(基準設定1!$H$13,(COUNTA($HL4:HN4)-1)*3,0)) -> 80 | HO7: =IF(OFFSET(基準設定1!$H$13,(COUNTA($HL4:HN4)-1)*3+1,0)="","",OFFSET(基準設定1!$H$13,(COUNTA($HL4:HN4)-1)*3+1,0)) -> 80 | HP7: =IF(OFFSET(基準設定1!$H$13,(COUNTA($HL4:HP4)-1)*3,0)="","",OFFSET(基準設定1!$H$13,(COUNTA($HL4:HP4)-1)*3,0)) -> 80 | HQ7: =IF(OFFSET(基準設定1!$H$13,(COUNTA($HL4:HP4)-1)*3+1,0)="","",OFFSET(基準設定1!$H$13,(COUNTA($HL4:HP4)-1)*3+1,0)) -> 80 | HR7: =IF(OFFSET(基準設定1!$H$13,(COUNTA($HL4:HR4)-1)*3,0)="","",OFFSET(基準設定1!$H$13,(COUNTA($HL4:HR4)-1)*3,0)) -> 160 | HS7: =IF(OFFSET(基準設定1!$H$13,(COUNTA($HL4:HR4)-1)*3+1,0)="","",OFFSET(基準設定1!$H$13,(COUNTA($HL4:HR4)-1)*3+1,0)) -> 0 | HT7: =IF(OFFSET(基準設定1!$H$13,(COUNTA($HL4:HT4)-1)*3,0)="","",OFFSET(基準設定1!$H$13,(COUNTA($HL4:HT4)-1)*3,0)) -> 80 | HU7: =IF(OFFSET(基準設定1!$H$13,(COUNTA($HL4:HT4)-1)*3+1,0)="","",OFFSET(基準設定1!$H$13,(COUNTA($HL4:HT4)-1)*3+1,0)) -> 80 | HV7: =IF(OFFSET(基準設定1!$H$13,(COUNTA($HL4:HV4)-1)*3,0)="","",OFFSET(基準設定1!$H$13,(COUNTA($HL4:HV4)-1)*3,0)) -> 80 | HW7: =IF(OFFSET(基準設定1!$H$13,(COUNTA($HL4:HV4)-1)*3+1,0)="","",OFFSET(基準設定1!$H$13,(COUNTA($HL4:HV4)-1)*3+1,0)) -> 80 | HX7: =IF(OFFSET(基準設定1!$H$13,(COUNTA($HL4:HX4)-1)*3,0)="","",OFFSET(基準設定1!$H$13,(COUNTA($HL4:HX4)-1)*3,0)) -> 80 | HY7: =IF(OFFSET(基準設定1!$H$13,(COUNTA($HL4:HX4)-1)*3+1,0)="","",OFFSET(基準設定1!$H$13,(COUNTA($HL4:HX4)-1)*3+1,0)) -> 80 | HZ7: =IF(OFFSET(基準設定1!$H$13,(COUNTA($HL4:HZ4)-1)*3,0)="","",OFFSET(基準設定1!$H$13,(COUNTA($HL4:HZ4)-1)*3,0)) -> 160 | IA7: =IF(OFFSET(基準設定1!$H$13,(COUNTA($HL4:HZ4)-1)*3+1,0)="","",OFFSET(基準設定1!$H$13,(COUNTA($HL4:HZ4)-1)*3+1,0)) -> 0 | IB7: =IF(OFFSET(基準設定1!$H$13,(COUNTA($HL4:IB4)-1)*3,0)="","",OFFSET(基準設定1!$H$13,(COUNTA($HL4:IB4)-1)*3,0)) -> 80 | IC7: =IF(OFFSET(基準設定1!$H$13,(COUNTA($HL4:IB4)-1)*3+1,0)="","",OFFSET(基準設定1!$H$13,(COUNTA($HL4:IB4)-1)*3+1,0)) -> 80 | ID7: =IF(OFFSET(基準設定1!$H$13,(COUNTA($HL4:ID4)-1)*3,0)="","",OFFSET(基準設定1!$H$13,(COUNTA($HL4:ID4)-1)*3,0)) -> 128 | IE7: =IF(OFFSET(基準設定1!$H$13,(COUNTA($HL4:ID4)-1)*3+1,0)="","",OFFSET(基準設定1!$H$13,(COUNTA($HL4:ID4)-1)*3+1,0)) -> 32 | IF7: =IF(OFFSET(基準設定1!$H$13,(COUNTA($HL4:IF4)-1)*3,0)="","",OFFSET(基準設定1!$H$13,(COUNTA($HL4:IF4)-1)*3,0)) -> 80 | IG7: =IF(OFFSET(基準設定1!$H$13,(COUNTA($HL4:IF4)-1)*3+1,0)="","",OFFSET(基準設定1!$H$13,(COUNTA($HL4:IF4)-1)*3+1,0)) -> 80 | IH7: =IF(OFFSET(基準設定1!$H$13,(COUNTA($HL4:IH4)-1)*3,0)="","",OFFSET(基準設定1!$H$13,(COUNTA($HL4:IH4)-1)*3,0)) -> 160 | II7: =IF(OFFSET(基準設定1!$H$13,(COUNTA($HL4:IH4)-1)*3+1,0)="","",OFFSET(基準設定1!$H$13,(COUNTA($HL4:IH4)-1)*3+1,0)) -> 0 | IJ7: =IF(OFFSET(基準設定1!$H$13,(COUNTA($HL4:IJ4)-1)*3,0)="","",OFFSET(基準設定1!$H$13,(COUNTA($HL4:IJ4)-1)*3,0)) -> 80 | IK7: =IF(OFFSET(基準設定1!$H$13,(COUNTA($HL4:IJ4)-1)*3+1,0)="","",OFFSET(基準設定1!$H$13,(COUNTA($HL4:IJ4)-1)*3+1,0)) -> 80 | IL7: =IF(OFFSET(基準設定1!$H$13,(COUNTA($HL4:IL4)-1)*3,0)="","",OFFSET(基準設定1!$H$13,(COUNTA($HL4:IL4)-1)*3,0)) -> 160 | IM7: =IF(OFFSET(基準設定1!$H$13,(COUNTA($HL4:IL4)-1)*3+1,0)="","",OFFSET(基準設定1!$H$13,(COUNTA($HL4:IL4)-1)*3+1,0)) -> 0 | IN7: =IF(OFFSET(基準設定1!$H$13,(COUNTA($HL4:IN4)-1)*3,0)="","",OFFSET(基準設定1!$H$13,(COUNTA($HL4:IN4)-1)*3,0)) -> 104 | IO7: =IF(OFFSET(基準設定1!$H$13,(COUNTA($HL4:IN4)-1)*3+1,0)="","",OFFSET(基準設定1!$H$13,(COUNTA($HL4:IN4)-1)*3+1,0)) -> 56 | IP7: =IF(OFFSET(基準設定1!$H$13,(COUNTA($HL4:IP4)-1)*3,0)="","",OFFSET(基準設定1!$H$13,(COUNTA($HL4:IP4)-1)*3,0)) -> 128 | IQ7: =IF(OFFSET(基準設定1!$H$13,(COUNTA($HL4:IP4)-1)*3+1,0)="","",OFFSET(基準設定1!$H$13,(COUNTA($HL4:IP4)-1)*3+1,0)) -> 32 | IR7: =IF(OFFSET(基準設定1!$H$13,(COUNTA($HL4:IR4)-1)*3,0)="","",OFFSET(基準設定1!$H$13,(COUNTA($HL4:IR4)-1)*3,0)) ->  | IS7: =IF(OFFSET(基準設定1!$H$13,(COUNTA($HL4:IR4)-1)*3+1,0)="","",OFFSET(基準設定1!$H$13,(COUNTA($HL4:IR4)-1)*3+1,0)) ->  | IT7: =IF(OFFSET(基準設定1!$H$13,(COUNTA($HL4:IT4)-1)*3,0)="","",OFFSET(基準設定1!$H$13,(COUNTA($HL4:IT4)-1)*3,0)) ->  | IU7: =IF(OFFSET(基準設定1!$H$13,(COUNTA($HL4:IT4)-1)*3+1,0)="","",OFFSET(基準設定1!$H$13,(COUNTA($HL4:IT4)-1)*3+1,0)) ->  | IV7: =IF(OFFSET(基準設定1!$H$13,(COUNTA($HL4:IV4)-1)*3,0)="","",OFFSET(基準設定1!$H$13,(COUNTA($HL4:IV4)-1)*3,0)) ->  | IW7: =IF(OFFSET(基準設定1!$H$13,(COUNTA($HL4:IV4)-1)*3+1,0)="","",OFFSET(基準設定1!$H$13,(COUNTA($HL4:IV4)-1)*3+1,0)) ->  | IX7: =IF(OFFSET(基準設定1!$H$13,(COUNTA($HL4:IX4)-1)*3,0)="","",OFFSET(基準設定1!$H$13,(COUNTA($HL4:IX4)-1)*3,0)) ->  | IY7: =IF(OFFSET(基準設定1!$H$13,(COUNTA($HL4:IX4)-1)*3+1,0)="","",OFFSET(基準設定1!$H$13,(COUNTA($HL4:IX4)-1)*3+1,0)) ->  | IZ7: =IF(OFFSET(基準設定1!$H$13,(COUNTA($HL4:IZ4)-1)*3,0)="","",OFFSET(基準設定1!$H$13,(COUNTA($HL4:IZ4)-1)*3,0)) ->  | JA7: =IF(OFFSET(基準設定1!$H$13,(COUNTA($HL4:IZ4)-1)*3+1,0)="","",OFFSET(基準設定1!$H$13,(COUNTA($HL4:IZ4)-1)*3+1,0)) ->  | JB7: =IF(OFFSET(基準設定1!$H$13,(COUNTA($HL4:JB4)-1)*3,0)="","",OFFSET(基準設定1!$H$13,(COUNTA($HL4:JB4)-1)*3,0)) ->  | JC7: =IF(OFFSET(基準設定1!$H$13,(COUNTA($HL4:JB4)-1)*3+1,0)="","",OFFSET(基準設定1!$H$13,(COUNTA($HL4:JB4)-1)*3+1,0)) ->  | JD7: =IF(OFFSET(基準設定1!$H$13,(COUNTA($HL4:JD4)-1)*3,0)="","",OFFSET(基準設定1!$H$13,(COUNTA($HL4:JD4)-1)*3,0)) ->  | JE7: =IF(OFFSET(基準設定1!$H$13,(COUNTA($HL4:JD4)-1)*3+1,0)="","",OFFSET(基準設定1!$H$13,(COUNTA($HL4:JD4)-1)*3+1,0)) ->  | JF7: =IF(OFFSET(基準設定1!$H$13,(COUNTA($HL4:JF4)-1)*3,0)="","",OFFSET(基準設定1!$H$13,(COUNTA($HL4:JF4)-1)*3,0)) ->  | JG7: =IF(OFFSET(基準設定1!$H$13,(COUNTA($HL4:JF4)-1)*3+1,0)="","",OFFSET(基準設定1!$H$13,(COUNTA($HL4:JF4)-1)*3+1,0)) ->  | JH7: =IF(OFFSET(基準設定1!$H$13,(COUNTA($HL4:JH4)-1)*3,0)="","",OFFSET(基準設定1!$H$13,(COUNTA($HL4:JH4)-1)*3,0)) ->  | JI7: =IF(OFFSET(基準設定1!$H$13,(COUNTA($HL4:JH4)-1)*3+1,0)="","",OFFSET(基準設定1!$H$13,(COUNTA($HL4:JH4)-1)*3+1,0)) ->  | JJ7: =IF(OFFSET(基準設定1!$H$13,(COUNTA($HL4:JJ4)-1)*3,0)="","",OFFSET(基準設定1!$H$13,(COUNTA($HL4:JJ4)-1)*3,0)) ->  | JK7: =IF(OFFSET(基準設定1!$H$13,(COUNTA($HL4:JJ4)-1)*3+1,0)="","",OFFSET(基準設定1!$H$13,(COUNTA($HL4:JJ4)-1)*3+1,0)) ->  | JL7: =IF(OFFSET(基準設定1!$H$13,(COUNTA($HL4:JL4)-1)*3,0)="","",OFFSET(基準設定1!$H$13,(COUNTA($HL4:JL4)-1)*3,0)) ->  | JM7: =IF(OFFSET(基準設定1!$H$13,(COUNTA($HL4:JL4)-1)*3+1,0)="","",OFFSET(基準設定1!$H$13,(COUNTA($HL4:JL4)-1)*3+1,0)) ->  | JN7: =IF(OFFSET(基準設定1!$H$13,(COUNTA($HL4:JN4)-1)*3,0)="","",OFFSET(基準設定1!$H$13,(COUNTA($HL4:JN4)-1)*3,0)) ->  | JO7: =IF(OFFSET(基準設定1!$H$13,(COUNTA($HL4:JN4)-1)*3+1,0)="","",OFFSET(基準設定1!$H$13,(COUNTA($HL4:JN4)-1)*3+1,0)) ->  | JP7: =IF(OFFSET(基準設定1!$H$13,(COUNTA($HL4:JP4)-1)*3,0)="","",OFFSET(基準設定1!$H$13,(COUNTA($HL4:JP4)-1)*3,0)) ->  | JQ7: =IF(OFFSET(基準設定1!$H$13,(COUNTA($HL4:JP4)-1)*3+1,0)="","",OFFSET(基準設定1!$H$13,(COUNTA($HL4:JP4)-1)*3+1,0)) ->  | JR7: =IF(OFFSET(基準設定1!$H$13,(COUNTA($HL4:JR4)-1)*3,0)="","",OFFSET(基準設定1!$H$13,(COUNTA($HL4:JR4)-1)*3,0)) ->  | JS7: =IF(OFFSET(基準設定1!$H$13,(COUNTA($HL4:JR4)-1)*3+1,0)="","",OFFSET(基準設定1!$H$13,(COUNTA($HL4:JR4)-1)*3+1,0)) ->  | JU7: =IF(COUNTIFS($D$1:$DS$1,JU$1,$D$6:$DS$6,JU$6)=0,"",SUMIFS($D7:$DS7,$D$1:$DS$1,JU$1,$D$6:$DS$6,JU$6)) -> 700 | JV7: =IF(COUNTIFS($D$1:$DS$1,JV$1,$D$6:$DS$6,JV$6)=0,"",SUMIFS($D7:$DS7,$D$1:$DS$1,JV$1,$D$6:$DS$6,JV$6)) -> 300 | JW7: 660 | JX7: 340 | JY7: 890 | JZ7: 310 | KA7: =IF(COUNTIF($D$6:$DS$6,KA$6)=0,"",SUMIFS($D7:$DS7,$D$6:$DS$6,KA$6)) -> 2250 | KB7: =IF(COUNTIF($D$6:$DS$6,KB$6)=0,"",SUMIFS($D7:$DS7,$D$6:$DS$6,KB$6)) -> 950 | KK7: =OFFSET(基準設定2!$D$1,MATCH(KC$2,基準設定2!$A:$A,0)-1,0) -> 80 | KL7: =OFFSET(基準設定2!$D$1,MATCH(KC$2,基準設定2!$A:$A,0)-1+1,0) -> 80 | KM7: =OFFSET(基準設定2!$D$1,MATCH(KE$2,基準設定2!$A:$A,0)-1,0) -> 80 | KN7: =OFFSET(基準設定2!$D$1,MATCH(KE$2,基準設定2!$A:$A,0)-1+1,0) -> 80 | KO7: =OFFSET(基準設定2!$D$1,MATCH(KG$2,基準設定2!$A:$A,0)-1,0) -> 80 | KP7: =OFFSET(基準設定2!$D$1,MATCH(KG$2,基準設定2!$A:$A,0)-1+1,0) -> 80 | KQ7: =OFFSET(基準設定2!$D$1,MATCH(KI$2,基準設定2!$A:$A,0)-1,0) -> 80 | KR7: =OFFSET(基準設定2!$D$1,MATCH(KI$2,基準設定2!$A:$A,0)-1+1,0) -> 80
A8: 組 | B8: 番 | C8: 名前 | HK8: ＢとＣ の境 | HL8: =IF(OFFSET(基準設定1!$H$13,(COUNTA($HL4:HL4)-1)*3,1)="","",OFFSET(基準設定1!$H$13,(COUNTA($HL4:HL4)-1)*3,1)) -> 100 | HM8: =IF(OFFSET(基準設定1!$H$13,(COUNTA($HL4:HL4)-1)*3+1,1)="","",OFFSET(基準設定1!$H$13,(COUNTA($HL4:HL4)-1)*3+1,1)) -> 0 | HN8: =IF(OFFSET(基準設定1!$H$13,(COUNTA($HL4:HN4)-1)*3,1)="","",OFFSET(基準設定1!$H$13,(COUNTA($HL4:HN4)-1)*3,1)) -> 50 | HO8: =IF(OFFSET(基準設定1!$H$13,(COUNTA($HL4:HN4)-1)*3+1,1)="","",OFFSET(基準設定1!$H$13,(COUNTA($HL4:HN4)-1)*3+1,1)) -> 50 | HP8: =IF(OFFSET(基準設定1!$H$13,(COUNTA($HL4:HP4)-1)*3,1)="","",OFFSET(基準設定1!$H$13,(COUNTA($HL4:HP4)-1)*3,1)) -> 50 | HQ8: =IF(OFFSET(基準設定1!$H$13,(COUNTA($HL4:HP4)-1)*3+1,1)="","",OFFSET(基準設定1!$H$13,(COUNTA($HL4:HP4)-1)*3+1,1)) -> 50 | HR8: =IF(OFFSET(基準設定1!$H$13,(COUNTA($HL4:HR4)-1)*3,1)="","",OFFSET(基準設定1!$H$13,(COUNTA($HL4:HR4)-1)*3,1)) -> 100 | HS8: =IF(OFFSET(基準設定1!$H$13,(COUNTA($HL4:HR4)-1)*3+1,1)="","",OFFSET(基準設定1!$H$13,(COUNTA($HL4:HR4)-1)*3+1,1)) -> 0 | HT8: =IF(OFFSET(基準設定1!$H$13,(COUNTA($HL4:HT4)-1)*3,1)="","",OFFSET(基準設定1!$H$13,(COUNTA($HL4:HT4)-1)*3,1)) -> 50 | HU8: =IF(OFFSET(基準設定1!$H$13,(COUNTA($HL4:HT4)-1)*3+1,1)="","",OFFSET(基準設定1!$H$13,(COUNTA($HL4:HT4)-1)*3+1,1)) -> 50 | HV8: =IF(OFFSET(基準設定1!$H$13,(COUNTA($HL4:HV4)-1)*3,1)="","",OFFSET(基準設定1!$H$13,(COUNTA($HL4:HV4)-1)*3,1)) -> 50 | HW8: =IF(OFFSET(基準設定1!$H$13,(COUNTA($HL4:HV4)-1)*3+1,1)="","",OFFSET(基準設定1!$H$13,(COUNTA($HL4:HV4)-1)*3+1,1)) -> 50 | HX8: =IF(OFFSET(基準設定1!$H$13,(COUNTA($HL4:HX4)-1)*3,1)="","",OFFSET(基準設定1!$H$13,(COUNTA($HL4:HX4)-1)*3,1)) -> 50 | HY8: =IF(OFFSET(基準設定1!$H$13,(COUNTA($HL4:HX4)-1)*3+1,1)="","",OFFSET(基準設定1!$H$13,(COUNTA($HL4:HX4)-1)*3+1,1)) -> 50 | HZ8: =IF(OFFSET(基準設定1!$H$13,(COUNTA($HL4:HZ4)-1)*3,1)="","",OFFSET(基準設定1!$H$13,(COUNTA($HL4:HZ4)-1)*3,1)) -> 100 | IA8: =IF(OFFSET(基準設定1!$H$13,(COUNTA($HL4:HZ4)-1)*3+1,1)="","",OFFSET(基準設定1!$H$13,(COUNTA($HL4:HZ4)-1)*3+1,1)) -> 0 | IB8: =IF(OFFSET(基準設定1!$H$13,(COUNTA($HL4:IB4)-1)*3,1)="","",OFFSET(基準設定1!$H$13,(COUNTA($HL4:IB4)-1)*3,1)) -> 50 | IC8: =IF(OFFSET(基準設定1!$H$13,(COUNTA($HL4:IB4)-1)*3+1,1)="","",OFFSET(基準設定1!$H$13,(COUNTA($HL4:IB4)-1)*3+1,1)) -> 50 | ID8: =IF(OFFSET(基準設定1!$H$13,(COUNTA($HL4:ID4)-1)*3,1)="","",OFFSET(基準設定1!$H$13,(COUNTA($HL4:ID4)-1)*3,1)) -> 80 | IE8: =IF(OFFSET(基準設定1!$H$13,(COUNTA($HL4:ID4)-1)*3+1,1)="","",OFFSET(基準設定1!$H$13,(COUNTA($HL4:ID4)-1)*3+1,1)) -> 20 | IF8: =IF(OFFSET(基準設定1!$H$13,(COUNTA($HL4:IF4)-1)*3,1)="","",OFFSET(基準設定1!$H$13,(COUNTA($HL4:IF4)-1)*3,1)) -> 50 | IG8: =IF(OFFSET(基準設定1!$H$13,(COUNTA($HL4:IF4)-1)*3+1,1)="","",OFFSET(基準設定1!$H$13,(COUNTA($HL4:IF4)-1)*3+1,1)) -> 50 | IH8: =IF(OFFSET(基準設定1!$H$13,(COUNTA($HL4:IH4)-1)*3,1)="","",OFFSET(基準設定1!$H$13,(COUNTA($HL4:IH4)-1)*3,1)) -> 100 | II8: =IF(OFFSET(基準設定1!$H$13,(COUNTA($HL4:IH4)-1)*3+1,1)="","",OFFSET(基準設定1!$H$13,(COUNTA($HL4:IH4)-1)*3+1,1)) -> 0 | IJ8: =IF(OFFSET(基準設定1!$H$13,(COUNTA($HL4:IJ4)-1)*3,1)="","",OFFSET(基準設定1!$H$13,(COUNTA($HL4:IJ4)-1)*3,1)) -> 50 | IK8: =IF(OFFSET(基準設定1!$H$13,(COUNTA($HL4:IJ4)-1)*3+1,1)="","",OFFSET(基準設定1!$H$13,(COUNTA($HL4:IJ4)-1)*3+1,1)) -> 50 | IL8: =IF(OFFSET(基準設定1!$H$13,(COUNTA($HL4:IL4)-1)*3,1)="","",OFFSET(基準設定1!$H$13,(COUNTA($HL4:IL4)-1)*3,1)) -> 100 | IM8: =IF(OFFSET(基準設定1!$H$13,(COUNTA($HL4:IL4)-1)*3+1,1)="","",OFFSET(基準設定1!$H$13,(COUNTA($HL4:IL4)-1)*3+1,1)) -> 0 | IN8: =IF(OFFSET(基準設定1!$H$13,(COUNTA($HL4:IN4)-1)*3,1)="","",OFFSET(基準設定1!$H$13,(COUNTA($HL4:IN4)-1)*3,1)) -> 65 | IO8: =IF(OFFSET(基準設定1!$H$13,(COUNTA($HL4:IN4)-1)*3+1,1)="","",OFFSET(基準設定1!$H$13,(COUNTA($HL4:IN4)-1)*3+1,1)) -> 35 | IP8: =IF(OFFSET(基準設定1!$H$13,(COUNTA($HL4:IP4)-1)*3,1)="","",OFFSET(基準設定1!$H$13,(COUNTA($HL4:IP4)-1)*3,1)) -> 80 | IQ8: =IF(OFFSET(基準設定1!$H$13,(COUNTA($HL4:IP4)-1)*3+1,1)="","",OFFSET(基準設定1!$H$13,(COUNTA($HL4:IP4)-1)*3+1,1)) -> 20 | IR8: =IF(OFFSET(基準設定1!$H$13,(COUNTA($HL4:IR4)-1)*3,1)="","",OFFSET(基準設定1!$H$13,(COUNTA($HL4:IR4)-1)*3,1)) ->  | IS8: =IF(OFFSET(基準設定1!$H$13,(COUNTA($HL4:IR4)-1)*3+1,1)="","",OFFSET(基準設定1!$H$13,(COUNTA($HL4:IR4)-1)*3+1,1)) ->  | IT8: =IF(OFFSET(基準設定1!$H$13,(COUNTA($HL4:IT4)-1)*3,1)="","",OFFSET(基準設定1!$H$13,(COUNTA($HL4:IT4)-1)*3,1)) ->  | IU8: =IF(OFFSET(基準設定1!$H$13,(COUNTA($HL4:IT4)-1)*3+1,1)="","",OFFSET(基準設定1!$H$13,(COUNTA($HL4:IT4)-1)*3+1,1)) ->  | IV8: =IF(OFFSET(基準設定1!$H$13,(COUNTA($HL4:IV4)-1)*3,1)="","",OFFSET(基準設定1!$H$13,(COUNTA($HL4:IV4)-1)*3,1)) ->  | IW8: =IF(OFFSET(基準設定1!$H$13,(COUNTA($HL4:IV4)-1)*3+1,1)="","",OFFSET(基準設定1!$H$13,(COUNTA($HL4:IV4)-1)*3+1,1)) ->  | IX8: =IF(OFFSET(基準設定1!$H$13,(COUNTA($HL4:IX4)-1)*3,1)="","",OFFSET(基準設定1!$H$13,(COUNTA($HL4:IX4)-1)*3,1)) ->  | IY8: =IF(OFFSET(基準設定1!$H$13,(COUNTA($HL4:IX4)-1)*3+1,1)="","",OFFSET(基準設定1!$H$13,(COUNTA($HL4:IX4)-1)*3+1,1)) ->  | IZ8: =IF(OFFSET(基準設定1!$H$13,(COUNTA($HL4:IZ4)-1)*3,1)="","",OFFSET(基準設定1!$H$13,(COUNTA($HL4:IZ4)-1)*3,1)) ->  | JA8: =IF(OFFSET(基準設定1!$H$13,(COUNTA($HL4:IZ4)-1)*3+1,1)="","",OFFSET(基準設定1!$H$13,(COUNTA($HL4:IZ4)-1)*3+1,1)) ->  | JB8: =IF(OFFSET(基準設定1!$H$13,(COUNTA($HL4:JB4)-1)*3,1)="","",OFFSET(基準設定1!$H$13,(COUNTA($HL4:JB4)-1)*3,1)) ->  | JC8: =IF(OFFSET(基準設定1!$H$13,(COUNTA($HL4:JB4)-1)*3+1,1)="","",OFFSET(基準設定1!$H$13,(COUNTA($HL4:JB4)-1)*3+1,1)) ->  | JD8: =IF(OFFSET(基準設定1!$H$13,(COUNTA($HL4:JD4)-1)*3,1)="","",OFFSET(基準設定1!$H$13,(COUNTA($HL4:JD4)-1)*3,1)) ->  | JE8: =IF(OFFSET(基準設定1!$H$13,(COUNTA($HL4:JD4)-1)*3+1,1)="","",OFFSET(基準設定1!$H$13,(COUNTA($HL4:JD4)-1)*3+1,1)) ->  | JF8: =IF(OFFSET(基準設定1!$H$13,(COUNTA($HL4:JF4)-1)*3,1)="","",OFFSET(基準設定1!$H$13,(COUNTA($HL4:JF4)-1)*3,1)) ->  | JG8: =IF(OFFSET(基準設定1!$H$13,(COUNTA($HL4:JF4)-1)*3+1,1)="","",OFFSET(基準設定1!$H$13,(COUNTA($HL4:JF4)-1)*3+1,1)) ->  | JH8: =IF(OFFSET(基準設定1!$H$13,(COUNTA($HL4:JH4)-1)*3,1)="","",OFFSET(基準設定1!$H$13,(COUNTA($HL4:JH4)-1)*3,1)) ->  | JI8: =IF(OFFSET(基準設定1!$H$13,(COUNTA($HL4:JH4)-1)*3+1,1)="","",OFFSET(基準設定1!$H$13,(COUNTA($HL4:JH4)-1)*3+1,1)) ->  | JJ8: =IF(OFFSET(基準設定1!$H$13,(COUNTA($HL4:JJ4)-1)*3,1)="","",OFFSET(基準設定1!$H$13,(COUNTA($HL4:JJ4)-1)*3,1)) ->  | JK8: =IF(OFFSET(基準設定1!$H$13,(COUNTA($HL4:JJ4)-1)*3+1,1)="","",OFFSET(基準設定1!$H$13,(COUNTA($HL4:JJ4)-1)*3+1,1)) ->  | JL8: =IF(OFFSET(基準設定1!$H$13,(COUNTA($HL4:JL4)-1)*3,1)="","",OFFSET(基準設定1!$H$13,(COUNTA($HL4:JL4)-1)*3,1)) ->  | JM8: =IF(OFFSET(基準設定1!$H$13,(COUNTA($HL4:JL4)-1)*3+1,1)="","",OFFSET(基準設定1!$H$13,(COUNTA($HL4:JL4)-1)*3+1,1)) ->  | JN8: =IF(OFFSET(基準設定1!$H$13,(COUNTA($HL4:JN4)-1)*3,1)="","",OFFSET(基準設定1!$H$13,(COUNTA($HL4:JN4)-1)*3,1)) ->  | JO8: =IF(OFFSET(基準設定1!$H$13,(COUNTA($HL4:JN4)-1)*3+1,1)="","",OFFSET(基準設定1!$H$13,(COUNTA($HL4:JN4)-1)*3+1,1)) ->  | JP8: =IF(OFFSET(基準設定1!$H$13,(COUNTA($HL4:JP4)-1)*3,1)="","",OFFSET(基準設定1!$H$13,(COUNTA($HL4:JP4)-1)*3,1)) ->  | JQ8: =IF(OFFSET(基準設定1!$H$13,(COUNTA($HL4:JP4)-1)*3+1,1)="","",OFFSET(基準設定1!$H$13,(COUNTA($HL4:JP4)-1)*3+1,1)) ->  | JR8: =IF(OFFSET(基準設定1!$H$13,(COUNTA($HL4:JR4)-1)*3,1)="","",OFFSET(基準設定1!$H$13,(COUNTA($HL4:JR4)-1)*3,1)) ->  | JS8: =IF(OFFSET(基準設定1!$H$13,(COUNTA($HL4:JR4)-1)*3+1,1)="","",OFFSET(基準設定1!$H$13,(COUNTA($HL4:JR4)-1)*3+1,1)) ->  | KK8: =OFFSET(基準設定2!$E$1,MATCH(KC$2,基準設定2!$A:$A,0)-1,0) -> 50 | KL8: =OFFSET(基準設定2!$E$1,MATCH(KC$2,基準設定2!$A:$A,0)-1+1,0) -> 50 | KM8: =OFFSET(基準設定2!$E$1,MATCH(KE$2,基準設定2!$A:$A,0)-1,0) -> 50 | KN8: =OFFSET(基準設定2!$E$1,MATCH(KE$2,基準設定2!$A:$A,0)-1+1,0) -> 50 | KO8: =OFFSET(基準設定2!$E$1,MATCH(KG$2,基準設定2!$A:$A,0)-1,0) -> 50 | KP8: =OFFSET(基準設定2!$E$1,MATCH(KG$2,基準設定2!$A:$A,0)-1+1,0) -> 50 | KQ8: =OFFSET(基準設定2!$E$1,MATCH(KI$2,基準設定2!$A:$A,0)-1,0) -> 50 | KR8: =OFFSET(基準設定2!$E$1,MATCH(KI$2,基準設定2!$A:$A,0)-1+1,0) -> 50
A9: 1 | B9: 1 | C9: =VLOOKUP(B9,INDIRECT("_"&A9&"組"),2,0)&"" ->  | DT9: =IF(OR($C9="",AND(D9="",F9="")),"",SUM(D9,F9)) ->  | DU9: =IF(OR($C9="",AND(E9="",G9="")),"",SUM(E9,G9)) ->  | DV9: =IF(AND(DT9="",DU9=""),"",SUM(DT9:DU9)) ->  | DW9: =IF(OR($C9="",AND(H9="",J9="")),"",SUM(H9,J9)) ->  | DX9: =IF(OR($C9="",AND(I9="",K9="")),"",SUM(I9,K9)) ->  | DY9: =IF(AND(DW9="",DX9=""),"",SUM(DW9:DX9)) ->  | DZ9: =IF(OR($C9="",AND(L9="",N9="")),"",SUM(L9,N9)) ->  | EA9: =IF(OR($C9="",AND(M9="",O9="")),"",SUM(M9,O9)) ->  | EB9: =IF(AND(DZ9="",EA9=""),"",SUM(DZ9:EA9)) ->  | EC9: =IF(OR($C9="",AND(P9="",R9="")),"",SUM(P9,R9)) ->  | ED9: =IF(OR($C9="",AND(Q9="",S9="")),"",SUM(Q9,S9)) ->  | EE9: =IF(AND(EC9="",ED9=""),"",SUM(EC9:ED9)) ->  | EF9: =IF(OR($C9="",AND(T9="",V9="")),"",SUM(T9,V9)) ->  | EG9: =IF(OR($C9="",AND(U9="",W9="")),"",SUM(U9,W9)) ->  | EH9: =IF(AND(EF9="",EG9=""),"",SUM(EF9:EG9)) ->  | EI9: =IF(OR($C9="",AND(X9="",Z9="")),"",SUM(X9,Z9)) ->  | EJ9: =IF(OR($C9="",AND(Y9="",AA9="")),"",SUM(Y9,AA9)) ->  | EK9: =IF(AND(EI9="",EJ9=""),"",SUM(EI9:EJ9)) ->  | EL9: =IF(OR($C9="",AND(AB9="",AD9="")),"",SUM(AB9,AD9)) ->  | EM9: =IF(OR($C9="",AND(AC9="",AE9="")),"",SUM(AC9,AE9)) ->  | EN9: =IF(AND(EL9="",EM9=""),"",SUM(EL9:EM9)) ->  | EO9: =IF(OR($C9="",AND(AF9="",AH9="")),"",SUM(AF9,AH9)) ->  | EP9: =IF(OR($C9="",AND(AG9="",AI9="")),"",SUM(AG9,AI9)) ->  | EQ9: =IF(AND(EO9="",EP9=""),"",SUM(EO9:EP9)) ->  | ER9: =IF(OR($C9="",AND(AJ9="",AL9="")),"",SUM(AJ9,AL9)) ->  | ES9: =IF(OR($C9="",AND(AK9="",AM9="")),"",SUM(AK9,AM9)) ->  | ET9: =IF(AND(ER9="",ES9=""),"",SUM(ER9:ES9)) ->  | EU9: =IF(OR($C9="",AND(AN9="",AP9="")),"",SUM(AN9,AP9)) ->  | EV9: =IF(OR($C9="",AND(AO9="",AQ9="")),"",SUM(AO9,AQ9)) ->  | EW9: =IF(AND(EU9="",EV9=""),"",SUM(EU9:EV9)) ->  | EX9: =IF(OR($C9="",AND(AR9="",AT9="")),"",SUM(AR9,AT9)) ->  | EY9: =IF(OR($C9="",AND(AS9="",AU9="")),"",SUM(AS9,AU9)) ->  | EZ9: =IF(AND(EX9="",EY9=""),"",SUM(EX9:EY9)) ->  | FA9: =IF(OR($C9="",AND(AV9="",AX9="")),"",SUM(AV9,AX9)) ->  | FB9: =IF(OR($C9="",AND(AW9="",AY9="")),"",SUM(AW9,AY9)) ->  | FC9: =IF(AND(FA9="",FB9=""),"",SUM(FA9:FB9)) ->  | FD9: =IF(OR($C9="",AND(AZ9="",BB9="")),"",SUM(AZ9,BB9)) ->  | FE9: =IF(OR($C9="",AND(BA9="",BC9="")),"",SUM(BA9,BC9)) ->  | FF9: =IF(AND(FD9="",FE9=""),"",SUM(FD9:FE9)) ->  | FG9: =IF(OR($C9="",AND(BD9="",BF9="")),"",SUM(BD9,BF9)) ->  | FH9: =IF(OR($C9="",AND(BE9="",BG9="")),"",SUM(BE9,BG9)) ->  | FI9: =IF(AND(FG9="",FH9=""),"",SUM(FG9:FH9)) ->  | FJ9: =IF(OR($C9="",AND(BH9="",BJ9="")),"",SUM(BH9,BJ9)) ->  | FK9: =IF(OR($C9="",AND(BI9="",BK9="")),"",SUM(BI9,BK9)) ->  | FL9: =IF(AND(FJ9="",FK9=""),"",SUM(FJ9:FK9)) ->  | FM9: =IF(OR($C9="",AND(BL9="",BN9="")),"",SUM(BL9,BN9)) ->  | FN9: =IF(OR($C9="",AND(BM9="",BO9="")),"",SUM(BM9,BO9)) ->  | FO9: =IF(AND(FM9="",FN9=""),"",SUM(FM9:FN9)) ->  | HF9: =IF($C9="","",IF(COUNTIFS($DT$1:$HE$1,HF$1,$DT$6:$HE$6,"合計")=COUNTIFS($DT$1:$HE$1,HF$1,$DT$6:$HE$6,"合計",$DT9:$HE9,""),"", SUMIFS($DT9:$HE9,$DT$1:$HE$1,HF$1,$DT$6:$HE$6,"合計"))) ->  | HG9: =IF($C9="","",IF(COUNTIFS($DT$1:$HE$1,HG$1,$DT$6:$HE$6,"合計")=COUNTIFS($DT$1:$HE$1,HG$1,$DT$6:$HE$6,"合計",$DT9:$HE9,""),"", SUMIFS($DT9:$HE9,$DT$1:$HE$1,HG$1,$DT$6:$HE$6,"合計"))) ->  | HH9: =IF($C9="","",IF(COUNTIFS($DT$1:$HE$1,HH$1,$DT$6:$HE$6,"合計")=COUNTIFS($DT$1:$HE$1,HH$1,$DT$6:$HE$6,"合計",$DT9:$HE9,""),"", SUMIFS($DT9:$HE9,$DT$1:$HE$1,HH$1,$DT$6:$HE$6,"合計"))) ->  | HI9: =IF($C9="","",IF(COUNTIFS($DT$1:$HE$1,HI$1,$DT$6:$HE$6,"合計")=COUNTIFS($DT$1:$HE$1,HI$1,$DT$6:$HE$6,"合計",$DT9:$HE9,""),"", SUMIFS($DT9:$HE9,$DT$1:$HE$1,HI$1,$DT$6:$HE$6,"合計"))) ->  | HJ9: =IF($C9="","", IF(COUNTIFS(OFFSET($DT$1,0,($HJ$1-1)*3,1,($HJ$2-$HJ$1+1)*3),$HJ$3,OFFSET($DT$6,0,($HJ$1-1)*3,1,($HJ$2-$HJ$1+1)*3),"合計")= COUNTIFS(OFFSET($DT$1,0,($HJ$1-1)*3,1,($HJ$2-$HJ$1+1)*3),$HJ$3,OFFSET($DT$6,0,($HJ$1-1)*3,1,($HJ$2-$HJ$1+1)*3),"合計",OFFSET($DT9,0,($HJ$1-1)*3,1,($HJ$2-$HJ$1+1)*3),""),"", SUMIFS(OFFSET($DT9,0,($HJ$1-1)*3,1,($HJ$2-$HJ$1+1)*3),OFFSET($DT$1,0,($HJ$1-1)*3,1,($HJ$2-$HJ$1+1)*3),$HJ$3,OFFSET($DT$6,0,($HJ$1-1)*3,1,($HJ$2-$HJ$1+1)*3),"合計"))) ->  | HL9: =IF(OR($C9="",DT9="",DT$7="",DT$7=0),"",IF(DT9>=HL$7,"A",IF(DT9<HL$8,"C","B"))) ->  | HM9: =IF(OR($C9="",DU9="",DU$7="",DU$7=0),"",IF(DU9>=HM$7,"A",IF(DU9<HM$8,"C","B"))) ->  | HN9: =IF(OR($C9="",DW9="",DW$7="",DW$7=0),"",IF(DW9>=HN$7,"A",IF(DW9<HN$8,"C","B"))) ->  | HO9: =IF(OR($C9="",DX9="",DX$7="",DX$7=0),"",IF(DX9>=HO$7,"A",IF(DX9<HO$8,"C","B"))) ->  | HP9: =IF(OR($C9="",DZ9="",DZ$7="",DZ$7=0),"",IF(DZ9>=HP$7,"A",IF(DZ9<HP$8,"C","B"))) ->  | HQ9: =IF(OR($C9="",EA9="",EA$7="",EA$7=0),"",IF(EA9>=HQ$7,"A",IF(EA9<HQ$8,"C","B"))) ->  | HR9: =IF(OR($C9="",EC9="",EC$7="",EC$7=0),"",IF(EC9>=HR$7,"A",IF(EC9<HR$8,"C","B"))) ->  | HS9: =IF(OR($C9="",ED9="",ED$7="",ED$7=0),"",IF(ED9>=HS$7,"A",IF(ED9<HS$8,"C","B"))) ->  | HT9: =IF(OR($C9="",EF9="",EF$7="",EF$7=0),"",IF(EF9>=HT$7,"A",IF(EF9<HT$8,"C","B"))) ->  | HU9: =IF(OR($C9="",EG9="",EG$7="",EG$7=0),"",IF(EG9>=HU$7,"A",IF(EG9<HU$8,"C","B"))) ->  | HV9: =IF(OR($C9="",EI9="",EI$7="",EI$7=0),"",IF(EI9>=HV$7,"A",IF(EI9<HV$8,"C","B"))) ->  | HW9: =IF(OR($C9="",EJ9="",EJ$7="",EJ$7=0),"",IF(EJ9>=HW$7,"A",IF(EJ9<HW$8,"C","B"))) ->  | HX9: =IF(OR($C9="",EL9="",EL$7="",EL$7=0),"",IF(EL9>=HX$7,"A",IF(EL9<HX$8,"C","B"))) ->  | HY9: =IF(OR($C9="",EM9="",EM$7="",EM$7=0),"",IF(EM9>=HY$7,"A",IF(EM9<HY$8,"C","B"))) ->  | HZ9: =IF(OR($C9="",EO9="",EO$7="",EO$7=0),"",IF(EO9>=HZ$7,"A",IF(EO9<HZ$8,"C","B"))) ->  | IA9: =IF(OR($C9="",EP9="",EP$7="",EP$7=0),"",IF(EP9>=IA$7,"A",IF(EP9<IA$8,"C","B"))) ->  | IB9: =IF(OR($C9="",ER9="",ER$7="",ER$7=0),"",IF(ER9>=IB$7,"A",IF(ER9<IB$8,"C","B"))) ->  | IC9: =IF(OR($C9="",ES9="",ES$7="",ES$7=0),"",IF(ES9>=IC$7,"A",IF(ES9<IC$8,"C","B"))) ->  | ID9: =IF(OR($C9="",EU9="",EU$7="",EU$7=0),"",IF(EU9>=ID$7,"A",IF(EU9<ID$8,"C","B"))) ->  | IE9: =IF(OR($C9="",EV9="",EV$7="",EV$7=0),"",IF(EV9>=IE$7,"A",IF(EV9<IE$8,"C","B"))) ->  | IF9: =IF(OR($C9="",EX9="",EX$7="",EX$7=0),"",IF(EX9>=IF$7,"A",IF(EX9<IF$8,"C","B"))) ->  | IG9: =IF(OR($C9="",EY9="",EY$7="",EY$7=0),"",IF(EY9>=IG$7,"A",IF(EY9<IG$8,"C","B"))) ->  | IH9: =IF(OR($C9="",FA9="",FA$7="",FA$7=0),"",IF(FA9>=IH$7,"A",IF(FA9<IH$8,"C","B"))) ->  | II9: =IF(OR($C9="",FB9="",FB$7="",FB$7=0),"",IF(FB9>=II$7,"A",IF(FB9<II$8,"C","B"))) ->  | IJ9: =IF(OR($C9="",FD9="",FD$7="",FD$7=0),"",IF(FD9>=IJ$7,"A",IF(FD9<IJ$8,"C","B"))) ->  | IK9: =IF(OR($C9="",FE9="",FE$7="",FE$7=0),"",IF(FE9>=IK$7,"A",IF(FE9<IK$8,"C","B"))) ->  | IL9: =IF(OR($C9="",FG9="",FG$7="",FG$7=0),"",IF(FG9>=IL$7,"A",IF(FG9<IL$8,"C","B"))) ->  | IM9: =IF(OR($C9="",FH9="",FH$7="",FH$7=0),"",IF(FH9>=IM$7,"A",IF(FH9<IM$8,"C","B"))) ->  | IN9: =IF(OR($C9="",FJ9="",FJ$7="",FJ$7=0),"",IF(FJ9>=IN$7,"A",IF(FJ9<IN$8,"C","B"))) ->  | IO9: =IF(OR($C9="",FK9="",FK$7="",FK$7=0),"",IF(FK9>=IO$7,"A",IF(FK9<IO$8,"C","B"))) ->  | IP9: =IF(OR($C9="",FM9="",FM$7="",FM$7=0),"",IF(FM9>=IP$7,"A",IF(FM9<IP$8,"C","B"))) ->  | IQ9: =IF(OR($C9="",FN9="",FN$7="",FN$7=0),"",IF(FN9>=IQ$7,"A",IF(FN9<IQ$8,"C","B"))) ->  | JU9: =IF($C9="","",IF(JU$7="","",IF(COUNTIFS($D9:$DS9,"<>",$D$1:$DS$1,JU$1,$D$6:$DS$6,JU$6)=0,"",SUMIFS($D9:$DS9,$D$1:$DS$1,JU$1,$D$6:$DS$6,JU$6)))) ->  | JV9: =IF($C9="","",IF(JV$7="","",IF(COUNTIFS($D9:$DS9,"<>",$D$1:$DS$1,JV$1,$D$6:$DS$6,JV$6)=0,"",SUMIFS($D9:$DS9,$D$1:$DS$1,JV$1,$D$6:$DS$6,JV$6)))) ->  | KA9: =IF($C9="","",IF(KA$7="","",IF(COUNTIFS($D9:$DS9,"<>",$D$6:$DS$6,KA$6)=0,"",SUMIFS($D9:$DS9,$D$6:$DS$6,KA$6)))) ->  | KB9: =IF($C9="","",IF(KB$7="","",IF(COUNTIFS($D9:$DS9,"<>",$D$6:$DS$6,KB$6)=0,"",SUMIFS($D9:$DS9,$D$6:$DS$6,KB$6)))) ->  | KC9: =IF(OR($C9="",JU$7="",JU$7=0),"",IF(JU9="","",JU9/JU$7)) ->  | KD9: =IF(OR($C9="",JV$7="",JV$7=0),"",IF(JV9="","",JV9/JV$7)) ->  | KK9: =IF(OR($C9="",JU$7="",JU$7=0),"",IF(KC9="","",IF(KC9*100>=KK$7,"A",IF(KC9*100<KK$8,"C","B")))) ->  | KL9: =IF(OR($C9="",JV$7="",JV$7=0),"",IF(KD9="","",IF(KD9*100>=KL$7,"A",IF(KD9*100<KL$8,"C","B")))) -> 
A10: 1 | B10: 2 | C10: =VLOOKUP(B10,INDIRECT("_"&A10&"組"),2,0)&"" ->  | DT10: =IF(OR($C10="",AND(D10="",F10="")),"",SUM(D10,F10)) ->  | HF10: =IF($C10="","",IF(COUNTIFS($DT$1:$HE$1,HF$1,$DT$6:$HE$6,"合計")=COUNTIFS($DT$1:$HE$1,HF$1,$DT$6:$HE$6,"合計",$DT10:$HE10,""),"", SUMIFS($DT10:$HE10,$DT$1:$HE$1,HF$1,$DT$6:$HE$6,"合計"))) ->  | HJ10: =IF($C10="","", IF(COUNTIFS(OFFSET($DT$1,0,($HJ$1-1)*3,1,($HJ$2-$HJ$1+1)*3),$HJ$3,OFFSET($DT$6,0,($HJ$1-1)*3,1,($HJ$2-$HJ$1+1)*3),"合計")= COUNTIFS(OFFSET($DT$1,0,($HJ$1-1)*3,1,($HJ$2-$HJ$1+1)*3),$HJ$3,OFFSET($DT$6,0,($HJ$1-1)*3,1,($HJ$2-$HJ$1+1)*3),"合計",OFFSET($DT10,0,($HJ$1-1)*3,1,($HJ$2-$HJ$1+1)*3),""),"", SUMIFS(OFFSET($DT10,0,($HJ$1-1)*3,1,($HJ$2-$HJ$1+1)*3),OFFSET($DT$1,0,($HJ$1-1)*3,1,($HJ$2-$HJ$1+1)*3),$HJ$3,OFFSET($DT$6,0,($HJ$1-1)*3,1,($HJ$2-$HJ$1+1)*3),"合計"))) ->  | JU10: =IF($C10="","",IF(JU$7="","",IF(COUNTIFS($D10:$DS10,"<>",$D$1:$DS$1,JU$1,$D$6:$DS$6,JU$6)=0,"",SUMIFS($D10:$DS10,$D$1:$DS$1,JU$1,$D$6:$DS$6,JU$6)))) ->  | KA10: =IF($C10="","",IF(KA$7="","",IF(COUNTIFS($D10:$DS10,"<>",$D$6:$DS$6,KA$6)=0,"",SUMIFS($D10:$DS10,$D$6:$DS$6,KA$6)))) ->  | KC10: =IF(OR($C10="",JU$7="",JU$7=0),"",IF(JU10="","",JU10/JU$7)) ->  | KD10: =IF(OR($C10="",JV$7="",JV$7=0),"",IF(JV10="","",JV10/JV$7)) ->  | KE10: =IF(OR($C10="",JW$7="",JW$7=0),"",IF(JW10="","",JW10/JW$7)) ->  | KF10: =IF(OR($C10="",JX$7="",JX$7=0),"",IF(JX10="","",JX10/JX$7)) ->  | KG10: =IF(OR($C10="",JY$7="",JY$7=0),"",IF(JY10="","",JY10/JY$7)) ->  | KH10: =IF(OR($C10="",JZ$7="",JZ$7=0),"",IF(JZ10="","",JZ10/JZ$7)) ->  | KI10: =IF(OR($C10="",KA$7="",KA$7=0),"",IF(KA10="","",KA10/KA$7)) ->  | KJ10: =IF(OR($C10="",KB$7="",KB$7=0),"",IF(KB10="","",KB10/KB$7)) ->  | KK10: =IF(OR($C10="",JU$7="",JU$7=0),"",IF(KC10="","",IF(KC10*100>=KK$7,"A",IF(KC10*100<KK$8,"C","B")))) ->  | KL10: =IF(OR($C10="",JV$7="",JV$7=0),"",IF(KD10="","",IF(KD10*100>=KL$7,"A",IF(KD10*100<KL$8,"C","B")))) ->  | KM10: =IF(OR($C10="",JW$7="",JW$7=0),"",IF(KE10="","",IF(KE10*100>=KM$7,"A",IF(KE10*100<KM$8,"C","B")))) ->  | KN10: =IF(OR($C10="",JX$7="",JX$7=0),"",IF(KF10="","",IF(KF10*100>=KN$7,"A",IF(KF10*100<KN$8,"C","B")))) ->  | KO10: =IF(OR($C10="",JY$7="",JY$7=0),"",IF(KG10="","",IF(KG10*100>=KO$7,"A",IF(KG10*100<KO$8,"C","B")))) ->  | KP10: =IF(OR($C10="",JZ$7="",JZ$7=0),"",IF(KH10="","",IF(KH10*100>=KP$7,"A",IF(KH10*100<KP$8,"C","B")))) ->  | KQ10: =IF(OR($C10="",KA$7="",KA$7=0),"",IF(KI10="","",IF(KI10*100>=KQ$7,"A",IF(KI10*100<KQ$8,"C","B")))) ->  | KR10: =IF(OR($C10="",KB$7="",KB$7=0),"",IF(KJ10="","",IF(KJ10*100>=KR$7,"A",IF(KJ10*100<KR$8,"C","B")))) -> 
A11: 1 | B11: 3 | DT11: =IF(OR($C11="",AND(D11="",F11="")),"",SUM(D11,F11)) ->  | DU11: =IF(OR($C11="",AND(E11="",G11="")),"",SUM(E11,G11)) ->  | DV11: =IF(AND(DT11="",DU11=""),"",SUM(DT11:DU11)) ->  | DW11: =IF(OR($C11="",AND(H11="",J11="")),"",SUM(H11,J11)) ->  | DX11: =IF(OR($C11="",AND(I11="",K11="")),"",SUM(I11,K11)) ->  | DY11: =IF(AND(DW11="",DX11=""),"",SUM(DW11:DX11)) ->  | DZ11: =IF(OR($C11="",AND(L11="",N11="")),"",SUM(L11,N11)) ->  | EA11: =IF(OR($C11="",AND(M11="",O11="")),"",SUM(M11,O11)) ->  | EB11: =IF(AND(DZ11="",EA11=""),"",SUM(DZ11:EA11)) ->  | EC11: =IF(OR($C11="",AND(P11="",R11="")),"",SUM(P11,R11)) ->  | ED11: =IF(OR($C11="",AND(Q11="",S11="")),"",SUM(Q11,S11)) ->  | EE11: =IF(AND(EC11="",ED11=""),"",SUM(EC11:ED11)) ->  | EF11: =IF(OR($C11="",AND(T11="",V11="")),"",SUM(T11,V11)) ->  | EG11: =IF(OR($C11="",AND(U11="",W11="")),"",SUM(U11,W11)) ->  | EH11: =IF(AND(EF11="",EG11=""),"",SUM(EF11:EG11)) ->  | EI11: =IF(OR($C11="",AND(X11="",Z11="")),"",SUM(X11,Z11)) ->  | EJ11: =IF(OR($C11="",AND(Y11="",AA11="")),"",SUM(Y11,AA11)) ->  | EK11: =IF(AND(EI11="",EJ11=""),"",SUM(EI11:EJ11)) ->  | EL11: =IF(OR($C11="",AND(AB11="",AD11="")),"",SUM(AB11,AD11)) ->  | EM11: =IF(OR($C11="",AND(AC11="",AE11="")),"",SUM(AC11,AE11)) ->  | EN11: =IF(AND(EL11="",EM11=""),"",SUM(EL11:EM11)) ->  | EO11: =IF(OR($C11="",AND(AF11="",AH11="")),"",SUM(AF11,AH11)) ->  | EP11: =IF(OR($C11="",AND(AG11="",AI11="")),"",SUM(AG11,AI11)) ->  | EQ11: =IF(AND(EO11="",EP11=""),"",SUM(EO11:EP11)) ->  | ER11: =IF(OR($C11="",AND(AJ11="",AL11="")),"",SUM(AJ11,AL11)) ->  | ES11: =IF(OR($C11="",AND(AK11="",AM11="")),"",SUM(AK11,AM11)) ->  | ET11: =IF(AND(ER11="",ES11=""),"",SUM(ER11:ES11)) ->  | EU11: =IF(OR($C11="",AND(AN11="",AP11="")),"",SUM(AN11,AP11)) ->  | EV11: =IF(OR($C11="",AND(AO11="",AQ11="")),"",SUM(AO11,AQ11)) ->  | EW11: =IF(AND(EU11="",EV11=""),"",SUM(EU11:EV11)) ->  | EX11: =IF(OR($C11="",AND(AR11="",AT11="")),"",SUM(AR11,AT11)) ->  | EY11: =IF(OR($C11="",AND(AS11="",AU11="")),"",SUM(AS11,AU11)) ->  | EZ11: =IF(AND(EX11="",EY11=""),"",SUM(EX11:EY11)) ->  | FA11: =IF(OR($C11="",AND(AV11="",AX11="")),"",SUM(AV11,AX11)) ->  | FB11: =IF(OR($C11="",AND(AW11="",AY11="")),"",SUM(AW11,AY11)) ->  | FC11: =IF(AND(FA11="",FB11=""),"",SUM(FA11:FB11)) ->  | FD11: =IF(OR($C11="",AND(AZ11="",BB11="")),"",SUM(AZ11,BB11)) ->  | FE11: =IF(OR($C11="",AND(BA11="",BC11="")),"",SUM(BA11,BC11)) ->  | FF11: =IF(AND(FD11="",FE11=""),"",SUM(FD11:FE11)) ->  | FG11: =IF(OR($C11="",AND(BD11="",BF11="")),"",SUM(BD11,BF11)) ->  | FH11: =IF(OR($C11="",AND(BE11="",BG11="")),"",SUM(BE11,BG11)) ->  | FI11: =IF(AND(FG11="",FH11=""),"",SUM(FG11:FH11)) ->  | FJ11: =IF(OR($C11="",AND(BH11="",BJ11="")),"",SUM(BH11,BJ11)) ->  | FK11: =IF(OR($C11="",AND(BI11="",BK11="")),"",SUM(BI11,BK11)) ->  | FL11: =IF(AND(FJ11="",FK11=""),"",SUM(FJ11:FK11)) ->  | FM11: =IF(OR($C11="",AND(BL11="",BN11="")),"",SUM(BL11,BN11)) ->  | FN11: =IF(OR($C11="",AND(BM11="",BO11="")),"",SUM(BM11,BO11)) ->  | FO11: =IF(AND(FM11="",FN11=""),"",SUM(FM11:FN11)) ->  | HL11: =IF(OR($C11="",DT11="",DT$7="",DT$7=0),"",IF(DT11>=HL$7,"A",IF(DT11<HL$8,"C","B"))) ->  | HM11: =IF(OR($C11="",DU11="",DU$7="",DU$7=0),"",IF(DU11>=HM$7,"A",IF(DU11<HM$8,"C","B"))) ->  | HN11: =IF(OR($C11="",DW11="",DW$7="",DW$7=0),"",IF(DW11>=HN$7,"A",IF(DW11<HN$8,"C","B"))) ->  | HO11: =IF(OR($C11="",DX11="",DX$7="",DX$7=0),"",IF(DX11>=HO$7,"A",IF(DX11<HO$8,"C","B"))) ->  | HP11: =IF(OR($C11="",DZ11="",DZ$7="",DZ$7=0),"",IF(DZ11>=HP$7,"A",IF(DZ11<HP$8,"C","B"))) ->  | HQ11: =IF(OR($C11="",EA11="",EA$7="",EA$7=0),"",IF(EA11>=HQ$7,"A",IF(EA11<HQ$8,"C","B"))) ->  | HR11: =IF(OR($C11="",EC11="",EC$7="",EC$7=0),"",IF(EC11>=HR$7,"A",IF(EC11<HR$8,"C","B"))) ->  | HS11: =IF(OR($C11="",ED11="",ED$7="",ED$7=0),"",IF(ED11>=HS$7,"A",IF(ED11<HS$8,"C","B"))) ->  | HT11: =IF(OR($C11="",EF11="",EF$7="",EF$7=0),"",IF(EF11>=HT$7,"A",IF(EF11<HT$8,"C","B"))) ->  | HU11: =IF(OR($C11="",EG11="",EG$7="",EG$7=0),"",IF(EG11>=HU$7,"A",IF(EG11<HU$8,"C","B"))) ->  | HV11: =IF(OR($C11="",EI11="",EI$7="",EI$7=0),"",IF(EI11>=HV$7,"A",IF(EI11<HV$8,"C","B"))) ->  | HW11: =IF(OR($C11="",EJ11="",EJ$7="",EJ$7=0),"",IF(EJ11>=HW$7,"A",IF(EJ11<HW$8,"C","B"))) ->  | HX11: =IF(OR($C11="",EL11="",EL$7="",EL$7=0),"",IF(EL11>=HX$7,"A",IF(EL11<HX$8,"C","B"))) ->  | HY11: =IF(OR($C11="",EM11="",EM$7="",EM$7=0),"",IF(EM11>=HY$7,"A",IF(EM11<HY$8,"C","B"))) ->  | HZ11: =IF(OR($C11="",EO11="",EO$7="",EO$7=0),"",IF(EO11>=HZ$7,"A",IF(EO11<HZ$8,"C","B"))) ->  | IA11: =IF(OR($C11="",EP11="",EP$7="",EP$7=0),"",IF(EP11>=IA$7,"A",IF(EP11<IA$8,"C","B"))) ->  | IB11: =IF(OR($C11="",ER11="",ER$7="",ER$7=0),"",IF(ER11>=IB$7,"A",IF(ER11<IB$8,"C","B"))) ->  | IC11: =IF(OR($C11="",ES11="",ES$7="",ES$7=0),"",IF(ES11>=IC$7,"A",IF(ES11<IC$8,"C","B"))) ->  | ID11: =IF(OR($C11="",EU11="",EU$7="",EU$7=0),"",IF(EU11>=ID$7,"A",IF(EU11<ID$8,"C","B"))) ->  | IE11: =IF(OR($C11="",EV11="",EV$7="",EV$7=0),"",IF(EV11>=IE$7,"A",IF(EV11<IE$8,"C","B"))) ->  | IF11: =IF(OR($C11="",EX11="",EX$7="",EX$7=0),"",IF(EX11>=IF$7,"A",IF(EX11<IF$8,"C","B"))) ->  | IG11: =IF(OR($C11="",EY11="",EY$7="",EY$7=0),"",IF(EY11>=IG$7,"A",IF(EY11<IG$8,"C","B"))) ->  | IH11: =IF(OR($C11="",FA11="",FA$7="",FA$7=0),"",IF(FA11>=IH$7,"A",IF(FA11<IH$8,"C","B"))) ->  | II11: =IF(OR($C11="",FB11="",FB$7="",FB$7=0),"",IF(FB11>=II$7,"A",IF(FB11<II$8,"C","B"))) ->  | IJ11: =IF(OR($C11="",FD11="",FD$7="",FD$7=0),"",IF(FD11>=IJ$7,"A",IF(FD11<IJ$8,"C","B"))) ->  | IK11: =IF(OR($C11="",FE11="",FE$7="",FE$7=0),"",IF(FE11>=IK$7,"A",IF(FE11<IK$8,"C","B"))) ->  | IL11: =IF(OR($C11="",FG11="",FG$7="",FG$7=0),"",IF(FG11>=IL$7,"A",IF(FG11<IL$8,"C","B"))) ->  | IM11: =IF(OR($C11="",FH11="",FH$7="",FH$7=0),"",IF(FH11>=IM$7,"A",IF(FH11<IM$8,"C","B"))) ->  | IN11: =IF(OR($C11="",FJ11="",FJ$7="",FJ$7=0),"",IF(FJ11>=IN$7,"A",IF(FJ11<IN$8,"C","B"))) ->  | IO11: =IF(OR($C11="",FK11="",FK$7="",FK$7=0),"",IF(FK11>=IO$7,"A",IF(FK11<IO$8,"C","B"))) ->  | IP11: =IF(OR($C11="",FM11="",FM$7="",FM$7=0),"",IF(FM11>=IP$7,"A",IF(FM11<IP$8,"C","B"))) ->  | IQ11: =IF(OR($C11="",FN11="",FN$7="",FN$7=0),"",IF(FN11>=IQ$7,"A",IF(FN11<IQ$8,"C","B"))) -> 
A12: 1 | B12: 4
A13: 1 | B13: 5
A14: 1 | B14: 6
A15: 1 | B15: 7
A16: 1 | B16: 8
A17: 1 | B17: 9
A18: 1 | B18: 10
A19: 1 | B19: 11
A20: 1 | B20: 12
A21: 1 | B21: 13
A22: 1 | B22: 14
A23: 1 | B23: 15
A24: 1 | B24: 16
A25: 1 | B25: 17
A26: 1 | B26: 18
A27: 1 | B27: 19
A28: 1 | B28: 20
A29: 1 | B29: 21
A30: 1 | B30: 22
A31: 1 | B31: 23
A32: 1 | B32: 24
A33: 1 | B33: 25
A34: 1 | B34: 26
A35: 1 | B35: 27
A36: 1 | B36: 28
A37: 1 | B37: 29
A38: 1 | B38: 30
A39: 1 | B39: 31
A40: 1 | B40: 32
A41: 1 | B41: 33
A42: 1 | B42: 34
A43: 1 | B43: 35
A44: 1 | B44: 36
A45: 1 | B45: 37
A46: 1 | B46: 38
A47: 1 | B47: 39
A48: 1 | B48: 40
A49: 1 | B49: 41
A50: 1 | B50: 42
A51: 1 | B51: 43
A52: 1 | B52: 44
A53: 1 | B53: 45
A54: 2 | B54: 1
A55: 2 | B55: 2
A56: 2 | B56: 3
A57: 2 | B57: 4
A58: 2 | B58: 5
A59: 2 | B59: 6
A60: 2 | B60: 7
A61: 2 | B61: 8
A62: 2 | B62: 9
A63: 2 | B63: 10
A64: 2 | B64: 11
A65: 2 | B65: 12 | JU65: =IF($C65="","",IF(JU$7="","",IF(COUNTIFS($D65:$DS65,"<>",$D$1:$DS$1,JU$1,$D$6:$DS$6,JU$6)=0,"",SUMIFS($D65:$DS65,$D$1:$DS$1,JU$1,$D$6:$DS$6,JU$6)))) -> 
A66: 2 | B66: 13
A67: 2 | B67: 14
A68: 2 | B68: 15
A69: 2 | B69: 16
A70: 2 | B70: 17
A71: 2 | B71: 18
A72: 2 | B72: 19
A73: 2 | B73: 20 | HI73: =IF($C73="","",IF(COUNTIFS($DT$1:$HE$1,HI$1,$DT$6:$HE$6,"合計")=COUNTIFS($DT$1:$HE$1,HI$1,$DT$6:$HE$6,"合計",$DT73:$HE73,""),"", SUMIFS($DT73:$HE73,$DT$1:$HE$1,HI$1,$DT$6:$HE$6,"合計"))) -> 
A74: 2 | B74: 21 | C74: =VLOOKUP(B74,INDIRECT("_"&A74&"組"),2,0)&"" ->  | DT74: =IF(OR($C74="",AND(D74="",F74="")),"",SUM(D74,F74)) ->  | DU74: =IF(OR($C74="",AND(E74="",G74="")),"",SUM(E74,G74)) ->  | DV74: =IF(AND(DT74="",DU74=""),"",SUM(DT74:DU74)) ->  | DW74: =IF(OR($C74="",AND(H74="",J74="")),"",SUM(H74,J74)) ->  | DX74: =IF(OR($C74="",AND(I74="",K74="")),"",SUM(I74,K74)) ->  | DY74: =IF(AND(DW74="",DX74=""),"",SUM(DW74:DX74)) ->  | DZ74: =IF(OR($C74="",AND(L74="",N74="")),"",SUM(L74,N74)) ->  | EA74: =IF(OR($C74="",AND(M74="",O74="")),"",SUM(M74,O74)) ->  | EB74: =IF(AND(DZ74="",EA74=""),"",SUM(DZ74:EA74)) ->  | EC74: =IF(OR($C74="",AND(P74="",R74="")),"",SUM(P74,R74)) ->  | ED74: =IF(OR($C74="",AND(Q74="",S74="")),"",SUM(Q74,S74)) ->  | EE74: =IF(AND(EC74="",ED74=""),"",SUM(EC74:ED74)) ->  | EF74: =IF(OR($C74="",AND(T74="",V74="")),"",SUM(T74,V74)) ->  | EG74: =IF(OR($C74="",AND(U74="",W74="")),"",SUM(U74,W74)) ->  | EH74: =IF(AND(EF74="",EG74=""),"",SUM(EF74:EG74)) ->  | EI74: =IF(OR($C74="",AND(X74="",Z74="")),"",SUM(X74,Z74)) ->  | EJ74: =IF(OR($C74="",AND(Y74="",AA74="")),"",SUM(Y74,AA74)) ->  | EK74: =IF(AND(EI74="",EJ74=""),"",SUM(EI74:EJ74)) ->  | EL74: =IF(OR($C74="",AND(AB74="",AD74="")),"",SUM(AB74,AD74)) ->  | EM74: =IF(OR($C74="",AND(AC74="",AE74="")),"",SUM(AC74,AE74)) ->  | EN74: =IF(AND(EL74="",EM74=""),"",SUM(EL74:EM74)) ->  | EO74: =IF(OR($C74="",AND(AF74="",AH74="")),"",SUM(AF74,AH74)) ->  | EP74: =IF(OR($C74="",AND(AG74="",AI74="")),"",SUM(AG74,AI74)) ->  | EQ74: =IF(AND(EO74="",EP74=""),"",SUM(EO74:EP74)) ->  | ER74: =IF(OR($C74="",AND(AJ74="",AL74="")),"",SUM(AJ74,AL74)) ->  | ES74: =IF(OR($C74="",AND(AK74="",AM74="")),"",SUM(AK74,AM74)) ->  | ET74: =IF(AND(ER74="",ES74=""),"",SUM(ER74:ES74)) ->  | EU74: =IF(OR($C74="",AND(AN74="",AP74="")),"",SUM(AN74,AP74)) ->  | EV74: =IF(OR($C74="",AND(AO74="",AQ74="")),"",SUM(AO74,AQ74)) ->  | EW74: =IF(AND(EU74="",EV74=""),"",SUM(EU74:EV74)) ->  | EX74: =IF(OR($C74="",AND(AR74="",AT74="")),"",SUM(AR74,AT74)) ->  | EY74: =IF(OR($C74="",AND(AS74="",AU74="")),"",SUM(AS74,AU74)) ->  | EZ74: =IF(AND(EX74="",EY74=""),"",SUM(EX74:EY74)) ->  | FA74: =IF(OR($C74="",AND(AV74="",AX74="")),"",SUM(AV74,AX74)) ->  | FB74: =IF(OR($C74="",AND(AW74="",AY74="")),"",SUM(AW74,AY74)) ->  | FC74: =IF(AND(FA74="",FB74=""),"",SUM(FA74:FB74)) ->  | FD74: =IF(OR($C74="",AND(AZ74="",BB74="")),"",SUM(AZ74,BB74)) ->  | FE74: =IF(OR($C74="",AND(BA74="",BC74="")),"",SUM(BA74,BC74)) ->  | FF74: =IF(AND(FD74="",FE74=""),"",SUM(FD74:FE74)) ->  | FG74: =IF(OR($C74="",AND(BD74="",BF74="")),"",SUM(BD74,BF74)) ->  | FH74: =IF(OR($C74="",AND(BE74="",BG74="")),"",SUM(BE74,BG74)) ->  | FI74: =IF(AND(FG74="",FH74=""),"",SUM(FG74:FH74)) ->  | FJ74: =IF(OR($C74="",AND(BH74="",BJ74="")),"",SUM(BH74,BJ74)) ->  | FK74: =IF(OR($C74="",AND(BI74="",BK74="")),"",SUM(BI74,BK74)) ->  | FL74: =IF(AND(FJ74="",FK74=""),"",SUM(FJ74:FK74)) ->  | FM74: =IF(OR($C74="",AND(BL74="",BN74="")),"",SUM(BL74,BN74)) ->  | FN74: =IF(OR($C74="",AND(BM74="",BO74="")),"",SUM(BM74,BO74)) ->  | FO74: =IF(AND(FM74="",FN74=""),"",SUM(FM74:FN74)) ->  | HF74: =IF($C74="","",IF(COUNTIFS($DT$1:$HE$1,HF$1,$DT$6:$HE$6,"合計")=COUNTIFS($DT$1:$HE$1,HF$1,$DT$6:$HE$6,"合計",$DT74:$HE74,""),"", SUMIFS($DT74:$HE74,$DT$1:$HE$1,HF$1,$DT$6:$HE$6,"合計"))) ->  | HJ74: =IF($C74="","", IF(COUNTIFS(OFFSET($DT$1,0,($HJ$1-1)*3,1,($HJ$2-$HJ$1+1)*3),$HJ$3,OFFSET($DT$6,0,($HJ$1-1)*3,1,($HJ$2-$HJ$1+1)*3),"合計")= COUNTIFS(OFFSET($DT$1,0,($HJ$1-1)*3,1,($HJ$2-$HJ$1+1)*3),$HJ$3,OFFSET($DT$6,0,($HJ$1-1)*3,1,($HJ$2-$HJ$1+1)*3),"合計",OFFSET($DT74,0,($HJ$1-1)*3,1,($HJ$2-$HJ$1+1)*3),""),"", SUMIFS(OFFSET($DT74,0,($HJ$1-1)*3,1,($HJ$2-$HJ$1+1)*3),OFFSET($DT$1,0,($HJ$1-1)*3,1,($HJ$2-$HJ$1+1)*3),$HJ$3,OFFSET($DT$6,0,($HJ$1-1)*3,1,($HJ$2-$HJ$1+1)*3),"合計"))) ->  | HL74: =IF(OR($C74="",DT74="",DT$7="",DT$7=0),"",IF(DT74>=HL$7,"A",IF(DT74<HL$8,"C","B"))) ->  | HM74: =IF(OR($C74="",DU74="",DU$7="",DU$7=0),"",IF(DU74>=HM$7,"A",IF(DU74<HM$8,"C","B"))) ->  | HN74: =IF(OR($C74="",DW74="",DW$7="",DW$7=0),"",IF(DW74>=HN$7,"A",IF(DW74<HN$8,"C","B"))) ->  | HO74: =IF(OR($C74="",DX74="",DX$7="",DX$7=0),"",IF(DX74>=HO$7,"A",IF(DX74<HO$8,"C","B"))) ->  | HP74: =IF(OR($C74="",DZ74="",DZ$7="",DZ$7=0),"",IF(DZ74>=HP$7,"A",IF(DZ74<HP$8,"C","B"))) ->  | HQ74: =IF(OR($C74="",EA74="",EA$7="",EA$7=0),"",IF(EA74>=HQ$7,"A",IF(EA74<HQ$8,"C","B"))) ->  | HR74: =IF(OR($C74="",EC74="",EC$7="",EC$7=0),"",IF(EC74>=HR$7,"A",IF(EC74<HR$8,"C","B"))) ->  | HS74: =IF(OR($C74="",ED74="",ED$7="",ED$7=0),"",IF(ED74>=HS$7,"A",IF(ED74<HS$8,"C","B"))) ->  | HT74: =IF(OR($C74="",EF74="",EF$7="",EF$7=0),"",IF(EF74>=HT$7,"A",IF(EF74<HT$8,"C","B"))) ->  | HU74: =IF(OR($C74="",EG74="",EG$7="",EG$7=0),"",IF(EG74>=HU$7,"A",IF(EG74<HU$8,"C","B"))) ->  | HV74: =IF(OR($C74="",EI74="",EI$7="",EI$7=0),"",IF(EI74>=HV$7,"A",IF(EI74<HV$8,"C","B"))) ->  | HW74: =IF(OR($C74="",EJ74="",EJ$7="",EJ$7=0),"",IF(EJ74>=HW$7,"A",IF(EJ74<HW$8,"C","B"))) ->  | HX74: =IF(OR($C74="",EL74="",EL$7="",EL$7=0),"",IF(EL74>=HX$7,"A",IF(EL74<HX$8,"C","B"))) ->  | HY74: =IF(OR($C74="",EM74="",EM$7="",EM$7=0),"",IF(EM74>=HY$7,"A",IF(EM74<HY$8,"C","B"))) ->  | HZ74: =IF(OR($C74="",EO74="",EO$7="",EO$7=0),"",IF(EO74>=HZ$7,"A",IF(EO74<HZ$8,"C","B"))) ->  | IA74: =IF(OR($C74="",EP74="",EP$7="",EP$7=0),"",IF(EP74>=IA$7,"A",IF(EP74<IA$8,"C","B"))) ->  | IB74: =IF(OR($C74="",ER74="",ER$7="",ER$7=0),"",IF(ER74>=IB$7,"A",IF(ER74<IB$8,"C","B"))) ->  | IC74: =IF(OR($C74="",ES74="",ES$7="",ES$7=0),"",IF(ES74>=IC$7,"A",IF(ES74<IC$8,"C","B"))) ->  | ID74: =IF(OR($C74="",EU74="",EU$7="",EU$7=0),"",IF(EU74>=ID$7,"A",IF(EU74<ID$8,"C","B"))) ->  | IE74: =IF(OR($C74="",EV74="",EV$7="",EV$7=0),"",IF(EV74>=IE$7,"A",IF(EV74<IE$8,"C","B"))) ->  | IF74: =IF(OR($C74="",EX74="",EX$7="",EX$7=0),"",IF(EX74>=IF$7,"A",IF(EX74<IF$8,"C","B"))) ->  | IG74: =IF(OR($C74="",EY74="",EY$7="",EY$7=0),"",IF(EY74>=IG$7,"A",IF(EY74<IG$8,"C","B"))) ->  | IH74: =IF(OR($C74="",FA74="",FA$7="",FA$7=0),"",IF(FA74>=IH$7,"A",IF(FA74<IH$8,"C","B"))) ->  | II74: =IF(OR($C74="",FB74="",FB$7="",FB$7=0),"",IF(FB74>=II$7,"A",IF(FB74<II$8,"C","B"))) ->  | IJ74: =IF(OR($C74="",FD74="",FD$7="",FD$7=0),"",IF(FD74>=IJ$7,"A",IF(FD74<IJ$8,"C","B"))) ->  | IK74: =IF(OR($C74="",FE74="",FE$7="",FE$7=0),"",IF(FE74>=IK$7,"A",IF(FE74<IK$8,"C","B"))) ->  | IL74: =IF(OR($C74="",FG74="",FG$7="",FG$7=0),"",IF(FG74>=IL$7,"A",IF(FG74<IL$8,"C","B"))) ->  | IM74: =IF(OR($C74="",FH74="",FH$7="",FH$7=0),"",IF(FH74>=IM$7,"A",IF(FH74<IM$8,"C","B"))) ->  | IN74: =IF(OR($C74="",FJ74="",FJ$7="",FJ$7=0),"",IF(FJ74>=IN$7,"A",IF(FJ74<IN$8,"C","B"))) ->  | IO74: =IF(OR($C74="",FK74="",FK$7="",FK$7=0),"",IF(FK74>=IO$7,"A",IF(FK74<IO$8,"C","B"))) ->  | IP74: =IF(OR($C74="",FM74="",FM$7="",FM$7=0),"",IF(FM74>=IP$7,"A",IF(FM74<IP$8,"C","B"))) ->  | IQ74: =IF(OR($C74="",FN74="",FN$7="",FN$7=0),"",IF(FN74>=IQ$7,"A",IF(FN74<IQ$8,"C","B"))) ->  | KA74: =IF($C74="","",IF(KA$7="","",IF(COUNTIFS($D74:$DS74,"<>",$D$6:$DS$6,KA$6)=0,"",SUMIFS($D74:$DS74,$D$6:$DS$6,KA$6)))) ->  | KC74: =IF(OR($C74="",JU$7="",JU$7=0),"",IF(JU74="","",JU74/JU$7)) ->  | KD74: =IF(OR($C74="",JV$7="",JV$7=0),"",IF(JV74="","",JV74/JV$7)) ->  | KE74: =IF(OR($C74="",JW$7="",JW$7=0),"",IF(JW74="","",JW74/JW$7)) ->  | KF74: =IF(OR($C74="",JX$7="",JX$7=0),"",IF(JX74="","",JX74/JX$7)) ->  | KG74: =IF(OR($C74="",JY$7="",JY$7=0),"",IF(JY74="","",JY74/JY$7)) ->  | KH74: =IF(OR($C74="",JZ$7="",JZ$7=0),"",IF(JZ74="","",JZ74/JZ$7)) ->  | KI74: =IF(OR($C74="",KA$7="",KA$7=0),"",IF(KA74="","",KA74/KA$7)) ->  | KJ74: =IF(OR($C74="",KB$7="",KB$7=0),"",IF(KB74="","",KB74/KB$7)) ->  | KK74: =IF(OR($C74="",JU$7="",JU$7=0),"",IF(KC74="","",IF(KC74*100>=KK$7,"A",IF(KC74*100<KK$8,"C","B")))) ->  | KL74: =IF(OR($C74="",JV$7="",JV$7=0),"",IF(KD74="","",IF(KD74*100>=KL$7,"A",IF(KD74*100<KL$8,"C","B")))) ->  | KM74: =IF(OR($C74="",JW$7="",JW$7=0),"",IF(KE74="","",IF(KE74*100>=KM$7,"A",IF(KE74*100<KM$8,"C","B")))) ->  | KN74: =IF(OR($C74="",JX$7="",JX$7=0),"",IF(KF74="","",IF(KF74*100>=KN$7,"A",IF(KF74*100<KN$8,"C","B")))) ->  | KO74: =IF(OR($C74="",JY$7="",JY$7=0),"",IF(KG74="","",IF(KG74*100>=KO$7,"A",IF(KG74*100<KO$8,"C","B")))) ->  | KP74: =IF(OR($C74="",JZ$7="",JZ$7=0),"",IF(KH74="","",IF(KH74*100>=KP$7,"A",IF(KH74*100<KP$8,"C","B")))) ->  | KQ74: =IF(OR($C74="",KA$7="",KA$7=0),"",IF(KI74="","",IF(KI74*100>=KQ$7,"A",IF(KI74*100<KQ$8,"C","B")))) ->  | KR74: =IF(OR($C74="",KB$7="",KB$7=0),"",IF(KJ74="","",IF(KJ74*100>=KR$7,"A",IF(KJ74*100<KR$8,"C","B")))) -> 
A75: 2 | B75: 22
A76: 2 | B76: 23
A77: 2 | B77: 24
A78: 2 | B78: 25
A79: 2 | B79: 26
A80: 2 | B80: 27
A81: 2 | B81: 28
A82: 2 | B82: 29
A83: 2 | B83: 30
A84: 2 | B84: 31
A85: 2 | B85: 32
A86: 2 | B86: 33
A87: 2 | B87: 34
A88: 2 | B88: 35
A89: 2 | B89: 36
A90: 2 | B90: 37
A91: 2 | B91: 38
A92: 2 | B92: 39
A93: 2 | B93: 40
A94: 2 | B94: 41
A95: 2 | B95: 42
A96: 2 | B96: 43
A97: 2 | B97: 44
A98: 2 | B98: 45
A99: 3 | B99: 1
A100: 3 | B100: 2
A101: 3 | B101: 3
A102: 3 | B102: 4
A103: 3 | B103: 5
A104: 3 | B104: 6
A105: 3 | B105: 7
A106: 3 | B106: 8
A107: 3 | B107: 9 | JX107: =IF($C107="","",IF(JX$7="","",IF(COUNTIFS($D107:$DS107,"<>",$D$1:$DS$1,JX$1,$D$6:$DS$6,JX$6)=0,"",SUMIFS($D107:$DS107,$D$1:$DS$1,JX$1,$D$6:$DS$6,JX$6)))) -> 
A108: 3 | B108: 10 | JU108: =IF($C108="","",IF(JU$7="","",IF(COUNTIFS($D108:$DS108,"<>",$D$1:$DS$1,JU$1,$D$6:$DS$6,JU$6)=0,"",SUMIFS($D108:$DS108,$D$1:$DS$1,JU$1,$D$6:$DS$6,JU$6)))) -> 
A109: 3 | B109: 11
A110: 3 | B110: 12
A111: 3 | B111: 13
A112: 3 | B112: 14
A113: 3 | B113: 15
A114: 3 | B114: 16
A115: 3 | B115: 17
A116: 3 | B116: 18
A117: 3 | B117: 19
A118: 3 | B118: 20
A119: 3 | B119: 21
A120: 3 | B120: 22
A121: 3 | B121: 23
A122: 3 | B122: 24
A123: 3 | B123: 25
A124: 3 | B124: 26
A125: 3 | B125: 27
... 156 more rows

Sheet 学習の達成_得点観点別
A1: 学習の達成_得点観点別 | E1: =E2 -> 1 | F1: =E2 -> 1 | G1: =E2 -> 1 | H1: =E2 -> 1 | I1: =I2 -> 1 | J1: =I2 -> 1 | K1: =I2 -> 1 | L1: =I2 -> 1 | M1: =M2 -> 1 | N1: =M2 -> 1 | O1: =M2 -> 1 | P1: =M2 -> 1 | Q1: =Q2 -> 1 | R1: =Q2 -> 1 | S1: =Q2 -> 1 | T1: =Q2 -> 1 | U1: =U2 -> 1 | V1: =U2 -> 1 | W1: =U2 -> 1 | X1: =U2 -> 1 | Y1: =Y2 -> 2 | Z1: =Y2 -> 2 | AA1: =Y2 -> 2 | AB1: =Y2 -> 2 | AC1: =AC2 -> 2 | AD1: =AC2 -> 2 | AE1: =AC2 -> 2 | AF1: =AC2 -> 2 | AG1: =AG2 -> 2 | AH1: =AG2 -> 2 | AI1: =AG2 -> 2 | AJ1: =AG2 -> 2 | AK1: =AK2 -> 2 | AL1: =AK2 -> 2 | AM1: =AK2 -> 2 | AN1: =AK2 -> 2 | AO1: =AO2 -> 2 | AP1: =AO2 -> 2 | AQ1: =AO2 -> 2 | AR1: =AO2 -> 2 | AS1: =AS2 -> 3 | AT1: =AS2 -> 3 | AU1: =AS2 -> 3 | AV1: =AS2 -> 3 | AW1: =AW2 -> 3 | AX1: =AW2 -> 3 | AY1: =AW2 -> 3 | AZ1: =AW2 -> 3 | BA1: =BA2 -> 3 | BB1: =BA2 -> 3 | BC1: =BA2 -> 3 | BD1: =BA2 -> 3 | BE1: =BE2 -> 3 | BF1: =BE2 -> 3 | BG1: =BE2 -> 3 | BH1: =BE2 -> 3 | BI1: =BI2 -> 3 | BJ1: =BI2 -> 3 | BK1: =BI2 -> 3 | BL1: =BI2 -> 3 | BM1: =BM2 -> 3 | BN1: =BM2 -> 3 | BO1: =BM2 -> 3 | BP1: =BM2 -> 3 | BQ1: =BQ2 ->  | BR1: =BQ2 ->  | BS1: =BQ2 ->  | BT1: =BQ2 ->  | BU1: =BU2 ->  | BV1: =BU2 ->  | BW1: =BU2 ->  | BX1: =BU2 ->  | BY1: =BY2 ->  | BZ1: =BY2 ->  | CA1: =BY2 ->  | CB1: =BY2 ->  | CC1: =CC2 ->  | CD1: =CC2 ->  | CE1: =CC2 ->  | CF1: =CC2 ->  | CG1: =CG2 ->  | CH1: =CG2 ->  | CI1: =CG2 ->  | CJ1: =CG2 ->  | CK1: =CK2 ->  | CL1: =CK2 ->  | CM1: =CK2 ->  | CN1: =CK2 ->  | CO1: =CO2 ->  | CP1: =CO2 ->  | CQ1: =CO2 ->  | CR1: =CO2 ->  | CS1: =CS2 ->  | CT1: =CS2 ->  | CU1: =CS2 ->  | CV1: =CS2 ->  | CW1: =CW2 ->  | CX1: =CW2 ->  | CY1: =CW2 ->  | CZ1: =CW2 ->  | DA1: =DA2 ->  | DB1: =DA2 ->  | DC1: =DA2 ->  | DD1: =DA2 ->  | DE1: =DE2 ->  | DF1: =DE2 ->  | DG1: =DE2 ->  | DH1: =DE2 ->  | DI1: =DI2 ->  | DJ1: =DI2 ->  | DK1: =DI2 ->  | DL1: =DI2 ->  | DM1: =DM2 ->  | DN1: =DM2 ->  | DO1: =DM2 ->  | DP1: =DM2 ->  | DQ1: =DQ2 ->  | DR1: =DQ2 ->  | DS1: =DQ2 ->  | DT1: =DQ2 ->  | DU1: =DU2 -> 1 | DX1: =DX2 -> 2 | EA1: =EA2 -> 3
A2: FALSE | C2: 学期 | E2: =IF(QUOTIENT(COLUMN()-COLUMN($E2),4)+1>COUNT(基準設定1!$A$13:$A$102),"",OFFSET(基準設定1!$C$13,QUOTIENT(COLUMN()-COLUMN($E2),4)*3,0)) -> 1 | I2: =IF(QUOTIENT(COLUMN()-COLUMN($E2),4)+1>COUNT(基準設定1!$A$13:$A$102),"",OFFSET(基準設定1!$C$13,QUOTIENT(COLUMN()-COLUMN($E2),4)*3,0)) -> 1 | M2: =IF(QUOTIENT(COLUMN()-COLUMN($E2),4)+1>COUNT(基準設定1!$A$13:$A$102),"",OFFSET(基準設定1!$C$13,QUOTIENT(COLUMN()-COLUMN($E2),4)*3,0)) -> 1 | Q2: =IF(QUOTIENT(COLUMN()-COLUMN($E2),4)+1>COUNT(基準設定1!$A$13:$A$102),"",OFFSET(基準設定1!$C$13,QUOTIENT(COLUMN()-COLUMN($E2),4)*3,0)) -> 1 | U2: =IF(QUOTIENT(COLUMN()-COLUMN($E2),4)+1>COUNT(基準設定1!$A$13:$A$102),"",OFFSET(基準設定1!$C$13,QUOTIENT(COLUMN()-COLUMN($E2),4)*3,0)) -> 1 | Y2: =IF(QUOTIENT(COLUMN()-COLUMN($E2),4)+1>COUNT(基準設定1!$A$13:$A$102),"",OFFSET(基準設定1!$C$13,QUOTIENT(COLUMN()-COLUMN($E2),4)*3,0)) -> 2 | AC2: =IF(QUOTIENT(COLUMN()-COLUMN($E2),4)+1>COUNT(基準設定1!$A$13:$A$102),"",OFFSET(基準設定1!$C$13,QUOTIENT(COLUMN()-COLUMN($E2),4)*3,0)) -> 2 | AG2: =IF(QUOTIENT(COLUMN()-COLUMN($E2),4)+1>COUNT(基準設定1!$A$13:$A$102),"",OFFSET(基準設定1!$C$13,QUOTIENT(COLUMN()-COLUMN($E2),4)*3,0)) -> 2 | AK2: =IF(QUOTIENT(COLUMN()-COLUMN($E2),4)+1>COUNT(基準設定1!$A$13:$A$102),"",OFFSET(基準設定1!$C$13,QUOTIENT(COLUMN()-COLUMN($E2),4)*3,0)) -> 2 | AO2: =IF(QUOTIENT(COLUMN()-COLUMN($E2),4)+1>COUNT(基準設定1!$A$13:$A$102),"",OFFSET(基準設定1!$C$13,QUOTIENT(COLUMN()-COLUMN($E2),4)*3,0)) -> 2 | AS2: =IF(QUOTIENT(COLUMN()-COLUMN($E2),4)+1>COUNT(基準設定1!$A$13:$A$102),"",OFFSET(基準設定1!$C$13,QUOTIENT(COLUMN()-COLUMN($E2),4)*3,0)) -> 3 | AW2: =IF(QUOTIENT(COLUMN()-COLUMN($E2),4)+1>COUNT(基準設定1!$A$13:$A$102),"",OFFSET(基準設定1!$C$13,QUOTIENT(COLUMN()-COLUMN($E2),4)*3,0)) -> 3 | BA2: =IF(QUOTIENT(COLUMN()-COLUMN($E2),4)+1>COUNT(基準設定1!$A$13:$A$102),"",OFFSET(基準設定1!$C$13,QUOTIENT(COLUMN()-COLUMN($E2),4)*3,0)) -> 3 | BE2: =IF(QUOTIENT(COLUMN()-COLUMN($E2),4)+1>COUNT(基準設定1!$A$13:$A$102),"",OFFSET(基準設定1!$C$13,QUOTIENT(COLUMN()-COLUMN($E2),4)*3,0)) -> 3 | BI2: =IF(QUOTIENT(COLUMN()-COLUMN($E2),4)+1>COUNT(基準設定1!$A$13:$A$102),"",OFFSET(基準設定1!$C$13,QUOTIENT(COLUMN()-COLUMN($E2),4)*3,0)) -> 3 | BM2: =IF(QUOTIENT(COLUMN()-COLUMN($E2),4)+1>COUNT(基準設定1!$A$13:$A$102),"",OFFSET(基準設定1!$C$13,QUOTIENT(COLUMN()-COLUMN($E2),4)*3,0)) -> 3 | BQ2: =IF(QUOTIENT(COLUMN()-COLUMN($E2),4)+1>COUNT(基準設定1!$A$13:$A$102),"",OFFSET(基準設定1!$C$13,QUOTIENT(COLUMN()-COLUMN($E2),4)*3,0)) ->  | BU2: =IF(QUOTIENT(COLUMN()-COLUMN($E2),4)+1>COUNT(基準設定1!$A$13:$A$102),"",OFFSET(基準設定1!$C$13,QUOTIENT(COLUMN()-COLUMN($E2),4)*3,0)) ->  | BY2: =IF(QUOTIENT(COLUMN()-COLUMN($E2),4)+1>COUNT(基準設定1!$A$13:$A$102),"",OFFSET(基準設定1!$C$13,QUOTIENT(COLUMN()-COLUMN($E2),4)*3,0)) ->  | CC2: =IF(QUOTIENT(COLUMN()-COLUMN($E2),4)+1>COUNT(基準設定1!$A$13:$A$102),"",OFFSET(基準設定1!$C$13,QUOTIENT(COLUMN()-COLUMN($E2),4)*3,0)) ->  | CG2: =IF(QUOTIENT(COLUMN()-COLUMN($E2),4)+1>COUNT(基準設定1!$A$13:$A$102),"",OFFSET(基準設定1!$C$13,QUOTIENT(COLUMN()-COLUMN($E2),4)*3,0)) ->  | CK2: =IF(QUOTIENT(COLUMN()-COLUMN($E2),4)+1>COUNT(基準設定1!$A$13:$A$102),"",OFFSET(基準設定1!$C$13,QUOTIENT(COLUMN()-COLUMN($E2),4)*3,0)) ->  | CO2: =IF(QUOTIENT(COLUMN()-COLUMN($E2),4)+1>COUNT(基準設定1!$A$13:$A$102),"",OFFSET(基準設定1!$C$13,QUOTIENT(COLUMN()-COLUMN($E2),4)*3,0)) ->  | CS2: =IF(QUOTIENT(COLUMN()-COLUMN($E2),4)+1>COUNT(基準設定1!$A$13:$A$102),"",OFFSET(基準設定1!$C$13,QUOTIENT(COLUMN()-COLUMN($E2),4)*3,0)) ->  | CW2: =IF(QUOTIENT(COLUMN()-COLUMN($E2),4)+1>COUNT(基準設定1!$A$13:$A$102),"",OFFSET(基準設定1!$C$13,QUOTIENT(COLUMN()-COLUMN($E2),4)*3,0)) ->  | DA2: =IF(QUOTIENT(COLUMN()-COLUMN($E2),4)+1>COUNT(基準設定1!$A$13:$A$102),"",OFFSET(基準設定1!$C$13,QUOTIENT(COLUMN()-COLUMN($E2),4)*3,0)) ->  | DE2: =IF(QUOTIENT(COLUMN()-COLUMN($E2),4)+1>COUNT(基準設定1!$A$13:$A$102),"",OFFSET(基準設定1!$C$13,QUOTIENT(COLUMN()-COLUMN($E2),4)*3,0)) ->  | DI2: =IF(QUOTIENT(COLUMN()-COLUMN($E2),4)+1>COUNT(基準設定1!$A$13:$A$102),"",OFFSET(基準設定1!$C$13,QUOTIENT(COLUMN()-COLUMN($E2),4)*3,0)) ->  | DM2: =IF(QUOTIENT(COLUMN()-COLUMN($E2),4)+1>COUNT(基準設定1!$A$13:$A$102),"",OFFSET(基準設定1!$C$13,QUOTIENT(COLUMN()-COLUMN($E2),4)*3,0)) ->  | DQ2: =IF(QUOTIENT(COLUMN()-COLUMN($E2),4)+1>COUNT(基準設定1!$A$13:$A$102),"",OFFSET(基準設定1!$C$13,QUOTIENT(COLUMN()-COLUMN($E2),4)*3,0)) ->  | DU2: 1 | DX2: 2 | EA2: 3 | ED2: 年間
A3: FALSE | C3: 回数 | E3: 1 | I3: 2 | M3: 3 | Q3: 4 | U3: 5 | Y3: 6 | AC3: 7 | AG3: 8 | AK3: 9 | AO3: 10 | AS3: 11 | AW3: 12 | BA3: 13 | BE3: 14 | BI3: 15 | BM3: 16 | DU3: 合計 | DX3: 合計 | EA3: 合計 | ED3: 合計
C4: 単元名 | E4: Let’s Be Friends!～小学校のふり返り | I4: Unit 1 | M4: Unit 2 | Q4: be動詞と一般動詞 / Unit 1~2の語順の復習 | U4: Unit 3～You Can Do It! ① | Y4: Unit 4～Active Grammar ② | AC4: Unit 5～Daily Life Scene 2 | AG4: 疑問詞のまとめ１ / 代名詞 | AK4: Unit 6～You Can Do It! ② | AO4: 一般動詞のまとめ / 「概要」を読み取ろう！ | AS4: Unit 7～Daily Life Scene 5 | AW4: 一般動詞の現在と過去の文① / 一般動詞の現在と過去の文② | BA4: Unit 8～Active Grammar ⑥ | BE4: 疑問詞のまとめ２ / 進行形 | BI4: Let’s Read 2～You Can Do It! ③ / 「必要な情報」を読み取ろう！ | BM4: 「要点」を読み取ろう！ / １年のまとめ
C5: 観点 | E5: オモテ 満点 | F5: ウラ 満点 | G5: 合計 満点 | I5: オモテ 満点 | J5: ウラ 満点 | K5: 合計 満点 | M5: オモテ 満点 | N5: ウラ 満点 | O5: 合計 満点 | Q5: オモテ 満点 | R5: ウラ 満点 | S5: 合計 満点 | U5: オモテ 満点 | V5: ウラ 満点 | W5: 合計 満点 | Y5: オモテ 満点 | Z5: ウラ 満点 | AA5: 合計 満点 | AC5: オモテ 満点 | AD5: ウラ 満点 | AE5: 合計 満点 | AG5: オモテ 満点 | AH5: ウラ 満点 | AI5: 合計 満点 | AK5: オモテ 満点 | AL5: ウラ 満点 | AM5: 合計 満点 | AO5: オモテ 満点 | AP5: ウラ 満点 | AQ5: 合計 満点 | AS5: オモテ 満点 | AT5: ウラ 満点 | AU5: 合計 満点 | AW5: オモテ 満点 | AX5: ウラ 満点 | AY5: 合計 満点 | BA5: オモテ 満点 | BB5: ウラ 満点 | BC5: 合計 満点 | BE5: オモテ 満点 | BF5: ウラ 満点 | BG5: 合計 満点 | BI5: オモテ 満点 | BJ5: ウラ 満点 | BK5: 合計 満点 | BM5: オモテ 満点 | BN5: ウラ 満点 | BO5: 合計 満点 | BQ5: オモテ 満点 | BR5: ウラ 満点 | BS5: 合計 満点 | BU5: オモテ 満点 | BV5: ウラ 満点 | BW5: 合計 満点 | BY5: オモテ 満点 | BZ5: ウラ 満点 | CA5: 合計 満点 | CC5: オモテ 満点 | CD5: ウラ 満点 | CE5: 合計 満点 | CG5: オモテ 満点 | CH5: ウラ 満点 | CI5: 合計 満点 | CK5: オモテ 満点 | CL5: ウラ 満点 | CM5: 合計 満点 | CO5: オモテ 満点 | CP5: ウラ 満点 | CQ5: 合計 満点 | CS5: オモテ 満点 | CT5: ウラ 満点 | CU5: 合計 満点 | CW5: オモテ 満点 | CX5: ウラ 満点 | CY5: 合計 満点 | DA5: オモテ 満点 | DB5: ウラ 満点 | DC5: 合計 満点 | DE5: オモテ 満点 | DF5: ウラ 満点 | DG5: 合計 満点 | DI5: オモテ 満点 | DJ5: ウラ 満点 | DK5: 合計 満点 | DM5: オモテ 満点 | DN5: ウラ 満点 | DO5: 合計 満点 | DQ5: オモテ 満点 | DR5: ウラ 満点 | DS5: 合計 満点 | DU5: 満点 | DX5: 満点 | EA5: 満点 | ED5: 満点
D6: 知識・技能 | E6: 100 | F6: 100 | G6: 200 | I6: 100 | J6: 0 | K6: 100 | M6: 100 | N6: 0 | O6: 100 | Q6: 100 | R6: 100 | S6: 200 | U6: 100 | V6: 0 | W6: 100 | Y6: 100 | Z6: 0 | AA6: 100 | AC6: 100 | AD6: 0 | AE6: 100 | AG6: 100 | AH6: 100 | AI6: 200 | AK6: 100 | AL6: 0 | AM6: 100 | AO6: 100 | AP6: 60 | AQ6: 160 | AS6: 100 | AT6: 0 | AU6: 100 | AW6: 100 | AX6: 100 | AY6: 200 | BA6: 100 | BB6: 0 | BC6: 100 | BE6: 100 | BF6: 100 | BG6: 200 | BI6: 70 | BJ6: 60 | BK6: 130 | BM6: 60 | BN6: 100 | BO6: 160 | DU6: =IF(COUNTIFS($E$1:$DT$1,DU$2,$E$12:$DT$12,"得点")=0,"",SUMIFS($E6:$DT6,$E$1:$DT$1,DU$2,$E$12:$DT$12,"得点")) -> 700 | DX6: =IF(COUNTIFS($E$1:$DT$1,DX$2,$E$12:$DT$12,"得点")=0,"",SUMIFS($E6:$DT6,$E$1:$DT$1,DX$2,$E$12:$DT$12,"得点")) -> 660 | EA6: =IF(COUNTIFS($E$1:$DT$1,EA$2,$E$12:$DT$12,"得点")=0,"",SUMIFS($E6:$DT6,$E$1:$DT$1,EA$2,$E$12:$DT$12,"得点")) -> 890 | ED6: =IF(COUNT(DU6:EA6)=0,"",SUM(DU6:EA6)) -> 2250
D7: 思考判断表現 | E7: 0 | F7: 0 | G7: 0 | I7: 0 | J7: 100 | K7: 100 | M7: 0 | N7: 100 | O7: 100 | Q7: 0 | R7: 0 | S7: 0 | U7: 0 | V7: 100 | W7: 100 | Y7: 0 | Z7: 100 | AA7: 100 | AC7: 0 | AD7: 100 | AE7: 100 | AG7: 0 | AH7: 0 | AI7: 0 | AK7: 0 | AL7: 100 | AM7: 100 | AO7: 0 | AP7: 40 | AQ7: 40 | AS7: 0 | AT7: 100 | AU7: 100 | AW7: 0 | AX7: 0 | AY7: 0 | BA7: 0 | BB7: 100 | BC7: 100 | BE7: 0 | BF7: 0 | BG7: 0 | BI7: 30 | BJ7: 40 | BK7: 70 | BM7: 40 | BN7: 0 | BO7: 40 | DU7: =IF(COUNTIFS($E$1:$DT$1,DU$2,$E$12:$DT$12,"得点")=0,"",SUMIFS($E7:$DT7,$E$1:$DT$1,DU$2,$E$12:$DT$12,"得点")) -> 300 | DX7: =IF(COUNTIFS($E$1:$DT$1,DX$2,$E$12:$DT$12,"得点")=0,"",SUMIFS($E7:$DT7,$E$1:$DT$1,DX$2,$E$12:$DT$12,"得点")) -> 340 | EA7: =IF(COUNTIFS($E$1:$DT$1,EA$2,$E$12:$DT$12,"得点")=0,"",SUMIFS($E7:$DT7,$E$1:$DT$1,EA$2,$E$12:$DT$12,"得点")) -> 310 | ED7: =IF(COUNT(DU7:EA7)=0,"",SUM(DU7:EA7)) -> 950
D8: 合計 | E8: 100 | F8: 100 | G8: 200 | I8: 100 | J8: 100 | K8: 200 | M8: 100 | N8: 100 | O8: 200 | Q8: 100 | R8: 100 | S8: 200 | U8: 100 | V8: 100 | W8: 200 | Y8: 100 | Z8: 100 | AA8: 200 | AC8: 100 | AD8: 100 | AE8: 200 | AG8: 100 | AH8: 100 | AI8: 200 | AK8: 100 | AL8: 100 | AM8: 200 | AO8: 100 | AP8: 100 | AQ8: 200 | AS8: 100 | AT8: 100 | AU8: 200 | AW8: 100 | AX8: 100 | AY8: 200 | BA8: 100 | BB8: 100 | BC8: 200 | BE8: 100 | BF8: 100 | BG8: 200 | BI8: 100 | BJ8: 100 | BK8: 200 | BM8: 100 | BN8: 100 | BO8: 200 | DU8: =IF(COUNTIFS($E$1:$DT$1,DU$2,$E$12:$DT$12,"得点")=0,"",SUMIFS($E8:$DT8,$E$1:$DT$1,DU$2,$E$12:$DT$12,"得点")) -> 1000 | DX8: =IF(COUNTIFS($E$1:$DT$1,DX$2,$E$12:$DT$12,"得点")=0,"",SUMIFS($E8:$DT8,$E$1:$DT$1,DX$2,$E$12:$DT$12,"得点")) -> 1000 | EA8: =IF(COUNTIFS($E$1:$DT$1,EA$2,$E$12:$DT$12,"得点")=0,"",SUMIFS($E8:$DT8,$E$1:$DT$1,EA$2,$E$12:$DT$12,"得点")) -> 1200 | ED8: =IF(COUNT(DU8:EA8)=0,"",SUM(DU8:EA8)) -> 3200
C9: 判定基準 | E9: A/B | G9: B/C | I9: A/B | K9: B/C | M9: A/B | O9: B/C | Q9: A/B | S9: B/C | U9: A/B | W9: B/C | Y9: A/B | AA9: B/C | AC9: A/B | AE9: B/C | AG9: A/B | AI9: B/C | AK9: A/B | AM9: B/C | AO9: A/B | AQ9: B/C | AS9: A/B | AU9: B/C | AW9: A/B | AY9: B/C | BA9: A/B | BC9: B/C | BE9: A/B | BG9: B/C | BI9: A/B | BK9: B/C | BM9: A/B | BO9: B/C | BQ9: A/B | BS9: B/C | BU9: A/B | BW9: B/C | BY9: A/B | CA9: B/C | CC9: A/B | CE9: B/C | CG9: A/B | CI9: B/C | CK9: A/B | CM9: B/C | CO9: A/B | CQ9: B/C | CS9: A/B | CU9: B/C | CW9: A/B | CY9: B/C | DA9: A/B | DC9: B/C | DE9: A/B | DG9: B/C | DI9: A/B | DK9: B/C | DM9: A/B | DO9: B/C | DQ9: A/B | DS9: B/C | DU9: 判定 基準 | DV9: A/B | DW9: B/C | DX9: 判定 基準 | DY9: A/B | DZ9: B/C | EA9: 判定 基準 | EB9: A/B | EC9: B/C | ED9: 判定 基準 | EE9: A/B | EF9: B/C
D10: 知識・技能 | E10: =IF(E4="","",OFFSET(基準設定1!$H$13,QUOTIENT(COLUMN()-COLUMN($E10),4)*3,0)) -> 160 | G10: =IF(E4="","",OFFSET(基準設定1!$I$13,QUOTIENT(COLUMN()-COLUMN($G10),4)*3,0)) -> 100 | I10: =IF(I4="","",OFFSET(基準設定1!$H$13,QUOTIENT(COLUMN()-COLUMN($E10),4)*3,0)) -> 80 | K10: =IF(I4="","",OFFSET(基準設定1!$I$13,QUOTIENT(COLUMN()-COLUMN($G10),4)*3,0)) -> 50 | M10: =IF(M4="","",OFFSET(基準設定1!$H$13,QUOTIENT(COLUMN()-COLUMN($E10),4)*3,0)) -> 80 | O10: =IF(M4="","",OFFSET(基準設定1!$I$13,QUOTIENT(COLUMN()-COLUMN($G10),4)*3,0)) -> 50 | Q10: =IF(Q4="","",OFFSET(基準設定1!$H$13,QUOTIENT(COLUMN()-COLUMN($E10),4)*3,0)) -> 160 | S10: =IF(Q4="","",OFFSET(基準設定1!$I$13,QUOTIENT(COLUMN()-COLUMN($G10),4)*3,0)) -> 100 | U10: =IF(U4="","",OFFSET(基準設定1!$H$13,QUOTIENT(COLUMN()-COLUMN($E10),4)*3,0)) -> 80 | W10: =IF(U4="","",OFFSET(基準設定1!$I$13,QUOTIENT(COLUMN()-COLUMN($G10),4)*3,0)) -> 50 | Y10: =IF(Y4="","",OFFSET(基準設定1!$H$13,QUOTIENT(COLUMN()-COLUMN($E10),4)*3,0)) -> 80 | AA10: =IF(Y4="","",OFFSET(基準設定1!$I$13,QUOTIENT(COLUMN()-COLUMN($G10),4)*3,0)) -> 50 | AC10: =IF(AC4="","",OFFSET(基準設定1!$H$13,QUOTIENT(COLUMN()-COLUMN($E10),4)*3,0)) -> 80 | AE10: =IF(AC4="","",OFFSET(基準設定1!$I$13,QUOTIENT(COLUMN()-COLUMN($G10),4)*3,0)) -> 50 | AG10: =IF(AG4="","",OFFSET(基準設定1!$H$13,QUOTIENT(COLUMN()-COLUMN($E10),4)*3,0)) -> 160 | AI10: =IF(AG4="","",OFFSET(基準設定1!$I$13,QUOTIENT(COLUMN()-COLUMN($G10),4)*3,0)) -> 100 | AK10: =IF(AK4="","",OFFSET(基準設定1!$H$13,QUOTIENT(COLUMN()-COLUMN($E10),4)*3,0)) -> 80 | AM10: =IF(AK4="","",OFFSET(基準設定1!$I$13,QUOTIENT(COLUMN()-COLUMN($G10),4)*3,0)) -> 50 | AO10: =IF(AO4="","",OFFSET(基準設定1!$H$13,QUOTIENT(COLUMN()-COLUMN($E10),4)*3,0)) -> 128 | AQ10: =IF(AO4="","",OFFSET(基準設定1!$I$13,QUOTIENT(COLUMN()-COLUMN($G10),4)*3,0)) -> 80 | AS10: =IF(AS4="","",OFFSET(基準設定1!$H$13,QUOTIENT(COLUMN()-COLUMN($E10),4)*3,0)) -> 80 | AU10: =IF(AS4="","",OFFSET(基準設定1!$I$13,QUOTIENT(COLUMN()-COLUMN($G10),4)*3,0)) -> 50 | AW10: =IF(AW4="","",OFFSET(基準設定1!$H$13,QUOTIENT(COLUMN()-COLUMN($E10),4)*3,0)) -> 160 | AY10: =IF(AW4="","",OFFSET(基準設定1!$I$13,QUOTIENT(COLUMN()-COLUMN($G10),4)*3,0)) -> 100 | BA10: =IF(BA4="","",OFFSET(基準設定1!$H$13,QUOTIENT(COLUMN()-COLUMN($E10),4)*3,0)) -> 80 | BC10: =IF(BA4="","",OFFSET(基準設定1!$I$13,QUOTIENT(COLUMN()-COLUMN($G10),4)*3,0)) -> 50 | BE10: =IF(BE4="","",OFFSET(基準設定1!$H$13,QUOTIENT(COLUMN()-COLUMN($E10),4)*3,0)) -> 160 | BG10: =IF(BE4="","",OFFSET(基準設定1!$I$13,QUOTIENT(COLUMN()-COLUMN($G10),4)*3,0)) -> 100 | BI10: =IF(BI4="","",OFFSET(基準設定1!$H$13,QUOTIENT(COLUMN()-COLUMN($E10),4)*3,0)) -> 104 | BK10: =IF(BI4="","",OFFSET(基準設定1!$I$13,QUOTIENT(COLUMN()-COLUMN($G10),4)*3,0)) -> 65 | BM10: =IF(BM4="","",OFFSET(基準設定1!$H$13,QUOTIENT(COLUMN()-COLUMN($E10),4)*3,0)) -> 128 | BO10: =IF(BM4="","",OFFSET(基準設定1!$I$13,QUOTIENT(COLUMN()-COLUMN($G10),4)*3,0)) -> 80 | BQ10: =IF(BQ4="","",OFFSET(基準設定1!$H$13,QUOTIENT(COLUMN()-COLUMN($E10),4)*3,0)) ->  | BS10: =IF(BQ4="","",OFFSET(基準設定1!$I$13,QUOTIENT(COLUMN()-COLUMN($G10),4)*3,0)) ->  | BU10: =IF(BU4="","",OFFSET(基準設定1!$H$13,QUOTIENT(COLUMN()-COLUMN($E10),4)*3,0)) ->  | BW10: =IF(BU4="","",OFFSET(基準設定1!$I$13,QUOTIENT(COLUMN()-COLUMN($G10),4)*3,0)) ->  | BY10: =IF(BY4="","",OFFSET(基準設定1!$H$13,QUOTIENT(COLUMN()-COLUMN($E10),4)*3,0)) ->  | CA10: =IF(BY4="","",OFFSET(基準設定1!$I$13,QUOTIENT(COLUMN()-COLUMN($G10),4)*3,0)) ->  | CC10: =IF(CC4="","",OFFSET(基準設定1!$H$13,QUOTIENT(COLUMN()-COLUMN($E10),4)*3,0)) ->  | CE10: =IF(CC4="","",OFFSET(基準設定1!$I$13,QUOTIENT(COLUMN()-COLUMN($G10),4)*3,0)) ->  | CG10: =IF(CG4="","",OFFSET(基準設定1!$H$13,QUOTIENT(COLUMN()-COLUMN($E10),4)*3,0)) ->  | CI10: =IF(CG4="","",OFFSET(基準設定1!$I$13,QUOTIENT(COLUMN()-COLUMN($G10),4)*3,0)) ->  | CK10: =IF(CK4="","",OFFSET(基準設定1!$H$13,QUOTIENT(COLUMN()-COLUMN($E10),4)*3,0)) ->  | CM10: =IF(CK4="","",OFFSET(基準設定1!$I$13,QUOTIENT(COLUMN()-COLUMN($G10),4)*3,0)) ->  | CO10: =IF(CO4="","",OFFSET(基準設定1!$H$13,QUOTIENT(COLUMN()-COLUMN($E10),4)*3,0)) ->  | CQ10: =IF(CO4="","",OFFSET(基準設定1!$I$13,QUOTIENT(COLUMN()-COLUMN($G10),4)*3,0)) ->  | CS10: =IF(CS4="","",OFFSET(基準設定1!$H$13,QUOTIENT(COLUMN()-COLUMN($E10),4)*3,0)) ->  | CU10: =IF(CS4="","",OFFSET(基準設定1!$I$13,QUOTIENT(COLUMN()-COLUMN($G10),4)*3,0)) ->  | CW10: =IF(CW4="","",OFFSET(基準設定1!$H$13,QUOTIENT(COLUMN()-COLUMN($E10),4)*3,0)) ->  | CY10: =IF(CW4="","",OFFSET(基準設定1!$I$13,QUOTIENT(COLUMN()-COLUMN($G10),4)*3,0)) ->  | DA10: =IF(DA4="","",OFFSET(基準設定1!$H$13,QUOTIENT(COLUMN()-COLUMN($E10),4)*3,0)) ->  | DC10: =IF(DA4="","",OFFSET(基準設定1!$I$13,QUOTIENT(COLUMN()-COLUMN($G10),4)*3,0)) ->  | DE10: =IF(DE4="","",OFFSET(基準設定1!$H$13,QUOTIENT(COLUMN()-COLUMN($E10),4)*3,0)) ->  | DG10: =IF(DE4="","",OFFSET(基準設定1!$I$13,QUOTIENT(COLUMN()-COLUMN($G10),4)*3,0)) ->  | DI10: =IF(DI4="","",OFFSET(基準設定1!$H$13,QUOTIENT(COLUMN()-COLUMN($E10),4)*3,0)) ->  | DK10: =IF(DI4="","",OFFSET(基準設定1!$I$13,QUOTIENT(COLUMN()-COLUMN($G10),4)*3,0)) ->  | DM10: =IF(DM4="","",OFFSET(基準設定1!$H$13,QUOTIENT(COLUMN()-COLUMN($E10),4)*3,0)) ->  | DO10: =IF(DM4="","",OFFSET(基準設定1!$I$13,QUOTIENT(COLUMN()-COLUMN($G10),4)*3,0)) ->  | DQ10: =IF(DQ4="","",OFFSET(基準設定1!$H$13,QUOTIENT(COLUMN()-COLUMN($E10),4)*3,0)) ->  | DS10: =IF(DQ4="","",OFFSET(基準設定1!$I$13,QUOTIENT(COLUMN()-COLUMN($G10),4)*3,0)) ->  | DV10: =OFFSET(基準設定2!$D$1,MATCH(DU$2,基準設定2!$A:$A,0)-1,0) -> 80 | DW10: =OFFSET(基準設定2!$E$1,MATCH(DU$2,基準設定2!$A:$A,0)-1,0) -> 50 | DY10: =OFFSET(基準設定2!$D$1,MATCH(DX$2,基準設定2!$A:$A,0)-1,0) -> 80 | DZ10: =OFFSET(基準設定2!$E$1,MATCH(DX$2,基準設定2!$A:$A,0)-1,0) -> 50 | EB10: =OFFSET(基準設定2!$D$1,MATCH(EA$2,基準設定2!$A:$A,0)-1,0) -> 80 | EC10: =OFFSET(基準設定2!$E$1,MATCH(EA$2,基準設定2!$A:$A,0)-1,0) -> 50 | EE10: =OFFSET(基準設定2!$D$1,MATCH(ED$2,基準設定2!$A:$A,0)-1,0) -> 80 | EF10: =OFFSET(基準設定2!$E$1,MATCH(ED$2,基準設定2!$A:$A,0)-1,0) -> 50
D11: 思考判断表現 | E11: =IF(E4="","",OFFSET(基準設定1!$H$13,QUOTIENT(COLUMN()-COLUMN($E11),4)*3+1,0)) -> 0 | G11: =IF(E4="","",OFFSET(基準設定1!$I$13,QUOTIENT(COLUMN()-COLUMN($G11),4)*3+1,0)) -> 0 | I11: =IF(I4="","",OFFSET(基準設定1!$H$13,QUOTIENT(COLUMN()-COLUMN($E11),4)*3+1,0)) -> 80 | K11: =IF(I4="","",OFFSET(基準設定1!$I$13,QUOTIENT(COLUMN()-COLUMN($G11),4)*3+1,0)) -> 50 | M11: =IF(M4="","",OFFSET(基準設定1!$H$13,QUOTIENT(COLUMN()-COLUMN($E11),4)*3+1,0)) -> 80 | O11: =IF(M4="","",OFFSET(基準設定1!$I$13,QUOTIENT(COLUMN()-COLUMN($G11),4)*3+1,0)) -> 50 | Q11: =IF(Q4="","",OFFSET(基準設定1!$H$13,QUOTIENT(COLUMN()-COLUMN($E11),4)*3+1,0)) -> 0 | S11: =IF(Q4="","",OFFSET(基準設定1!$I$13,QUOTIENT(COLUMN()-COLUMN($G11),4)*3+1,0)) -> 0 | U11: =IF(U4="","",OFFSET(基準設定1!$H$13,QUOTIENT(COLUMN()-COLUMN($E11),4)*3+1,0)) -> 80 | W11: =IF(U4="","",OFFSET(基準設定1!$I$13,QUOTIENT(COLUMN()-COLUMN($G11),4)*3+1,0)) -> 50 | Y11: =IF(Y4="","",OFFSET(基準設定1!$H$13,QUOTIENT(COLUMN()-COLUMN($E11),4)*3+1,0)) -> 80 | AA11: =IF(Y4="","",OFFSET(基準設定1!$I$13,QUOTIENT(COLUMN()-COLUMN($G11),4)*3+1,0)) -> 50 | AC11: =IF(AC4="","",OFFSET(基準設定1!$H$13,QUOTIENT(COLUMN()-COLUMN($E11),4)*3+1,0)) -> 80 | AE11: =IF(AC4="","",OFFSET(基準設定1!$I$13,QUOTIENT(COLUMN()-COLUMN($G11),4)*3+1,0)) -> 50 | AG11: =IF(AG4="","",OFFSET(基準設定1!$H$13,QUOTIENT(COLUMN()-COLUMN($E11),4)*3+1,0)) -> 0 | AI11: =IF(AG4="","",OFFSET(基準設定1!$I$13,QUOTIENT(COLUMN()-COLUMN($G11),4)*3+1,0)) -> 0 | AK11: =IF(AK4="","",OFFSET(基準設定1!$H$13,QUOTIENT(COLUMN()-COLUMN($E11),4)*3+1,0)) -> 80 | AM11: =IF(AK4="","",OFFSET(基準設定1!$I$13,QUOTIENT(COLUMN()-COLUMN($G11),4)*3+1,0)) -> 50 | AO11: =IF(AO4="","",OFFSET(基準設定1!$H$13,QUOTIENT(COLUMN()-COLUMN($E11),4)*3+1,0)) -> 32 | AQ11: =IF(AO4="","",OFFSET(基準設定1!$I$13,QUOTIENT(COLUMN()-COLUMN($G11),4)*3+1,0)) -> 20 | AS11: =IF(AS4="","",OFFSET(基準設定1!$H$13,QUOTIENT(COLUMN()-COLUMN($E11),4)*3+1,0)) -> 80 | AU11: =IF(AS4="","",OFFSET(基準設定1!$I$13,QUOTIENT(COLUMN()-COLUMN($G11),4)*3+1,0)) -> 50 | AW11: =IF(AW4="","",OFFSET(基準設定1!$H$13,QUOTIENT(COLUMN()-COLUMN($E11),4)*3+1,0)) -> 0 | AY11: =IF(AW4="","",OFFSET(基準設定1!$I$13,QUOTIENT(COLUMN()-COLUMN($G11),4)*3+1,0)) -> 0 | BA11: =IF(BA4="","",OFFSET(基準設定1!$H$13,QUOTIENT(COLUMN()-COLUMN($E11),4)*3+1,0)) -> 80 | BC11: =IF(BA4="","",OFFSET(基準設定1!$I$13,QUOTIENT(COLUMN()-COLUMN($G11),4)*3+1,0)) -> 50 | BE11: =IF(BE4="","",OFFSET(基準設定1!$H$13,QUOTIENT(COLUMN()-COLUMN($E11),4)*3+1,0)) -> 0 | BG11: =IF(BE4="","",OFFSET(基準設定1!$I$13,QUOTIENT(COLUMN()-COLUMN($G11),4)*3+1,0)) -> 0 | BI11: =IF(BI4="","",OFFSET(基準設定1!$H$13,QUOTIENT(COLUMN()-COLUMN($E11),4)*3+1,0)) -> 56 | BK11: =IF(BI4="","",OFFSET(基準設定1!$I$13,QUOTIENT(COLUMN()-COLUMN($G11),4)*3+1,0)) -> 35 | BM11: =IF(BM4="","",OFFSET(基準設定1!$H$13,QUOTIENT(COLUMN()-COLUMN($E11),4)*3+1,0)) -> 32 | BO11: =IF(BM4="","",OFFSET(基準設定1!$I$13,QUOTIENT(COLUMN()-COLUMN($G11),4)*3+1,0)) -> 20 | BQ11: =IF(BQ4="","",OFFSET(基準設定1!$H$13,QUOTIENT(COLUMN()-COLUMN($E11),4)*3+1,0)) ->  | BS11: =IF(BQ4="","",OFFSET(基準設定1!$I$13,QUOTIENT(COLUMN()-COLUMN($G11),4)*3+1,0)) ->  | BU11: =IF(BU4="","",OFFSET(基準設定1!$H$13,QUOTIENT(COLUMN()-COLUMN($E11),4)*3+1,0)) ->  | BW11: =IF(BU4="","",OFFSET(基準設定1!$I$13,QUOTIENT(COLUMN()-COLUMN($G11),4)*3+1,0)) ->  | BY11: =IF(BY4="","",OFFSET(基準設定1!$H$13,QUOTIENT(COLUMN()-COLUMN($E11),4)*3+1,0)) ->  | CA11: =IF(BY4="","",OFFSET(基準設定1!$I$13,QUOTIENT(COLUMN()-COLUMN($G11),4)*3+1,0)) ->  | CC11: =IF(CC4="","",OFFSET(基準設定1!$H$13,QUOTIENT(COLUMN()-COLUMN($E11),4)*3+1,0)) ->  | CE11: =IF(CC4="","",OFFSET(基準設定1!$I$13,QUOTIENT(COLUMN()-COLUMN($G11),4)*3+1,0)) ->  | CG11: =IF(CG4="","",OFFSET(基準設定1!$H$13,QUOTIENT(COLUMN()-COLUMN($E11),4)*3+1,0)) ->  | CI11: =IF(CG4="","",OFFSET(基準設定1!$I$13,QUOTIENT(COLUMN()-COLUMN($G11),4)*3+1,0)) ->  | CK11: =IF(CK4="","",OFFSET(基準設定1!$H$13,QUOTIENT(COLUMN()-COLUMN($E11),4)*3+1,0)) ->  | CM11: =IF(CK4="","",OFFSET(基準設定1!$I$13,QUOTIENT(COLUMN()-COLUMN($G11),4)*3+1,0)) ->  | CO11: =IF(CO4="","",OFFSET(基準設定1!$H$13,QUOTIENT(COLUMN()-COLUMN($E11),4)*3+1,0)) ->  | CQ11: =IF(CO4="","",OFFSET(基準設定1!$I$13,QUOTIENT(COLUMN()-COLUMN($G11),4)*3+1,0)) ->  | CS11: =IF(CS4="","",OFFSET(基準設定1!$H$13,QUOTIENT(COLUMN()-COLUMN($E11),4)*3+1,0)) ->  | CU11: =IF(CS4="","",OFFSET(基準設定1!$I$13,QUOTIENT(COLUMN()-COLUMN($G11),4)*3+1,0)) ->  | CW11: =IF(CW4="","",OFFSET(基準設定1!$H$13,QUOTIENT(COLUMN()-COLUMN($E11),4)*3+1,0)) ->  | CY11: =IF(CW4="","",OFFSET(基準設定1!$I$13,QUOTIENT(COLUMN()-COLUMN($G11),4)*3+1,0)) ->  | DA11: =IF(DA4="","",OFFSET(基準設定1!$H$13,QUOTIENT(COLUMN()-COLUMN($E11),4)*3+1,0)) ->  | DC11: =IF(DA4="","",OFFSET(基準設定1!$I$13,QUOTIENT(COLUMN()-COLUMN($G11),4)*3+1,0)) ->  | DE11: =IF(DE4="","",OFFSET(基準設定1!$H$13,QUOTIENT(COLUMN()-COLUMN($E11),4)*3+1,0)) ->  | DG11: =IF(DE4="","",OFFSET(基準設定1!$I$13,QUOTIENT(COLUMN()-COLUMN($G11),4)*3+1,0)) ->  | DI11: =IF(DI4="","",OFFSET(基準設定1!$H$13,QUOTIENT(COLUMN()-COLUMN($E11),4)*3+1,0)) ->  | DK11: =IF(DI4="","",OFFSET(基準設定1!$I$13,QUOTIENT(COLUMN()-COLUMN($G11),4)*3+1,0)) ->  | DM11: =IF(DM4="","",OFFSET(基準設定1!$H$13,QUOTIENT(COLUMN()-COLUMN($E11),4)*3+1,0)) ->  | DO11: =IF(DM4="","",OFFSET(基準設定1!$I$13,QUOTIENT(COLUMN()-COLUMN($G11),4)*3+1,0)) ->  | DQ11: =IF(DQ4="","",OFFSET(基準設定1!$H$13,QUOTIENT(COLUMN()-COLUMN($E11),4)*3+1,0)) ->  | DS11: =IF(DQ4="","",OFFSET(基準設定1!$I$13,QUOTIENT(COLUMN()-COLUMN($G11),4)*3+1,0)) ->  | DV11: =OFFSET(基準設定2!$D$1,MATCH(DU$2,基準設定2!$A:$A,0)-1+1,0) -> 80 | DW11: =OFFSET(基準設定2!$E$1,MATCH(DU$2,基準設定2!$A:$A,0)-1+1,0) -> 50 | DY11: =OFFSET(基準設定2!$D$1,MATCH(DX$2,基準設定2!$A:$A,0)-1+1,0) -> 80 | DZ11: =OFFSET(基準設定2!$E$1,MATCH(DX$2,基準設定2!$A:$A,0)-1+1,0) -> 50 | EB11: =OFFSET(基準設定2!$D$1,MATCH(EA$2,基準設定2!$A:$A,0)-1+1,0) -> 80 | EC11: =OFFSET(基準設定2!$E$1,MATCH(EA$2,基準設定2!$A:$A,0)-1+1,0) -> 50 | EE11: =OFFSET(基準設定2!$D$1,MATCH(ED$2,基準設定2!$A:$A,0)-1+1,0) -> 80 | EF11: =OFFSET(基準設定2!$E$1,MATCH(ED$2,基準設定2!$A:$A,0)-1+1,0) -> 50
A12: 組 | B12: 番 | C12: 名前 | D12: 観点 | E12: 得点 | F12: 得点 | G12: 合計 | H12: 判定 | I12: 得点 | J12: 得点 | K12: 合計 | L12: 判定 | M12: 得点 | N12: 得点 | O12: 合計 | P12: 判定 | Q12: 得点 | R12: 得点 | S12: 合計 | T12: 判定 | U12: 得点 | V12: 得点 | W12: 合計 | X12: 判定 | Y12: 得点 | Z12: 得点 | AA12: 合計 | AB12: 判定 | AC12: 得点 | AD12: 得点 | AE12: 合計 | AF12: 判定 | AG12: 得点 | AH12: 得点 | AI12: 合計 | AJ12: 判定 | AK12: 得点 | AL12: 得点 | AM12: 合計 | AN12: 判定 | AO12: 得点 | AP12: 得点 | AQ12: 合計 | AR12: 判定 | AS12: 得点 | AT12: 得点 | AU12: 合計 | AV12: 判定 | AW12: 得点 | AX12: 得点 | AY12: 合計 | AZ12: 判定 | BA12: 得点 | BB12: 得点 | BC12: 合計 | BD12: 判定 | BE12: 得点 | BF12: 得点 | BG12: 合計 | BH12: 判定 | BI12: 得点 | BJ12: 得点 | BK12: 合計 | BL12: 判定 | BM12: 得点 | BN12: 得点 | BO12: 合計 | BP12: 判定 | BQ12: 得点 | BR12: 得点 | BS12: 合計 | BT12: 判定 | BU12: 得点 | BV12: 得点 | BW12: 合計 | BX12: 判定 | BY12: 得点 | BZ12: 得点 | CA12: 合計 | CB12: 判定 | CC12: 得点 | CD12: 得点 | CE12: 合計 | CF12: 判定 | CG12: 得点 | CH12: 得点 | CI12: 合計 | CJ12: 判定 | CK12: 得点 | CL12: 得点 | CM12: 合計 | CN12: 判定 | CO12: 得点 | CP12: 得点 | CQ12: 合計 | CR12: 判定 | CS12: 得点 | CT12: 得点 | CU12: 合計 | CV12: 判定 | CW12: 得点 | CX12: 得点 | CY12: 合計 | CZ12: 判定 | DA12: 得点 | DB12: 得点 | DC12: 合計 | DD12: 判定 | DE12: 得点 | DF12: 得点 | DG12: 合計 | DH12: 判定 | DI12: 得点 | DJ12: 得点 | DK12: 合計 | DL12: 判定 | DM12: 得点 | DN12: 得点 | DO12: 合計 | DP12: 判定 | DQ12: 得点 | DR12: 得点 | DS12: 合計 | DT12: 判定 | DU12: 合計 | DV12: 率 | DW12: 判定 | DX12: 合計 | DY12: 率 | DZ12: 判定 | EA12: 合計 | EB12: 率 | EC12: 判定 | ED12: 合計 | EE12: 率 | EF12: 判定
A13: 1 | B13: 1 | C13: =VLOOKUP(B13,INDIRECT("_"&A13&"組"),2,0)&"" ->  | D13: 知識・技能 | G13: =IF(OR(AND(E13="",F13=""),$C13=""),"",SUM(E13:F13)) ->  | H13: =IF(OR(G13="",$C13=""),"",IF(G13>=E$10,"A",IF(G13<G$10,"C","B"))) ->  | K13: =IF(OR(AND(I13="",J13=""),$C13=""),"",SUM(I13:J13)) ->  | L13: =IF(OR(K13="",$C13=""),"",IF(K13>=I$10,"A",IF(K13<K$10,"C","B"))) ->  | O13: =IF(OR(AND(M13="",N13=""),$C13=""),"",SUM(M13:N13)) ->  | P13: =IF(OR(O13="",$C13=""),"",IF(O13>=M$10,"A",IF(O13<O$10,"C","B"))) ->  | S13: =IF(OR(AND(Q13="",R13=""),$C13=""),"",SUM(Q13:R13)) ->  | T13: =IF(OR(S13="",$C13=""),"",IF(S13>=Q$10,"A",IF(S13<S$10,"C","B"))) ->  | W13: =IF(OR(AND(U13="",V13=""),$C13=""),"",SUM(U13:V13)) ->  | X13: =IF(OR(W13="",$C13=""),"",IF(W13>=U$10,"A",IF(W13<W$10,"C","B"))) ->  | AA13: =IF(OR(AND(Y13="",Z13=""),$C13=""),"",SUM(Y13:Z13)) ->  | AB13: =IF(OR(AA13="",$C13=""),"",IF(AA13>=Y$10,"A",IF(AA13<AA$10,"C","B"))) ->  | AE13: =IF(OR(AND(AC13="",AD13=""),$C13=""),"",SUM(AC13:AD13)) ->  | AF13: =IF(OR(AE13="",$C13=""),"",IF(AE13>=AC$10,"A",IF(AE13<AE$10,"C","B"))) ->  | AI13: =IF(OR(AND(AG13="",AH13=""),$C13=""),"",SUM(AG13:AH13)) ->  | AJ13: =IF(OR(AI13="",$C13=""),"",IF(AI13>=AG$10,"A",IF(AI13<AI$10,"C","B"))) ->  | AM13: =IF(OR(AND(AK13="",AL13=""),$C13=""),"",SUM(AK13:AL13)) ->  | AN13: =IF(OR(AM13="",$C13=""),"",IF(AM13>=AK$10,"A",IF(AM13<AM$10,"C","B"))) ->  | AQ13: =IF(OR(AND(AO13="",AP13=""),$C13=""),"",SUM(AO13:AP13)) ->  | AR13: =IF(OR(AQ13="",$C13=""),"",IF(AQ13>=AO$10,"A",IF(AQ13<AQ$10,"C","B"))) ->  | AU13: =IF(OR(AND(AS13="",AT13=""),$C13=""),"",SUM(AS13:AT13)) ->  | AV13: =IF(OR(AU13="",$C13=""),"",IF(AU13>=AS$10,"A",IF(AU13<AU$10,"C","B"))) ->  | AY13: =IF(OR(AND(AW13="",AX13=""),$C13=""),"",SUM(AW13:AX13)) ->  | AZ13: =IF(OR(AY13="",$C13=""),"",IF(AY13>=AW$10,"A",IF(AY13<AY$10,"C","B"))) ->  | BC13: =IF(OR(AND(BA13="",BB13=""),$C13=""),"",SUM(BA13:BB13)) ->  | BD13: =IF(OR(BC13="",$C13=""),"",IF(BC13>=BA$10,"A",IF(BC13<BC$10,"C","B"))) ->  | BG13: =IF(OR(AND(BE13="",BF13=""),$C13=""),"",SUM(BE13:BF13)) ->  | BH13: =IF(OR(BG13="",$C13=""),"",IF(BG13>=BE$10,"A",IF(BG13<BG$10,"C","B"))) ->  | BK13: =IF(OR(AND(BI13="",BJ13=""),$C13=""),"",SUM(BI13:BJ13)) ->  | BL13: =IF(OR(BK13="",$C13=""),"",IF(BK13>=BI$10,"A",IF(BK13<BK$10,"C","B"))) ->  | BO13: =IF(OR(AND(BM13="",BN13=""),$C13=""),"",SUM(BM13:BN13)) ->  | BP13: =IF(OR(BO13="",$C13=""),"",IF(BO13>=BM$10,"A",IF(BO13<BO$10,"C","B"))) ->  | DU13: =IF($C13="","",IF(COUNTIFS($E$1:$DT$1,DU$1,$E$12:$DT$12,"得点",$E13:$DT13,">="&0)=0,"",SUMIFS($E13:$DT13,$E$1:$DT$1,DU$1,$E$12:$DT$12,"得点"))) ->  | DV13: =IF(OR($C13="",DU$6=0,DU13=""),"",DU13/DU$6) ->  | DW13: =IF(OR($C13="",DU$6=0,DV13=""),"",IF(DV13*100>=DV$10,"A",IF(DV13*100>=DW$10,"B","C"))) ->  | DX13: =IF($C13="","",IF(COUNTIFS($E$1:$DT$1,DX$1,$E$12:$DT$12,"得点",$E13:$DT13,">="&0)=0,"",SUMIFS($E13:$DT13,$E$1:$DT$1,DX$1,$E$12:$DT$12,"得点"))) ->  | DY13: =IF(OR($C13="",DX$6=0,DX13=""),"",DX13/DX$6) ->  | DZ13: =IF(OR($C13="",DX$6=0,DY13=""),"",IF(DY13*100>=DY$10,"A",IF(DY13*100>=DZ$10,"B","C"))) ->  | EA13: =IF($C13="","",IF(COUNTIFS($E$1:$DT$1,EA$1,$E$12:$DT$12,"得点",$E13:$DT13,">="&0)=0,"",SUMIFS($E13:$DT13,$E$1:$DT$1,EA$1,$E$12:$DT$12,"得点"))) ->  | EB13: =IF(OR($C13="",EA$6=0,EA13=""),"",EA13/EA$6) ->  | EC13: =IF(OR($C13="",EA$6=0,EB13=""),"",IF(EB13*100>=EB$10,"A",IF(EB13*100>=EC$10,"B","C"))) ->  | ED13: =IF($C13="","",IF(AND(DU13="",DX13="",EA13=""),"",SUM(DU13,DX13,EA13))) ->  | EE13: =IF(OR($C13="",ED$6=0,ED13=""),"",ED13/ED$6) ->  | EF13: =IF(OR($C13="",ED$6=0,EE13=""),"",IF(EE13*100>=EE$10,"A",IF(EE13*100>=EF$10,"B","C"))) -> 
D14: 思考判断表現 | G14: =IF(OR(AND(E14="",F14=""),$C13=""),"",SUM(E14:F14)) ->  | H14: =IF(OR(G14="",$C13=""),"",IF(G14>=E$11,"A",IF(G14<G$11,"C","B"))) ->  | K14: =IF(OR(AND(I14="",J14=""),$C13=""),"",SUM(I14:J14)) ->  | L14: =IF(OR(K14="",$C13=""),"",IF(K14>=I$11,"A",IF(K14<K$11,"C","B"))) ->  | O14: =IF(OR(AND(M14="",N14=""),$C13=""),"",SUM(M14:N14)) ->  | P14: =IF(OR(O14="",$C13=""),"",IF(O14>=M$11,"A",IF(O14<O$11,"C","B"))) ->  | S14: =IF(OR(AND(Q14="",R14=""),$C13=""),"",SUM(Q14:R14)) ->  | T14: =IF(OR(S14="",$C13=""),"",IF(S14>=Q$11,"A",IF(S14<S$11,"C","B"))) ->  | W14: =IF(OR(AND(U14="",V14=""),$C13=""),"",SUM(U14:V14)) ->  | X14: =IF(OR(W14="",$C13=""),"",IF(W14>=U$11,"A",IF(W14<W$11,"C","B"))) ->  | AA14: =IF(OR(AND(Y14="",Z14=""),$C13=""),"",SUM(Y14:Z14)) ->  | AB14: =IF(OR(AA14="",$C13=""),"",IF(AA14>=Y$11,"A",IF(AA14<AA$11,"C","B"))) ->  | AE14: =IF(OR(AND(AC14="",AD14=""),$C13=""),"",SUM(AC14:AD14)) ->  | AF14: =IF(OR(AE14="",$C13=""),"",IF(AE14>=AC$11,"A",IF(AE14<AE$11,"C","B"))) ->  | AI14: =IF(OR(AND(AG14="",AH14=""),$C13=""),"",SUM(AG14:AH14)) ->  | AJ14: =IF(OR(AI14="",$C13=""),"",IF(AI14>=AG$11,"A",IF(AI14<AI$11,"C","B"))) ->  | AM14: =IF(OR(AND(AK14="",AL14=""),$C13=""),"",SUM(AK14:AL14)) ->  | AN14: =IF(OR(AM14="",$C13=""),"",IF(AM14>=AK$11,"A",IF(AM14<AM$11,"C","B"))) ->  | AQ14: =IF(OR(AND(AO14="",AP14=""),$C13=""),"",SUM(AO14:AP14)) ->  | AR14: =IF(OR(AQ14="",$C13=""),"",IF(AQ14>=AO$11,"A",IF(AQ14<AQ$11,"C","B"))) ->  | AU14: =IF(OR(AND(AS14="",AT14=""),$C13=""),"",SUM(AS14:AT14)) ->  | AV14: =IF(OR(AU14="",$C13=""),"",IF(AU14>=AS$11,"A",IF(AU14<AU$11,"C","B"))) ->  | AY14: =IF(OR(AND(AW14="",AX14=""),$C13=""),"",SUM(AW14:AX14)) ->  | AZ14: =IF(OR(AY14="",$C13=""),"",IF(AY14>=AW$11,"A",IF(AY14<AY$11,"C","B"))) ->  | BC14: =IF(OR(AND(BA14="",BB14=""),$C13=""),"",SUM(BA14:BB14)) ->  | BD14: =IF(OR(BC14="",$C13=""),"",IF(BC14>=BA$11,"A",IF(BC14<BC$11,"C","B"))) ->  | BG14: =IF(OR(AND(BE14="",BF14=""),$C13=""),"",SUM(BE14:BF14)) ->  | BH14: =IF(OR(BG14="",$C13=""),"",IF(BG14>=BE$11,"A",IF(BG14<BG$11,"C","B"))) ->  | BK14: =IF(OR(AND(BI14="",BJ14=""),$C13=""),"",SUM(BI14:BJ14)) ->  | BL14: =IF(OR(BK14="",$C13=""),"",IF(BK14>=BI$11,"A",IF(BK14<BK$11,"C","B"))) ->  | BO14: =IF(OR(AND(BM14="",BN14=""),$C13=""),"",SUM(BM14:BN14)) ->  | BP14: =IF(OR(BO14="",$C13=""),"",IF(BO14>=BM$11,"A",IF(BO14<BO$11,"C","B"))) ->  | DU14: =IF($C13="","",IF(COUNTIFS($E$1:$DT$1,DU$1,$E$12:$DT$12,"得点",$E14:$DT14,">="&0)=0,"",SUMIFS($E14:$DT14,$E$1:$DT$1,DU$1,$E$12:$DT$12,"得点"))) ->  | DV14: =IF(OR($C13="",DU$7=0,DU14=""),"",DU14/DU$7) ->  | DW14: =IF(OR($C13="",DU$7=0,DV14=""),"",IF(DV14*100>=DV$11,"A",IF(DV14*100>=DW$11,"B","C"))) ->  | DX14: =IF($C13="","",IF(COUNTIFS($E$1:$DT$1,DX$1,$E$12:$DT$12,"得点",$E14:$DT14,">="&0)=0,"",SUMIFS($E14:$DT14,$E$1:$DT$1,DX$1,$E$12:$DT$12,"得点"))) ->  | DY14: =IF(OR($C13="",DX$7=0,DX14=""),"",DX14/DX$7) ->  | DZ14: =IF(OR($C13="",DX$7=0,DY14=""),"",IF(DY14*100>=DY$11,"A",IF(DY14*100>=DZ$11,"B","C"))) ->  | EA14: =IF($C13="","",IF(COUNTIFS($E$1:$DT$1,EA$1,$E$12:$DT$12,"得点",$E14:$DT14,">="&0)=0,"",SUMIFS($E14:$DT14,$E$1:$DT$1,EA$1,$E$12:$DT$12,"得点"))) ->  | EB14: =IF(OR($C13="",EA$7=0,EA14=""),"",EA14/EA$7) ->  | EC14: =IF(OR($C13="",EA$7=0,EB14=""),"",IF(EB14*100>=EB$11,"A",IF(EB14*100>=EC$11,"B","C"))) ->  | ED14: =IF($C13="","",IF(AND(DU14="",DX14="",EA14=""),"",SUM(DU14,DX14,EA14))) ->  | EE14: =IF(OR($C13="",ED$7=0,ED14=""),"",ED14/ED$7) ->  | EF14: =IF(OR($C13="",ED$7=0,EE14=""),"",IF(EE14*100>=EE$11,"A",IF(EE14*100>=EF$11,"B","C"))) -> 
D15: 合計 | E15: =IF(OR(AND(E13="",E14=""),$C13=""),"",SUM(E13:E14)) ->  | F15: =IF(OR(AND(F13="",F14=""),$C13=""),"",SUM(F13:F14)) ->  | G15: =IF(OR(AND(E15="",F15=""),$C13=""),"",SUM(E15:F15)) ->  | I15: =IF(OR(AND(I13="",I14=""),$C13=""),"",SUM(I13:I14)) ->  | J15: =IF(OR(AND(J13="",J14=""),$C13=""),"",SUM(J13:J14)) ->  | K15: =IF(OR(AND(I15="",J15=""),$C13=""),"",SUM(I15:J15)) ->  | M15: =IF(OR(AND(M13="",M14=""),$C13=""),"",SUM(M13:M14)) ->  | N15: =IF(OR(AND(N13="",N14=""),$C13=""),"",SUM(N13:N14)) ->  | O15: =IF(OR(AND(M15="",N15=""),$C13=""),"",SUM(M15:N15)) ->  | Q15: =IF(OR(AND(Q13="",Q14=""),$C13=""),"",SUM(Q13:Q14)) ->  | R15: =IF(OR(AND(R13="",R14=""),$C13=""),"",SUM(R13:R14)) ->  | S15: =IF(OR(AND(Q15="",R15=""),$C13=""),"",SUM(Q15:R15)) ->  | U15: =IF(OR(AND(U13="",U14=""),$C13=""),"",SUM(U13:U14)) ->  | V15: =IF(OR(AND(V13="",V14=""),$C13=""),"",SUM(V13:V14)) ->  | W15: =IF(OR(AND(U15="",V15=""),$C13=""),"",SUM(U15:V15)) ->  | Y15: =IF(OR(AND(Y13="",Y14=""),$C13=""),"",SUM(Y13:Y14)) ->  | Z15: =IF(OR(AND(Z13="",Z14=""),$C13=""),"",SUM(Z13:Z14)) ->  | AA15: =IF(OR(AND(Y15="",Z15=""),$C13=""),"",SUM(Y15:Z15)) ->  | AC15: =IF(OR(AND(AC13="",AC14=""),$C13=""),"",SUM(AC13:AC14)) ->  | AD15: =IF(OR(AND(AD13="",AD14=""),$C13=""),"",SUM(AD13:AD14)) ->  | AE15: =IF(OR(AND(AC15="",AD15=""),$C13=""),"",SUM(AC15:AD15)) ->  | AG15: =IF(OR(AND(AG13="",AG14=""),$C13=""),"",SUM(AG13:AG14)) ->  | AH15: =IF(OR(AND(AH13="",AH14=""),$C13=""),"",SUM(AH13:AH14)) ->  | AI15: =IF(OR(AND(AG15="",AH15=""),$C13=""),"",SUM(AG15:AH15)) ->  | AK15: =IF(OR(AND(AK13="",AK14=""),$C13=""),"",SUM(AK13:AK14)) ->  | AL15: =IF(OR(AND(AL13="",AL14=""),$C13=""),"",SUM(AL13:AL14)) ->  | AM15: =IF(OR(AND(AK15="",AL15=""),$C13=""),"",SUM(AK15:AL15)) ->  | AO15: =IF(OR(AND(AO13="",AO14=""),$C13=""),"",SUM(AO13:AO14)) ->  | AP15: =IF(OR(AND(AP13="",AP14=""),$C13=""),"",SUM(AP13:AP14)) ->  | AQ15: =IF(OR(AND(AO15="",AP15=""),$C13=""),"",SUM(AO15:AP15)) ->  | AS15: =IF(OR(AND(AS13="",AS14=""),$C13=""),"",SUM(AS13:AS14)) ->  | AT15: =IF(OR(AND(AT13="",AT14=""),$C13=""),"",SUM(AT13:AT14)) ->  | AU15: =IF(OR(AND(AS15="",AT15=""),$C13=""),"",SUM(AS15:AT15)) ->  | AW15: =IF(OR(AND(AW13="",AW14=""),$C13=""),"",SUM(AW13:AW14)) ->  | AX15: =IF(OR(AND(AX13="",AX14=""),$C13=""),"",SUM(AX13:AX14)) ->  | AY15: =IF(OR(AND(AW15="",AX15=""),$C13=""),"",SUM(AW15:AX15)) ->  | BA15: =IF(OR(AND(BA13="",BA14=""),$C13=""),"",SUM(BA13:BA14)) ->  | BB15: =IF(OR(AND(BB13="",BB14=""),$C13=""),"",SUM(BB13:BB14)) ->  | BC15: =IF(OR(AND(BA15="",BB15=""),$C13=""),"",SUM(BA15:BB15)) ->  | BE15: =IF(OR(AND(BE13="",BE14=""),$C13=""),"",SUM(BE13:BE14)) ->  | BF15: =IF(OR(AND(BF13="",BF14=""),$C13=""),"",SUM(BF13:BF14)) ->  | BG15: =IF(OR(AND(BE15="",BF15=""),$C13=""),"",SUM(BE15:BF15)) ->  | BI15: =IF(OR(AND(BI13="",BI14=""),$C13=""),"",SUM(BI13:BI14)) ->  | BJ15: =IF(OR(AND(BJ13="",BJ14=""),$C13=""),"",SUM(BJ13:BJ14)) ->  | BK15: =IF(OR(AND(BI15="",BJ15=""),$C13=""),"",SUM(BI15:BJ15)) ->  | BM15: =IF(OR(AND(BM13="",BM14=""),$C13=""),"",SUM(BM13:BM14)) ->  | BN15: =IF(OR(AND(BN13="",BN14=""),$C13=""),"",SUM(BN13:BN14)) ->  | BO15: =IF(OR(AND(BM15="",BN15=""),$C13=""),"",SUM(BM15:BN15)) ->  | DU15: =IF($C13="","",IF(COUNTBLANK(DU13:DU14)=COUNTA(DU13:DU14),"",SUM(DU13:DU14))) ->  | DV15: =IF(OR($C13="",DU$8=0,DU15=""),"",DU15/DU$8) ->  | DW15: =IF(OR($C15="",DU$6=0),"",IF(DV15*100>=DV$10,"A",IF(DV15*100>=DW$10,"B","C"))) ->  | DX15: =IF($C13="","",IF(COUNTBLANK(DX13:DX14)=COUNTA(DX13:DX14),"",SUM(DX13:DX14))) ->  | DY15: =IF(OR($C13="",DX$8=0,DX15=""),"",DX15/DX$8) ->  | DZ15: =IF(OR($C15="",DX$6=0),"",IF(DY15*100>=DY$10,"A",IF(DY15*100>=DZ$10,"B","C"))) ->  | EA15: =IF($C13="","",IF(COUNTBLANK(EA13:EA14)=COUNTA(EA13:EA14),"",SUM(EA13:EA14))) ->  | EB15: =IF(OR($C13="",EA$8=0,EA15=""),"",EA15/EA$8) ->  | EC15: =IF(OR($C15="",EA$6=0),"",IF(EB15*100>=EB$10,"A",IF(EB15*100>=EC$10,"B","C"))) ->  | ED15: =IF($C13="","",IF(AND(DU15="",DX15="",EA15=""),"",SUM(DU15,DX15,EA15))) ->  | EE15: =IF(OR($C13="",ED$8=0,ED15=""),"",ED15/ED$8) ->  | EF15: =IF(OR($C15="",ED$6=0),"",IF(EE15*100>=EE$10,"A",IF(EE15*100>=EF$10,"B","C"))) -> 
A16: 1 | B16: 2 | C16: =VLOOKUP(B16,INDIRECT("_"&A16&"組"),2,0)&"" ->  | D16: 知識・技能 | G16: =IF(OR(AND(E16="",F16=""),$C16=""),"",SUM(E16:F16)) ->  | H16: =IF(OR(G16="",$C16=""),"",IF(G16>=E$10,"A",IF(G16<G$10,"C","B"))) ->  | K16: =IF(OR(AND(I16="",J16=""),$C16=""),"",SUM(I16:J16)) ->  | L16: =IF(OR(K16="",$C16=""),"",IF(K16>=I$10,"A",IF(K16<K$10,"C","B"))) ->  | O16: =IF(OR(AND(M16="",N16=""),$C16=""),"",SUM(M16:N16)) ->  | P16: =IF(OR(O16="",$C16=""),"",IF(O16>=M$10,"A",IF(O16<O$10,"C","B"))) ->  | S16: =IF(OR(AND(Q16="",R16=""),$C16=""),"",SUM(Q16:R16)) ->  | T16: =IF(OR(S16="",$C16=""),"",IF(S16>=Q$10,"A",IF(S16<S$10,"C","B"))) ->  | W16: =IF(OR(AND(U16="",V16=""),$C16=""),"",SUM(U16:V16)) ->  | X16: =IF(OR(W16="",$C16=""),"",IF(W16>=U$10,"A",IF(W16<W$10,"C","B"))) ->  | AA16: =IF(OR(AND(Y16="",Z16=""),$C16=""),"",SUM(Y16:Z16)) ->  | AB16: =IF(OR(AA16="",$C16=""),"",IF(AA16>=Y$10,"A",IF(AA16<AA$10,"C","B"))) ->  | AE16: =IF(OR(AND(AC16="",AD16=""),$C16=""),"",SUM(AC16:AD16)) ->  | AF16: =IF(OR(AE16="",$C16=""),"",IF(AE16>=AC$10,"A",IF(AE16<AE$10,"C","B"))) ->  | AI16: =IF(OR(AND(AG16="",AH16=""),$C16=""),"",SUM(AG16:AH16)) ->  | AJ16: =IF(OR(AI16="",$C16=""),"",IF(AI16>=AG$10,"A",IF(AI16<AI$10,"C","B"))) ->  | AM16: =IF(OR(AND(AK16="",AL16=""),$C16=""),"",SUM(AK16:AL16)) ->  | AN16: =IF(OR(AM16="",$C16=""),"",IF(AM16>=AK$10,"A",IF(AM16<AM$10,"C","B"))) ->  | AQ16: =IF(OR(AND(AO16="",AP16=""),$C16=""),"",SUM(AO16:AP16)) ->  | AR16: =IF(OR(AQ16="",$C16=""),"",IF(AQ16>=AO$10,"A",IF(AQ16<AQ$10,"C","B"))) ->  | AU16: =IF(OR(AND(AS16="",AT16=""),$C16=""),"",SUM(AS16:AT16)) ->  | AV16: =IF(OR(AU16="",$C16=""),"",IF(AU16>=AS$10,"A",IF(AU16<AU$10,"C","B"))) ->  | AY16: =IF(OR(AND(AW16="",AX16=""),$C16=""),"",SUM(AW16:AX16)) ->  | AZ16: =IF(OR(AY16="",$C16=""),"",IF(AY16>=AW$10,"A",IF(AY16<AY$10,"C","B"))) ->  | BC16: =IF(OR(AND(BA16="",BB16=""),$C16=""),"",SUM(BA16:BB16)) ->  | BD16: =IF(OR(BC16="",$C16=""),"",IF(BC16>=BA$10,"A",IF(BC16<BC$10,"C","B"))) ->  | BG16: =IF(OR(AND(BE16="",BF16=""),$C16=""),"",SUM(BE16:BF16)) ->  | BH16: =IF(OR(BG16="",$C16=""),"",IF(BG16>=BE$10,"A",IF(BG16<BG$10,"C","B"))) ->  | BK16: =IF(OR(AND(BI16="",BJ16=""),$C16=""),"",SUM(BI16:BJ16)) ->  | BL16: =IF(OR(BK16="",$C16=""),"",IF(BK16>=BI$10,"A",IF(BK16<BK$10,"C","B"))) ->  | BO16: =IF(OR(AND(BM16="",BN16=""),$C16=""),"",SUM(BM16:BN16)) ->  | BP16: =IF(OR(BO16="",$C16=""),"",IF(BO16>=BM$10,"A",IF(BO16<BO$10,"C","B"))) ->  | DU16: =IF($C16="","",IF(COUNTIFS($E$1:$DT$1,DU$1,$E$12:$DT$12,"得点",$E16:$DT16,">="&0)=0,"",SUMIFS($E16:$DT16,$E$1:$DT$1,DU$1,$E$12:$DT$12,"得点"))) ->  | DV16: =IF(OR($C16="",DU$6=0,DU16=""),"",DU16/DU$6) ->  | DW16: =IF(OR($C16="",DU$6=0,DV16=""),"",IF(DV16*100>=DV$10,"A",IF(DV16*100>=DW$10,"B","C"))) ->  | DX16: =IF($C16="","",IF(COUNTIFS($E$1:$DT$1,DX$1,$E$12:$DT$12,"得点",$E16:$DT16,">="&0)=0,"",SUMIFS($E16:$DT16,$E$1:$DT$1,DX$1,$E$12:$DT$12,"得点"))) ->  | DY16: =IF(OR($C16="",DX$6=0,DX16=""),"",DX16/DX$6) ->  | DZ16: =IF(OR($C16="",DX$6=0,DY16=""),"",IF(DY16*100>=DY$10,"A",IF(DY16*100>=DZ$10,"B","C"))) ->  | EA16: =IF($C16="","",IF(COUNTIFS($E$1:$DT$1,EA$1,$E$12:$DT$12,"得点",$E16:$DT16,">="&0)=0,"",SUMIFS($E16:$DT16,$E$1:$DT$1,EA$1,$E$12:$DT$12,"得点"))) ->  | EB16: =IF(OR($C16="",EA$6=0,EA16=""),"",EA16/EA$6) ->  | EC16: =IF(OR($C16="",EA$6=0,EB16=""),"",IF(EB16*100>=EB$10,"A",IF(EB16*100>=EC$10,"B","C"))) ->  | ED16: =IF($C16="","",IF(AND(DU16="",DX16="",EA16=""),"",SUM(DU16,DX16,EA16))) ->  | EE16: =IF(OR($C16="",ED$6=0,ED16=""),"",ED16/ED$6) ->  | EF16: =IF(OR($C16="",ED$6=0,EE16=""),"",IF(EE16*100>=EE$10,"A",IF(EE16*100>=EF$10,"B","C"))) -> 
D17: 思考判断表現 | G17: =IF(OR(AND(E17="",F17=""),$C16=""),"",SUM(E17:F17)) ->  | H17: =IF(OR(G17="",$C16=""),"",IF(G17>=E$11,"A",IF(G17<G$11,"C","B"))) ->  | K17: =IF(OR(AND(I17="",J17=""),$C16=""),"",SUM(I17:J17)) ->  | L17: =IF(OR(K17="",$C16=""),"",IF(K17>=I$11,"A",IF(K17<K$11,"C","B"))) ->  | O17: =IF(OR(AND(M17="",N17=""),$C16=""),"",SUM(M17:N17)) ->  | P17: =IF(OR(O17="",$C16=""),"",IF(O17>=M$11,"A",IF(O17<O$11,"C","B"))) ->  | S17: =IF(OR(AND(Q17="",R17=""),$C16=""),"",SUM(Q17:R17)) ->  | T17: =IF(OR(S17="",$C16=""),"",IF(S17>=Q$11,"A",IF(S17<S$11,"C","B"))) ->  | W17: =IF(OR(AND(U17="",V17=""),$C16=""),"",SUM(U17:V17)) ->  | X17: =IF(OR(W17="",$C16=""),"",IF(W17>=U$11,"A",IF(W17<W$11,"C","B"))) ->  | AA17: =IF(OR(AND(Y17="",Z17=""),$C16=""),"",SUM(Y17:Z17)) ->  | AB17: =IF(OR(AA17="",$C16=""),"",IF(AA17>=Y$11,"A",IF(AA17<AA$11,"C","B"))) ->  | AE17: =IF(OR(AND(AC17="",AD17=""),$C16=""),"",SUM(AC17:AD17)) ->  | AF17: =IF(OR(AE17="",$C16=""),"",IF(AE17>=AC$11,"A",IF(AE17<AE$11,"C","B"))) ->  | AI17: =IF(OR(AND(AG17="",AH17=""),$C16=""),"",SUM(AG17:AH17)) ->  | AJ17: =IF(OR(AI17="",$C16=""),"",IF(AI17>=AG$11,"A",IF(AI17<AI$11,"C","B"))) ->  | AM17: =IF(OR(AND(AK17="",AL17=""),$C16=""),"",SUM(AK17:AL17)) ->  | AN17: =IF(OR(AM17="",$C16=""),"",IF(AM17>=AK$11,"A",IF(AM17<AM$11,"C","B"))) ->  | AQ17: =IF(OR(AND(AO17="",AP17=""),$C16=""),"",SUM(AO17:AP17)) ->  | AR17: =IF(OR(AQ17="",$C16=""),"",IF(AQ17>=AO$11,"A",IF(AQ17<AQ$11,"C","B"))) ->  | AU17: =IF(OR(AND(AS17="",AT17=""),$C16=""),"",SUM(AS17:AT17)) ->  | AV17: =IF(OR(AU17="",$C16=""),"",IF(AU17>=AS$11,"A",IF(AU17<AU$11,"C","B"))) ->  | AY17: =IF(OR(AND(AW17="",AX17=""),$C16=""),"",SUM(AW17:AX17)) ->  | AZ17: =IF(OR(AY17="",$C16=""),"",IF(AY17>=AW$11,"A",IF(AY17<AY$11,"C","B"))) ->  | BC17: =IF(OR(AND(BA17="",BB17=""),$C16=""),"",SUM(BA17:BB17)) ->  | BD17: =IF(OR(BC17="",$C16=""),"",IF(BC17>=BA$11,"A",IF(BC17<BC$11,"C","B"))) ->  | BG17: =IF(OR(AND(BE17="",BF17=""),$C16=""),"",SUM(BE17:BF17)) ->  | BH17: =IF(OR(BG17="",$C16=""),"",IF(BG17>=BE$11,"A",IF(BG17<BG$11,"C","B"))) ->  | BK17: =IF(OR(AND(BI17="",BJ17=""),$C16=""),"",SUM(BI17:BJ17)) ->  | BL17: =IF(OR(BK17="",$C16=""),"",IF(BK17>=BI$11,"A",IF(BK17<BK$11,"C","B"))) ->  | BO17: =IF(OR(AND(BM17="",BN17=""),$C16=""),"",SUM(BM17:BN17)) ->  | BP17: =IF(OR(BO17="",$C16=""),"",IF(BO17>=BM$11,"A",IF(BO17<BO$11,"C","B"))) ->  | DU17: =IF($C16="","",IF(COUNTIFS($E$1:$DT$1,DU$1,$E$12:$DT$12,"得点",$E17:$DT17,">="&0)=0,"",SUMIFS($E17:$DT17,$E$1:$DT$1,DU$1,$E$12:$DT$12,"得点"))) ->  | DV17: =IF(OR($C16="",DU$7=0,DU17=""),"",DU17/DU$7) ->  | DW17: =IF(OR($C16="",DU$7=0,DV17=""),"",IF(DV17*100>=DV$11,"A",IF(DV17*100>=DW$11,"B","C"))) ->  | DX17: =IF($C16="","",IF(COUNTIFS($E$1:$DT$1,DX$1,$E$12:$DT$12,"得点",$E17:$DT17,">="&0)=0,"",SUMIFS($E17:$DT17,$E$1:$DT$1,DX$1,$E$12:$DT$12,"得点"))) ->  | DY17: =IF(OR($C16="",DX$7=0,DX17=""),"",DX17/DX$7) ->  | DZ17: =IF(OR($C16="",DX$7=0,DY17=""),"",IF(DY17*100>=DY$11,"A",IF(DY17*100>=DZ$11,"B","C"))) ->  | EA17: =IF($C16="","",IF(COUNTIFS($E$1:$DT$1,EA$1,$E$12:$DT$12,"得点",$E17:$DT17,">="&0)=0,"",SUMIFS($E17:$DT17,$E$1:$DT$1,EA$1,$E$12:$DT$12,"得点"))) ->  | EB17: =IF(OR($C16="",EA$7=0,EA17=""),"",EA17/EA$7) ->  | EC17: =IF(OR($C16="",EA$7=0,EB17=""),"",IF(EB17*100>=EB$11,"A",IF(EB17*100>=EC$11,"B","C"))) ->  | ED17: =IF($C16="","",IF(AND(DU17="",DX17="",EA17=""),"",SUM(DU17,DX17,EA17))) ->  | EE17: =IF(OR($C16="",ED$7=0,ED17=""),"",ED17/ED$7) ->  | EF17: =IF(OR($C16="",ED$7=0,EE17=""),"",IF(EE17*100>=EE$11,"A",IF(EE17*100>=EF$11,"B","C"))) -> 
D18: 合計 | E18: =IF(OR(AND(E16="",E17=""),$C16=""),"",SUM(E16:E17)) ->  | F18: =IF(OR(AND(F16="",F17=""),$C16=""),"",SUM(F16:F17)) ->  | G18: =IF(OR(AND(E18="",F18=""),$C16=""),"",SUM(E18:F18)) ->  | I18: =IF(OR(AND(I16="",I17=""),$C16=""),"",SUM(I16:I17)) ->  | J18: =IF(OR(AND(J16="",J17=""),$C16=""),"",SUM(J16:J17)) ->  | K18: =IF(OR(AND(I18="",J18=""),$C16=""),"",SUM(I18:J18)) ->  | M18: =IF(OR(AND(M16="",M17=""),$C16=""),"",SUM(M16:M17)) ->  | N18: =IF(OR(AND(N16="",N17=""),$C16=""),"",SUM(N16:N17)) ->  | O18: =IF(OR(AND(M18="",N18=""),$C16=""),"",SUM(M18:N18)) ->  | Q18: =IF(OR(AND(Q16="",Q17=""),$C16=""),"",SUM(Q16:Q17)) ->  | R18: =IF(OR(AND(R16="",R17=""),$C16=""),"",SUM(R16:R17)) ->  | S18: =IF(OR(AND(Q18="",R18=""),$C16=""),"",SUM(Q18:R18)) ->  | U18: =IF(OR(AND(U16="",U17=""),$C16=""),"",SUM(U16:U17)) ->  | V18: =IF(OR(AND(V16="",V17=""),$C16=""),"",SUM(V16:V17)) ->  | W18: =IF(OR(AND(U18="",V18=""),$C16=""),"",SUM(U18:V18)) ->  | Y18: =IF(OR(AND(Y16="",Y17=""),$C16=""),"",SUM(Y16:Y17)) ->  | Z18: =IF(OR(AND(Z16="",Z17=""),$C16=""),"",SUM(Z16:Z17)) ->  | AA18: =IF(OR(AND(Y18="",Z18=""),$C16=""),"",SUM(Y18:Z18)) ->  | AC18: =IF(OR(AND(AC16="",AC17=""),$C16=""),"",SUM(AC16:AC17)) ->  | AD18: =IF(OR(AND(AD16="",AD17=""),$C16=""),"",SUM(AD16:AD17)) ->  | AE18: =IF(OR(AND(AC18="",AD18=""),$C16=""),"",SUM(AC18:AD18)) ->  | AG18: =IF(OR(AND(AG16="",AG17=""),$C16=""),"",SUM(AG16:AG17)) ->  | AH18: =IF(OR(AND(AH16="",AH17=""),$C16=""),"",SUM(AH16:AH17)) ->  | AI18: =IF(OR(AND(AG18="",AH18=""),$C16=""),"",SUM(AG18:AH18)) ->  | AK18: =IF(OR(AND(AK16="",AK17=""),$C16=""),"",SUM(AK16:AK17)) ->  | AL18: =IF(OR(AND(AL16="",AL17=""),$C16=""),"",SUM(AL16:AL17)) ->  | AM18: =IF(OR(AND(AK18="",AL18=""),$C16=""),"",SUM(AK18:AL18)) ->  | AO18: =IF(OR(AND(AO16="",AO17=""),$C16=""),"",SUM(AO16:AO17)) ->  | AP18: =IF(OR(AND(AP16="",AP17=""),$C16=""),"",SUM(AP16:AP17)) ->  | AQ18: =IF(OR(AND(AO18="",AP18=""),$C16=""),"",SUM(AO18:AP18)) ->  | AS18: =IF(OR(AND(AS16="",AS17=""),$C16=""),"",SUM(AS16:AS17)) ->  | AT18: =IF(OR(AND(AT16="",AT17=""),$C16=""),"",SUM(AT16:AT17)) ->  | AU18: =IF(OR(AND(AS18="",AT18=""),$C16=""),"",SUM(AS18:AT18)) ->  | AW18: =IF(OR(AND(AW16="",AW17=""),$C16=""),"",SUM(AW16:AW17)) ->  | AX18: =IF(OR(AND(AX16="",AX17=""),$C16=""),"",SUM(AX16:AX17)) ->  | AY18: =IF(OR(AND(AW18="",AX18=""),$C16=""),"",SUM(AW18:AX18)) ->  | BA18: =IF(OR(AND(BA16="",BA17=""),$C16=""),"",SUM(BA16:BA17)) ->  | BB18: =IF(OR(AND(BB16="",BB17=""),$C16=""),"",SUM(BB16:BB17)) ->  | BC18: =IF(OR(AND(BA18="",BB18=""),$C16=""),"",SUM(BA18:BB18)) ->  | BE18: =IF(OR(AND(BE16="",BE17=""),$C16=""),"",SUM(BE16:BE17)) ->  | BF18: =IF(OR(AND(BF16="",BF17=""),$C16=""),"",SUM(BF16:BF17)) ->  | BG18: =IF(OR(AND(BE18="",BF18=""),$C16=""),"",SUM(BE18:BF18)) ->  | BI18: =IF(OR(AND(BI16="",BI17=""),$C16=""),"",SUM(BI16:BI17)) ->  | BJ18: =IF(OR(AND(BJ16="",BJ17=""),$C16=""),"",SUM(BJ16:BJ17)) ->  | BK18: =IF(OR(AND(BI18="",BJ18=""),$C16=""),"",SUM(BI18:BJ18)) ->  | BM18: =IF(OR(AND(BM16="",BM17=""),$C16=""),"",SUM(BM16:BM17)) ->  | BN18: =IF(OR(AND(BN16="",BN17=""),$C16=""),"",SUM(BN16:BN17)) ->  | BO18: =IF(OR(AND(BM18="",BN18=""),$C16=""),"",SUM(BM18:BN18)) ->  | DU18: =IF($C16="","",IF(COUNTBLANK(DU16:DU17)=COUNTA(DU16:DU17),"",SUM(DU16:DU17))) ->  | DV18: =IF(OR($C16="",DU$8=0,DU18=""),"",DU18/DU$8) ->  | DW18: =IF(OR($C18="",DU$6=0),"",IF(DV18*100>=DV$10,"A",IF(DV18*100>=DW$10,"B","C"))) ->  | DX18: =IF($C16="","",IF(COUNTBLANK(DX16:DX17)=COUNTA(DX16:DX17),"",SUM(DX16:DX17))) ->  | DY18: =IF(OR($C16="",DX$8=0,DX18=""),"",DX18/DX$8) ->  | DZ18: =IF(OR($C18="",DX$6=0),"",IF(DY18*100>=DY$10,"A",IF(DY18*100>=DZ$10,"B","C"))) ->  | EA18: =IF($C16="","",IF(COUNTBLANK(EA16:EA17)=COUNTA(EA16:EA17),"",SUM(EA16:EA17))) ->  | EB18: =IF(OR($C16="",EA$8=0,EA18=""),"",EA18/EA$8) ->  | EC18: =IF(OR($C18="",EA$6=0),"",IF(EB18*100>=EB$10,"A",IF(EB18*100>=EC$10,"B","C"))) ->  | ED18: =IF($C16="","",IF(AND(DU18="",DX18="",EA18=""),"",SUM(DU18,DX18,EA18))) ->  | EE18: =IF(OR($C16="",ED$8=0,ED18=""),"",ED18/ED$8) ->  | EF18: =IF(OR($C18="",ED$6=0),"",IF(EE18*100>=EE$10,"A",IF(EE18*100>=EF$10,"B","C"))) -> 
A19: 1 | B19: 3 | C19: =VLOOKUP(B19,INDIRECT("_"&A19&"組"),2,0)&"" ->  | D19: 知識・技能 | G19: =IF(OR(AND(E19="",F19=""),$C19=""),"",SUM(E19:F19)) ->  | H19: =IF(OR(G19="",$C19=""),"",IF(G19>=E$10,"A",IF(G19<G$10,"C","B"))) ->  | K19: =IF(OR(AND(I19="",J19=""),$C19=""),"",SUM(I19:J19)) ->  | L19: =IF(OR(K19="",$C19=""),"",IF(K19>=I$10,"A",IF(K19<K$10,"C","B"))) ->  | O19: =IF(OR(AND(M19="",N19=""),$C19=""),"",SUM(M19:N19)) ->  | P19: =IF(OR(O19="",$C19=""),"",IF(O19>=M$10,"A",IF(O19<O$10,"C","B"))) ->  | S19: =IF(OR(AND(Q19="",R19=""),$C19=""),"",SUM(Q19:R19)) ->  | T19: =IF(OR(S19="",$C19=""),"",IF(S19>=Q$10,"A",IF(S19<S$10,"C","B"))) ->  | W19: =IF(OR(AND(U19="",V19=""),$C19=""),"",SUM(U19:V19)) ->  | X19: =IF(OR(W19="",$C19=""),"",IF(W19>=U$10,"A",IF(W19<W$10,"C","B"))) ->  | AA19: =IF(OR(AND(Y19="",Z19=""),$C19=""),"",SUM(Y19:Z19)) ->  | AB19: =IF(OR(AA19="",$C19=""),"",IF(AA19>=Y$10,"A",IF(AA19<AA$10,"C","B"))) ->  | AE19: =IF(OR(AND(AC19="",AD19=""),$C19=""),"",SUM(AC19:AD19)) ->  | AF19: =IF(OR(AE19="",$C19=""),"",IF(AE19>=AC$10,"A",IF(AE19<AE$10,"C","B"))) ->  | AI19: =IF(OR(AND(AG19="",AH19=""),$C19=""),"",SUM(AG19:AH19)) ->  | AJ19: =IF(OR(AI19="",$C19=""),"",IF(AI19>=AG$10,"A",IF(AI19<AI$10,"C","B"))) ->  | AM19: =IF(OR(AND(AK19="",AL19=""),$C19=""),"",SUM(AK19:AL19)) ->  | AN19: =IF(OR(AM19="",$C19=""),"",IF(AM19>=AK$10,"A",IF(AM19<AM$10,"C","B"))) ->  | AQ19: =IF(OR(AND(AO19="",AP19=""),$C19=""),"",SUM(AO19:AP19)) ->  | AR19: =IF(OR(AQ19="",$C19=""),"",IF(AQ19>=AO$10,"A",IF(AQ19<AQ$10,"C","B"))) ->  | AU19: =IF(OR(AND(AS19="",AT19=""),$C19=""),"",SUM(AS19:AT19)) ->  | AV19: =IF(OR(AU19="",$C19=""),"",IF(AU19>=AS$10,"A",IF(AU19<AU$10,"C","B"))) ->  | AY19: =IF(OR(AND(AW19="",AX19=""),$C19=""),"",SUM(AW19:AX19)) ->  | AZ19: =IF(OR(AY19="",$C19=""),"",IF(AY19>=AW$10,"A",IF(AY19<AY$10,"C","B"))) ->  | BC19: =IF(OR(AND(BA19="",BB19=""),$C19=""),"",SUM(BA19:BB19)) ->  | BD19: =IF(OR(BC19="",$C19=""),"",IF(BC19>=BA$10,"A",IF(BC19<BC$10,"C","B"))) ->  | BG19: =IF(OR(AND(BE19="",BF19=""),$C19=""),"",SUM(BE19:BF19)) ->  | BH19: =IF(OR(BG19="",$C19=""),"",IF(BG19>=BE$10,"A",IF(BG19<BG$10,"C","B"))) ->  | BK19: =IF(OR(AND(BI19="",BJ19=""),$C19=""),"",SUM(BI19:BJ19)) ->  | BL19: =IF(OR(BK19="",$C19=""),"",IF(BK19>=BI$10,"A",IF(BK19<BK$10,"C","B"))) ->  | BO19: =IF(OR(AND(BM19="",BN19=""),$C19=""),"",SUM(BM19:BN19)) ->  | BP19: =IF(OR(BO19="",$C19=""),"",IF(BO19>=BM$10,"A",IF(BO19<BO$10,"C","B"))) ->  | DU19: =IF($C19="","",IF(COUNTIFS($E$1:$DT$1,DU$1,$E$12:$DT$12,"得点",$E19:$DT19,">="&0)=0,"",SUMIFS($E19:$DT19,$E$1:$DT$1,DU$1,$E$12:$DT$12,"得点"))) ->  | DV19: =IF(OR($C19="",DU$6=0,DU19=""),"",DU19/DU$6) ->  | DW19: =IF(OR($C19="",DU$6=0,DV19=""),"",IF(DV19*100>=DV$10,"A",IF(DV19*100>=DW$10,"B","C"))) ->  | DX19: =IF($C19="","",IF(COUNTIFS($E$1:$DT$1,DX$1,$E$12:$DT$12,"得点",$E19:$DT19,">="&0)=0,"",SUMIFS($E19:$DT19,$E$1:$DT$1,DX$1,$E$12:$DT$12,"得点"))) ->  | DY19: =IF(OR($C19="",DX$6=0,DX19=""),"",DX19/DX$6) ->  | DZ19: =IF(OR($C19="",DX$6=0,DY19=""),"",IF(DY19*100>=DY$10,"A",IF(DY19*100>=DZ$10,"B","C"))) ->  | EA19: =IF($C19="","",IF(COUNTIFS($E$1:$DT$1,EA$1,$E$12:$DT$12,"得点",$E19:$DT19,">="&0)=0,"",SUMIFS($E19:$DT19,$E$1:$DT$1,EA$1,$E$12:$DT$12,"得点"))) ->  | EB19: =IF(OR($C19="",EA$6=0,EA19=""),"",EA19/EA$6) ->  | EC19: =IF(OR($C19="",EA$6=0,EB19=""),"",IF(EB19*100>=EB$10,"A",IF(EB19*100>=EC$10,"B","C"))) ->  | ED19: =IF($C19="","",IF(AND(DU19="",DX19="",EA19=""),"",SUM(DU19,DX19,EA19))) ->  | EE19: =IF(OR($C19="",ED$6=0,ED19=""),"",ED19/ED$6) ->  | EF19: =IF(OR($C19="",ED$6=0,EE19=""),"",IF(EE19*100>=EE$10,"A",IF(EE19*100>=EF$10,"B","C"))) -> 
D20: 思考判断表現 | G20: =IF(OR(AND(E20="",F20=""),$C19=""),"",SUM(E20:F20)) ->  | H20: =IF(OR(G20="",$C19=""),"",IF(G20>=E$11,"A",IF(G20<G$11,"C","B"))) ->  | K20: =IF(OR(AND(I20="",J20=""),$C19=""),"",SUM(I20:J20)) ->  | L20: =IF(OR(K20="",$C19=""),"",IF(K20>=I$11,"A",IF(K20<K$11,"C","B"))) ->  | O20: =IF(OR(AND(M20="",N20=""),$C19=""),"",SUM(M20:N20)) ->  | P20: =IF(OR(O20="",$C19=""),"",IF(O20>=M$11,"A",IF(O20<O$11,"C","B"))) ->  | S20: =IF(OR(AND(Q20="",R20=""),$C19=""),"",SUM(Q20:R20)) ->  | T20: =IF(OR(S20="",$C19=""),"",IF(S20>=Q$11,"A",IF(S20<S$11,"C","B"))) ->  | W20: =IF(OR(AND(U20="",V20=""),$C19=""),"",SUM(U20:V20)) ->  | X20: =IF(OR(W20="",$C19=""),"",IF(W20>=U$11,"A",IF(W20<W$11,"C","B"))) ->  | AA20: =IF(OR(AND(Y20="",Z20=""),$C19=""),"",SUM(Y20:Z20)) ->  | AB20: =IF(OR(AA20="",$C19=""),"",IF(AA20>=Y$11,"A",IF(AA20<AA$11,"C","B"))) ->  | AE20: =IF(OR(AND(AC20="",AD20=""),$C19=""),"",SUM(AC20:AD20)) ->  | AF20: =IF(OR(AE20="",$C19=""),"",IF(AE20>=AC$11,"A",IF(AE20<AE$11,"C","B"))) ->  | AI20: =IF(OR(AND(AG20="",AH20=""),$C19=""),"",SUM(AG20:AH20)) ->  | AJ20: =IF(OR(AI20="",$C19=""),"",IF(AI20>=AG$11,"A",IF(AI20<AI$11,"C","B"))) ->  | AM20: =IF(OR(AND(AK20="",AL20=""),$C19=""),"",SUM(AK20:AL20)) ->  | AN20: =IF(OR(AM20="",$C19=""),"",IF(AM20>=AK$11,"A",IF(AM20<AM$11,"C","B"))) ->  | AQ20: =IF(OR(AND(AO20="",AP20=""),$C19=""),"",SUM(AO20:AP20)) ->  | AR20: =IF(OR(AQ20="",$C19=""),"",IF(AQ20>=AO$11,"A",IF(AQ20<AQ$11,"C","B"))) ->  | AU20: =IF(OR(AND(AS20="",AT20=""),$C19=""),"",SUM(AS20:AT20)) ->  | AV20: =IF(OR(AU20="",$C19=""),"",IF(AU20>=AS$11,"A",IF(AU20<AU$11,"C","B"))) ->  | AY20: =IF(OR(AND(AW20="",AX20=""),$C19=""),"",SUM(AW20:AX20)) ->  | AZ20: =IF(OR(AY20="",$C19=""),"",IF(AY20>=AW$11,"A",IF(AY20<AY$11,"C","B"))) ->  | BC20: =IF(OR(AND(BA20="",BB20=""),$C19=""),"",SUM(BA20:BB20)) ->  | BD20: =IF(OR(BC20="",$C19=""),"",IF(BC20>=BA$11,"A",IF(BC20<BC$11,"C","B"))) ->  | BG20: =IF(OR(AND(BE20="",BF20=""),$C19=""),"",SUM(BE20:BF20)) ->  | BH20: =IF(OR(BG20="",$C19=""),"",IF(BG20>=BE$11,"A",IF(BG20<BG$11,"C","B"))) ->  | BK20: =IF(OR(AND(BI20="",BJ20=""),$C19=""),"",SUM(BI20:BJ20)) ->  | BL20: =IF(OR(BK20="",$C19=""),"",IF(BK20>=BI$11,"A",IF(BK20<BK$11,"C","B"))) ->  | BO20: =IF(OR(AND(BM20="",BN20=""),$C19=""),"",SUM(BM20:BN20)) ->  | BP20: =IF(OR(BO20="",$C19=""),"",IF(BO20>=BM$11,"A",IF(BO20<BO$11,"C","B"))) ->  | DU20: =IF($C19="","",IF(COUNTIFS($E$1:$DT$1,DU$1,$E$12:$DT$12,"得点",$E20:$DT20,">="&0)=0,"",SUMIFS($E20:$DT20,$E$1:$DT$1,DU$1,$E$12:$DT$12,"得点"))) ->  | DV20: =IF(OR($C19="",DU$7=0,DU20=""),"",DU20/DU$7) ->  | DW20: =IF(OR($C19="",DU$7=0,DV20=""),"",IF(DV20*100>=DV$11,"A",IF(DV20*100>=DW$11,"B","C"))) ->  | DX20: =IF($C19="","",IF(COUNTIFS($E$1:$DT$1,DX$1,$E$12:$DT$12,"得点",$E20:$DT20,">="&0)=0,"",SUMIFS($E20:$DT20,$E$1:$DT$1,DX$1,$E$12:$DT$12,"得点"))) ->  | DY20: =IF(OR($C19="",DX$7=0,DX20=""),"",DX20/DX$7) ->  | DZ20: =IF(OR($C19="",DX$7=0,DY20=""),"",IF(DY20*100>=DY$11,"A",IF(DY20*100>=DZ$11,"B","C"))) ->  | EA20: =IF($C19="","",IF(COUNTIFS($E$1:$DT$1,EA$1,$E$12:$DT$12,"得点",$E20:$DT20,">="&0)=0,"",SUMIFS($E20:$DT20,$E$1:$DT$1,EA$1,$E$12:$DT$12,"得点"))) ->  | EB20: =IF(OR($C19="",EA$7=0,EA20=""),"",EA20/EA$7) ->  | EC20: =IF(OR($C19="",EA$7=0,EB20=""),"",IF(EB20*100>=EB$11,"A",IF(EB20*100>=EC$11,"B","C"))) ->  | ED20: =IF($C19="","",IF(AND(DU20="",DX20="",EA20=""),"",SUM(DU20,DX20,EA20))) ->  | EE20: =IF(OR($C19="",ED$7=0,ED20=""),"",ED20/ED$7) ->  | EF20: =IF(OR($C19="",ED$7=0,EE20=""),"",IF(EE20*100>=EE$11,"A",IF(EE20*100>=EF$11,"B","C"))) -> 
D21: 合計 | E21: =IF(OR(AND(E19="",E20=""),$C19=""),"",SUM(E19:E20)) ->  | F21: =IF(OR(AND(F19="",F20=""),$C19=""),"",SUM(F19:F20)) ->  | G21: =IF(OR(AND(E21="",F21=""),$C19=""),"",SUM(E21:F21)) ->  | I21: =IF(OR(AND(I19="",I20=""),$C19=""),"",SUM(I19:I20)) ->  | J21: =IF(OR(AND(J19="",J20=""),$C19=""),"",SUM(J19:J20)) ->  | K21: =IF(OR(AND(I21="",J21=""),$C19=""),"",SUM(I21:J21)) ->  | M21: =IF(OR(AND(M19="",M20=""),$C19=""),"",SUM(M19:M20)) ->  | N21: =IF(OR(AND(N19="",N20=""),$C19=""),"",SUM(N19:N20)) ->  | O21: =IF(OR(AND(M21="",N21=""),$C19=""),"",SUM(M21:N21)) ->  | Q21: =IF(OR(AND(Q19="",Q20=""),$C19=""),"",SUM(Q19:Q20)) ->  | R21: =IF(OR(AND(R19="",R20=""),$C19=""),"",SUM(R19:R20)) ->  | S21: =IF(OR(AND(Q21="",R21=""),$C19=""),"",SUM(Q21:R21)) ->  | U21: =IF(OR(AND(U19="",U20=""),$C19=""),"",SUM(U19:U20)) ->  | V21: =IF(OR(AND(V19="",V20=""),$C19=""),"",SUM(V19:V20)) ->  | W21: =IF(OR(AND(U21="",V21=""),$C19=""),"",SUM(U21:V21)) ->  | Y21: =IF(OR(AND(Y19="",Y20=""),$C19=""),"",SUM(Y19:Y20)) ->  | Z21: =IF(OR(AND(Z19="",Z20=""),$C19=""),"",SUM(Z19:Z20)) ->  | AA21: =IF(OR(AND(Y21="",Z21=""),$C19=""),"",SUM(Y21:Z21)) ->  | AC21: =IF(OR(AND(AC19="",AC20=""),$C19=""),"",SUM(AC19:AC20)) ->  | AD21: =IF(OR(AND(AD19="",AD20=""),$C19=""),"",SUM(AD19:AD20)) ->  | AE21: =IF(OR(AND(AC21="",AD21=""),$C19=""),"",SUM(AC21:AD21)) ->  | AG21: =IF(OR(AND(AG19="",AG20=""),$C19=""),"",SUM(AG19:AG20)) ->  | AH21: =IF(OR(AND(AH19="",AH20=""),$C19=""),"",SUM(AH19:AH20)) ->  | AI21: =IF(OR(AND(AG21="",AH21=""),$C19=""),"",SUM(AG21:AH21)) ->  | AK21: =IF(OR(AND(AK19="",AK20=""),$C19=""),"",SUM(AK19:AK20)) ->  | AL21: =IF(OR(AND(AL19="",AL20=""),$C19=""),"",SUM(AL19:AL20)) ->  | AM21: =IF(OR(AND(AK21="",AL21=""),$C19=""),"",SUM(AK21:AL21)) ->  | AO21: =IF(OR(AND(AO19="",AO20=""),$C19=""),"",SUM(AO19:AO20)) ->  | AP21: =IF(OR(AND(AP19="",AP20=""),$C19=""),"",SUM(AP19:AP20)) ->  | AQ21: =IF(OR(AND(AO21="",AP21=""),$C19=""),"",SUM(AO21:AP21)) ->  | AS21: =IF(OR(AND(AS19="",AS20=""),$C19=""),"",SUM(AS19:AS20)) ->  | AT21: =IF(OR(AND(AT19="",AT20=""),$C19=""),"",SUM(AT19:AT20)) ->  | AU21: =IF(OR(AND(AS21="",AT21=""),$C19=""),"",SUM(AS21:AT21)) ->  | AW21: =IF(OR(AND(AW19="",AW20=""),$C19=""),"",SUM(AW19:AW20)) ->  | AX21: =IF(OR(AND(AX19="",AX20=""),$C19=""),"",SUM(AX19:AX20)) ->  | AY21: =IF(OR(AND(AW21="",AX21=""),$C19=""),"",SUM(AW21:AX21)) ->  | BA21: =IF(OR(AND(BA19="",BA20=""),$C19=""),"",SUM(BA19:BA20)) ->  | BB21: =IF(OR(AND(BB19="",BB20=""),$C19=""),"",SUM(BB19:BB20)) ->  | BC21: =IF(OR(AND(BA21="",BB21=""),$C19=""),"",SUM(BA21:BB21)) ->  | BE21: =IF(OR(AND(BE19="",BE20=""),$C19=""),"",SUM(BE19:BE20)) ->  | BF21: =IF(OR(AND(BF19="",BF20=""),$C19=""),"",SUM(BF19:BF20)) ->  | BG21: =IF(OR(AND(BE21="",BF21=""),$C19=""),"",SUM(BE21:BF21)) ->  | BI21: =IF(OR(AND(BI19="",BI20=""),$C19=""),"",SUM(BI19:BI20)) ->  | BJ21: =IF(OR(AND(BJ19="",BJ20=""),$C19=""),"",SUM(BJ19:BJ20)) ->  | BK21: =IF(OR(AND(BI21="",BJ21=""),$C19=""),"",SUM(BI21:BJ21)) ->  | BM21: =IF(OR(AND(BM19="",BM20=""),$C19=""),"",SUM(BM19:BM20)) ->  | BN21: =IF(OR(AND(BN19="",BN20=""),$C19=""),"",SUM(BN19:BN20)) ->  | BO21: =IF(OR(AND(BM21="",BN21=""),$C19=""),"",SUM(BM21:BN21)) ->  | DU21: =IF($C19="","",IF(COUNTBLANK(DU19:DU20)=COUNTA(DU19:DU20),"",SUM(DU19:DU20))) ->  | DV21: =IF(OR($C19="",DU$8=0,DU21=""),"",DU21/DU$8) ->  | DW21: =IF(OR($C21="",DU$6=0),"",IF(DV21*100>=DV$10,"A",IF(DV21*100>=DW$10,"B","C"))) ->  | DX21: =IF($C19="","",IF(COUNTBLANK(DX19:DX20)=COUNTA(DX19:DX20),"",SUM(DX19:DX20))) ->  | DY21: =IF(OR($C19="",DX$8=0,DX21=""),"",DX21/DX$8) ->  | DZ21: =IF(OR($C21="",DX$6=0),"",IF(DY21*100>=DY$10,"A",IF(DY21*100>=DZ$10,"B","C"))) ->  | EA21: =IF($C19="","",IF(COUNTBLANK(EA19:EA20)=COUNTA(EA19:EA20),"",SUM(EA19:EA20))) ->  | EB21: =IF(OR($C19="",EA$8=0,EA21=""),"",EA21/EA$8) ->  | EC21: =IF(OR($C21="",EA$6=0),"",IF(EB21*100>=EB$10,"A",IF(EB21*100>=EC$10,"B","C"))) ->  | ED21: =IF($C19="","",IF(AND(DU21="",DX21="",EA21=""),"",SUM(DU21,DX21,EA21))) ->  | EE21: =IF(OR($C19="",ED$8=0,ED21=""),"",ED21/ED$8) ->  | EF21: =IF(OR($C21="",ED$6=0),"",IF(EE21*100>=EE$10,"A",IF(EE21*100>=EF$10,"B","C"))) -> 
A22: 1 | B22: 4 | C22: =VLOOKUP(B22,INDIRECT("_"&A22&"組"),2,0)&"" ->  | D22: 知識・技能 | G22: =IF(OR(AND(E22="",F22=""),$C22=""),"",SUM(E22:F22)) ->  | H22: =IF(OR(G22="",$C22=""),"",IF(G22>=E$10,"A",IF(G22<G$10,"C","B"))) ->  | K22: =IF(OR(AND(I22="",J22=""),$C22=""),"",SUM(I22:J22)) ->  | L22: =IF(OR(K22="",$C22=""),"",IF(K22>=I$10,"A",IF(K22<K$10,"C","B"))) ->  | O22: =IF(OR(AND(M22="",N22=""),$C22=""),"",SUM(M22:N22)) ->  | P22: =IF(OR(O22="",$C22=""),"",IF(O22>=M$10,"A",IF(O22<O$10,"C","B"))) ->  | S22: =IF(OR(AND(Q22="",R22=""),$C22=""),"",SUM(Q22:R22)) ->  | T22: =IF(OR(S22="",$C22=""),"",IF(S22>=Q$10,"A",IF(S22<S$10,"C","B"))) ->  | W22: =IF(OR(AND(U22="",V22=""),$C22=""),"",SUM(U22:V22)) ->  | X22: =IF(OR(W22="",$C22=""),"",IF(W22>=U$10,"A",IF(W22<W$10,"C","B"))) ->  | AA22: =IF(OR(AND(Y22="",Z22=""),$C22=""),"",SUM(Y22:Z22)) ->  | AB22: =IF(OR(AA22="",$C22=""),"",IF(AA22>=Y$10,"A",IF(AA22<AA$10,"C","B"))) ->  | AE22: =IF(OR(AND(AC22="",AD22=""),$C22=""),"",SUM(AC22:AD22)) ->  | AF22: =IF(OR(AE22="",$C22=""),"",IF(AE22>=AC$10,"A",IF(AE22<AE$10,"C","B"))) ->  | AI22: =IF(OR(AND(AG22="",AH22=""),$C22=""),"",SUM(AG22:AH22)) ->  | AJ22: =IF(OR(AI22="",$C22=""),"",IF(AI22>=AG$10,"A",IF(AI22<AI$10,"C","B"))) ->  | AM22: =IF(OR(AND(AK22="",AL22=""),$C22=""),"",SUM(AK22:AL22)) ->  | AN22: =IF(OR(AM22="",$C22=""),"",IF(AM22>=AK$10,"A",IF(AM22<AM$10,"C","B"))) ->  | AQ22: =IF(OR(AND(AO22="",AP22=""),$C22=""),"",SUM(AO22:AP22)) ->  | AR22: =IF(OR(AQ22="",$C22=""),"",IF(AQ22>=AO$10,"A",IF(AQ22<AQ$10,"C","B"))) ->  | AU22: =IF(OR(AND(AS22="",AT22=""),$C22=""),"",SUM(AS22:AT22)) ->  | AV22: =IF(OR(AU22="",$C22=""),"",IF(AU22>=AS$10,"A",IF(AU22<AU$10,"C","B"))) ->  | AY22: =IF(OR(AND(AW22="",AX22=""),$C22=""),"",SUM(AW22:AX22)) ->  | AZ22: =IF(OR(AY22="",$C22=""),"",IF(AY22>=AW$10,"A",IF(AY22<AY$10,"C","B"))) ->  | BC22: =IF(OR(AND(BA22="",BB22=""),$C22=""),"",SUM(BA22:BB22)) ->  | BD22: =IF(OR(BC22="",$C22=""),"",IF(BC22>=BA$10,"A",IF(BC22<BC$10,"C","B"))) ->  | BG22: =IF(OR(AND(BE22="",BF22=""),$C22=""),"",SUM(BE22:BF22)) ->  | BH22: =IF(OR(BG22="",$C22=""),"",IF(BG22>=BE$10,"A",IF(BG22<BG$10,"C","B"))) ->  | BK22: =IF(OR(AND(BI22="",BJ22=""),$C22=""),"",SUM(BI22:BJ22)) ->  | BL22: =IF(OR(BK22="",$C22=""),"",IF(BK22>=BI$10,"A",IF(BK22<BK$10,"C","B"))) ->  | BO22: =IF(OR(AND(BM22="",BN22=""),$C22=""),"",SUM(BM22:BN22)) ->  | BP22: =IF(OR(BO22="",$C22=""),"",IF(BO22>=BM$10,"A",IF(BO22<BO$10,"C","B"))) ->  | DU22: =IF($C22="","",IF(COUNTIFS($E$1:$DT$1,DU$1,$E$12:$DT$12,"得点",$E22:$DT22,">="&0)=0,"",SUMIFS($E22:$DT22,$E$1:$DT$1,DU$1,$E$12:$DT$12,"得点"))) ->  | DV22: =IF(OR($C22="",DU$6=0,DU22=""),"",DU22/DU$6) ->  | DW22: =IF(OR($C22="",DU$6=0,DV22=""),"",IF(DV22*100>=DV$10,"A",IF(DV22*100>=DW$10,"B","C"))) ->  | DX22: =IF($C22="","",IF(COUNTIFS($E$1:$DT$1,DX$1,$E$12:$DT$12,"得点",$E22:$DT22,">="&0)=0,"",SUMIFS($E22:$DT22,$E$1:$DT$1,DX$1,$E$12:$DT$12,"得点"))) ->  | DY22: =IF(OR($C22="",DX$6=0,DX22=""),"",DX22/DX$6) ->  | DZ22: =IF(OR($C22="",DX$6=0,DY22=""),"",IF(DY22*100>=DY$10,"A",IF(DY22*100>=DZ$10,"B","C"))) ->  | EA22: =IF($C22="","",IF(COUNTIFS($E$1:$DT$1,EA$1,$E$12:$DT$12,"得点",$E22:$DT22,">="&0)=0,"",SUMIFS($E22:$DT22,$E$1:$DT$1,EA$1,$E$12:$DT$12,"得点"))) ->  | EB22: =IF(OR($C22="",EA$6=0,EA22=""),"",EA22/EA$6) ->  | EC22: =IF(OR($C22="",EA$6=0,EB22=""),"",IF(EB22*100>=EB$10,"A",IF(EB22*100>=EC$10,"B","C"))) ->  | ED22: =IF($C22="","",IF(AND(DU22="",DX22="",EA22=""),"",SUM(DU22,DX22,EA22))) ->  | EE22: =IF(OR($C22="",ED$6=0,ED22=""),"",ED22/ED$6) ->  | EF22: =IF(OR($C22="",ED$6=0,EE22=""),"",IF(EE22*100>=EE$10,"A",IF(EE22*100>=EF$10,"B","C"))) -> 
D23: 思考判断表現 | G23: =IF(OR(AND(E23="",F23=""),$C22=""),"",SUM(E23:F23)) ->  | H23: =IF(OR(G23="",$C22=""),"",IF(G23>=E$11,"A",IF(G23<G$11,"C","B"))) ->  | K23: =IF(OR(AND(I23="",J23=""),$C22=""),"",SUM(I23:J23)) ->  | L23: =IF(OR(K23="",$C22=""),"",IF(K23>=I$11,"A",IF(K23<K$11,"C","B"))) ->  | O23: =IF(OR(AND(M23="",N23=""),$C22=""),"",SUM(M23:N23)) ->  | P23: =IF(OR(O23="",$C22=""),"",IF(O23>=M$11,"A",IF(O23<O$11,"C","B"))) ->  | S23: =IF(OR(AND(Q23="",R23=""),$C22=""),"",SUM(Q23:R23)) ->  | T23: =IF(OR(S23="",$C22=""),"",IF(S23>=Q$11,"A",IF(S23<S$11,"C","B"))) ->  | W23: =IF(OR(AND(U23="",V23=""),$C22=""),"",SUM(U23:V23)) ->  | X23: =IF(OR(W23="",$C22=""),"",IF(W23>=U$11,"A",IF(W23<W$11,"C","B"))) ->  | AA23: =IF(OR(AND(Y23="",Z23=""),$C22=""),"",SUM(Y23:Z23)) ->  | AB23: =IF(OR(AA23="",$C22=""),"",IF(AA23>=Y$11,"A",IF(AA23<AA$11,"C","B"))) ->  | AE23: =IF(OR(AND(AC23="",AD23=""),$C22=""),"",SUM(AC23:AD23)) ->  | AF23: =IF(OR(AE23="",$C22=""),"",IF(AE23>=AC$11,"A",IF(AE23<AE$11,"C","B"))) ->  | AI23: =IF(OR(AND(AG23="",AH23=""),$C22=""),"",SUM(AG23:AH23)) ->  | AJ23: =IF(OR(AI23="",$C22=""),"",IF(AI23>=AG$11,"A",IF(AI23<AI$11,"C","B"))) ->  | AM23: =IF(OR(AND(AK23="",AL23=""),$C22=""),"",SUM(AK23:AL23)) ->  | AN23: =IF(OR(AM23="",$C22=""),"",IF(AM23>=AK$11,"A",IF(AM23<AM$11,"C","B"))) ->  | AQ23: =IF(OR(AND(AO23="",AP23=""),$C22=""),"",SUM(AO23:AP23)) ->  | AR23: =IF(OR(AQ23="",$C22=""),"",IF(AQ23>=AO$11,"A",IF(AQ23<AQ$11,"C","B"))) ->  | AU23: =IF(OR(AND(AS23="",AT23=""),$C22=""),"",SUM(AS23:AT23)) ->  | AV23: =IF(OR(AU23="",$C22=""),"",IF(AU23>=AS$11,"A",IF(AU23<AU$11,"C","B"))) ->  | AY23: =IF(OR(AND(AW23="",AX23=""),$C22=""),"",SUM(AW23:AX23)) ->  | AZ23: =IF(OR(AY23="",$C22=""),"",IF(AY23>=AW$11,"A",IF(AY23<AY$11,"C","B"))) ->  | BC23: =IF(OR(AND(BA23="",BB23=""),$C22=""),"",SUM(BA23:BB23)) ->  | BD23: =IF(OR(BC23="",$C22=""),"",IF(BC23>=BA$11,"A",IF(BC23<BC$11,"C","B"))) ->  | BG23: =IF(OR(AND(BE23="",BF23=""),$C22=""),"",SUM(BE23:BF23)) ->  | BH23: =IF(OR(BG23="",$C22=""),"",IF(BG23>=BE$11,"A",IF(BG23<BG$11,"C","B"))) ->  | BK23: =IF(OR(AND(BI23="",BJ23=""),$C22=""),"",SUM(BI23:BJ23)) ->  | BL23: =IF(OR(BK23="",$C22=""),"",IF(BK23>=BI$11,"A",IF(BK23<BK$11,"C","B"))) ->  | BO23: =IF(OR(AND(BM23="",BN23=""),$C22=""),"",SUM(BM23:BN23)) ->  | BP23: =IF(OR(BO23="",$C22=""),"",IF(BO23>=BM$11,"A",IF(BO23<BO$11,"C","B"))) ->  | DU23: =IF($C22="","",IF(COUNTIFS($E$1:$DT$1,DU$1,$E$12:$DT$12,"得点",$E23:$DT23,">="&0)=0,"",SUMIFS($E23:$DT23,$E$1:$DT$1,DU$1,$E$12:$DT$12,"得点"))) ->  | DV23: =IF(OR($C22="",DU$7=0,DU23=""),"",DU23/DU$7) ->  | DW23: =IF(OR($C22="",DU$7=0,DV23=""),"",IF(DV23*100>=DV$11,"A",IF(DV23*100>=DW$11,"B","C"))) ->  | DX23: =IF($C22="","",IF(COUNTIFS($E$1:$DT$1,DX$1,$E$12:$DT$12,"得点",$E23:$DT23,">="&0)=0,"",SUMIFS($E23:$DT23,$E$1:$DT$1,DX$1,$E$12:$DT$12,"得点"))) ->  | DY23: =IF(OR($C22="",DX$7=0,DX23=""),"",DX23/DX$7) ->  | DZ23: =IF(OR($C22="",DX$7=0,DY23=""),"",IF(DY23*100>=DY$11,"A",IF(DY23*100>=DZ$11,"B","C"))) ->  | EA23: =IF($C22="","",IF(COUNTIFS($E$1:$DT$1,EA$1,$E$12:$DT$12,"得点",$E23:$DT23,">="&0)=0,"",SUMIFS($E23:$DT23,$E$1:$DT$1,EA$1,$E$12:$DT$12,"得点"))) ->  | EB23: =IF(OR($C22="",EA$7=0,EA23=""),"",EA23/EA$7) ->  | EC23: =IF(OR($C22="",EA$7=0,EB23=""),"",IF(EB23*100>=EB$11,"A",IF(EB23*100>=EC$11,"B","C"))) ->  | ED23: =IF($C22="","",IF(AND(DU23="",DX23="",EA23=""),"",SUM(DU23,DX23,EA23))) ->  | EE23: =IF(OR($C22="",ED$7=0,ED23=""),"",ED23/ED$7) ->  | EF23: =IF(OR($C22="",ED$7=0,EE23=""),"",IF(EE23*100>=EE$11,"A",IF(EE23*100>=EF$11,"B","C"))) -> 
D24: 合計 | E24: =IF(OR(AND(E22="",E23=""),$C22=""),"",SUM(E22:E23)) ->  | F24: =IF(OR(AND(F22="",F23=""),$C22=""),"",SUM(F22:F23)) ->  | G24: =IF(OR(AND(E24="",F24=""),$C22=""),"",SUM(E24:F24)) ->  | I24: =IF(OR(AND(I22="",I23=""),$C22=""),"",SUM(I22:I23)) ->  | J24: =IF(OR(AND(J22="",J23=""),$C22=""),"",SUM(J22:J23)) ->  | K24: =IF(OR(AND(I24="",J24=""),$C22=""),"",SUM(I24:J24)) ->  | M24: =IF(OR(AND(M22="",M23=""),$C22=""),"",SUM(M22:M23)) ->  | N24: =IF(OR(AND(N22="",N23=""),$C22=""),"",SUM(N22:N23)) ->  | O24: =IF(OR(AND(M24="",N24=""),$C22=""),"",SUM(M24:N24)) ->  | Q24: =IF(OR(AND(Q22="",Q23=""),$C22=""),"",SUM(Q22:Q23)) ->  | R24: =IF(OR(AND(R22="",R23=""),$C22=""),"",SUM(R22:R23)) ->  | S24: =IF(OR(AND(Q24="",R24=""),$C22=""),"",SUM(Q24:R24)) ->  | U24: =IF(OR(AND(U22="",U23=""),$C22=""),"",SUM(U22:U23)) ->  | V24: =IF(OR(AND(V22="",V23=""),$C22=""),"",SUM(V22:V23)) ->  | W24: =IF(OR(AND(U24="",V24=""),$C22=""),"",SUM(U24:V24)) ->  | Y24: =IF(OR(AND(Y22="",Y23=""),$C22=""),"",SUM(Y22:Y23)) ->  | Z24: =IF(OR(AND(Z22="",Z23=""),$C22=""),"",SUM(Z22:Z23)) ->  | AA24: =IF(OR(AND(Y24="",Z24=""),$C22=""),"",SUM(Y24:Z24)) ->  | AC24: =IF(OR(AND(AC22="",AC23=""),$C22=""),"",SUM(AC22:AC23)) ->  | AD24: =IF(OR(AND(AD22="",AD23=""),$C22=""),"",SUM(AD22:AD23)) ->  | AE24: =IF(OR(AND(AC24="",AD24=""),$C22=""),"",SUM(AC24:AD24)) ->  | AG24: =IF(OR(AND(AG22="",AG23=""),$C22=""),"",SUM(AG22:AG23)) ->  | AH24: =IF(OR(AND(AH22="",AH23=""),$C22=""),"",SUM(AH22:AH23)) ->  | AI24: =IF(OR(AND(AG24="",AH24=""),$C22=""),"",SUM(AG24:AH24)) ->  | AK24: =IF(OR(AND(AK22="",AK23=""),$C22=""),"",SUM(AK22:AK23)) ->  | AL24: =IF(OR(AND(AL22="",AL23=""),$C22=""),"",SUM(AL22:AL23)) ->  | AM24: =IF(OR(AND(AK24="",AL24=""),$C22=""),"",SUM(AK24:AL24)) ->  | AO24: =IF(OR(AND(AO22="",AO23=""),$C22=""),"",SUM(AO22:AO23)) ->  | AP24: =IF(OR(AND(AP22="",AP23=""),$C22=""),"",SUM(AP22:AP23)) ->  | AQ24: =IF(OR(AND(AO24="",AP24=""),$C22=""),"",SUM(AO24:AP24)) ->  | AS24: =IF(OR(AND(AS22="",AS23=""),$C22=""),"",SUM(AS22:AS23)) ->  | AT24: =IF(OR(AND(AT22="",AT23=""),$C22=""),"",SUM(AT22:AT23)) ->  | AU24: =IF(OR(AND(AS24="",AT24=""),$C22=""),"",SUM(AS24:AT24)) ->  | AW24: =IF(OR(AND(AW22="",AW23=""),$C22=""),"",SUM(AW22:AW23)) ->  | AX24: =IF(OR(AND(AX22="",AX23=""),$C22=""),"",SUM(AX22:AX23)) ->  | AY24: =IF(OR(AND(AW24="",AX24=""),$C22=""),"",SUM(AW24:AX24)) ->  | BA24: =IF(OR(AND(BA22="",BA23=""),$C22=""),"",SUM(BA22:BA23)) ->  | BB24: =IF(OR(AND(BB22="",BB23=""),$C22=""),"",SUM(BB22:BB23)) ->  | BC24: =IF(OR(AND(BA24="",BB24=""),$C22=""),"",SUM(BA24:BB24)) ->  | BE24: =IF(OR(AND(BE22="",BE23=""),$C22=""),"",SUM(BE22:BE23)) ->  | BF24: =IF(OR(AND(BF22="",BF23=""),$C22=""),"",SUM(BF22:BF23)) ->  | BG24: =IF(OR(AND(BE24="",BF24=""),$C22=""),"",SUM(BE24:BF24)) ->  | BI24: =IF(OR(AND(BI22="",BI23=""),$C22=""),"",SUM(BI22:BI23)) ->  | BJ24: =IF(OR(AND(BJ22="",BJ23=""),$C22=""),"",SUM(BJ22:BJ23)) ->  | BK24: =IF(OR(AND(BI24="",BJ24=""),$C22=""),"",SUM(BI24:BJ24)) ->  | BM24: =IF(OR(AND(BM22="",BM23=""),$C22=""),"",SUM(BM22:BM23)) ->  | BN24: =IF(OR(AND(BN22="",BN23=""),$C22=""),"",SUM(BN22:BN23)) ->  | BO24: =IF(OR(AND(BM24="",BN24=""),$C22=""),"",SUM(BM24:BN24)) ->  | DU24: =IF($C22="","",IF(COUNTBLANK(DU22:DU23)=COUNTA(DU22:DU23),"",SUM(DU22:DU23))) ->  | DV24: =IF(OR($C22="",DU$8=0,DU24=""),"",DU24/DU$8) ->  | DW24: =IF(OR($C24="",DU$6=0),"",IF(DV24*100>=DV$10,"A",IF(DV24*100>=DW$10,"B","C"))) ->  | DX24: =IF($C22="","",IF(COUNTBLANK(DX22:DX23)=COUNTA(DX22:DX23),"",SUM(DX22:DX23))) ->  | DY24: =IF(OR($C22="",DX$8=0,DX24=""),"",DX24/DX$8) ->  | DZ24: =IF(OR($C24="",DX$6=0),"",IF(DY24*100>=DY$10,"A",IF(DY24*100>=DZ$10,"B","C"))) ->  | EA24: =IF($C22="","",IF(COUNTBLANK(EA22:EA23)=COUNTA(EA22:EA23),"",SUM(EA22:EA23))) ->  | EB24: =IF(OR($C22="",EA$8=0,EA24=""),"",EA24/EA$8) ->  | EC24: =IF(OR($C24="",EA$6=0),"",IF(EB24*100>=EB$10,"A",IF(EB24*100>=EC$10,"B","C"))) ->  | ED24: =IF($C22="","",IF(AND(DU24="",DX24="",EA24=""),"",SUM(DU24,DX24,EA24))) ->  | EE24: =IF(OR($C22="",ED$8=0,ED24=""),"",ED24/ED$8) ->  | EF24: =IF(OR($C24="",ED$6=0),"",IF(EE24*100>=EE$10,"A",IF(EE24*100>=EF$10,"B","C"))) -> 
A25: 1 | B25: 5 | C25: =VLOOKUP(B25,INDIRECT("_"&A25&"組"),2,0)&"" ->  | D25: 知識・技能 | G25: =IF(OR(AND(E25="",F25=""),$C25=""),"",SUM(E25:F25)) ->  | H25: =IF(OR(G25="",$C25=""),"",IF(G25>=E$10,"A",IF(G25<G$10,"C","B"))) ->  | K25: =IF(OR(AND(I25="",J25=""),$C25=""),"",SUM(I25:J25)) ->  | L25: =IF(OR(K25="",$C25=""),"",IF(K25>=I$10,"A",IF(K25<K$10,"C","B"))) ->  | O25: =IF(OR(AND(M25="",N25=""),$C25=""),"",SUM(M25:N25)) ->  | P25: =IF(OR(O25="",$C25=""),"",IF(O25>=M$10,"A",IF(O25<O$10,"C","B"))) ->  | S25: =IF(OR(AND(Q25="",R25=""),$C25=""),"",SUM(Q25:R25)) ->  | T25: =IF(OR(S25="",$C25=""),"",IF(S25>=Q$10,"A",IF(S25<S$10,"C","B"))) ->  | W25: =IF(OR(AND(U25="",V25=""),$C25=""),"",SUM(U25:V25)) ->  | X25: =IF(OR(W25="",$C25=""),"",IF(W25>=U$10,"A",IF(W25<W$10,"C","B"))) ->  | AA25: =IF(OR(AND(Y25="",Z25=""),$C25=""),"",SUM(Y25:Z25)) ->  | AB25: =IF(OR(AA25="",$C25=""),"",IF(AA25>=Y$10,"A",IF(AA25<AA$10,"C","B"))) ->  | AE25: =IF(OR(AND(AC25="",AD25=""),$C25=""),"",SUM(AC25:AD25)) ->  | AF25: =IF(OR(AE25="",$C25=""),"",IF(AE25>=AC$10,"A",IF(AE25<AE$10,"C","B"))) ->  | AI25: =IF(OR(AND(AG25="",AH25=""),$C25=""),"",SUM(AG25:AH25)) ->  | AJ25: =IF(OR(AI25="",$C25=""),"",IF(AI25>=AG$10,"A",IF(AI25<AI$10,"C","B"))) ->  | AM25: =IF(OR(AND(AK25="",AL25=""),$C25=""),"",SUM(AK25:AL25)) ->  | AN25: =IF(OR(AM25="",$C25=""),"",IF(AM25>=AK$10,"A",IF(AM25<AM$10,"C","B"))) ->  | AQ25: =IF(OR(AND(AO25="",AP25=""),$C25=""),"",SUM(AO25:AP25)) ->  | AR25: =IF(OR(AQ25="",$C25=""),"",IF(AQ25>=AO$10,"A",IF(AQ25<AQ$10,"C","B"))) ->  | AU25: =IF(OR(AND(AS25="",AT25=""),$C25=""),"",SUM(AS25:AT25)) ->  | AV25: =IF(OR(AU25="",$C25=""),"",IF(AU25>=AS$10,"A",IF(AU25<AU$10,"C","B"))) ->  | AY25: =IF(OR(AND(AW25="",AX25=""),$C25=""),"",SUM(AW25:AX25)) ->  | AZ25: =IF(OR(AY25="",$C25=""),"",IF(AY25>=AW$10,"A",IF(AY25<AY$10,"C","B"))) ->  | BC25: =IF(OR(AND(BA25="",BB25=""),$C25=""),"",SUM(BA25:BB25)) ->  | BD25: =IF(OR(BC25="",$C25=""),"",IF(BC25>=BA$10,"A",IF(BC25<BC$10,"C","B"))) ->  | BG25: =IF(OR(AND(BE25="",BF25=""),$C25=""),"",SUM(BE25:BF25)) ->  | BH25: =IF(OR(BG25="",$C25=""),"",IF(BG25>=BE$10,"A",IF(BG25<BG$10,"C","B"))) ->  | BK25: =IF(OR(AND(BI25="",BJ25=""),$C25=""),"",SUM(BI25:BJ25)) ->  | BL25: =IF(OR(BK25="",$C25=""),"",IF(BK25>=BI$10,"A",IF(BK25<BK$10,"C","B"))) ->  | BO25: =IF(OR(AND(BM25="",BN25=""),$C25=""),"",SUM(BM25:BN25)) ->  | BP25: =IF(OR(BO25="",$C25=""),"",IF(BO25>=BM$10,"A",IF(BO25<BO$10,"C","B"))) ->  | DU25: =IF($C25="","",IF(COUNTIFS($E$1:$DT$1,DU$1,$E$12:$DT$12,"得点",$E25:$DT25,">="&0)=0,"",SUMIFS($E25:$DT25,$E$1:$DT$1,DU$1,$E$12:$DT$12,"得点"))) ->  | DV25: =IF(OR($C25="",DU$6=0,DU25=""),"",DU25/DU$6) ->  | DW25: =IF(OR($C25="",DU$6=0,DV25=""),"",IF(DV25*100>=DV$10,"A",IF(DV25*100>=DW$10,"B","C"))) ->  | DX25: =IF($C25="","",IF(COUNTIFS($E$1:$DT$1,DX$1,$E$12:$DT$12,"得点",$E25:$DT25,">="&0)=0,"",SUMIFS($E25:$DT25,$E$1:$DT$1,DX$1,$E$12:$DT$12,"得点"))) ->  | DY25: =IF(OR($C25="",DX$6=0,DX25=""),"",DX25/DX$6) ->  | DZ25: =IF(OR($C25="",DX$6=0,DY25=""),"",IF(DY25*100>=DY$10,"A",IF(DY25*100>=DZ$10,"B","C"))) ->  | EA25: =IF($C25="","",IF(COUNTIFS($E$1:$DT$1,EA$1,$E$12:$DT$12,"得点",$E25:$DT25,">="&0)=0,"",SUMIFS($E25:$DT25,$E$1:$DT$1,EA$1,$E$12:$DT$12,"得点"))) ->  | EB25: =IF(OR($C25="",EA$6=0,EA25=""),"",EA25/EA$6) ->  | EC25: =IF(OR($C25="",EA$6=0,EB25=""),"",IF(EB25*100>=EB$10,"A",IF(EB25*100>=EC$10,"B","C"))) ->  | ED25: =IF($C25="","",IF(AND(DU25="",DX25="",EA25=""),"",SUM(DU25,DX25,EA25))) ->  | EE25: =IF(OR($C25="",ED$6=0,ED25=""),"",ED25/ED$6) ->  | EF25: =IF(OR($C25="",ED$6=0,EE25=""),"",IF(EE25*100>=EE$10,"A",IF(EE25*100>=EF$10,"B","C"))) -> 
D26: 思考判断表現 | G26: =IF(OR(AND(E26="",F26=""),$C25=""),"",SUM(E26:F26)) ->  | H26: =IF(OR(G26="",$C25=""),"",IF(G26>=E$11,"A",IF(G26<G$11,"C","B"))) ->  | K26: =IF(OR(AND(I26="",J26=""),$C25=""),"",SUM(I26:J26)) ->  | L26: =IF(OR(K26="",$C25=""),"",IF(K26>=I$11,"A",IF(K26<K$11,"C","B"))) ->  | O26: =IF(OR(AND(M26="",N26=""),$C25=""),"",SUM(M26:N26)) ->  | P26: =IF(OR(O26="",$C25=""),"",IF(O26>=M$11,"A",IF(O26<O$11,"C","B"))) ->  | S26: =IF(OR(AND(Q26="",R26=""),$C25=""),"",SUM(Q26:R26)) ->  | T26: =IF(OR(S26="",$C25=""),"",IF(S26>=Q$11,"A",IF(S26<S$11,"C","B"))) ->  | W26: =IF(OR(AND(U26="",V26=""),$C25=""),"",SUM(U26:V26)) ->  | X26: =IF(OR(W26="",$C25=""),"",IF(W26>=U$11,"A",IF(W26<W$11,"C","B"))) ->  | AA26: =IF(OR(AND(Y26="",Z26=""),$C25=""),"",SUM(Y26:Z26)) ->  | AB26: =IF(OR(AA26="",$C25=""),"",IF(AA26>=Y$11,"A",IF(AA26<AA$11,"C","B"))) ->  | AE26: =IF(OR(AND(AC26="",AD26=""),$C25=""),"",SUM(AC26:AD26)) ->  | AF26: =IF(OR(AE26="",$C25=""),"",IF(AE26>=AC$11,"A",IF(AE26<AE$11,"C","B"))) ->  | AI26: =IF(OR(AND(AG26="",AH26=""),$C25=""),"",SUM(AG26:AH26)) ->  | AJ26: =IF(OR(AI26="",$C25=""),"",IF(AI26>=AG$11,"A",IF(AI26<AI$11,"C","B"))) ->  | AM26: =IF(OR(AND(AK26="",AL26=""),$C25=""),"",SUM(AK26:AL26)) ->  | AN26: =IF(OR(AM26="",$C25=""),"",IF(AM26>=AK$11,"A",IF(AM26<AM$11,"C","B"))) ->  | AQ26: =IF(OR(AND(AO26="",AP26=""),$C25=""),"",SUM(AO26:AP26)) ->  | AR26: =IF(OR(AQ26="",$C25=""),"",IF(AQ26>=AO$11,"A",IF(AQ26<AQ$11,"C","B"))) ->  | AU26: =IF(OR(AND(AS26="",AT26=""),$C25=""),"",SUM(AS26:AT26)) ->  | AV26: =IF(OR(AU26="",$C25=""),"",IF(AU26>=AS$11,"A",IF(AU26<AU$11,"C","B"))) ->  | AY26: =IF(OR(AND(AW26="",AX26=""),$C25=""),"",SUM(AW26:AX26)) ->  | AZ26: =IF(OR(AY26="",$C25=""),"",IF(AY26>=AW$11,"A",IF(AY26<AY$11,"C","B"))) ->  | BC26: =IF(OR(AND(BA26="",BB26=""),$C25=""),"",SUM(BA26:BB26)) ->  | BD26: =IF(OR(BC26="",$C25=""),"",IF(BC26>=BA$11,"A",IF(BC26<BC$11,"C","B"))) ->  | BG26: =IF(OR(AND(BE26="",BF26=""),$C25=""),"",SUM(BE26:BF26)) ->  | BH26: =IF(OR(BG26="",$C25=""),"",IF(BG26>=BE$11,"A",IF(BG26<BG$11,"C","B"))) ->  | BK26: =IF(OR(AND(BI26="",BJ26=""),$C25=""),"",SUM(BI26:BJ26)) ->  | BL26: =IF(OR(BK26="",$C25=""),"",IF(BK26>=BI$11,"A",IF(BK26<BK$11,"C","B"))) ->  | BO26: =IF(OR(AND(BM26="",BN26=""),$C25=""),"",SUM(BM26:BN26)) ->  | BP26: =IF(OR(BO26="",$C25=""),"",IF(BO26>=BM$11,"A",IF(BO26<BO$11,"C","B"))) ->  | DU26: =IF($C25="","",IF(COUNTIFS($E$1:$DT$1,DU$1,$E$12:$DT$12,"得点",$E26:$DT26,">="&0)=0,"",SUMIFS($E26:$DT26,$E$1:$DT$1,DU$1,$E$12:$DT$12,"得点"))) ->  | DV26: =IF(OR($C25="",DU$7=0,DU26=""),"",DU26/DU$7) ->  | DW26: =IF(OR($C25="",DU$7=0,DV26=""),"",IF(DV26*100>=DV$11,"A",IF(DV26*100>=DW$11,"B","C"))) ->  | DX26: =IF($C25="","",IF(COUNTIFS($E$1:$DT$1,DX$1,$E$12:$DT$12,"得点",$E26:$DT26,">="&0)=0,"",SUMIFS($E26:$DT26,$E$1:$DT$1,DX$1,$E$12:$DT$12,"得点"))) ->  | DY26: =IF(OR($C25="",DX$7=0,DX26=""),"",DX26/DX$7) ->  | DZ26: =IF(OR($C25="",DX$7=0,DY26=""),"",IF(DY26*100>=DY$11,"A",IF(DY26*100>=DZ$11,"B","C"))) ->  | EA26: =IF($C25="","",IF(COUNTIFS($E$1:$DT$1,EA$1,$E$12:$DT$12,"得点",$E26:$DT26,">="&0)=0,"",SUMIFS($E26:$DT26,$E$1:$DT$1,EA$1,$E$12:$DT$12,"得点"))) ->  | EB26: =IF(OR($C25="",EA$7=0,EA26=""),"",EA26/EA$7) ->  | EC26: =IF(OR($C25="",EA$7=0,EB26=""),"",IF(EB26*100>=EB$11,"A",IF(EB26*100>=EC$11,"B","C"))) ->  | ED26: =IF($C25="","",IF(AND(DU26="",DX26="",EA26=""),"",SUM(DU26,DX26,EA26))) ->  | EE26: =IF(OR($C25="",ED$7=0,ED26=""),"",ED26/ED$7) ->  | EF26: =IF(OR($C25="",ED$7=0,EE26=""),"",IF(EE26*100>=EE$11,"A",IF(EE26*100>=EF$11,"B","C"))) -> 
D27: 合計 | E27: =IF(OR(AND(E25="",E26=""),$C25=""),"",SUM(E25:E26)) ->  | F27: =IF(OR(AND(F25="",F26=""),$C25=""),"",SUM(F25:F26)) ->  | G27: =IF(OR(AND(E27="",F27=""),$C25=""),"",SUM(E27:F27)) ->  | I27: =IF(OR(AND(I25="",I26=""),$C25=""),"",SUM(I25:I26)) ->  | J27: =IF(OR(AND(J25="",J26=""),$C25=""),"",SUM(J25:J26)) ->  | K27: =IF(OR(AND(I27="",J27=""),$C25=""),"",SUM(I27:J27)) ->  | M27: =IF(OR(AND(M25="",M26=""),$C25=""),"",SUM(M25:M26)) ->  | N27: =IF(OR(AND(N25="",N26=""),$C25=""),"",SUM(N25:N26)) ->  | O27: =IF(OR(AND(M27="",N27=""),$C25=""),"",SUM(M27:N27)) ->  | Q27: =IF(OR(AND(Q25="",Q26=""),$C25=""),"",SUM(Q25:Q26)) ->  | R27: =IF(OR(AND(R25="",R26=""),$C25=""),"",SUM(R25:R26)) ->  | S27: =IF(OR(AND(Q27="",R27=""),$C25=""),"",SUM(Q27:R27)) ->  | U27: =IF(OR(AND(U25="",U26=""),$C25=""),"",SUM(U25:U26)) ->  | V27: =IF(OR(AND(V25="",V26=""),$C25=""),"",SUM(V25:V26)) ->  | W27: =IF(OR(AND(U27="",V27=""),$C25=""),"",SUM(U27:V27)) ->  | Y27: =IF(OR(AND(Y25="",Y26=""),$C25=""),"",SUM(Y25:Y26)) ->  | Z27: =IF(OR(AND(Z25="",Z26=""),$C25=""),"",SUM(Z25:Z26)) ->  | AA27: =IF(OR(AND(Y27="",Z27=""),$C25=""),"",SUM(Y27:Z27)) ->  | AC27: =IF(OR(AND(AC25="",AC26=""),$C25=""),"",SUM(AC25:AC26)) ->  | AD27: =IF(OR(AND(AD25="",AD26=""),$C25=""),"",SUM(AD25:AD26)) ->  | AE27: =IF(OR(AND(AC27="",AD27=""),$C25=""),"",SUM(AC27:AD27)) ->  | AG27: =IF(OR(AND(AG25="",AG26=""),$C25=""),"",SUM(AG25:AG26)) ->  | AH27: =IF(OR(AND(AH25="",AH26=""),$C25=""),"",SUM(AH25:AH26)) ->  | AI27: =IF(OR(AND(AG27="",AH27=""),$C25=""),"",SUM(AG27:AH27)) ->  | AK27: =IF(OR(AND(AK25="",AK26=""),$C25=""),"",SUM(AK25:AK26)) ->  | AL27: =IF(OR(AND(AL25="",AL26=""),$C25=""),"",SUM(AL25:AL26)) ->  | AM27: =IF(OR(AND(AK27="",AL27=""),$C25=""),"",SUM(AK27:AL27)) ->  | AO27: =IF(OR(AND(AO25="",AO26=""),$C25=""),"",SUM(AO25:AO26)) ->  | AP27: =IF(OR(AND(AP25="",AP26=""),$C25=""),"",SUM(AP25:AP26)) ->  | AQ27: =IF(OR(AND(AO27="",AP27=""),$C25=""),"",SUM(AO27:AP27)) ->  | AS27: =IF(OR(AND(AS25="",AS26=""),$C25=""),"",SUM(AS25:AS26)) ->  | AT27: =IF(OR(AND(AT25="",AT26=""),$C25=""),"",SUM(AT25:AT26)) ->  | AU27: =IF(OR(AND(AS27="",AT27=""),$C25=""),"",SUM(AS27:AT27)) ->  | AW27: =IF(OR(AND(AW25="",AW26=""),$C25=""),"",SUM(AW25:AW26)) ->  | AX27: =IF(OR(AND(AX25="",AX26=""),$C25=""),"",SUM(AX25:AX26)) ->  | AY27: =IF(OR(AND(AW27="",AX27=""),$C25=""),"",SUM(AW27:AX27)) ->  | BA27: =IF(OR(AND(BA25="",BA26=""),$C25=""),"",SUM(BA25:BA26)) ->  | BB27: =IF(OR(AND(BB25="",BB26=""),$C25=""),"",SUM(BB25:BB26)) ->  | BC27: =IF(OR(AND(BA27="",BB27=""),$C25=""),"",SUM(BA27:BB27)) ->  | BE27: =IF(OR(AND(BE25="",BE26=""),$C25=""),"",SUM(BE25:BE26)) ->  | BF27: =IF(OR(AND(BF25="",BF26=""),$C25=""),"",SUM(BF25:BF26)) ->  | BG27: =IF(OR(AND(BE27="",BF27=""),$C25=""),"",SUM(BE27:BF27)) ->  | BI27: =IF(OR(AND(BI25="",BI26=""),$C25=""),"",SUM(BI25:BI26)) ->  | BJ27: =IF(OR(AND(BJ25="",BJ26=""),$C25=""),"",SUM(BJ25:BJ26)) ->  | BK27: =IF(OR(AND(BI27="",BJ27=""),$C25=""),"",SUM(BI27:BJ27)) ->  | BM27: =IF(OR(AND(BM25="",BM26=""),$C25=""),"",SUM(BM25:BM26)) ->  | BN27: =IF(OR(AND(BN25="",BN26=""),$C25=""),"",SUM(BN25:BN26)) ->  | BO27: =IF(OR(AND(BM27="",BN27=""),$C25=""),"",SUM(BM27:BN27)) ->  | DU27: =IF($C25="","",IF(COUNTBLANK(DU25:DU26)=COUNTA(DU25:DU26),"",SUM(DU25:DU26))) ->  | DV27: =IF(OR($C25="",DU$8=0,DU27=""),"",DU27/DU$8) ->  | DW27: =IF(OR($C27="",DU$6=0),"",IF(DV27*100>=DV$10,"A",IF(DV27*100>=DW$10,"B","C"))) ->  | DX27: =IF($C25="","",IF(COUNTBLANK(DX25:DX26)=COUNTA(DX25:DX26),"",SUM(DX25:DX26))) ->  | DY27: =IF(OR($C25="",DX$8=0,DX27=""),"",DX27/DX$8) ->  | DZ27: =IF(OR($C27="",DX$6=0),"",IF(DY27*100>=DY$10,"A",IF(DY27*100>=DZ$10,"B","C"))) ->  | EA27: =IF($C25="","",IF(COUNTBLANK(EA25:EA26)=COUNTA(EA25:EA26),"",SUM(EA25:EA26))) ->  | EB27: =IF(OR($C25="",EA$8=0,EA27=""),"",EA27/EA$8) ->  | EC27: =IF(OR($C27="",EA$6=0),"",IF(EB27*100>=EB$10,"A",IF(EB27*100>=EC$10,"B","C"))) ->  | ED27: =IF($C25="","",IF(AND(DU27="",DX27="",EA27=""),"",SUM(DU27,DX27,EA27))) ->  | EE27: =IF(OR($C25="",ED$8=0,ED27=""),"",ED27/ED$8) ->  | EF27: =IF(OR($C27="",ED$6=0),"",IF(EE27*100>=EE$10,"A",IF(EE27*100>=EF$10,"B","C"))) -> 
A28: 1 | B28: 6 | C28: =VLOOKUP(B28,INDIRECT("_"&A28&"組"),2,0)&"" ->  | D28: 知識・技能 | G28: =IF(OR(AND(E28="",F28=""),$C28=""),"",SUM(E28:F28)) ->  | H28: =IF(OR(G28="",$C28=""),"",IF(G28>=E$10,"A",IF(G28<G$10,"C","B"))) ->  | K28: =IF(OR(AND(I28="",J28=""),$C28=""),"",SUM(I28:J28)) ->  | L28: =IF(OR(K28="",$C28=""),"",IF(K28>=I$10,"A",IF(K28<K$10,"C","B"))) ->  | O28: =IF(OR(AND(M28="",N28=""),$C28=""),"",SUM(M28:N28)) ->  | P28: =IF(OR(O28="",$C28=""),"",IF(O28>=M$10,"A",IF(O28<O$10,"C","B"))) ->  | S28: =IF(OR(AND(Q28="",R28=""),$C28=""),"",SUM(Q28:R28)) ->  | T28: =IF(OR(S28="",$C28=""),"",IF(S28>=Q$10,"A",IF(S28<S$10,"C","B"))) ->  | W28: =IF(OR(AND(U28="",V28=""),$C28=""),"",SUM(U28:V28)) ->  | X28: =IF(OR(W28="",$C28=""),"",IF(W28>=U$10,"A",IF(W28<W$10,"C","B"))) ->  | AA28: =IF(OR(AND(Y28="",Z28=""),$C28=""),"",SUM(Y28:Z28)) ->  | AB28: =IF(OR(AA28="",$C28=""),"",IF(AA28>=Y$10,"A",IF(AA28<AA$10,"C","B"))) ->  | AE28: =IF(OR(AND(AC28="",AD28=""),$C28=""),"",SUM(AC28:AD28)) ->  | AF28: =IF(OR(AE28="",$C28=""),"",IF(AE28>=AC$10,"A",IF(AE28<AE$10,"C","B"))) ->  | AI28: =IF(OR(AND(AG28="",AH28=""),$C28=""),"",SUM(AG28:AH28)) ->  | AJ28: =IF(OR(AI28="",$C28=""),"",IF(AI28>=AG$10,"A",IF(AI28<AI$10,"C","B"))) ->  | AM28: =IF(OR(AND(AK28="",AL28=""),$C28=""),"",SUM(AK28:AL28)) ->  | AN28: =IF(OR(AM28="",$C28=""),"",IF(AM28>=AK$10,"A",IF(AM28<AM$10,"C","B"))) ->  | AQ28: =IF(OR(AND(AO28="",AP28=""),$C28=""),"",SUM(AO28:AP28)) ->  | AR28: =IF(OR(AQ28="",$C28=""),"",IF(AQ28>=AO$10,"A",IF(AQ28<AQ$10,"C","B"))) ->  | AU28: =IF(OR(AND(AS28="",AT28=""),$C28=""),"",SUM(AS28:AT28)) ->  | AV28: =IF(OR(AU28="",$C28=""),"",IF(AU28>=AS$10,"A",IF(AU28<AU$10,"C","B"))) ->  | AY28: =IF(OR(AND(AW28="",AX28=""),$C28=""),"",SUM(AW28:AX28)) ->  | AZ28: =IF(OR(AY28="",$C28=""),"",IF(AY28>=AW$10,"A",IF(AY28<AY$10,"C","B"))) ->  | BC28: =IF(OR(AND(BA28="",BB28=""),$C28=""),"",SUM(BA28:BB28)) ->  | BD28: =IF(OR(BC28="",$C28=""),"",IF(BC28>=BA$10,"A",IF(BC28<BC$10,"C","B"))) ->  | BG28: =IF(OR(AND(BE28="",BF28=""),$C28=""),"",SUM(BE28:BF28)) ->  | BH28: =IF(OR(BG28="",$C28=""),"",IF(BG28>=BE$10,"A",IF(BG28<BG$10,"C","B"))) ->  | BK28: =IF(OR(AND(BI28="",BJ28=""),$C28=""),"",SUM(BI28:BJ28)) ->  | BL28: =IF(OR(BK28="",$C28=""),"",IF(BK28>=BI$10,"A",IF(BK28<BK$10,"C","B"))) ->  | BO28: =IF(OR(AND(BM28="",BN28=""),$C28=""),"",SUM(BM28:BN28)) ->  | BP28: =IF(OR(BO28="",$C28=""),"",IF(BO28>=BM$10,"A",IF(BO28<BO$10,"C","B"))) ->  | DU28: =IF($C28="","",IF(COUNTIFS($E$1:$DT$1,DU$1,$E$12:$DT$12,"得点",$E28:$DT28,">="&0)=0,"",SUMIFS($E28:$DT28,$E$1:$DT$1,DU$1,$E$12:$DT$12,"得点"))) ->  | DV28: =IF(OR($C28="",DU$6=0,DU28=""),"",DU28/DU$6) ->  | DW28: =IF(OR($C28="",DU$6=0,DV28=""),"",IF(DV28*100>=DV$10,"A",IF(DV28*100>=DW$10,"B","C"))) ->  | DX28: =IF($C28="","",IF(COUNTIFS($E$1:$DT$1,DX$1,$E$12:$DT$12,"得点",$E28:$DT28,">="&0)=0,"",SUMIFS($E28:$DT28,$E$1:$DT$1,DX$1,$E$12:$DT$12,"得点"))) ->  | DY28: =IF(OR($C28="",DX$6=0,DX28=""),"",DX28/DX$6) ->  | DZ28: =IF(OR($C28="",DX$6=0,DY28=""),"",IF(DY28*100>=DY$10,"A",IF(DY28*100>=DZ$10,"B","C"))) ->  | EA28: =IF($C28="","",IF(COUNTIFS($E$1:$DT$1,EA$1,$E$12:$DT$12,"得点",$E28:$DT28,">="&0)=0,"",SUMIFS($E28:$DT28,$E$1:$DT$1,EA$1,$E$12:$DT$12,"得点"))) ->  | EB28: =IF(OR($C28="",EA$6=0,EA28=""),"",EA28/EA$6) ->  | EC28: =IF(OR($C28="",EA$6=0,EB28=""),"",IF(EB28*100>=EB$10,"A",IF(EB28*100>=EC$10,"B","C"))) ->  | ED28: =IF($C28="","",IF(AND(DU28="",DX28="",EA28=""),"",SUM(DU28,DX28,EA28))) ->  | EE28: =IF(OR($C28="",ED$6=0,ED28=""),"",ED28/ED$6) ->  | EF28: =IF(OR($C28="",ED$6=0,EE28=""),"",IF(EE28*100>=EE$10,"A",IF(EE28*100>=EF$10,"B","C"))) -> 
D29: 思考判断表現 | G29: =IF(OR(AND(E29="",F29=""),$C28=""),"",SUM(E29:F29)) ->  | H29: =IF(OR(G29="",$C28=""),"",IF(G29>=E$11,"A",IF(G29<G$11,"C","B"))) ->  | K29: =IF(OR(AND(I29="",J29=""),$C28=""),"",SUM(I29:J29)) ->  | L29: =IF(OR(K29="",$C28=""),"",IF(K29>=I$11,"A",IF(K29<K$11,"C","B"))) ->  | O29: =IF(OR(AND(M29="",N29=""),$C28=""),"",SUM(M29:N29)) ->  | P29: =IF(OR(O29="",$C28=""),"",IF(O29>=M$11,"A",IF(O29<O$11,"C","B"))) ->  | S29: =IF(OR(AND(Q29="",R29=""),$C28=""),"",SUM(Q29:R29)) ->  | T29: =IF(OR(S29="",$C28=""),"",IF(S29>=Q$11,"A",IF(S29<S$11,"C","B"))) ->  | W29: =IF(OR(AND(U29="",V29=""),$C28=""),"",SUM(U29:V29)) ->  | X29: =IF(OR(W29="",$C28=""),"",IF(W29>=U$11,"A",IF(W29<W$11,"C","B"))) ->  | AA29: =IF(OR(AND(Y29="",Z29=""),$C28=""),"",SUM(Y29:Z29)) ->  | AB29: =IF(OR(AA29="",$C28=""),"",IF(AA29>=Y$11,"A",IF(AA29<AA$11,"C","B"))) ->  | AE29: =IF(OR(AND(AC29="",AD29=""),$C28=""),"",SUM(AC29:AD29)) ->  | AF29: =IF(OR(AE29="",$C28=""),"",IF(AE29>=AC$11,"A",IF(AE29<AE$11,"C","B"))) ->  | AI29: =IF(OR(AND(AG29="",AH29=""),$C28=""),"",SUM(AG29:AH29)) ->  | AJ29: =IF(OR(AI29="",$C28=""),"",IF(AI29>=AG$11,"A",IF(AI29<AI$11,"C","B"))) ->  | AM29: =IF(OR(AND(AK29="",AL29=""),$C28=""),"",SUM(AK29:AL29)) ->  | AN29: =IF(OR(AM29="",$C28=""),"",IF(AM29>=AK$11,"A",IF(AM29<AM$11,"C","B"))) ->  | AQ29: =IF(OR(AND(AO29="",AP29=""),$C28=""),"",SUM(AO29:AP29)) ->  | AR29: =IF(OR(AQ29="",$C28=""),"",IF(AQ29>=AO$11,"A",IF(AQ29<AQ$11,"C","B"))) ->  | AU29: =IF(OR(AND(AS29="",AT29=""),$C28=""),"",SUM(AS29:AT29)) ->  | AV29: =IF(OR(AU29="",$C28=""),"",IF(AU29>=AS$11,"A",IF(AU29<AU$11,"C","B"))) ->  | AY29: =IF(OR(AND(AW29="",AX29=""),$C28=""),"",SUM(AW29:AX29)) ->  | AZ29: =IF(OR(AY29="",$C28=""),"",IF(AY29>=AW$11,"A",IF(AY29<AY$11,"C","B"))) ->  | BC29: =IF(OR(AND(BA29="",BB29=""),$C28=""),"",SUM(BA29:BB29)) ->  | BD29: =IF(OR(BC29="",$C28=""),"",IF(BC29>=BA$11,"A",IF(BC29<BC$11,"C","B"))) ->  | BG29: =IF(OR(AND(BE29="",BF29=""),$C28=""),"",SUM(BE29:BF29)) ->  | BH29: =IF(OR(BG29="",$C28=""),"",IF(BG29>=BE$11,"A",IF(BG29<BG$11,"C","B"))) ->  | BK29: =IF(OR(AND(BI29="",BJ29=""),$C28=""),"",SUM(BI29:BJ29)) ->  | BL29: =IF(OR(BK29="",$C28=""),"",IF(BK29>=BI$11,"A",IF(BK29<BK$11,"C","B"))) ->  | BO29: =IF(OR(AND(BM29="",BN29=""),$C28=""),"",SUM(BM29:BN29)) ->  | BP29: =IF(OR(BO29="",$C28=""),"",IF(BO29>=BM$11,"A",IF(BO29<BO$11,"C","B"))) ->  | DU29: =IF($C28="","",IF(COUNTIFS($E$1:$DT$1,DU$1,$E$12:$DT$12,"得点",$E29:$DT29,">="&0)=0,"",SUMIFS($E29:$DT29,$E$1:$DT$1,DU$1,$E$12:$DT$12,"得点"))) ->  | DV29: =IF(OR($C28="",DU$7=0,DU29=""),"",DU29/DU$7) ->  | DW29: =IF(OR($C28="",DU$7=0,DV29=""),"",IF(DV29*100>=DV$11,"A",IF(DV29*100>=DW$11,"B","C"))) ->  | DX29: =IF($C28="","",IF(COUNTIFS($E$1:$DT$1,DX$1,$E$12:$DT$12,"得点",$E29:$DT29,">="&0)=0,"",SUMIFS($E29:$DT29,$E$1:$DT$1,DX$1,$E$12:$DT$12,"得点"))) ->  | DY29: =IF(OR($C28="",DX$7=0,DX29=""),"",DX29/DX$7) ->  | DZ29: =IF(OR($C28="",DX$7=0,DY29=""),"",IF(DY29*100>=DY$11,"A",IF(DY29*100>=DZ$11,"B","C"))) ->  | EA29: =IF($C28="","",IF(COUNTIFS($E$1:$DT$1,EA$1,$E$12:$DT$12,"得点",$E29:$DT29,">="&0)=0,"",SUMIFS($E29:$DT29,$E$1:$DT$1,EA$1,$E$12:$DT$12,"得点"))) ->  | EB29: =IF(OR($C28="",EA$7=0,EA29=""),"",EA29/EA$7) ->  | EC29: =IF(OR($C28="",EA$7=0,EB29=""),"",IF(EB29*100>=EB$11,"A",IF(EB29*100>=EC$11,"B","C"))) ->  | ED29: =IF($C28="","",IF(AND(DU29="",DX29="",EA29=""),"",SUM(DU29,DX29,EA29))) ->  | EE29: =IF(OR($C28="",ED$7=0,ED29=""),"",ED29/ED$7) ->  | EF29: =IF(OR($C28="",ED$7=0,EE29=""),"",IF(EE29*100>=EE$11,"A",IF(EE29*100>=EF$11,"B","C"))) -> 
D30: 合計 | E30: =IF(OR(AND(E28="",E29=""),$C28=""),"",SUM(E28:E29)) ->  | F30: =IF(OR(AND(F28="",F29=""),$C28=""),"",SUM(F28:F29)) ->  | G30: =IF(OR(AND(E30="",F30=""),$C28=""),"",SUM(E30:F30)) ->  | I30: =IF(OR(AND(I28="",I29=""),$C28=""),"",SUM(I28:I29)) ->  | J30: =IF(OR(AND(J28="",J29=""),$C28=""),"",SUM(J28:J29)) ->  | K30: =IF(OR(AND(I30="",J30=""),$C28=""),"",SUM(I30:J30)) ->  | M30: =IF(OR(AND(M28="",M29=""),$C28=""),"",SUM(M28:M29)) ->  | N30: =IF(OR(AND(N28="",N29=""),$C28=""),"",SUM(N28:N29)) ->  | O30: =IF(OR(AND(M30="",N30=""),$C28=""),"",SUM(M30:N30)) ->  | Q30: =IF(OR(AND(Q28="",Q29=""),$C28=""),"",SUM(Q28:Q29)) ->  | R30: =IF(OR(AND(R28="",R29=""),$C28=""),"",SUM(R28:R29)) ->  | S30: =IF(OR(AND(Q30="",R30=""),$C28=""),"",SUM(Q30:R30)) ->  | U30: =IF(OR(AND(U28="",U29=""),$C28=""),"",SUM(U28:U29)) ->  | V30: =IF(OR(AND(V28="",V29=""),$C28=""),"",SUM(V28:V29)) ->  | W30: =IF(OR(AND(U30="",V30=""),$C28=""),"",SUM(U30:V30)) ->  | Y30: =IF(OR(AND(Y28="",Y29=""),$C28=""),"",SUM(Y28:Y29)) ->  | Z30: =IF(OR(AND(Z28="",Z29=""),$C28=""),"",SUM(Z28:Z29)) ->  | AA30: =IF(OR(AND(Y30="",Z30=""),$C28=""),"",SUM(Y30:Z30)) ->  | AC30: =IF(OR(AND(AC28="",AC29=""),$C28=""),"",SUM(AC28:AC29)) ->  | AD30: =IF(OR(AND(AD28="",AD29=""),$C28=""),"",SUM(AD28:AD29)) ->  | AE30: =IF(OR(AND(AC30="",AD30=""),$C28=""),"",SUM(AC30:AD30)) ->  | AG30: =IF(OR(AND(AG28="",AG29=""),$C28=""),"",SUM(AG28:AG29)) ->  | AH30: =IF(OR(AND(AH28="",AH29=""),$C28=""),"",SUM(AH28:AH29)) ->  | AI30: =IF(OR(AND(AG30="",AH30=""),$C28=""),"",SUM(AG30:AH30)) ->  | AK30: =IF(OR(AND(AK28="",AK29=""),$C28=""),"",SUM(AK28:AK29)) ->  | AL30: =IF(OR(AND(AL28="",AL29=""),$C28=""),"",SUM(AL28:AL29)) ->  | AM30: =IF(OR(AND(AK30="",AL30=""),$C28=""),"",SUM(AK30:AL30)) ->  | AO30: =IF(OR(AND(AO28="",AO29=""),$C28=""),"",SUM(AO28:AO29)) ->  | AP30: =IF(OR(AND(AP28="",AP29=""),$C28=""),"",SUM(AP28:AP29)) ->  | AQ30: =IF(OR(AND(AO30="",AP30=""),$C28=""),"",SUM(AO30:AP30)) ->  | AS30: =IF(OR(AND(AS28="",AS29=""),$C28=""),"",SUM(AS28:AS29)) ->  | AT30: =IF(OR(AND(AT28="",AT29=""),$C28=""),"",SUM(AT28:AT29)) ->  | AU30: =IF(OR(AND(AS30="",AT30=""),$C28=""),"",SUM(AS30:AT30)) ->  | AW30: =IF(OR(AND(AW28="",AW29=""),$C28=""),"",SUM(AW28:AW29)) ->  | AX30: =IF(OR(AND(AX28="",AX29=""),$C28=""),"",SUM(AX28:AX29)) ->  | AY30: =IF(OR(AND(AW30="",AX30=""),$C28=""),"",SUM(AW30:AX30)) ->  | BA30: =IF(OR(AND(BA28="",BA29=""),$C28=""),"",SUM(BA28:BA29)) ->  | BB30: =IF(OR(AND(BB28="",BB29=""),$C28=""),"",SUM(BB28:BB29)) ->  | BC30: =IF(OR(AND(BA30="",BB30=""),$C28=""),"",SUM(BA30:BB30)) ->  | BE30: =IF(OR(AND(BE28="",BE29=""),$C28=""),"",SUM(BE28:BE29)) ->  | BF30: =IF(OR(AND(BF28="",BF29=""),$C28=""),"",SUM(BF28:BF29)) ->  | BG30: =IF(OR(AND(BE30="",BF30=""),$C28=""),"",SUM(BE30:BF30)) ->  | BI30: =IF(OR(AND(BI28="",BI29=""),$C28=""),"",SUM(BI28:BI29)) ->  | BJ30: =IF(OR(AND(BJ28="",BJ29=""),$C28=""),"",SUM(BJ28:BJ29)) ->  | BK30: =IF(OR(AND(BI30="",BJ30=""),$C28=""),"",SUM(BI30:BJ30)) ->  | BM30: =IF(OR(AND(BM28="",BM29=""),$C28=""),"",SUM(BM28:BM29)) ->  | BN30: =IF(OR(AND(BN28="",BN29=""),$C28=""),"",SUM(BN28:BN29)) ->  | BO30: =IF(OR(AND(BM30="",BN30=""),$C28=""),"",SUM(BM30:BN30)) ->  | DU30: =IF($C28="","",IF(COUNTBLANK(DU28:DU29)=COUNTA(DU28:DU29),"",SUM(DU28:DU29))) ->  | DV30: =IF(OR($C28="",DU$8=0,DU30=""),"",DU30/DU$8) ->  | DW30: =IF(OR($C30="",DU$6=0),"",IF(DV30*100>=DV$10,"A",IF(DV30*100>=DW$10,"B","C"))) ->  | DX30: =IF($C28="","",IF(COUNTBLANK(DX28:DX29)=COUNTA(DX28:DX29),"",SUM(DX28:DX29))) ->  | DY30: =IF(OR($C28="",DX$8=0,DX30=""),"",DX30/DX$8) ->  | DZ30: =IF(OR($C30="",DX$6=0),"",IF(DY30*100>=DY$10,"A",IF(DY30*100>=DZ$10,"B","C"))) ->  | EA30: =IF($C28="","",IF(COUNTBLANK(EA28:EA29)=COUNTA(EA28:EA29),"",SUM(EA28:EA29))) ->  | EB30: =IF(OR($C28="",EA$8=0,EA30=""),"",EA30/EA$8) ->  | EC30: =IF(OR($C30="",EA$6=0),"",IF(EB30*100>=EB$10,"A",IF(EB30*100>=EC$10,"B","C"))) ->  | ED30: =IF($C28="","",IF(AND(DU30="",DX30="",EA30=""),"",SUM(DU30,DX30,EA30))) ->  | EE30: =IF(OR($C28="",ED$8=0,ED30=""),"",ED30/ED$8) ->  | EF30: =IF(OR($C30="",ED$6=0),"",IF(EE30*100>=EE$10,"A",IF(EE30*100>=EF$10,"B","C"))) -> 
A31: 1 | B31: 7 | C31: =VLOOKUP(B31,INDIRECT("_"&A31&"組"),2,0)&"" ->  | D31: 知識・技能 | G31: =IF(OR(AND(E31="",F31=""),$C31=""),"",SUM(E31:F31)) ->  | H31: =IF(OR(G31="",$C31=""),"",IF(G31>=E$10,"A",IF(G31<G$10,"C","B"))) ->  | K31: =IF(OR(AND(I31="",J31=""),$C31=""),"",SUM(I31:J31)) ->  | L31: =IF(OR(K31="",$C31=""),"",IF(K31>=I$10,"A",IF(K31<K$10,"C","B"))) ->  | O31: =IF(OR(AND(M31="",N31=""),$C31=""),"",SUM(M31:N31)) ->  | P31: =IF(OR(O31="",$C31=""),"",IF(O31>=M$10,"A",IF(O31<O$10,"C","B"))) ->  | S31: =IF(OR(AND(Q31="",R31=""),$C31=""),"",SUM(Q31:R31)) ->  | T31: =IF(OR(S31="",$C31=""),"",IF(S31>=Q$10,"A",IF(S31<S$10,"C","B"))) ->  | W31: =IF(OR(AND(U31="",V31=""),$C31=""),"",SUM(U31:V31)) ->  | X31: =IF(OR(W31="",$C31=""),"",IF(W31>=U$10,"A",IF(W31<W$10,"C","B"))) ->  | AA31: =IF(OR(AND(Y31="",Z31=""),$C31=""),"",SUM(Y31:Z31)) ->  | AB31: =IF(OR(AA31="",$C31=""),"",IF(AA31>=Y$10,"A",IF(AA31<AA$10,"C","B"))) ->  | AE31: =IF(OR(AND(AC31="",AD31=""),$C31=""),"",SUM(AC31:AD31)) ->  | AF31: =IF(OR(AE31="",$C31=""),"",IF(AE31>=AC$10,"A",IF(AE31<AE$10,"C","B"))) ->  | AI31: =IF(OR(AND(AG31="",AH31=""),$C31=""),"",SUM(AG31:AH31)) ->  | AJ31: =IF(OR(AI31="",$C31=""),"",IF(AI31>=AG$10,"A",IF(AI31<AI$10,"C","B"))) ->  | AM31: =IF(OR(AND(AK31="",AL31=""),$C31=""),"",SUM(AK31:AL31)) ->  | AN31: =IF(OR(AM31="",$C31=""),"",IF(AM31>=AK$10,"A",IF(AM31<AM$10,"C","B"))) ->  | AQ31: =IF(OR(AND(AO31="",AP31=""),$C31=""),"",SUM(AO31:AP31)) ->  | AR31: =IF(OR(AQ31="",$C31=""),"",IF(AQ31>=AO$10,"A",IF(AQ31<AQ$10,"C","B"))) ->  | AU31: =IF(OR(AND(AS31="",AT31=""),$C31=""),"",SUM(AS31:AT31)) ->  | AV31: =IF(OR(AU31="",$C31=""),"",IF(AU31>=AS$10,"A",IF(AU31<AU$10,"C","B"))) ->  | AY31: =IF(OR(AND(AW31="",AX31=""),$C31=""),"",SUM(AW31:AX31)) ->  | AZ31: =IF(OR(AY31="",$C31=""),"",IF(AY31>=AW$10,"A",IF(AY31<AY$10,"C","B"))) ->  | BC31: =IF(OR(AND(BA31="",BB31=""),$C31=""),"",SUM(BA31:BB31)) ->  | BD31: =IF(OR(BC31="",$C31=""),"",IF(BC31>=BA$10,"A",IF(BC31<BC$10,"C","B"))) ->  | BG31: =IF(OR(AND(BE31="",BF31=""),$C31=""),"",SUM(BE31:BF31)) ->  | BH31: =IF(OR(BG31="",$C31=""),"",IF(BG31>=BE$10,"A",IF(BG31<BG$10,"C","B"))) ->  | BK31: =IF(OR(AND(BI31="",BJ31=""),$C31=""),"",SUM(BI31:BJ31)) ->  | BL31: =IF(OR(BK31="",$C31=""),"",IF(BK31>=BI$10,"A",IF(BK31<BK$10,"C","B"))) ->  | BO31: =IF(OR(AND(BM31="",BN31=""),$C31=""),"",SUM(BM31:BN31)) ->  | BP31: =IF(OR(BO31="",$C31=""),"",IF(BO31>=BM$10,"A",IF(BO31<BO$10,"C","B"))) ->  | DU31: =IF($C31="","",IF(COUNTIFS($E$1:$DT$1,DU$1,$E$12:$DT$12,"得点",$E31:$DT31,">="&0)=0,"",SUMIFS($E31:$DT31,$E$1:$DT$1,DU$1,$E$12:$DT$12,"得点"))) ->  | DV31: =IF(OR($C31="",DU$6=0,DU31=""),"",DU31/DU$6) ->  | DW31: =IF(OR($C31="",DU$6=0,DV31=""),"",IF(DV31*100>=DV$10,"A",IF(DV31*100>=DW$10,"B","C"))) ->  | DX31: =IF($C31="","",IF(COUNTIFS($E$1:$DT$1,DX$1,$E$12:$DT$12,"得点",$E31:$DT31,">="&0)=0,"",SUMIFS($E31:$DT31,$E$1:$DT$1,DX$1,$E$12:$DT$12,"得点"))) ->  | DY31: =IF(OR($C31="",DX$6=0,DX31=""),"",DX31/DX$6) ->  | DZ31: =IF(OR($C31="",DX$6=0,DY31=""),"",IF(DY31*100>=DY$10,"A",IF(DY31*100>=DZ$10,"B","C"))) ->  | EA31: =IF($C31="","",IF(COUNTIFS($E$1:$DT$1,EA$1,$E$12:$DT$12,"得点",$E31:$DT31,">="&0)=0,"",SUMIFS($E31:$DT31,$E$1:$DT$1,EA$1,$E$12:$DT$12,"得点"))) ->  | EB31: =IF(OR($C31="",EA$6=0,EA31=""),"",EA31/EA$6) ->  | EC31: =IF(OR($C31="",EA$6=0,EB31=""),"",IF(EB31*100>=EB$10,"A",IF(EB31*100>=EC$10,"B","C"))) ->  | ED31: =IF($C31="","",IF(AND(DU31="",DX31="",EA31=""),"",SUM(DU31,DX31,EA31))) ->  | EE31: =IF(OR($C31="",ED$6=0,ED31=""),"",ED31/ED$6) ->  | EF31: =IF(OR($C31="",ED$6=0,EE31=""),"",IF(EE31*100>=EE$10,"A",IF(EE31*100>=EF$10,"B","C"))) -> 
D32: 思考判断表現 | G32: =IF(OR(AND(E32="",F32=""),$C31=""),"",SUM(E32:F32)) ->  | H32: =IF(OR(G32="",$C31=""),"",IF(G32>=E$11,"A",IF(G32<G$11,"C","B"))) ->  | K32: =IF(OR(AND(I32="",J32=""),$C31=""),"",SUM(I32:J32)) ->  | L32: =IF(OR(K32="",$C31=""),"",IF(K32>=I$11,"A",IF(K32<K$11,"C","B"))) ->  | O32: =IF(OR(AND(M32="",N32=""),$C31=""),"",SUM(M32:N32)) ->  | P32: =IF(OR(O32="",$C31=""),"",IF(O32>=M$11,"A",IF(O32<O$11,"C","B"))) ->  | S32: =IF(OR(AND(Q32="",R32=""),$C31=""),"",SUM(Q32:R32)) ->  | T32: =IF(OR(S32="",$C31=""),"",IF(S32>=Q$11,"A",IF(S32<S$11,"C","B"))) ->  | W32: =IF(OR(AND(U32="",V32=""),$C31=""),"",SUM(U32:V32)) ->  | X32: =IF(OR(W32="",$C31=""),"",IF(W32>=U$11,"A",IF(W32<W$11,"C","B"))) ->  | AA32: =IF(OR(AND(Y32="",Z32=""),$C31=""),"",SUM(Y32:Z32)) ->  | AB32: =IF(OR(AA32="",$C31=""),"",IF(AA32>=Y$11,"A",IF(AA32<AA$11,"C","B"))) ->  | AE32: =IF(OR(AND(AC32="",AD32=""),$C31=""),"",SUM(AC32:AD32)) ->  | AF32: =IF(OR(AE32="",$C31=""),"",IF(AE32>=AC$11,"A",IF(AE32<AE$11,"C","B"))) ->  | AI32: =IF(OR(AND(AG32="",AH32=""),$C31=""),"",SUM(AG32:AH32)) ->  | AJ32: =IF(OR(AI32="",$C31=""),"",IF(AI32>=AG$11,"A",IF(AI32<AI$11,"C","B"))) ->  | AM32: =IF(OR(AND(AK32="",AL32=""),$C31=""),"",SUM(AK32:AL32)) ->  | AN32: =IF(OR(AM32="",$C31=""),"",IF(AM32>=AK$11,"A",IF(AM32<AM$11,"C","B"))) ->  | AQ32: =IF(OR(AND(AO32="",AP32=""),$C31=""),"",SUM(AO32:AP32)) ->  | AR32: =IF(OR(AQ32="",$C31=""),"",IF(AQ32>=AO$11,"A",IF(AQ32<AQ$11,"C","B"))) ->  | AU32: =IF(OR(AND(AS32="",AT32=""),$C31=""),"",SUM(AS32:AT32)) ->  | AV32: =IF(OR(AU32="",$C31=""),"",IF(AU32>=AS$11,"A",IF(AU32<AU$11,"C","B"))) ->  | AY32: =IF(OR(AND(AW32="",AX32=""),$C31=""),"",SUM(AW32:AX32)) ->  | AZ32: =IF(OR(AY32="",$C31=""),"",IF(AY32>=AW$11,"A",IF(AY32<AY$11,"C","B"))) ->  | BC32: =IF(OR(AND(BA32="",BB32=""),$C31=""),"",SUM(BA32:BB32)) ->  | BD32: =IF(OR(BC32="",$C31=""),"",IF(BC32>=BA$11,"A",IF(BC32<BC$11,"C","B"))) ->  | BG32: =IF(OR(AND(BE32="",BF32=""),$C31=""),"",SUM(BE32:BF32)) ->  | BH32: =IF(OR(BG32="",$C31=""),"",IF(BG32>=BE$11,"A",IF(BG32<BG$11,"C","B"))) ->  | BK32: =IF(OR(AND(BI32="",BJ32=""),$C31=""),"",SUM(BI32:BJ32)) ->  | BL32: =IF(OR(BK32="",$C31=""),"",IF(BK32>=BI$11,"A",IF(BK32<BK$11,"C","B"))) ->  | BO32: =IF(OR(AND(BM32="",BN32=""),$C31=""),"",SUM(BM32:BN32)) ->  | BP32: =IF(OR(BO32="",$C31=""),"",IF(BO32>=BM$11,"A",IF(BO32<BO$11,"C","B"))) ->  | DU32: =IF($C31="","",IF(COUNTIFS($E$1:$DT$1,DU$1,$E$12:$DT$12,"得点",$E32:$DT32,">="&0)=0,"",SUMIFS($E32:$DT32,$E$1:$DT$1,DU$1,$E$12:$DT$12,"得点"))) ->  | DV32: =IF(OR($C31="",DU$7=0,DU32=""),"",DU32/DU$7) ->  | DW32: =IF(OR($C31="",DU$7=0,DV32=""),"",IF(DV32*100>=DV$11,"A",IF(DV32*100>=DW$11,"B","C"))) ->  | DX32: =IF($C31="","",IF(COUNTIFS($E$1:$DT$1,DX$1,$E$12:$DT$12,"得点",$E32:$DT32,">="&0)=0,"",SUMIFS($E32:$DT32,$E$1:$DT$1,DX$1,$E$12:$DT$12,"得点"))) ->  | DY32: =IF(OR($C31="",DX$7=0,DX32=""),"",DX32/DX$7) ->  | DZ32: =IF(OR($C31="",DX$7=0,DY32=""),"",IF(DY32*100>=DY$11,"A",IF(DY32*100>=DZ$11,"B","C"))) ->  | EA32: =IF($C31="","",IF(COUNTIFS($E$1:$DT$1,EA$1,$E$12:$DT$12,"得点",$E32:$DT32,">="&0)=0,"",SUMIFS($E32:$DT32,$E$1:$DT$1,EA$1,$E$12:$DT$12,"得点"))) ->  | EB32: =IF(OR($C31="",EA$7=0,EA32=""),"",EA32/EA$7) ->  | EC32: =IF(OR($C31="",EA$7=0,EB32=""),"",IF(EB32*100>=EB$11,"A",IF(EB32*100>=EC$11,"B","C"))) ->  | ED32: =IF($C31="","",IF(AND(DU32="",DX32="",EA32=""),"",SUM(DU32,DX32,EA32))) ->  | EE32: =IF(OR($C31="",ED$7=0,ED32=""),"",ED32/ED$7) ->  | EF32: =IF(OR($C31="",ED$7=0,EE32=""),"",IF(EE32*100>=EE$11,"A",IF(EE32*100>=EF$11,"B","C"))) -> 
D33: 合計 | E33: =IF(OR(AND(E31="",E32=""),$C31=""),"",SUM(E31:E32)) ->  | F33: =IF(OR(AND(F31="",F32=""),$C31=""),"",SUM(F31:F32)) ->  | G33: =IF(OR(AND(E33="",F33=""),$C31=""),"",SUM(E33:F33)) ->  | I33: =IF(OR(AND(I31="",I32=""),$C31=""),"",SUM(I31:I32)) ->  | J33: =IF(OR(AND(J31="",J32=""),$C31=""),"",SUM(J31:J32)) ->  | K33: =IF(OR(AND(I33="",J33=""),$C31=""),"",SUM(I33:J33)) ->  | M33: =IF(OR(AND(M31="",M32=""),$C31=""),"",SUM(M31:M32)) ->  | N33: =IF(OR(AND(N31="",N32=""),$C31=""),"",SUM(N31:N32)) ->  | O33: =IF(OR(AND(M33="",N33=""),$C31=""),"",SUM(M33:N33)) ->  | Q33: =IF(OR(AND(Q31="",Q32=""),$C31=""),"",SUM(Q31:Q32)) ->  | R33: =IF(OR(AND(R31="",R32=""),$C31=""),"",SUM(R31:R32)) ->  | S33: =IF(OR(AND(Q33="",R33=""),$C31=""),"",SUM(Q33:R33)) ->  | U33: =IF(OR(AND(U31="",U32=""),$C31=""),"",SUM(U31:U32)) ->  | V33: =IF(OR(AND(V31="",V32=""),$C31=""),"",SUM(V31:V32)) ->  | W33: =IF(OR(AND(U33="",V33=""),$C31=""),"",SUM(U33:V33)) ->  | Y33: =IF(OR(AND(Y31="",Y32=""),$C31=""),"",SUM(Y31:Y32)) ->  | Z33: =IF(OR(AND(Z31="",Z32=""),$C31=""),"",SUM(Z31:Z32)) ->  | AA33: =IF(OR(AND(Y33="",Z33=""),$C31=""),"",SUM(Y33:Z33)) ->  | AC33: =IF(OR(AND(AC31="",AC32=""),$C31=""),"",SUM(AC31:AC32)) ->  | AD33: =IF(OR(AND(AD31="",AD32=""),$C31=""),"",SUM(AD31:AD32)) ->  | AE33: =IF(OR(AND(AC33="",AD33=""),$C31=""),"",SUM(AC33:AD33)) ->  | AG33: =IF(OR(AND(AG31="",AG32=""),$C31=""),"",SUM(AG31:AG32)) ->  | AH33: =IF(OR(AND(AH31="",AH32=""),$C31=""),"",SUM(AH31:AH32)) ->  | AI33: =IF(OR(AND(AG33="",AH33=""),$C31=""),"",SUM(AG33:AH33)) ->  | AK33: =IF(OR(AND(AK31="",AK32=""),$C31=""),"",SUM(AK31:AK32)) ->  | AL33: =IF(OR(AND(AL31="",AL32=""),$C31=""),"",SUM(AL31:AL32)) ->  | AM33: =IF(OR(AND(AK33="",AL33=""),$C31=""),"",SUM(AK33:AL33)) ->  | AO33: =IF(OR(AND(AO31="",AO32=""),$C31=""),"",SUM(AO31:AO32)) ->  | AP33: =IF(OR(AND(AP31="",AP32=""),$C31=""),"",SUM(AP31:AP32)) ->  | AQ33: =IF(OR(AND(AO33="",AP33=""),$C31=""),"",SUM(AO33:AP33)) ->  | AS33: =IF(OR(AND(AS31="",AS32=""),$C31=""),"",SUM(AS31:AS32)) ->  | AT33: =IF(OR(AND(AT31="",AT32=""),$C31=""),"",SUM(AT31:AT32)) ->  | AU33: =IF(OR(AND(AS33="",AT33=""),$C31=""),"",SUM(AS33:AT33)) ->  | AW33: =IF(OR(AND(AW31="",AW32=""),$C31=""),"",SUM(AW31:AW32)) ->  | AX33: =IF(OR(AND(AX31="",AX32=""),$C31=""),"",SUM(AX31:AX32)) ->  | AY33: =IF(OR(AND(AW33="",AX33=""),$C31=""),"",SUM(AW33:AX33)) ->  | BA33: =IF(OR(AND(BA31="",BA32=""),$C31=""),"",SUM(BA31:BA32)) ->  | BB33: =IF(OR(AND(BB31="",BB32=""),$C31=""),"",SUM(BB31:BB32)) ->  | BC33: =IF(OR(AND(BA33="",BB33=""),$C31=""),"",SUM(BA33:BB33)) ->  | BE33: =IF(OR(AND(BE31="",BE32=""),$C31=""),"",SUM(BE31:BE32)) ->  | BF33: =IF(OR(AND(BF31="",BF32=""),$C31=""),"",SUM(BF31:BF32)) ->  | BG33: =IF(OR(AND(BE33="",BF33=""),$C31=""),"",SUM(BE33:BF33)) ->  | BI33: =IF(OR(AND(BI31="",BI32=""),$C31=""),"",SUM(BI31:BI32)) ->  | BJ33: =IF(OR(AND(BJ31="",BJ32=""),$C31=""),"",SUM(BJ31:BJ32)) ->  | BK33: =IF(OR(AND(BI33="",BJ33=""),$C31=""),"",SUM(BI33:BJ33)) ->  | BM33: =IF(OR(AND(BM31="",BM32=""),$C31=""),"",SUM(BM31:BM32)) ->  | BN33: =IF(OR(AND(BN31="",BN32=""),$C31=""),"",SUM(BN31:BN32)) ->  | BO33: =IF(OR(AND(BM33="",BN33=""),$C31=""),"",SUM(BM33:BN33)) ->  | DU33: =IF($C31="","",IF(COUNTBLANK(DU31:DU32)=COUNTA(DU31:DU32),"",SUM(DU31:DU32))) ->  | DV33: =IF(OR($C31="",DU$8=0,DU33=""),"",DU33/DU$8) ->  | DW33: =IF(OR($C33="",DU$6=0),"",IF(DV33*100>=DV$10,"A",IF(DV33*100>=DW$10,"B","C"))) ->  | DX33: =IF($C31="","",IF(COUNTBLANK(DX31:DX32)=COUNTA(DX31:DX32),"",SUM(DX31:DX32))) ->  | DY33: =IF(OR($C31="",DX$8=0,DX33=""),"",DX33/DX$8) ->  | DZ33: =IF(OR($C33="",DX$6=0),"",IF(DY33*100>=DY$10,"A",IF(DY33*100>=DZ$10,"B","C"))) ->  | EA33: =IF($C31="","",IF(COUNTBLANK(EA31:EA32)=COUNTA(EA31:EA32),"",SUM(EA31:EA32))) ->  | EB33: =IF(OR($C31="",EA$8=0,EA33=""),"",EA33/EA$8) ->  | EC33: =IF(OR($C33="",EA$6=0),"",IF(EB33*100>=EB$10,"A",IF(EB33*100>=EC$10,"B","C"))) ->  | ED33: =IF($C31="","",IF(AND(DU33="",DX33="",EA33=""),"",SUM(DU33,DX33,EA33))) ->  | EE33: =IF(OR($C31="",ED$8=0,ED33=""),"",ED33/ED$8) ->  | EF33: =IF(OR($C33="",ED$6=0),"",IF(EE33*100>=EE$10,"A",IF(EE33*100>=EF$10,"B","C"))) -> 
A34: 1 | B34: 8 | C34: =VLOOKUP(B34,INDIRECT("_"&A34&"組"),2,0)&"" ->  | D34: 知識・技能 | G34: =IF(OR(AND(E34="",F34=""),$C34=""),"",SUM(E34:F34)) ->  | H34: =IF(OR(G34="",$C34=""),"",IF(G34>=E$10,"A",IF(G34<G$10,"C","B"))) ->  | K34: =IF(OR(AND(I34="",J34=""),$C34=""),"",SUM(I34:J34)) ->  | L34: =IF(OR(K34="",$C34=""),"",IF(K34>=I$10,"A",IF(K34<K$10,"C","B"))) ->  | O34: =IF(OR(AND(M34="",N34=""),$C34=""),"",SUM(M34:N34)) ->  | P34: =IF(OR(O34="",$C34=""),"",IF(O34>=M$10,"A",IF(O34<O$10,"C","B"))) ->  | S34: =IF(OR(AND(Q34="",R34=""),$C34=""),"",SUM(Q34:R34)) ->  | T34: =IF(OR(S34="",$C34=""),"",IF(S34>=Q$10,"A",IF(S34<S$10,"C","B"))) ->  | W34: =IF(OR(AND(U34="",V34=""),$C34=""),"",SUM(U34:V34)) ->  | X34: =IF(OR(W34="",$C34=""),"",IF(W34>=U$10,"A",IF(W34<W$10,"C","B"))) ->  | AA34: =IF(OR(AND(Y34="",Z34=""),$C34=""),"",SUM(Y34:Z34)) ->  | AB34: =IF(OR(AA34="",$C34=""),"",IF(AA34>=Y$10,"A",IF(AA34<AA$10,"C","B"))) ->  | AE34: =IF(OR(AND(AC34="",AD34=""),$C34=""),"",SUM(AC34:AD34)) ->  | AF34: =IF(OR(AE34="",$C34=""),"",IF(AE34>=AC$10,"A",IF(AE34<AE$10,"C","B"))) ->  | AI34: =IF(OR(AND(AG34="",AH34=""),$C34=""),"",SUM(AG34:AH34)) ->  | AJ34: =IF(OR(AI34="",$C34=""),"",IF(AI34>=AG$10,"A",IF(AI34<AI$10,"C","B"))) ->  | AM34: =IF(OR(AND(AK34="",AL34=""),$C34=""),"",SUM(AK34:AL34)) ->  | AN34: =IF(OR(AM34="",$C34=""),"",IF(AM34>=AK$10,"A",IF(AM34<AM$10,"C","B"))) ->  | AQ34: =IF(OR(AND(AO34="",AP34=""),$C34=""),"",SUM(AO34:AP34)) ->  | AR34: =IF(OR(AQ34="",$C34=""),"",IF(AQ34>=AO$10,"A",IF(AQ34<AQ$10,"C","B"))) ->  | AU34: =IF(OR(AND(AS34="",AT34=""),$C34=""),"",SUM(AS34:AT34)) ->  | AV34: =IF(OR(AU34="",$C34=""),"",IF(AU34>=AS$10,"A",IF(AU34<AU$10,"C","B"))) ->  | AY34: =IF(OR(AND(AW34="",AX34=""),$C34=""),"",SUM(AW34:AX34)) ->  | AZ34: =IF(OR(AY34="",$C34=""),"",IF(AY34>=AW$10,"A",IF(AY34<AY$10,"C","B"))) ->  | BC34: =IF(OR(AND(BA34="",BB34=""),$C34=""),"",SUM(BA34:BB34)) ->  | BD34: =IF(OR(BC34="",$C34=""),"",IF(BC34>=BA$10,"A",IF(BC34<BC$10,"C","B"))) ->  | BG34: =IF(OR(AND(BE34="",BF34=""),$C34=""),"",SUM(BE34:BF34)) ->  | BH34: =IF(OR(BG34="",$C34=""),"",IF(BG34>=BE$10,"A",IF(BG34<BG$10,"C","B"))) ->  | BK34: =IF(OR(AND(BI34="",BJ34=""),$C34=""),"",SUM(BI34:BJ34)) ->  | BL34: =IF(OR(BK34="",$C34=""),"",IF(BK34>=BI$10,"A",IF(BK34<BK$10,"C","B"))) ->  | BO34: =IF(OR(AND(BM34="",BN34=""),$C34=""),"",SUM(BM34:BN34)) ->  | BP34: =IF(OR(BO34="",$C34=""),"",IF(BO34>=BM$10,"A",IF(BO34<BO$10,"C","B"))) ->  | DU34: =IF($C34="","",IF(COUNTIFS($E$1:$DT$1,DU$1,$E$12:$DT$12,"得点",$E34:$DT34,">="&0)=0,"",SUMIFS($E34:$DT34,$E$1:$DT$1,DU$1,$E$12:$DT$12,"得点"))) ->  | DV34: =IF(OR($C34="",DU$6=0,DU34=""),"",DU34/DU$6) ->  | DW34: =IF(OR($C34="",DU$6=0,DV34=""),"",IF(DV34*100>=DV$10,"A",IF(DV34*100>=DW$10,"B","C"))) ->  | DX34: =IF($C34="","",IF(COUNTIFS($E$1:$DT$1,DX$1,$E$12:$DT$12,"得点",$E34:$DT34,">="&0)=0,"",SUMIFS($E34:$DT34,$E$1:$DT$1,DX$1,$E$12:$DT$12,"得点"))) ->  | DY34: =IF(OR($C34="",DX$6=0,DX34=""),"",DX34/DX$6) ->  | DZ34: =IF(OR($C34="",DX$6=0,DY34=""),"",IF(DY34*100>=DY$10,"A",IF(DY34*100>=DZ$10,"B","C"))) ->  | EA34: =IF($C34="","",IF(COUNTIFS($E$1:$DT$1,EA$1,$E$12:$DT$12,"得点",$E34:$DT34,">="&0)=0,"",SUMIFS($E34:$DT34,$E$1:$DT$1,EA$1,$E$12:$DT$12,"得点"))) ->  | EB34: =IF(OR($C34="",EA$6=0,EA34=""),"",EA34/EA$6) ->  | EC34: =IF(OR($C34="",EA$6=0,EB34=""),"",IF(EB34*100>=EB$10,"A",IF(EB34*100>=EC$10,"B","C"))) ->  | ED34: =IF($C34="","",IF(AND(DU34="",DX34="",EA34=""),"",SUM(DU34,DX34,EA34))) ->  | EE34: =IF(OR($C34="",ED$6=0,ED34=""),"",ED34/ED$6) ->  | EF34: =IF(OR($C34="",ED$6=0,EE34=""),"",IF(EE34*100>=EE$10,"A",IF(EE34*100>=EF$10,"B","C"))) -> 
D35: 思考判断表現 | G35: =IF(OR(AND(E35="",F35=""),$C34=""),"",SUM(E35:F35)) ->  | H35: =IF(OR(G35="",$C34=""),"",IF(G35>=E$11,"A",IF(G35<G$11,"C","B"))) ->  | K35: =IF(OR(AND(I35="",J35=""),$C34=""),"",SUM(I35:J35)) ->  | L35: =IF(OR(K35="",$C34=""),"",IF(K35>=I$11,"A",IF(K35<K$11,"C","B"))) ->  | O35: =IF(OR(AND(M35="",N35=""),$C34=""),"",SUM(M35:N35)) ->  | P35: =IF(OR(O35="",$C34=""),"",IF(O35>=M$11,"A",IF(O35<O$11,"C","B"))) ->  | S35: =IF(OR(AND(Q35="",R35=""),$C34=""),"",SUM(Q35:R35)) ->  | T35: =IF(OR(S35="",$C34=""),"",IF(S35>=Q$11,"A",IF(S35<S$11,"C","B"))) ->  | W35: =IF(OR(AND(U35="",V35=""),$C34=""),"",SUM(U35:V35)) ->  | X35: =IF(OR(W35="",$C34=""),"",IF(W35>=U$11,"A",IF(W35<W$11,"C","B"))) ->  | AA35: =IF(OR(AND(Y35="",Z35=""),$C34=""),"",SUM(Y35:Z35)) ->  | AB35: =IF(OR(AA35="",$C34=""),"",IF(AA35>=Y$11,"A",IF(AA35<AA$11,"C","B"))) ->  | AE35: =IF(OR(AND(AC35="",AD35=""),$C34=""),"",SUM(AC35:AD35)) ->  | AF35: =IF(OR(AE35="",$C34=""),"",IF(AE35>=AC$11,"A",IF(AE35<AE$11,"C","B"))) ->  | AI35: =IF(OR(AND(AG35="",AH35=""),$C34=""),"",SUM(AG35:AH35)) ->  | AJ35: =IF(OR(AI35="",$C34=""),"",IF(AI35>=AG$11,"A",IF(AI35<AI$11,"C","B"))) ->  | AM35: =IF(OR(AND(AK35="",AL35=""),$C34=""),"",SUM(AK35:AL35)) ->  | AN35: =IF(OR(AM35="",$C34=""),"",IF(AM35>=AK$11,"A",IF(AM35<AM$11,"C","B"))) ->  | AQ35: =IF(OR(AND(AO35="",AP35=""),$C34=""),"",SUM(AO35:AP35)) ->  | AR35: =IF(OR(AQ35="",$C34=""),"",IF(AQ35>=AO$11,"A",IF(AQ35<AQ$11,"C","B"))) ->  | AU35: =IF(OR(AND(AS35="",AT35=""),$C34=""),"",SUM(AS35:AT35)) ->  | AV35: =IF(OR(AU35="",$C34=""),"",IF(AU35>=AS$11,"A",IF(AU35<AU$11,"C","B"))) ->  | AY35: =IF(OR(AND(AW35="",AX35=""),$C34=""),"",SUM(AW35:AX35)) ->  | AZ35: =IF(OR(AY35="",$C34=""),"",IF(AY35>=AW$11,"A",IF(AY35<AY$11,"C","B"))) ->  | BC35: =IF(OR(AND(BA35="",BB35=""),$C34=""),"",SUM(BA35:BB35)) ->  | BD35: =IF(OR(BC35="",$C34=""),"",IF(BC35>=BA$11,"A",IF(BC35<BC$11,"C","B"))) ->  | BG35: =IF(OR(AND(BE35="",BF35=""),$C34=""),"",SUM(BE35:BF35)) ->  | BH35: =IF(OR(BG35="",$C34=""),"",IF(BG35>=BE$11,"A",IF(BG35<BG$11,"C","B"))) ->  | BK35: =IF(OR(AND(BI35="",BJ35=""),$C34=""),"",SUM(BI35:BJ35)) ->  | BL35: =IF(OR(BK35="",$C34=""),"",IF(BK35>=BI$11,"A",IF(BK35<BK$11,"C","B"))) ->  | BO35: =IF(OR(AND(BM35="",BN35=""),$C34=""),"",SUM(BM35:BN35)) ->  | BP35: =IF(OR(BO35="",$C34=""),"",IF(BO35>=BM$11,"A",IF(BO35<BO$11,"C","B"))) ->  | DU35: =IF($C34="","",IF(COUNTIFS($E$1:$DT$1,DU$1,$E$12:$DT$12,"得点",$E35:$DT35,">="&0)=0,"",SUMIFS($E35:$DT35,$E$1:$DT$1,DU$1,$E$12:$DT$12,"得点"))) ->  | DV35: =IF(OR($C34="",DU$7=0,DU35=""),"",DU35/DU$7) ->  | DW35: =IF(OR($C34="",DU$7=0,DV35=""),"",IF(DV35*100>=DV$11,"A",IF(DV35*100>=DW$11,"B","C"))) ->  | DX35: =IF($C34="","",IF(COUNTIFS($E$1:$DT$1,DX$1,$E$12:$DT$12,"得点",$E35:$DT35,">="&0)=0,"",SUMIFS($E35:$DT35,$E$1:$DT$1,DX$1,$E$12:$DT$12,"得点"))) ->  | DY35: =IF(OR($C34="",DX$7=0,DX35=""),"",DX35/DX$7) ->  | DZ35: =IF(OR($C34="",DX$7=0,DY35=""),"",IF(DY35*100>=DY$11,"A",IF(DY35*100>=DZ$11,"B","C"))) ->  | EA35: =IF($C34="","",IF(COUNTIFS($E$1:$DT$1,EA$1,$E$12:$DT$12,"得点",$E35:$DT35,">="&0)=0,"",SUMIFS($E35:$DT35,$E$1:$DT$1,EA$1,$E$12:$DT$12,"得点"))) ->  | EB35: =IF(OR($C34="",EA$7=0,EA35=""),"",EA35/EA$7) ->  | EC35: =IF(OR($C34="",EA$7=0,EB35=""),"",IF(EB35*100>=EB$11,"A",IF(EB35*100>=EC$11,"B","C"))) ->  | ED35: =IF($C34="","",IF(AND(DU35="",DX35="",EA35=""),"",SUM(DU35,DX35,EA35))) ->  | EE35: =IF(OR($C34="",ED$7=0,ED35=""),"",ED35/ED$7) ->  | EF35: =IF(OR($C34="",ED$7=0,EE35=""),"",IF(EE35*100>=EE$11,"A",IF(EE35*100>=EF$11,"B","C"))) -> 
